Workbook

Sheet Factors
A1: Prime Factorisation
E2: 2
B3: 720 | C3: =" = "&IF(E2<6,IF(B3=1,1,Working2!F59),"") -> = 2⁴ x 3² x 5
B4: =IF(E2<4,Working2!D5&" factors","") -> 30 factors | D4: =IF(E2<2,"HCF = "&Working2!B10,"") -> 
D5: =IF(E2<1,"LCM = "&Working2!B11,"") -> 
B6: 168 | C6: =" = "&IF(E2<5,IF(B6=1,1,Working2!F61),"") -> = 2³ x 3 x 7
B7: =IF(E2<3,Working2!D6&" factors","") -> 16 factors

Sheet Venn
E2: 180 | S2: 423
A3: #1 | B3: #2 | C3: HCF: | I3: =A14 ->  | J3: =A16 ->  | M3: =C12 ->  | P3: =B16 ->  | Q3: =B14 -> 
A4: =Working1!E65 -> 2 | B4: =Working1!E81 -> 47 | C4: =Working1!E49 -> 3 | I4: =A7 ->  | J4: =A10 ->  | L4: =C14 ->  | M4: =C7 ->  | N4: =C15 ->  | P4: =B10 ->  | Q4: =B7 -> 
A5: =Working1!E66 -> 2 | B5: =Working1!E82 ->  | C5: =Working1!E50 -> 3 | E5: HCF: | H5: =A8 ->  | I5: =A4 -> 2 | J5: =A11 ->  | L5: =C8 ->  | M5: =C4 -> 3 | N5: =C9 ->  | P5: =B11 ->  | Q5: =B4 -> 47 | R5: =B8 ->  | T5: LCM:
A6: =Working1!E67 -> 5 | B6: =Working1!E83 ->  | C6: =Working1!E51 ->  | E6: =Working1!B10 -> 9 | H6: =A9 ->  | I6: =A5 -> 2 | J6: =A12 ->  | L6: =C10 ->  | M6: =C5 -> 3 | N6: =C11 ->  | P6: =B12 ->  | Q6: =B5 ->  | R6: =B9 ->  | T6: =Working1!B11 -> 8460
A7: =Working1!E68 ->  | B7: =Working1!E84 ->  | C7: =Working1!E52 ->  | I7: =A6 -> 5 | J7: =A13 ->  | L7: =C16 ->  | M7: =C6 ->  | N7: =C17 ->  | P7: =B13 ->  | Q7: =B6 -> 
A8: =Working1!E69 ->  | B8: =Working1!E85 ->  | C8: =Working1!E53 ->  | I8: =A15 ->  | J8: =A17 ->  | M8: =C13 ->  | P8: =B17 ->  | Q8: =B15 -> 
A9: =Working1!E70 ->  | B9: =Working1!E86 ->  | C9: =Working1!E54 -> 
A10: =Working1!E71 ->  | B10: =Working1!E87 ->  | C10: =Working1!E55 ->  | E10: =E2&" = "&Working1!F59 -> 180 = 2² x 3² x 5 | M10: =S2&" = "&Working1!F61 -> 423 = 3² x 47
A11: =Working1!E72 ->  | B11: =Working1!E88 ->  | C11: =Working1!E56 -> 
A12: =Working1!E73 ->  | B12: =Working1!E89 ->  | C12: =Working1!E57 -> 
A13: =Working1!E74 ->  | B13: =Working1!E90 ->  | C13: =Working1!E58 -> 
A14: =Working1!E75 ->  | B14: =Working1!E91 ->  | C14: =Working1!E59 -> 
A15: =Working1!E76 ->  | B15: =Working1!E92 ->  | C15: =Working1!E60 -> 
A16: =Working1!E77 ->  | B16: =Working1!E93 ->  | C16: =Working1!E61 -> 
A17: =Working1!E78 ->  | B17: =Working1!E94 ->  | C17: =Working1!E62 -> 

Sheet Working1 (hidden)
F1: 1 | G1: 2 | H1: 3 | I1: =H1+1 -> 4 | J1: =I1+1 -> 5 | K1: 6 | L1: 7 | M1: 8 | N1: 9 | O1: 10 | P1: 11 | Q1: 12 | R1: 13 | S1: 14 | T1: 15 | U1: 16 | V1: 17 | W1: 18 | X1: 19 | Y1: 20 | Z1: 21 | AA1: 22 | AB1: 23 | AC1: 24 | AD1: 25 | AE1: 26 | AF1: 27 | AG1: 28 | AH1: 29 | AI1: 30 | AJ1: 31 | AK1: 32 | AL1: 33 | AM1: 34 | AN1: 35 | AO1: 36 | AP1: 37 | AQ1: 38 | AR1: 39 | AS1: 40 | AT1: 41 | AU1: 42 | AV1: 43 | AW1: 44 | AX1: 45 | AY1: 46 | AZ1: 47 | BA1: 48 | BB1: 49 | BC1: 50 | BD1: 51 | BE1: 52 | BF1: 53 | BG1: 54 | BH1: 55 | BI1: 56 | BJ1: 57 | BK1: 58 | BL1: 59 | BM1: 60 | BN1: 61 | BO1: 62 | BP1: 63 | BQ1: 64 | BR1: 65 | BS1: 66 | BT1: 67 | BU1: 68 | BV1: =BU1+1 -> 69 | BW1: 70 | BX1: 71 | BY1: 72 | BZ1: 73 | CA1: 74 | CB1: 75 | CC1: 76 | CD1: 77 | CE1: 78 | CF1: 79 | CG1: 80 | CH1: 81 | CI1: 82 | CJ1: 83 | CK1: 84 | CL1: 85 | CM1: 86 | CN1: 87 | CO1: 88 | CP1: 89 | CQ1: 90 | CR1: 91 | CS1: 92 | CT1: 93 | CU1: 94 | CV1: 95 | CW1: 96 | CX1: 97 | CY1: 98 | CZ1: 99 | DA1: 100 | DB1: 101 | DC1: 102 | DD1: 103 | DE1: 104 | DF1: 105 | DG1: 106 | DH1: 107 | DI1: 108 | DJ1: 109 | DK1: 110 | DL1: 111 | DM1: 112 | DN1: 113 | DO1: 114 | DP1: 115 | DQ1: 116 | DR1: 117 | DS1: 118 | DT1: 119 | DU1: 120 | DV1: 121 | DW1: 122 | DX1: 123 | DY1: 124 | DZ1: 125 | EA1: 126 | EB1: 127 | EC1: 128 | ED1: 129 | EE1: 130 | EF1: 131 | EG1: 132 | EH1: =EG1+1 -> 133 | EI1: 134 | EJ1: 135 | EK1: 136 | EL1: 137 | EM1: 138 | EN1: 139 | EO1: 140 | EP1: 141 | EQ1: 142 | ER1: 143 | ES1: 144 | ET1: 145 | EU1: 146 | EV1: 147 | EW1: 148 | EX1: 149 | EY1: 150 | EZ1: 151 | FA1: 152 | FB1: 153 | FC1: 154 | FD1: 155 | FE1: 156 | FF1: 157 | FG1: 158 | FH1: 159 | FI1: 160 | FJ1: 161 | FK1: 162 | FL1: 163 | FM1: 164 | FN1: 165 | FO1: 166 | FP1: 167 | FQ1: 168 | FR1: 169 | FS1: 170 | FT1: 171 | FU1: 172 | FV1: 173 | FW1: 174 | FX1: 175 | FY1: 176 | FZ1: 177 | GA1: 178 | GB1: 179 | GC1: 180 | GD1: 181 | GE1: 182 | GF1: 183 | GG1: 184 | GH1: 185 | GI1: 186 | GJ1: 187 | GK1: 188 | GL1: 189 | GM1: 190 | GN1: 191 | GO1: 192 | GP1: 193 | GQ1: 194 | GR1: 195 | GS1: 196 | GT1: =GS1+1 -> 197 | GU1: 198 | GV1: 199 | GW1: 200 | GX1: 201 | GY1: 202 | GZ1: 203 | HA1: 204 | HB1: 205 | HC1: 206 | HD1: 207 | HE1: 208 | HF1: 209 | HG1: 210 | HH1: 211 | HI1: 212 | HJ1: 213 | HK1: 214 | HL1: 215 | HM1: 216 | HN1: 217 | HO1: 218 | HP1: 219 | HQ1: 220 | HR1: 221 | HS1: 222 | HT1: 223 | HU1: 224 | HV1: 225 | HW1: 226 | HX1: 227 | HY1: 228 | HZ1: 229 | IA1: 230 | IB1: 231 | IC1: 232 | ID1: 233 | IE1: 234 | IF1: 235 | IG1: 236 | IH1: 237 | II1: 238 | IJ1: 239 | IK1: 240 | IL1: 241 | IM1: 242 | IN1: 243 | IO1: 244 | IP1: 245 | IQ1: 246 | IR1: 247 | IS1: 248 | IT1: 249 | IU1: 250 | IV1: 251 | IW1: 252 | IX1: 253 | IY1: 254 | IZ1: 255 | JA1: 256 | JB1: 257 | JC1: 258 | JD1: 259 | JE1: 260 | JF1: =JE1+1 -> 261 | JG1: 262 | JH1: 263 | JI1: 264 | JJ1: 265 | JK1: 266 | JL1: 267 | JM1: 268 | JN1: 269 | JO1: 270 | JP1: 271 | JQ1: 272 | JR1: 273 | JS1: 274 | JT1: 275 | JU1: 276 | JV1: 277 | JW1: 278 | JX1: 279 | JY1: 280 | JZ1: 281 | KA1: 282 | KB1: 283 | KC1: 284 | KD1: 285 | KE1: 286 | KF1: 287 | KG1: 288 | KH1: 289 | KI1: 290 | KJ1: 291 | KK1: 292 | KL1: 293 | KM1: 294 | KN1: 295 | KO1: 296 | KP1: 297 | KQ1: 298 | KR1: 299 | KS1: 300 | KT1: 301 | KU1: 302 | KV1: 303 | KW1: 304 | KX1: 305 | KY1: 306 | KZ1: 307 | LA1: 308 | LB1: 309 | LC1: 310 | LD1: 311 | LE1: 312 | LF1: 313 | LG1: 314 | LH1: 315 | LI1: 316 | LJ1: 317 | LK1: 318 | LL1: 319 | LM1: 320 | LN1: 321 | LO1: 322 | LP1: 323 | LQ1: 324 | LR1: =LQ1+1 -> 325 | LS1: 326 | LT1: 327 | LU1: 328 | LV1: 329 | LW1: 330 | LX1: 331 | LY1: 332 | LZ1: 333 | MA1: 334 | MB1: 335 | MC1: 336 | MD1: 337 | ME1: 338 | MF1: 339 | MG1: 340 | MH1: 341 | MI1: 342 | MJ1: 343 | MK1: 344 | ML1: 345 | MM1: 346 | MN1: 347 | MO1: 348 | MP1: 349 | MQ1: 350 | MR1: 351 | MS1: 352 | MT1: 353 | MU1: 354 | MV1: 355 | MW1: 356 | MX1: 357 | MY1: 358 | MZ1: 359 | NA1: 360 | NB1: 361 | NC1: 362 | ND1: 363 | NE1: 364 | NF1: 365 | NG1: 366 | NH1: 367 | NI1: 368 | NJ1: 369 | NK1: 370 | NL1: 371 | NM1: 372 | NN1: 373 | NO1: 374 | NP1: 375 | NQ1: 376 | NR1: 377 | NS1: 378 | NT1: 379 | NU1: 380 | NV1: 381 | NW1: 382 | NX1: 383 | NY1: 384 | NZ1: 385 | OA1: 386 | OB1: 387 | OC1: 388 | OD1: =OC1+1 -> 389 | OE1: 390 | OF1: 391 | OG1: 392 | OH1: 393 | OI1: 394 | OJ1: 395 | OK1: 396 | OL1: 397 | OM1: 398 | ON1: 399 | OO1: 400 | OP1: 401 | OQ1: 402 | OR1: 403 | OS1: 404 | OT1: 405 | OU1: 406 | OV1: 407 | OW1: 408 | OX1: 409 | OY1: 410 | OZ1: 411 | PA1: 412 | PB1: 413 | PC1: 414 | PD1: 415 | PE1: 416 | PF1: 417 | PG1: 418 | PH1: 419 | PI1: 420 | PJ1: 421 | PK1: 422 | PL1: 423 | PM1: 424 | PN1: 425 | PO1: 426 | PP1: 427 | PQ1: 428 | PR1: 429 | PS1: 430 | PT1: 431 | PU1: 432 | PV1: 433 | PW1: 434 | PX1: 435 | PY1: 436 | PZ1: 437 | QA1: 438 | QB1: 439 | QC1: 440 | QD1: 441 | QE1: 442 | QF1: 443 | QG1: 444 | QH1: 445 | QI1: 446 | QJ1: 447 | QK1: 448 | QL1: 449 | QM1: 450 | QN1: 451 | QO1: 452 | QP1: =QO1+1 -> 453 | QQ1: 454 | QR1: 455 | QS1: 456 | QT1: 457 | QU1: 458 | QV1: 459 | QW1: 460 | QX1: 461 | QY1: 462 | QZ1: 463 | RA1: 464 | RB1: 465 | RC1: 466 | RD1: 467 | RE1: 468 | RF1: 469 | RG1: 470 | RH1: 471 | RI1: 472 | RJ1: 473 | RK1: 474 | RL1: 475 | RM1: 476 | RN1: 477 | RO1: 478 | RP1: 479 | RQ1: 480 | RR1: 481 | RS1: 482 | RT1: 483 | RU1: 484 | RV1: 485 | RW1: 486 | RX1: 487 | RY1: 488 | RZ1: 489 | SA1: 490 | SB1: 491 | SC1: 492 | SD1: 493 | SE1: 494 | SF1: 495 | SG1: 496 | SH1: 497 | SI1: 498 | SJ1: 499 | SK1: 500 | SL1: 501 | SM1: 502 | SN1: 503 | SO1: 504 | SP1: 505 | SQ1: 506 | SR1: 507 | SS1: 508 | ST1: 509 | SU1: 510 | SV1: 511 | SW1: 512 | SX1: 513 | SY1: 514 | SZ1: 515 | TA1: 516 | TB1: =TA1+1 -> 517 | TC1: 518 | TD1: 519 | TE1: 520 | TF1: 521 | TG1: 522 | TH1: 523 | TI1: 524 | TJ1: 525 | TK1: 526 | TL1: 527 | TM1: 528 | TN1: 529 | TO1: 530 | TP1: 531 | TQ1: 532 | TR1: 533 | TS1: 534 | TT1: 535 | TU1: 536 | TV1: 537 | TW1: 538 | TX1: 539 | TY1: 540 | TZ1: 541 | UA1: 542 | UB1: 543 | UC1: 544 | UD1: 545 | UE1: 546 | UF1: 547 | UG1: 548 | UH1: 549 | UI1: 550 | UJ1: 551 | UK1: 552 | UL1: 553 | UM1: 554 | UN1: 555 | UO1: 556 | UP1: 557 | UQ1: 558 | UR1: 559 | US1: 560 | UT1: 561 | UU1: 562 | UV1: 563 | UW1: 564 | UX1: 565 | UY1: 566 | UZ1: 567 | VA1: 568 | VB1: 569 | VC1: 570 | VD1: 571 | VE1: 572 | VF1: 573 | VG1: 574 | VH1: 575 | VI1: 576 | VJ1: 577 | VK1: 578 | VL1: 579 | VM1: 580 | VN1: =VM1+1 -> 581 | VO1: 582 | VP1: 583 | VQ1: 584 | VR1: 585 | VS1: 586 | VT1: 587 | VU1: 588 | VV1: 589 | VW1: 590 | VX1: 591 | VY1: 592 | VZ1: 593 | WA1: 594 | WB1: 595 | WC1: 596 | WD1: 597 | WE1: 598 | WF1: 599 | WG1: 600 | WH1: 601 | WI1: 602 | WJ1: 603 | WK1: 604 | WL1: 605 | WM1: 606 | WN1: 607 | WO1: 608 | WP1: 609 | WQ1: 610 | WR1: 611 | WS1: 612 | WT1: 613 | WU1: 614 | WV1: 615 | WW1: 616 | WX1: 617 | WY1: 618 | WZ1: 619 | XA1: 620 | XB1: 621 | XC1: 622 | XD1: 623 | XE1: 624 | XF1: 625 | XG1: 626 | XH1: 627 | XI1: 628 | XJ1: 629 | XK1: 630 | XL1: 631 | XM1: 632 | XN1: 633 | XO1: 634 | XP1: 635 | XQ1: 636 | XR1: 637 | XS1: 638 | XT1: 639 | XU1: 640 | XV1: 641 | XW1: 642 | XX1: 643 | XY1: 644 | XZ1: =XY1+1 -> 645 | YA1: 646 | YB1: 647 | YC1: 648 | YD1: 649 | YE1: 650 | YF1: 651 | YG1: 652 | YH1: 653 | YI1: 654 | YJ1: 655 | YK1: 656 | YL1: 657 | YM1: 658 | YN1: 659 | YO1: 660 | YP1: 661 | YQ1: 662 | YR1: 663 | YS1: 664 | YT1: 665 | YU1: 666 | YV1: 667 | YW1: 668 | YX1: 669 | YY1: 670 | YZ1: 671 | ZA1: 672 | ZB1: 673 | ZC1: 674 | ZD1: 675 | ZE1: 676 | ZF1: 677 | ZG1: 678 | ZH1: 679 | ZI1: 680 | ZJ1: 681 | ZK1: 682 | ZL1: 683 | ZM1: 684 | ZN1: 685 | ZO1: 686 | ZP1: 687 | ZQ1: 688 | ZR1: 689 | ZS1: 690 | ZT1: 691 | ZU1: 692 | ZV1: 693 | ZW1: 694 | ZX1: 695 | ZY1: 696 | ZZ1: 697 | AAA1: 698 | AAB1: 699 | AAC1: 700 | AAD1: 701 | AAE1: 702 | AAF1: 703 | AAG1: 704 | AAH1: 705 | AAI1: 706 | AAJ1: 707 | AAK1: 708 | AAL1: =AAK1+1 -> 709 | AAM1: 710 | AAN1: 711 | AAO1: 712 | AAP1: 713 | AAQ1: 714 | AAR1: 715 | AAS1: 716 | AAT1: 717 | AAU1: 718 | AAV1: 719 | AAW1: 720 | AAX1: 721 | AAY1: 722 | AAZ1: 723 | ABA1: 724 | ABB1: 725 | ABC1: 726 | ABD1: 727 | ABE1: 728 | ABF1: 729 | ABG1: 730 | ABH1: 731 | ABI1: 732 | ABJ1: 733 | ABK1: 734 | ABL1: 735 | ABM1: 736 | ABN1: 737 | ABO1: 738 | ABP1: 739 | ABQ1: 740 | ABR1: 741 | ABS1: 742 | ABT1: 743 | ABU1: 744 | ABV1: 745 | ABW1: 746 | ABX1: 747 | ABY1: 748 | ABZ1: 749 | ACA1: 750 | ACB1: 751 | ACC1: 752 | ACD1: 753 | ACE1: 754 | ACF1: 755 | ACG1: 756 | ACH1: 757 | ACI1: 758 | ACJ1: 759 | ACK1: 760 | ACL1: 761 | ACM1: 762 | ACN1: 763 | ACO1: 764 | ACP1: 765 | ACQ1: 766 | ACR1: 767 | ACS1: 768 | ACT1: 769 | ACU1: 770 | ACV1: 771 | ACW1: 772 | ACX1: =ACW1+1 -> 773 | ACY1: 774 | ACZ1: 775 | ADA1: 776 | ADB1: 777 | ADC1: 778 | ADD1: 779 | ADE1: 780 | ADF1: 781 | ADG1: 782 | ADH1: 783 | ADI1: 784 | ADJ1: 785 | ADK1: 786 | ADL1: 787 | ADM1: 788 | ADN1: 789 | ADO1: 790 | ADP1: 791 | ADQ1: 792 | ADR1: 793 | ADS1: 794 | ADT1: 795 | ADU1: 796 | ADV1: 797 | ADW1: 798 | ADX1: 799 | ADY1: 800 | ADZ1: 801 | AEA1: 802 | AEB1: 803 | AEC1: 804 | AED1: 805 | AEE1: 806 | AEF1: 807 | AEG1: 808 | AEH1: 809 | AEI1: 810 | AEJ1: 811 | AEK1: 812 | AEL1: 813 | AEM1: 814 | AEN1: 815 | AEO1: 816 | AEP1: 817 | AEQ1: 818 | AER1: 819 | AES1: 820 | AET1: 821 | AEU1: 822 | AEV1: 823 | AEW1: 824 | AEX1: 825 | AEY1: 826 | AEZ1: 827 | AFA1: 828 | AFB1: 829 | AFC1: 830 | AFD1: 831 | AFE1: 832 | AFF1: 833 | AFG1: 834 | AFH1: 835 | AFI1: 836 | AFJ1: =AFI1+1 -> 837 | AFK1: 838 | AFL1: 839 | AFM1: 840 | AFN1: 841 | AFO1: 842 | AFP1: 843 | AFQ1: 844 | AFR1: 845 | AFS1: 846 | AFT1: 847 | AFU1: 848 | AFV1: 849 | AFW1: 850 | AFX1: 851 | AFY1: 852 | AFZ1: 853 | AGA1: 854 | AGB1: 855 | AGC1: 856 | AGD1: 857 | AGE1: 858 | AGF1: 859 | AGG1: 860 | AGH1: 861 | AGI1: 862 | AGJ1: 863 | AGK1: 864 | AGL1: 865 | AGM1: 866 | AGN1: 867 | AGO1: 868 | AGP1: 869 | AGQ1: 870 | AGR1: 871 | AGS1: 872 | AGT1: 873 | AGU1: 874 | AGV1: 875 | AGW1: 876 | AGX1: 877 | AGY1: 878 | AGZ1: 879 | AHA1: 880 | AHB1: 881 | AHC1: 882 | AHD1: 883 | AHE1: 884 | AHF1: 885 | AHG1: 886 | AHH1: 887 | AHI1: 888 | AHJ1: 889 | AHK1: 890 | AHL1: 891 | AHM1: 892 | AHN1: 893 | AHO1: 894 | AHP1: 895 | AHQ1: 896 | AHR1: 897 | AHS1: 898 | AHT1: 899 | AHU1: 900 | AHV1: =AHU1+1 -> 901 | AHW1: 902 | AHX1: 903 | AHY1: 904 | AHZ1: 905 | AIA1: 906 | AIB1: 907 | AIC1: 908 | AID1: 909 | AIE1: 910 | AIF1: 911 | AIG1: 912 | AIH1: 913 | AII1: 914 | AIJ1: 915 | AIK1: 916 | AIL1: 917 | AIM1: 918 | AIN1: 919 | AIO1: 920 | AIP1: 921 | AIQ1: 922 | AIR1: 923 | AIS1: 924 | AIT1: 925 | AIU1: 926 | AIV1: 927 | AIW1: 928 | AIX1: 929 | AIY1: 930 | AIZ1: 931 | AJA1: 932 | AJB1: 933 | AJC1: 934 | AJD1: 935 | AJE1: 936 | AJF1: 937 | AJG1: 938 | AJH1: 939 | AJI1: 940 | AJJ1: 941 | AJK1: 942 | AJL1: 943 | AJM1: 944 | AJN1: 945 | AJO1: 946 | AJP1: 947 | AJQ1: 948 | AJR1: 949 | AJS1: 950 | AJT1: 951 | AJU1: 952 | AJV1: 953 | AJW1: 954 | AJX1: 955 | AJY1: 956 | AJZ1: 957 | AKA1: 958 | AKB1: 959 | AKC1: 960 | AKD1: 961 | AKE1: 962 | AKF1: 963 | AKG1: 964 | AKH1: =AKG1+1 -> 965 | AKI1: 966 | AKJ1: 967 | AKK1: 968 | AKL1: 969 | AKM1: 970 | AKN1: 971 | AKO1: 972 | AKP1: 973 | AKQ1: 974 | AKR1: 975 | AKS1: 976 | AKT1: 977 | AKU1: 978 | AKV1: 979 | AKW1: 980 | AKX1: 981 | AKY1: 982 | AKZ1: 983 | ALA1: 984 | ALB1: 985 | ALC1: 986 | ALD1: 987 | ALE1: 988 | ALF1: 989 | ALG1: 990 | ALH1: 991 | ALI1: 992 | ALJ1: 993 | ALK1: 994 | ALL1: 995 | ALM1: 996 | ALN1: 997 | ALO1: 998 | ALP1: 999 | ALQ1: 1000
F2: =IF(F4="",""," x "&F4) -> x 2² | G2: =IF(G4="",""," x ")&G4 -> x 3² | H2: =IF(H4="",""," x ")&H4 -> x 5 | BT2: =IF(BT4="",""," x ")&BT4 ->  | EF2: =IF(EF4="",""," x ")&EF4 ->  | GR2: =IF(GR4="",""," x ")&GR4 ->  | JD2: =IF(JD4="",""," x ")&JD4 ->  | LP2: =IF(LP4="",""," x ")&LP4 ->  | OB2: =IF(OB4="",""," x ")&OB4 ->  | QN2: =IF(QN4="",""," x ")&QN4 ->  | SZ2: =IF(SZ4="",""," x ")&SZ4 ->  | VL2: =IF(VL4="",""," x ")&VL4 ->  | XX2: =IF(XX4="",""," x ")&XX4 ->  | AAJ2: =IF(AAJ4="",""," x ")&AAJ4 ->  | ACV2: =IF(ACV4="",""," x ")&ACV4 ->  | AFH2: =IF(AFH4="",""," x ")&AFH4 ->  | AHT2: =IF(AHT4="",""," x ")&AHT4 ->  | AKF2: =IF(AKF4="",""," x ")&AKF4 -> 
F3: =SUM($F$5:F5) -> 2 | G3: =SUM($F$5:G5) -> 4 | H3: =SUM($F$5:H5) -> 5 | I3: =SUM($F$5:I5) -> 5 | J3: =SUM($F$5:J5) -> 5 | K3: =SUM($F$5:K5) -> 5 | L3: =SUM($F$5:L5) -> 5 | M3: =SUM($F$5:M5) -> 5 | N3: =SUM($F$5:N5) -> 5 | O3: =SUM($F$5:O5) -> 5 | P3: =SUM($F$5:P5) -> 5 | Q3: =SUM($F$5:Q5) -> 5 | R3: =SUM($F$5:R5) -> 5 | S3: =SUM($F$5:S5) -> 5 | T3: =SUM($F$5:T5) -> 5 | U3: =SUM($F$5:U5) -> 5 | V3: =SUM($F$5:V5) -> 5 | W3: =SUM($F$5:W5) -> 5 | X3: =SUM($F$5:X5) -> 5 | Y3: =SUM($F$5:Y5) -> 5 | Z3: =SUM($F$5:Z5) -> 5 | AA3: =SUM($F$5:AA5) -> 5 | AB3: =SUM($F$5:AB5) -> 5 | AC3: =SUM($F$5:AC5) -> 5 | AD3: =SUM($F$5:AD5) -> 5 | AE3: =SUM($F$5:AE5) -> 5 | AF3: =SUM($F$5:AF5) -> 5 | AG3: =SUM($F$5:AG5) -> 5 | AH3: =SUM($F$5:AH5) -> 5 | AI3: =SUM($F$5:AI5) -> 5 | AJ3: =SUM($F$5:AJ5) -> 5 | AK3: =SUM($F$5:AK5) -> 5 | AL3: =SUM($F$5:AL5) -> 5 | AM3: =SUM($F$5:AM5) -> 5 | AN3: =SUM($F$5:AN5) -> 5 | AO3: =SUM($F$5:AO5) -> 5 | AP3: =SUM($F$5:AP5) -> 5 | AQ3: =SUM($F$5:AQ5) -> 5 | AR3: =SUM($F$5:AR5) -> 5 | AS3: =SUM($F$5:AS5) -> 5 | AT3: =SUM($F$5:AT5) -> 5 | AU3: =SUM($F$5:AU5) -> 5 | AV3: =SUM($F$5:AV5) -> 5 | AW3: =SUM($F$5:AW5) -> 5 | AX3: =SUM($F$5:AX5) -> 5 | AY3: =SUM($F$5:AY5) -> 5 | AZ3: =SUM($F$5:AZ5) -> 5 | BA3: =SUM($F$5:BA5) -> 5 | BB3: =SUM($F$5:BB5) -> 5 | BC3: =SUM($F$5:BC5) -> 5 | BD3: =SUM($F$5:BD5) -> 5 | BE3: =SUM($F$5:BE5) -> 5 | BF3: =SUM($F$5:BF5) -> 5 | BG3: =SUM($F$5:BG5) -> 5 | BH3: =SUM($F$5:BH5) -> 5 | BI3: =SUM($F$5:BI5) -> 5 | BJ3: =SUM($F$5:BJ5) -> 5 | BK3: =SUM($F$5:BK5) -> 5 | BL3: =SUM($F$5:BL5) -> 5 | BM3: =SUM($F$5:BM5) -> 5 | BN3: =SUM($F$5:BN5) -> 5 | BO3: =SUM($F$5:BO5) -> 5 | BP3: =SUM($F$5:BP5) -> 5 | BQ3: =SUM($F$5:BQ5) -> 5 | BR3: =SUM($F$5:BR5) -> 5 | BS3: =SUM($F$5:BS5) -> 5 | BT3: =SUM($F$5:BT5) -> 5 | BU3: =SUM($F$5:BU5) -> 5 | BV3: =SUM($F$5:BV5) -> 5 | BW3: =SUM($F$5:BW5) -> 5 | BX3: =SUM($F$5:BX5) -> 5 | BY3: =SUM($F$5:BY5) -> 5 | BZ3: =SUM($F$5:BZ5) -> 5 | CA3: =SUM($F$5:CA5) -> 5 | CB3: =SUM($F$5:CB5) -> 5 | CC3: =SUM($F$5:CC5) -> 5 | CD3: =SUM($F$5:CD5) -> 5 | CE3: =SUM($F$5:CE5) -> 5 | CF3: =SUM($F$5:CF5) -> 5 | CG3: =SUM($F$5:CG5) -> 5 | CH3: =SUM($F$5:CH5) -> 5 | CI3: =SUM($F$5:CI5) -> 5 | CJ3: =SUM($F$5:CJ5) -> 5 | CK3: =SUM($F$5:CK5) -> 5 | CL3: =SUM($F$5:CL5) -> 5 | CM3: =SUM($F$5:CM5) -> 5 | CN3: =SUM($F$5:CN5) -> 5 | CO3: =SUM($F$5:CO5) -> 5 | CP3: =SUM($F$5:CP5) -> 5 | CQ3: =SUM($F$5:CQ5) -> 5 | CR3: =SUM($F$5:CR5) -> 5 | CS3: =SUM($F$5:CS5) -> 5 | CT3: =SUM($F$5:CT5) -> 5 | CU3: =SUM($F$5:CU5) -> 5 | CV3: =SUM($F$5:CV5) -> 5 | CW3: =SUM($F$5:CW5) -> 5 | CX3: =SUM($F$5:CX5) -> 5 | CY3: =SUM($F$5:CY5) -> 5 | CZ3: =SUM($F$5:CZ5) -> 5 | DA3: =SUM($F$5:DA5) -> 5 | DB3: =SUM($F$5:DB5) -> 5 | DC3: =SUM($F$5:DC5) -> 5 | DD3: =SUM($F$5:DD5) -> 5 | DE3: =SUM($F$5:DE5) -> 5 | DF3: =SUM($F$5:DF5) -> 5 | DG3: =SUM($F$5:DG5) -> 5 | DH3: =SUM($F$5:DH5) -> 5 | DI3: =SUM($F$5:DI5) -> 5 | DJ3: =SUM($F$5:DJ5) -> 5 | DK3: =SUM($F$5:DK5) -> 5 | DL3: =SUM($F$5:DL5) -> 5 | DM3: =SUM($F$5:DM5) -> 5 | DN3: =SUM($F$5:DN5) -> 5 | DO3: =SUM($F$5:DO5) -> 5 | DP3: =SUM($F$5:DP5) -> 5 | DQ3: =SUM($F$5:DQ5) -> 5 | DR3: =SUM($F$5:DR5) -> 5 | DS3: =SUM($F$5:DS5) -> 5 | DT3: =SUM($F$5:DT5) -> 5 | DU3: =SUM($F$5:DU5) -> 5 | DV3: =SUM($F$5:DV5) -> 5 | DW3: =SUM($F$5:DW5) -> 5 | DX3: =SUM($F$5:DX5) -> 5 | DY3: =SUM($F$5:DY5) -> 5 | DZ3: =SUM($F$5:DZ5) -> 5 | EA3: =SUM($F$5:EA5) -> 5 | EB3: =SUM($F$5:EB5) -> 5 | EC3: =SUM($F$5:EC5) -> 5 | ED3: =SUM($F$5:ED5) -> 5 | EE3: =SUM($F$5:EE5) -> 5 | EF3: =SUM($F$5:EF5) -> 5 | EG3: =SUM($F$5:EG5) -> 5 | EH3: =SUM($F$5:EH5) -> 5 | EI3: =SUM($F$5:EI5) -> 5 | EJ3: =SUM($F$5:EJ5) -> 5 | EK3: =SUM($F$5:EK5) -> 5 | EL3: =SUM($F$5:EL5) -> 5 | EM3: =SUM($F$5:EM5) -> 5 | EN3: =SUM($F$5:EN5) -> 5 | EO3: =SUM($F$5:EO5) -> 5 | EP3: =SUM($F$5:EP5) -> 5 | EQ3: =SUM($F$5:EQ5) -> 5 | ER3: =SUM($F$5:ER5) -> 5 | ES3: =SUM($F$5:ES5) -> 5 | ET3: =SUM($F$5:ET5) -> 5 | EU3: =SUM($F$5:EU5) -> 5 | EV3: =SUM($F$5:EV5) -> 5 | EW3: =SUM($F$5:EW5) -> 5 | EX3: =SUM($F$5:EX5) -> 5 | EY3: =SUM($F$5:EY5) -> 5 | EZ3: =SUM($F$5:EZ5) -> 5 | FA3: =SUM($F$5:FA5) -> 5 | FB3: =SUM($F$5:FB5) -> 5 | FC3: =SUM($F$5:FC5) -> 5 | FD3: =SUM($F$5:FD5) -> 5 | FE3: =SUM($F$5:FE5) -> 5 | FF3: =SUM($F$5:FF5) -> 5 | FG3: =SUM($F$5:FG5) -> 5 | FH3: =SUM($F$5:FH5) -> 5 | FI3: =SUM($F$5:FI5) -> 5 | FJ3: =SUM($F$5:FJ5) -> 5 | FK3: =SUM($F$5:FK5) -> 5 | FL3: =SUM($F$5:FL5) -> 5 | FM3: =SUM($F$5:FM5) -> 5 | FN3: =SUM($F$5:FN5) -> 5 | FO3: =SUM($F$5:FO5) -> 5 | FP3: =SUM($F$5:FP5) -> 5 | FQ3: =SUM($F$5:FQ5) -> 5 | FR3: =SUM($F$5:FR5) -> 5 | FS3: =SUM($F$5:FS5) -> 5 | FT3: =SUM($F$5:FT5) -> 5 | FU3: =SUM($F$5:FU5) -> 5 | FV3: =SUM($F$5:FV5) -> 5 | FW3: =SUM($F$5:FW5) -> 5 | FX3: =SUM($F$5:FX5) -> 5 | FY3: =SUM($F$5:FY5) -> 5 | FZ3: =SUM($F$5:FZ5) -> 5 | GA3: =SUM($F$5:GA5) -> 5 | GB3: =SUM($F$5:GB5) -> 5 | GC3: =SUM($F$5:GC5) -> 5 | GD3: =SUM($F$5:GD5) -> 5 | GE3: =SUM($F$5:GE5) -> 5 | GF3: =SUM($F$5:GF5) -> 5 | GG3: =SUM($F$5:GG5) -> 5 | GH3: =SUM($F$5:GH5) -> 5 | GI3: =SUM($F$5:GI5) -> 5 | GJ3: =SUM($F$5:GJ5) -> 5 | GK3: =SUM($F$5:GK5) -> 5 | GL3: =SUM($F$5:GL5) -> 5 | GM3: =SUM($F$5:GM5) -> 5 | GN3: =SUM($F$5:GN5) -> 5 | GO3: =SUM($F$5:GO5) -> 5 | GP3: =SUM($F$5:GP5) -> 5 | GQ3: =SUM($F$5:GQ5) -> 5 | GR3: =SUM($F$5:GR5) -> 5 | GS3: =SUM($F$5:GS5) -> 5 | GT3: =SUM($F$5:GT5) -> 5 | GU3: =SUM($F$5:GU5) -> 5 | GV3: =SUM($F$5:GV5) -> 5 | GW3: =SUM($F$5:GW5) -> 5 | GX3: =SUM($F$5:GX5) -> 5 | GY3: =SUM($F$5:GY5) -> 5 | GZ3: =SUM($F$5:GZ5) -> 5 | HA3: =SUM($F$5:HA5) -> 5 | HB3: =SUM($F$5:HB5) -> 5 | HC3: =SUM($F$5:HC5) -> 5 | HD3: =SUM($F$5:HD5) -> 5 | HE3: =SUM($F$5:HE5) -> 5 | HF3: =SUM($F$5:HF5) -> 5 | HG3: =SUM($F$5:HG5) -> 5 | HH3: =SUM($F$5:HH5) -> 5 | HI3: =SUM($F$5:HI5) -> 5 | HJ3: =SUM($F$5:HJ5) -> 5 | HK3: =SUM($F$5:HK5) -> 5 | HL3: =SUM($F$5:HL5) -> 5 | HM3: =SUM($F$5:HM5) -> 5 | HN3: =SUM($F$5:HN5) -> 5 | HO3: =SUM($F$5:HO5) -> 5 | HP3: =SUM($F$5:HP5) -> 5 | HQ3: =SUM($F$5:HQ5) -> 5 | HR3: =SUM($F$5:HR5) -> 5 | HS3: =SUM($F$5:HS5) -> 5 | HT3: =SUM($F$5:HT5) -> 5 | HU3: =SUM($F$5:HU5) -> 5 | HV3: =SUM($F$5:HV5) -> 5 | HW3: =SUM($F$5:HW5) -> 5 | HX3: =SUM($F$5:HX5) -> 5 | HY3: =SUM($F$5:HY5) -> 5 | HZ3: =SUM($F$5:HZ5) -> 5 | IA3: =SUM($F$5:IA5) -> 5 | IB3: =SUM($F$5:IB5) -> 5 | IC3: =SUM($F$5:IC5) -> 5 | ID3: =SUM($F$5:ID5) -> 5 | IE3: =SUM($F$5:IE5) -> 5 | IF3: =SUM($F$5:IF5) -> 5 | IG3: =SUM($F$5:IG5) -> 5 | IH3: =SUM($F$5:IH5) -> 5 | II3: =SUM($F$5:II5) -> 5 | IJ3: =SUM($F$5:IJ5) -> 5 | IK3: =SUM($F$5:IK5) -> 5 | IL3: =SUM($F$5:IL5) -> 5 | IM3: =SUM($F$5:IM5) -> 5 | IN3: =SUM($F$5:IN5) -> 5 | IO3: =SUM($F$5:IO5) -> 5 | IP3: =SUM($F$5:IP5) -> 5 | IQ3: =SUM($F$5:IQ5) -> 5 | IR3: =SUM($F$5:IR5) -> 5 | IS3: =SUM($F$5:IS5) -> 5 | IT3: =SUM($F$5:IT5) -> 5 | IU3: =SUM($F$5:IU5) -> 5 | IV3: =SUM($F$5:IV5) -> 5 | IW3: =SUM($F$5:IW5) -> 5 | IX3: =SUM($F$5:IX5) -> 5 | IY3: =SUM($F$5:IY5) -> 5 | IZ3: =SUM($F$5:IZ5) -> 5 | JA3: =SUM($F$5:JA5) -> 5 | JB3: =SUM($F$5:JB5) -> 5 | JC3: =SUM($F$5:JC5) -> 5 | JD3: =SUM($F$5:JD5) -> 5 | JE3: =SUM($F$5:JE5) -> 5 | JF3: =SUM($F$5:JF5) -> 5 | JG3: =SUM($F$5:JG5) -> 5 | JH3: =SUM($F$5:JH5) -> 5 | JI3: =SUM($F$5:JI5) -> 5 | JJ3: =SUM($F$5:JJ5) -> 5 | JK3: =SUM($F$5:JK5) -> 5 | JL3: =SUM($F$5:JL5) -> 5 | JM3: =SUM($F$5:JM5) -> 5 | JN3: =SUM($F$5:JN5) -> 5 | JO3: =SUM($F$5:JO5) -> 5 | JP3: =SUM($F$5:JP5) -> 5 | JQ3: =SUM($F$5:JQ5) -> 5 | JR3: =SUM($F$5:JR5) -> 5 | JS3: =SUM($F$5:JS5) -> 5 | JT3: =SUM($F$5:JT5) -> 5 | JU3: =SUM($F$5:JU5) -> 5 | JV3: =SUM($F$5:JV5) -> 5 | JW3: =SUM($F$5:JW5) -> 5 | JX3: =SUM($F$5:JX5) -> 5 | JY3: =SUM($F$5:JY5) -> 5 | JZ3: =SUM($F$5:JZ5) -> 5 | KA3: =SUM($F$5:KA5) -> 5 | KB3: =SUM($F$5:KB5) -> 5 | KC3: =SUM($F$5:KC5) -> 5 | KD3: =SUM($F$5:KD5) -> 5 | KE3: =SUM($F$5:KE5) -> 5 | KF3: =SUM($F$5:KF5) -> 5 | KG3: =SUM($F$5:KG5) -> 5 | KH3: =SUM($F$5:KH5) -> 5 | KI3: =SUM($F$5:KI5) -> 5 | KJ3: =SUM($F$5:KJ5) -> 5 | KK3: =SUM($F$5:KK5) -> 5 | KL3: =SUM($F$5:KL5) -> 5 | KM3: =SUM($F$5:KM5) -> 5 | KN3: =SUM($F$5:KN5) -> 5 | KO3: =SUM($F$5:KO5) -> 5 | KP3: =SUM($F$5:KP5) -> 5 | KQ3: =SUM($F$5:KQ5) -> 5 | KR3: =SUM($F$5:KR5) -> 5 | KS3: =SUM($F$5:KS5) -> 5 | KT3: =SUM($F$5:KT5) -> 5 | KU3: =SUM($F$5:KU5) -> 5 | KV3: =SUM($F$5:KV5) -> 5 | KW3: =SUM($F$5:KW5) -> 5 | KX3: =SUM($F$5:KX5) -> 5 | KY3: =SUM($F$5:KY5) -> 5 | KZ3: =SUM($F$5:KZ5) -> 5 | LA3: =SUM($F$5:LA5) -> 5 | LB3: =SUM($F$5:LB5) -> 5 | LC3: =SUM($F$5:LC5) -> 5 | LD3: =SUM($F$5:LD5) -> 5 | LE3: =SUM($F$5:LE5) -> 5 | LF3: =SUM($F$5:LF5) -> 5 | LG3: =SUM($F$5:LG5) -> 5 | LH3: =SUM($F$5:LH5) -> 5 | LI3: =SUM($F$5:LI5) -> 5 | LJ3: =SUM($F$5:LJ5) -> 5 | LK3: =SUM($F$5:LK5) -> 5 | LL3: =SUM($F$5:LL5) -> 5 | LM3: =SUM($F$5:LM5) -> 5 | LN3: =SUM($F$5:LN5) -> 5 | LO3: =SUM($F$5:LO5) -> 5 | LP3: =SUM($F$5:LP5) -> 5 | LQ3: =SUM($F$5:LQ5) -> 5 | LR3: =SUM($F$5:LR5) -> 5 | LS3: =SUM($F$5:LS5) -> 5 | LT3: =SUM($F$5:LT5) -> 5 | LU3: =SUM($F$5:LU5) -> 5 | LV3: =SUM($F$5:LV5) -> 5 | LW3: =SUM($F$5:LW5) -> 5 | LX3: =SUM($F$5:LX5) -> 5 | LY3: =SUM($F$5:LY5) -> 5 | LZ3: =SUM($F$5:LZ5) -> 5 | MA3: =SUM($F$5:MA5) -> 5 | MB3: =SUM($F$5:MB5) -> 5 | MC3: =SUM($F$5:MC5) -> 5 | MD3: =SUM($F$5:MD5) -> 5 | ME3: =SUM($F$5:ME5) -> 5 | MF3: =SUM($F$5:MF5) -> 5 | MG3: =SUM($F$5:MG5) -> 5 | MH3: =SUM($F$5:MH5) -> 5 | MI3: =SUM($F$5:MI5) -> 5 | MJ3: =SUM($F$5:MJ5) -> 5 | MK3: =SUM($F$5:MK5) -> 5 | ML3: =SUM($F$5:ML5) -> 5 | MM3: =SUM($F$5:MM5) -> 5 | MN3: =SUM($F$5:MN5) -> 5 | MO3: =SUM($F$5:MO5) -> 5 | MP3: =SUM($F$5:MP5) -> 5 | MQ3: =SUM($F$5:MQ5) -> 5 | MR3: =SUM($F$5:MR5) -> 5 | MS3: =SUM($F$5:MS5) -> 5 | MT3: =SUM($F$5:MT5) -> 5 | MU3: =SUM($F$5:MU5) -> 5 | MV3: =SUM($F$5:MV5) -> 5 | MW3: =SUM($F$5:MW5) -> 5 | MX3: =SUM($F$5:MX5) -> 5 | MY3: =SUM($F$5:MY5) -> 5 | MZ3: =SUM($F$5:MZ5) -> 5 | NA3: =SUM($F$5:NA5) -> 5 | NB3: =SUM($F$5:NB5) -> 5 | NC3: =SUM($F$5:NC5) -> 5 | ND3: =SUM($F$5:ND5) -> 5 | NE3: =SUM($F$5:NE5) -> 5 | NF3: =SUM($F$5:NF5) -> 5 | NG3: =SUM($F$5:NG5) -> 5 | NH3: =SUM($F$5:NH5) -> 5 | NI3: =SUM($F$5:NI5) -> 5 | NJ3: =SUM($F$5:NJ5) -> 5 | NK3: =SUM($F$5:NK5) -> 5 | NL3: =SUM($F$5:NL5) -> 5 | NM3: =SUM($F$5:NM5) -> 5 | NN3: =SUM($F$5:NN5) -> 5 | NO3: =SUM($F$5:NO5) -> 5 | NP3: =SUM($F$5:NP5) -> 5 | NQ3: =SUM($F$5:NQ5) -> 5 | NR3: =SUM($F$5:NR5) -> 5 | NS3: =SUM($F$5:NS5) -> 5 | NT3: =SUM($F$5:NT5) -> 5 | NU3: =SUM($F$5:NU5) -> 5 | NV3: =SUM($F$5:NV5) -> 5 | NW3: =SUM($F$5:NW5) -> 5 | NX3: =SUM($F$5:NX5) -> 5 | NY3: =SUM($F$5:NY5) -> 5 | NZ3: =SUM($F$5:NZ5) -> 5 | OA3: =SUM($F$5:OA5) -> 5 | OB3: =SUM($F$5:OB5) -> 5 | OC3: =SUM($F$5:OC5) -> 5 | OD3: =SUM($F$5:OD5) -> 5 | OE3: =SUM($F$5:OE5) -> 5 | OF3: =SUM($F$5:OF5) -> 5 | OG3: =SUM($F$5:OG5) -> 5 | OH3: =SUM($F$5:OH5) -> 5 | OI3: =SUM($F$5:OI5) -> 5 | OJ3: =SUM($F$5:OJ5) -> 5 | OK3: =SUM($F$5:OK5) -> 5 | OL3: =SUM($F$5:OL5) -> 5 | OM3: =SUM($F$5:OM5) -> 5 | ON3: =SUM($F$5:ON5) -> 5 | OO3: =SUM($F$5:OO5) -> 5 | OP3: =SUM($F$5:OP5) -> 5 | OQ3: =SUM($F$5:OQ5) -> 5 | OR3: =SUM($F$5:OR5) -> 5 | OS3: =SUM($F$5:OS5) -> 5 | OT3: =SUM($F$5:OT5) -> 5 | OU3: =SUM($F$5:OU5) -> 5 | OV3: =SUM($F$5:OV5) -> 5 | OW3: =SUM($F$5:OW5) -> 5 | OX3: =SUM($F$5:OX5) -> 5 | OY3: =SUM($F$5:OY5) -> 5 | OZ3: =SUM($F$5:OZ5) -> 5 | PA3: =SUM($F$5:PA5) -> 5 | PB3: =SUM($F$5:PB5) -> 5 | PC3: =SUM($F$5:PC5) -> 5 | PD3: =SUM($F$5:PD5) -> 5 | PE3: =SUM($F$5:PE5) -> 5 | PF3: =SUM($F$5:PF5) -> 5 | PG3: =SUM($F$5:PG5) -> 5 | PH3: =SUM($F$5:PH5) -> 5 | PI3: =SUM($F$5:PI5) -> 5 | PJ3: =SUM($F$5:PJ5) -> 5 | PK3: =SUM($F$5:PK5) -> 5 | PL3: =SUM($F$5:PL5) -> 5 | PM3: =SUM($F$5:PM5) -> 5 | PN3: =SUM($F$5:PN5) -> 5 | PO3: =SUM($F$5:PO5) -> 5 | PP3: =SUM($F$5:PP5) -> 5 | PQ3: =SUM($F$5:PQ5) -> 5 | PR3: =SUM($F$5:PR5) -> 5 | PS3: =SUM($F$5:PS5) -> 5 | PT3: =SUM($F$5:PT5) -> 5 | PU3: =SUM($F$5:PU5) -> 5 | PV3: =SUM($F$5:PV5) -> 5 | PW3: =SUM($F$5:PW5) -> 5 | PX3: =SUM($F$5:PX5) -> 5 | PY3: =SUM($F$5:PY5) -> 5 | PZ3: =SUM($F$5:PZ5) -> 5 | QA3: =SUM($F$5:QA5) -> 5 | QB3: =SUM($F$5:QB5) -> 5 | QC3: =SUM($F$5:QC5) -> 5 | QD3: =SUM($F$5:QD5) -> 5 | QE3: =SUM($F$5:QE5) -> 5 | QF3: =SUM($F$5:QF5) -> 5 | QG3: =SUM($F$5:QG5) -> 5 | QH3: =SUM($F$5:QH5) -> 5 | QI3: =SUM($F$5:QI5) -> 5 | QJ3: =SUM($F$5:QJ5) -> 5 | QK3: =SUM($F$5:QK5) -> 5 | QL3: =SUM($F$5:QL5) -> 5 | QM3: =SUM($F$5:QM5) -> 5 | QN3: =SUM($F$5:QN5) -> 5 | QO3: =SUM($F$5:QO5) -> 5 | QP3: =SUM($F$5:QP5) -> 5 | QQ3: =SUM($F$5:QQ5) -> 5 | QR3: =SUM($F$5:QR5) -> 5 | QS3: =SUM($F$5:QS5) -> 5 | QT3: =SUM($F$5:QT5) -> 5 | QU3: =SUM($F$5:QU5) -> 5 | QV3: =SUM($F$5:QV5) -> 5 | QW3: =SUM($F$5:QW5) -> 5 | QX3: =SUM($F$5:QX5) -> 5 | QY3: =SUM($F$5:QY5) -> 5 | QZ3: =SUM($F$5:QZ5) -> 5 | RA3: =SUM($F$5:RA5) -> 5 | RB3: =SUM($F$5:RB5) -> 5 | RC3: =SUM($F$5:RC5) -> 5 | RD3: =SUM($F$5:RD5) -> 5 | RE3: =SUM($F$5:RE5) -> 5 | RF3: =SUM($F$5:RF5) -> 5 | RG3: =SUM($F$5:RG5) -> 5 | RH3: =SUM($F$5:RH5) -> 5 | RI3: =SUM($F$5:RI5) -> 5 | RJ3: =SUM($F$5:RJ5) -> 5 | RK3: =SUM($F$5:RK5) -> 5 | RL3: =SUM($F$5:RL5) -> 5 | RM3: =SUM($F$5:RM5) -> 5 | RN3: =SUM($F$5:RN5) -> 5 | RO3: =SUM($F$5:RO5) -> 5 | RP3: =SUM($F$5:RP5) -> 5 | RQ3: =SUM($F$5:RQ5) -> 5 | RR3: =SUM($F$5:RR5) -> 5 | RS3: =SUM($F$5:RS5) -> 5 | RT3: =SUM($F$5:RT5) -> 5 | RU3: =SUM($F$5:RU5) -> 5 | RV3: =SUM($F$5:RV5) -> 5 | RW3: =SUM($F$5:RW5) -> 5 | RX3: =SUM($F$5:RX5) -> 5 | RY3: =SUM($F$5:RY5) -> 5 | RZ3: =SUM($F$5:RZ5) -> 5 | SA3: =SUM($F$5:SA5) -> 5 | SB3: =SUM($F$5:SB5) -> 5 | SC3: =SUM($F$5:SC5) -> 5 | SD3: =SUM($F$5:SD5) -> 5 | SE3: =SUM($F$5:SE5) -> 5 | SF3: =SUM($F$5:SF5) -> 5 | SG3: =SUM($F$5:SG5) -> 5 | SH3: =SUM($F$5:SH5) -> 5 | SI3: =SUM($F$5:SI5) -> 5 | SJ3: =SUM($F$5:SJ5) -> 5 | SK3: =SUM($F$5:SK5) -> 5 | SL3: =SUM($F$5:SL5) -> 5 | SM3: =SUM($F$5:SM5) -> 5 | SN3: =SUM($F$5:SN5) -> 5 | SO3: =SUM($F$5:SO5) -> 5 | SP3: =SUM($F$5:SP5) -> 5 | SQ3: =SUM($F$5:SQ5) -> 5 | SR3: =SUM($F$5:SR5) -> 5 | SS3: =SUM($F$5:SS5) -> 5 | ST3: =SUM($F$5:ST5) -> 5 | SU3: =SUM($F$5:SU5) -> 5 | SV3: =SUM($F$5:SV5) -> 5 | SW3: =SUM($F$5:SW5) -> 5 | SX3: =SUM($F$5:SX5) -> 5 | SY3: =SUM($F$5:SY5) -> 5 | SZ3: =SUM($F$5:SZ5) -> 5 | TA3: =SUM($F$5:TA5) -> 5 | TB3: =SUM($F$5:TB5) -> 5 | TC3: =SUM($F$5:TC5) -> 5 | TD3: =SUM($F$5:TD5) -> 5 | TE3: =SUM($F$5:TE5) -> 5 | TF3: =SUM($F$5:TF5) -> 5 | TG3: =SUM($F$5:TG5) -> 5 | TH3: =SUM($F$5:TH5) -> 5 | TI3: =SUM($F$5:TI5) -> 5 | TJ3: =SUM($F$5:TJ5) -> 5 | TK3: =SUM($F$5:TK5) -> 5 | TL3: =SUM($F$5:TL5) -> 5 | TM3: =SUM($F$5:TM5) -> 5 | TN3: =SUM($F$5:TN5) -> 5 | TO3: =SUM($F$5:TO5) -> 5 | TP3: =SUM($F$5:TP5) -> 5 | TQ3: =SUM($F$5:TQ5) -> 5 | TR3: =SUM($F$5:TR5) -> 5 | TS3: =SUM($F$5:TS5) -> 5 | TT3: =SUM($F$5:TT5) -> 5 | TU3: =SUM($F$5:TU5) -> 5 | TV3: =SUM($F$5:TV5) -> 5 | TW3: =SUM($F$5:TW5) -> 5 | TX3: =SUM($F$5:TX5) -> 5 | TY3: =SUM($F$5:TY5) -> 5 | TZ3: =SUM($F$5:TZ5) -> 5 | UA3: =SUM($F$5:UA5) -> 5 | UB3: =SUM($F$5:UB5) -> 5 | UC3: =SUM($F$5:UC5) -> 5 | UD3: =SUM($F$5:UD5) -> 5 | UE3: =SUM($F$5:UE5) -> 5 | UF3: =SUM($F$5:UF5) -> 5 | UG3: =SUM($F$5:UG5) -> 5 | UH3: =SUM($F$5:UH5) -> 5 | UI3: =SUM($F$5:UI5) -> 5 | UJ3: =SUM($F$5:UJ5) -> 5 | UK3: =SUM($F$5:UK5) -> 5 | UL3: =SUM($F$5:UL5) -> 5 | UM3: =SUM($F$5:UM5) -> 5 | UN3: =SUM($F$5:UN5) -> 5 | UO3: =SUM($F$5:UO5) -> 5 | UP3: =SUM($F$5:UP5) -> 5 | UQ3: =SUM($F$5:UQ5) -> 5 | UR3: =SUM($F$5:UR5) -> 5 | US3: =SUM($F$5:US5) -> 5 | UT3: =SUM($F$5:UT5) -> 5 | UU3: =SUM($F$5:UU5) -> 5 | UV3: =SUM($F$5:UV5) -> 5 | UW3: =SUM($F$5:UW5) -> 5 | UX3: =SUM($F$5:UX5) -> 5 | UY3: =SUM($F$5:UY5) -> 5 | UZ3: =SUM($F$5:UZ5) -> 5 | VA3: =SUM($F$5:VA5) -> 5 | VB3: =SUM($F$5:VB5) -> 5 | VC3: =SUM($F$5:VC5) -> 5 | VD3: =SUM($F$5:VD5) -> 5 | VE3: =SUM($F$5:VE5) -> 5 | VF3: =SUM($F$5:VF5) -> 5 | VG3: =SUM($F$5:VG5) -> 5 | VH3: =SUM($F$5:VH5) -> 5 | VI3: =SUM($F$5:VI5) -> 5 | VJ3: =SUM($F$5:VJ5) -> 5 | VK3: =SUM($F$5:VK5) -> 5 | VL3: =SUM($F$5:VL5) -> 5 | VM3: =SUM($F$5:VM5) -> 5 | VN3: =SUM($F$5:VN5) -> 5 | VO3: =SUM($F$5:VO5) -> 5 | VP3: =SUM($F$5:VP5) -> 5 | VQ3: =SUM($F$5:VQ5) -> 5 | VR3: =SUM($F$5:VR5) -> 5 | VS3: =SUM($F$5:VS5) -> 5 | VT3: =SUM($F$5:VT5) -> 5 | VU3: =SUM($F$5:VU5) -> 5 | VV3: =SUM($F$5:VV5) -> 5 | VW3: =SUM($F$5:VW5) -> 5 | VX3: =SUM($F$5:VX5) -> 5 | VY3: =SUM($F$5:VY5) -> 5 | VZ3: =SUM($F$5:VZ5) -> 5 | WA3: =SUM($F$5:WA5) -> 5 | WB3: =SUM($F$5:WB5) -> 5 | WC3: =SUM($F$5:WC5) -> 5 | WD3: =SUM($F$5:WD5) -> 5 | WE3: =SUM($F$5:WE5) -> 5 | WF3: =SUM($F$5:WF5) -> 5 | WG3: =SUM($F$5:WG5) -> 5 | WH3: =SUM($F$5:WH5) -> 5 | WI3: =SUM($F$5:WI5) -> 5 | WJ3: =SUM($F$5:WJ5) -> 5 | WK3: =SUM($F$5:WK5) -> 5 | WL3: =SUM($F$5:WL5) -> 5 | WM3: =SUM($F$5:WM5) -> 5 | WN3: =SUM($F$5:WN5) -> 5 | WO3: =SUM($F$5:WO5) -> 5 | WP3: =SUM($F$5:WP5) -> 5 | WQ3: =SUM($F$5:WQ5) -> 5 | WR3: =SUM($F$5:WR5) -> 5 | WS3: =SUM($F$5:WS5) -> 5 | WT3: =SUM($F$5:WT5) -> 5 | WU3: =SUM($F$5:WU5) -> 5 | WV3: =SUM($F$5:WV5) -> 5 | WW3: =SUM($F$5:WW5) -> 5 | WX3: =SUM($F$5:WX5) -> 5 | WY3: =SUM($F$5:WY5) -> 5 | WZ3: =SUM($F$5:WZ5) -> 5 | XA3: =SUM($F$5:XA5) -> 5 | XB3: =SUM($F$5:XB5) -> 5 | XC3: =SUM($F$5:XC5) -> 5 | XD3: =SUM($F$5:XD5) -> 5 | XE3: =SUM($F$5:XE5) -> 5 | XF3: =SUM($F$5:XF5) -> 5 | XG3: =SUM($F$5:XG5) -> 5 | XH3: =SUM($F$5:XH5) -> 5 | XI3: =SUM($F$5:XI5) -> 5 | XJ3: =SUM($F$5:XJ5) -> 5 | XK3: =SUM($F$5:XK5) -> 5 | XL3: =SUM($F$5:XL5) -> 5 | XM3: =SUM($F$5:XM5) -> 5 | XN3: =SUM($F$5:XN5) -> 5 | XO3: =SUM($F$5:XO5) -> 5 | XP3: =SUM($F$5:XP5) -> 5 | XQ3: =SUM($F$5:XQ5) -> 5 | XR3: =SUM($F$5:XR5) -> 5 | XS3: =SUM($F$5:XS5) -> 5 | XT3: =SUM($F$5:XT5) -> 5 | XU3: =SUM($F$5:XU5) -> 5 | XV3: =SUM($F$5:XV5) -> 5 | XW3: =SUM($F$5:XW5) -> 5 | XX3: =SUM($F$5:XX5) -> 5 | XY3: =SUM($F$5:XY5) -> 5 | XZ3: =SUM($F$5:XZ5) -> 5 | YA3: =SUM($F$5:YA5) -> 5 | YB3: =SUM($F$5:YB5) -> 5 | YC3: =SUM($F$5:YC5) -> 5 | YD3: =SUM($F$5:YD5) -> 5 | YE3: =SUM($F$5:YE5) -> 5 | YF3: =SUM($F$5:YF5) -> 5 | YG3: =SUM($F$5:YG5) -> 5 | YH3: =SUM($F$5:YH5) -> 5 | YI3: =SUM($F$5:YI5) -> 5 | YJ3: =SUM($F$5:YJ5) -> 5 | YK3: =SUM($F$5:YK5) -> 5 | YL3: =SUM($F$5:YL5) -> 5 | YM3: =SUM($F$5:YM5) -> 5 | YN3: =SUM($F$5:YN5) -> 5 | YO3: =SUM($F$5:YO5) -> 5 | YP3: =SUM($F$5:YP5) -> 5 | YQ3: =SUM($F$5:YQ5) -> 5 | YR3: =SUM($F$5:YR5) -> 5 | YS3: =SUM($F$5:YS5) -> 5 | YT3: =SUM($F$5:YT5) -> 5 | YU3: =SUM($F$5:YU5) -> 5 | YV3: =SUM($F$5:YV5) -> 5 | YW3: =SUM($F$5:YW5) -> 5 | YX3: =SUM($F$5:YX5) -> 5 | YY3: =SUM($F$5:YY5) -> 5 | YZ3: =SUM($F$5:YZ5) -> 5 | ZA3: =SUM($F$5:ZA5) -> 5 | ZB3: =SUM($F$5:ZB5) -> 5 | ZC3: =SUM($F$5:ZC5) -> 5 | ZD3: =SUM($F$5:ZD5) -> 5 | ZE3: =SUM($F$5:ZE5) -> 5 | ZF3: =SUM($F$5:ZF5) -> 5 | ZG3: =SUM($F$5:ZG5) -> 5 | ZH3: =SUM($F$5:ZH5) -> 5 | ZI3: =SUM($F$5:ZI5) -> 5 | ZJ3: =SUM($F$5:ZJ5) -> 5 | ZK3: =SUM($F$5:ZK5) -> 5 | ZL3: =SUM($F$5:ZL5) -> 5 | ZM3: =SUM($F$5:ZM5) -> 5 | ZN3: =SUM($F$5:ZN5) -> 5 | ZO3: =SUM($F$5:ZO5) -> 5 | ZP3: =SUM($F$5:ZP5) -> 5 | ZQ3: =SUM($F$5:ZQ5) -> 5 | ZR3: =SUM($F$5:ZR5) -> 5 | ZS3: =SUM($F$5:ZS5) -> 5 | ZT3: =SUM($F$5:ZT5) -> 5 | ZU3: =SUM($F$5:ZU5) -> 5 | ZV3: =SUM($F$5:ZV5) -> 5 | ZW3: =SUM($F$5:ZW5) -> 5 | ZX3: =SUM($F$5:ZX5) -> 5 | ZY3: =SUM($F$5:ZY5) -> 5 | ZZ3: =SUM($F$5:ZZ5) -> 5 | AAA3: =SUM($F$5:AAA5) -> 5 | AAB3: =SUM($F$5:AAB5) -> 5 | AAC3: =SUM($F$5:AAC5) -> 5 | AAD3: =SUM($F$5:AAD5) -> 5 | AAE3: =SUM($F$5:AAE5) -> 5 | AAF3: =SUM($F$5:AAF5) -> 5 | AAG3: =SUM($F$5:AAG5) -> 5 | AAH3: =SUM($F$5:AAH5) -> 5 | AAI3: =SUM($F$5:AAI5) -> 5 | AAJ3: =SUM($F$5:AAJ5) -> 5 | AAK3: =SUM($F$5:AAK5) -> 5 | AAL3: =SUM($F$5:AAL5) -> 5 | AAM3: =SUM($F$5:AAM5) -> 5 | AAN3: =SUM($F$5:AAN5) -> 5 | AAO3: =SUM($F$5:AAO5) -> 5 | AAP3: =SUM($F$5:AAP5) -> 5 | AAQ3: =SUM($F$5:AAQ5) -> 5 | AAR3: =SUM($F$5:AAR5) -> 5 | AAS3: =SUM($F$5:AAS5) -> 5 | AAT3: =SUM($F$5:AAT5) -> 5 | AAU3: =SUM($F$5:AAU5) -> 5 | AAV3: =SUM($F$5:AAV5) -> 5 | AAW3: =SUM($F$5:AAW5) -> 5 | AAX3: =SUM($F$5:AAX5) -> 5 | AAY3: =SUM($F$5:AAY5) -> 5 | AAZ3: =SUM($F$5:AAZ5) -> 5 | ABA3: =SUM($F$5:ABA5) -> 5 | ABB3: =SUM($F$5:ABB5) -> 5 | ABC3: =SUM($F$5:ABC5) -> 5 | ABD3: =SUM($F$5:ABD5) -> 5 | ABE3: =SUM($F$5:ABE5) -> 5 | ABF3: =SUM($F$5:ABF5) -> 5 | ABG3: =SUM($F$5:ABG5) -> 5 | ABH3: =SUM($F$5:ABH5) -> 5 | ABI3: =SUM($F$5:ABI5) -> 5 | ABJ3: =SUM($F$5:ABJ5) -> 5 | ABK3: =SUM($F$5:ABK5) -> 5 | ABL3: =SUM($F$5:ABL5) -> 5 | ABM3: =SUM($F$5:ABM5) -> 5 | ABN3: =SUM($F$5:ABN5) -> 5 | ABO3: =SUM($F$5:ABO5) -> 5 | ABP3: =SUM($F$5:ABP5) -> 5 | ABQ3: =SUM($F$5:ABQ5) -> 5 | ABR3: =SUM($F$5:ABR5) -> 5 | ABS3: =SUM($F$5:ABS5) -> 5 | ABT3: =SUM($F$5:ABT5) -> 5 | ABU3: =SUM($F$5:ABU5) -> 5 | ABV3: =SUM($F$5:ABV5) -> 5 | ABW3: =SUM($F$5:ABW5) -> 5 | ABX3: =SUM($F$5:ABX5) -> 5 | ABY3: =SUM($F$5:ABY5) -> 5 | ABZ3: =SUM($F$5:ABZ5) -> 5 | ACA3: =SUM($F$5:ACA5) -> 5 | ACB3: =SUM($F$5:ACB5) -> 5 | ACC3: =SUM($F$5:ACC5) -> 5 | ACD3: =SUM($F$5:ACD5) -> 5 | ACE3: =SUM($F$5:ACE5) -> 5 | ACF3: =SUM($F$5:ACF5) -> 5 | ACG3: =SUM($F$5:ACG5) -> 5 | ACH3: =SUM($F$5:ACH5) -> 5 | ACI3: =SUM($F$5:ACI5) -> 5 | ACJ3: =SUM($F$5:ACJ5) -> 5 | ACK3: =SUM($F$5:ACK5) -> 5 | ACL3: =SUM($F$5:ACL5) -> 5 | ACM3: =SUM($F$5:ACM5) -> 5 | ACN3: =SUM($F$5:ACN5) -> 5 | ACO3: =SUM($F$5:ACO5) -> 5 | ACP3: =SUM($F$5:ACP5) -> 5 | ACQ3: =SUM($F$5:ACQ5) -> 5 | ACR3: =SUM($F$5:ACR5) -> 5 | ACS3: =SUM($F$5:ACS5) -> 5 | ACT3: =SUM($F$5:ACT5) -> 5 | ACU3: =SUM($F$5:ACU5) -> 5 | ACV3: =SUM($F$5:ACV5) -> 5 | ACW3: =SUM($F$5:ACW5) -> 5 | ACX3: =SUM($F$5:ACX5) -> 5 | ACY3: =SUM($F$5:ACY5) -> 5 | ACZ3: =SUM($F$5:ACZ5) -> 5 | ADA3: =SUM($F$5:ADA5) -> 5 | ADB3: =SUM($F$5:ADB5) -> 5 | ADC3: =SUM($F$5:ADC5) -> 5 | ADD3: =SUM($F$5:ADD5) -> 5 | ADE3: =SUM($F$5:ADE5) -> 5 | ADF3: =SUM($F$5:ADF5) -> 5 | ADG3: =SUM($F$5:ADG5) -> 5 | ADH3: =SUM($F$5:ADH5) -> 5 | ADI3: =SUM($F$5:ADI5) -> 5 | ADJ3: =SUM($F$5:ADJ5) -> 5 | ADK3: =SUM($F$5:ADK5) -> 5 | ADL3: =SUM($F$5:ADL5) -> 5 | ADM3: =SUM($F$5:ADM5) -> 5 | ADN3: =SUM($F$5:ADN5) -> 5 | ADO3: =SUM($F$5:ADO5) -> 5 | ADP3: =SUM($F$5:ADP5) -> 5 | ADQ3: =SUM($F$5:ADQ5) -> 5 | ADR3: =SUM($F$5:ADR5) -> 5 | ADS3: =SUM($F$5:ADS5) -> 5 | ADT3: =SUM($F$5:ADT5) -> 5 | ADU3: =SUM($F$5:ADU5) -> 5 | ADV3: =SUM($F$5:ADV5) -> 5 | ADW3: =SUM($F$5:ADW5) -> 5 | ADX3: =SUM($F$5:ADX5) -> 5 | ADY3: =SUM($F$5:ADY5) -> 5 | ADZ3: =SUM($F$5:ADZ5) -> 5 | AEA3: =SUM($F$5:AEA5) -> 5 | AEB3: =SUM($F$5:AEB5) -> 5 | AEC3: =SUM($F$5:AEC5) -> 5 | AED3: =SUM($F$5:AED5) -> 5 | AEE3: =SUM($F$5:AEE5) -> 5 | AEF3: =SUM($F$5:AEF5) -> 5 | AEG3: =SUM($F$5:AEG5) -> 5 | AEH3: =SUM($F$5:AEH5) -> 5 | AEI3: =SUM($F$5:AEI5) -> 5 | AEJ3: =SUM($F$5:AEJ5) -> 5 | AEK3: =SUM($F$5:AEK5) -> 5 | AEL3: =SUM($F$5:AEL5) -> 5 | AEM3: =SUM($F$5:AEM5) -> 5 | AEN3: =SUM($F$5:AEN5) -> 5 | AEO3: =SUM($F$5:AEO5) -> 5 | AEP3: =SUM($F$5:AEP5) -> 5 | AEQ3: =SUM($F$5:AEQ5) -> 5 | AER3: =SUM($F$5:AER5) -> 5 | AES3: =SUM($F$5:AES5) -> 5 | AET3: =SUM($F$5:AET5) -> 5 | AEU3: =SUM($F$5:AEU5) -> 5 | AEV3: =SUM($F$5:AEV5) -> 5 | AEW3: =SUM($F$5:AEW5) -> 5 | AEX3: =SUM($F$5:AEX5) -> 5 | AEY3: =SUM($F$5:AEY5) -> 5 | AEZ3: =SUM($F$5:AEZ5) -> 5 | AFA3: =SUM($F$5:AFA5) -> 5 | AFB3: =SUM($F$5:AFB5) -> 5 | AFC3: =SUM($F$5:AFC5) -> 5 | AFD3: =SUM($F$5:AFD5) -> 5 | AFE3: =SUM($F$5:AFE5) -> 5 | AFF3: =SUM($F$5:AFF5) -> 5 | AFG3: =SUM($F$5:AFG5) -> 5 | AFH3: =SUM($F$5:AFH5) -> 5 | AFI3: =SUM($F$5:AFI5) -> 5 | AFJ3: =SUM($F$5:AFJ5) -> 5 | AFK3: =SUM($F$5:AFK5) -> 5 | AFL3: =SUM($F$5:AFL5) -> 5 | AFM3: =SUM($F$5:AFM5) -> 5 | AFN3: =SUM($F$5:AFN5) -> 5 | AFO3: =SUM($F$5:AFO5) -> 5 | AFP3: =SUM($F$5:AFP5) -> 5 | AFQ3: =SUM($F$5:AFQ5) -> 5 | AFR3: =SUM($F$5:AFR5) -> 5 | AFS3: =SUM($F$5:AFS5) -> 5 | AFT3: =SUM($F$5:AFT5) -> 5 | AFU3: =SUM($F$5:AFU5) -> 5 | AFV3: =SUM($F$5:AFV5) -> 5 | AFW3: =SUM($F$5:AFW5) -> 5 | AFX3: =SUM($F$5:AFX5) -> 5 | AFY3: =SUM($F$5:AFY5) -> 5 | AFZ3: =SUM($F$5:AFZ5) -> 5 | AGA3: =SUM($F$5:AGA5) -> 5 | AGB3: =SUM($F$5:AGB5) -> 5 | AGC3: =SUM($F$5:AGC5) -> 5 | AGD3: =SUM($F$5:AGD5) -> 5 | AGE3: =SUM($F$5:AGE5) -> 5 | AGF3: =SUM($F$5:AGF5) -> 5 | AGG3: =SUM($F$5:AGG5) -> 5 | AGH3: =SUM($F$5:AGH5) -> 5 | AGI3: =SUM($F$5:AGI5) -> 5 | AGJ3: =SUM($F$5:AGJ5) -> 5 | AGK3: =SUM($F$5:AGK5) -> 5 | AGL3: =SUM($F$5:AGL5) -> 5 | AGM3: =SUM($F$5:AGM5) -> 5 | AGN3: =SUM($F$5:AGN5) -> 5 | AGO3: =SUM($F$5:AGO5) -> 5 | AGP3: =SUM($F$5:AGP5) -> 5 | AGQ3: =SUM($F$5:AGQ5) -> 5 | AGR3: =SUM($F$5:AGR5) -> 5 | AGS3: =SUM($F$5:AGS5) -> 5 | AGT3: =SUM($F$5:AGT5) -> 5 | AGU3: =SUM($F$5:AGU5) -> 5 | AGV3: =SUM($F$5:AGV5) -> 5 | AGW3: =SUM($F$5:AGW5) -> 5 | AGX3: =SUM($F$5:AGX5) -> 5 | AGY3: =SUM($F$5:AGY5) -> 5 | AGZ3: =SUM($F$5:AGZ5) -> 5 | AHA3: =SUM($F$5:AHA5) -> 5 | AHB3: =SUM($F$5:AHB5) -> 5 | AHC3: =SUM($F$5:AHC5) -> 5 | AHD3: =SUM($F$5:AHD5) -> 5 | AHE3: =SUM($F$5:AHE5) -> 5 | AHF3: =SUM($F$5:AHF5) -> 5 | AHG3: =SUM($F$5:AHG5) -> 5 | AHH3: =SUM($F$5:AHH5) -> 5 | AHI3: =SUM($F$5:AHI5) -> 5 | AHJ3: =SUM($F$5:AHJ5) -> 5 | AHK3: =SUM($F$5:AHK5) -> 5 | AHL3: =SUM($F$5:AHL5) -> 5 | AHM3: =SUM($F$5:AHM5) -> 5 | AHN3: =SUM($F$5:AHN5) -> 5 | AHO3: =SUM($F$5:AHO5) -> 5 | AHP3: =SUM($F$5:AHP5) -> 5 | AHQ3: =SUM($F$5:AHQ5) -> 5 | AHR3: =SUM($F$5:AHR5) -> 5 | AHS3: =SUM($F$5:AHS5) -> 5 | AHT3: =SUM($F$5:AHT5) -> 5 | AHU3: =SUM($F$5:AHU5) -> 5 | AHV3: =SUM($F$5:AHV5) -> 5 | AHW3: =SUM($F$5:AHW5) -> 5 | AHX3: =SUM($F$5:AHX5) -> 5 | AHY3: =SUM($F$5:AHY5) -> 5 | AHZ3: =SUM($F$5:AHZ5) -> 5 | AIA3: =SUM($F$5:AIA5) -> 5 | AIB3: =SUM($F$5:AIB5) -> 5 | AIC3: =SUM($F$5:AIC5) -> 5 | AID3: =SUM($F$5:AID5) -> 5 | AIE3: =SUM($F$5:AIE5) -> 5 | AIF3: =SUM($F$5:AIF5) -> 5 | AIG3: =SUM($F$5:AIG5) -> 5 | AIH3: =SUM($F$5:AIH5) -> 5 | AII3: =SUM($F$5:AII5) -> 5 | AIJ3: =SUM($F$5:AIJ5) -> 5 | AIK3: =SUM($F$5:AIK5) -> 5 | AIL3: =SUM($F$5:AIL5) -> 5 | AIM3: =SUM($F$5:AIM5) -> 5 | AIN3: =SUM($F$5:AIN5) -> 5 | AIO3: =SUM($F$5:AIO5) -> 5 | AIP3: =SUM($F$5:AIP5) -> 5 | AIQ3: =SUM($F$5:AIQ5) -> 5 | AIR3: =SUM($F$5:AIR5) -> 5 | AIS3: =SUM($F$5:AIS5) -> 5 | AIT3: =SUM($F$5:AIT5) -> 5 | AIU3: =SUM($F$5:AIU5) -> 5 | AIV3: =SUM($F$5:AIV5) -> 5 | AIW3: =SUM($F$5:AIW5) -> 5 | AIX3: =SUM($F$5:AIX5) -> 5 | AIY3: =SUM($F$5:AIY5) -> 5 | AIZ3: =SUM($F$5:AIZ5) -> 5 | AJA3: =SUM($F$5:AJA5) -> 5 | AJB3: =SUM($F$5:AJB5) -> 5 | AJC3: =SUM($F$5:AJC5) -> 5 | AJD3: =SUM($F$5:AJD5) -> 5 | AJE3: =SUM($F$5:AJE5) -> 5 | AJF3: =SUM($F$5:AJF5) -> 5 | AJG3: =SUM($F$5:AJG5) -> 5 | AJH3: =SUM($F$5:AJH5) -> 5 | AJI3: =SUM($F$5:AJI5) -> 5 | AJJ3: =SUM($F$5:AJJ5) -> 5 | AJK3: =SUM($F$5:AJK5) -> 5 | AJL3: =SUM($F$5:AJL5) -> 5 | AJM3: =SUM($F$5:AJM5) -> 5 | AJN3: =SUM($F$5:AJN5) -> 5 | AJO3: =SUM($F$5:AJO5) -> 5 | AJP3: =SUM($F$5:AJP5) -> 5 | AJQ3: =SUM($F$5:AJQ5) -> 5 | AJR3: =SUM($F$5:AJR5) -> 5 | AJS3: =SUM($F$5:AJS5) -> 5 | AJT3: =SUM($F$5:AJT5) -> 5 | AJU3: =SUM($F$5:AJU5) -> 5 | AJV3: =SUM($F$5:AJV5) -> 5 | AJW3: =SUM($F$5:AJW5) -> 5 | AJX3: =SUM($F$5:AJX5) -> 5 | AJY3: =SUM($F$5:AJY5) -> 5 | AJZ3: =SUM($F$5:AJZ5) -> 5 | AKA3: =SUM($F$5:AKA5) -> 5 | AKB3: =SUM($F$5:AKB5) -> 5 | AKC3: =SUM($F$5:AKC5) -> 5 | AKD3: =SUM($F$5:AKD5) -> 5 | AKE3: =SUM($F$5:AKE5) -> 5 | AKF3: =SUM($F$5:AKF5) -> 5 | AKG3: =SUM($F$5:AKG5) -> 5 | AKH3: =SUM($F$5:AKH5) -> 5 | AKI3: =SUM($F$5:AKI5) -> 5 | AKJ3: =SUM($F$5:AKJ5) -> 5 | AKK3: =SUM($F$5:AKK5) -> 5 | AKL3: =SUM($F$5:AKL5) -> 5 | AKM3: =SUM($F$5:AKM5) -> 5 | AKN3: =SUM($F$5:AKN5) -> 5 | AKO3: =SUM($F$5:AKO5) -> 5 | AKP3: =SUM($F$5:AKP5) -> 5 | AKQ3: =SUM($F$5:AKQ5) -> 5 | AKR3: =SUM($F$5:AKR5) -> 5 | AKS3: =SUM($F$5:AKS5) -> 5 | AKT3: =SUM($F$5:AKT5) -> 5 | AKU3: =SUM($F$5:AKU5) -> 5 | AKV3: =SUM($F$5:AKV5) -> 5 | AKW3: =SUM($F$5:AKW5) -> 5 | AKX3: =SUM($F$5:AKX5) -> 5 | AKY3: =SUM($F$5:AKY5) -> 5 | AKZ3: =SUM($F$5:AKZ5) -> 5 | ALA3: =SUM($F$5:ALA5) -> 5 | ALB3: =SUM($F$5:ALB5) -> 5 | ALC3: =SUM($F$5:ALC5) -> 5 | ALD3: =SUM($F$5:ALD5) -> 5 | ALE3: =SUM($F$5:ALE5) -> 5 | ALF3: =SUM($F$5:ALF5) -> 5 | ALG3: =SUM($F$5:ALG5) -> 5 | ALH3: =SUM($F$5:ALH5) -> 5 | ALI3: =SUM($F$5:ALI5) -> 5 | ALJ3: =SUM($F$5:ALJ5) -> 5 | ALK3: =SUM($F$5:ALK5) -> 5 | ALL3: =SUM($F$5:ALL5) -> 5 | ALM3: =SUM($F$5:ALM5) -> 5 | ALN3: =SUM($F$5:ALN5) -> 5 | ALO3: =SUM($F$5:ALO5) -> 5 | ALP3: =SUM($F$5:ALP5) -> 5 | ALQ3: =SUM($F$5:ALQ5) -> 5
C4: # Prime factors | F4: =IF(F5=0,"",F6&IF(F5=1,"",LOOKUP(F5,$A$96:$A$113,$B$96:$B$113))) -> 2² | G4: =IF(G5=0,"",G6&IF(G5=1,"",LOOKUP(G5,$A$96:$A$113,$B$96:$B$113))) -> 3² | H4: 5 | X4: =IF(X5=0,"",X6&IF(X5=1,"",LOOKUP(X5,$A$96:$A$113,$B$96:$B$113))) ->  | Y4: =IF(Y5=0,"",Y6&IF(Y5=1,"",LOOKUP(Y5,$A$96:$A$113,$B$96:$B$113))) ->  | Z4: =IF(Z5=0,"",Z6&IF(Z5=1,"",LOOKUP(Z5,$A$96:$A$113,$B$96:$B$113))) ->  | AA4: =IF(AA5=0,"",AA6&IF(AA5=1,"",LOOKUP(AA5,$A$96:$A$113,$B$96:$B$113))) ->  | AB4: =IF(AB5=0,"",AB6&IF(AB5=1,"",LOOKUP(AB5,$A$96:$A$113,$B$96:$B$113))) ->  | AC4: =IF(AC5=0,"",AC6&IF(AC5=1,"",LOOKUP(AC5,$A$96:$A$113,$B$96:$B$113))) ->  | AD4: =IF(AD5=0,"",AD6&IF(AD5=1,"",LOOKUP(AD5,$A$96:$A$113,$B$96:$B$113))) ->  | AE4: =IF(AE5=0,"",AE6&IF(AE5=1,"",LOOKUP(AE5,$A$96:$A$113,$B$96:$B$113))) ->  | AF4: =IF(AF5=0,"",AF6&IF(AF5=1,"",LOOKUP(AF5,$A$96:$A$113,$B$96:$B$113))) ->  | AG4: =IF(AG5=0,"",AG6&IF(AG5=1,"",LOOKUP(AG5,$A$96:$A$113,$B$96:$B$113))) ->  | AH4: =IF(AH5=0,"",AH6&IF(AH5=1,"",LOOKUP(AH5,$A$96:$A$113,$B$96:$B$113))) ->  | AI4: =IF(AI5=0,"",AI6&IF(AI5=1,"",LOOKUP(AI5,$A$96:$A$113,$B$96:$B$113))) ->  | AJ4: =IF(AJ5=0,"",AJ6&IF(AJ5=1,"",LOOKUP(AJ5,$A$96:$A$113,$B$96:$B$113))) ->  | AK4: =IF(AK5=0,"",AK6&IF(AK5=1,"",LOOKUP(AK5,$A$96:$A$113,$B$96:$B$113))) ->  | AL4: =IF(AL5=0,"",AL6&IF(AL5=1,"",LOOKUP(AL5,$A$96:$A$113,$B$96:$B$113))) ->  | AM4: =IF(AM5=0,"",AM6&IF(AM5=1,"",LOOKUP(AM5,$A$96:$A$113,$B$96:$B$113))) ->  | AN4: =IF(AN5=0,"",AN6&IF(AN5=1,"",LOOKUP(AN5,$A$96:$A$113,$B$96:$B$113))) ->  | AO4: =IF(AO5=0,"",AO6&IF(AO5=1,"",LOOKUP(AO5,$A$96:$A$113,$B$96:$B$113))) ->  | AP4: =IF(AP5=0,"",AP6&IF(AP5=1,"",LOOKUP(AP5,$A$96:$A$113,$B$96:$B$113))) ->  | AQ4: =IF(AQ5=0,"",AQ6&IF(AQ5=1,"",LOOKUP(AQ5,$A$96:$A$113,$B$96:$B$113))) ->  | AR4: =IF(AR5=0,"",AR6&IF(AR5=1,"",LOOKUP(AR5,$A$96:$A$113,$B$96:$B$113))) ->  | AS4: =IF(AS5=0,"",AS6&IF(AS5=1,"",LOOKUP(AS5,$A$96:$A$113,$B$96:$B$113))) ->  | AT4: =IF(AT5=0,"",AT6&IF(AT5=1,"",LOOKUP(AT5,$A$96:$A$113,$B$96:$B$113))) ->  | AU4: =IF(AU5=0,"",AU6&IF(AU5=1,"",LOOKUP(AU5,$A$96:$A$113,$B$96:$B$113))) ->  | AV4: =IF(AV5=0,"",AV6&IF(AV5=1,"",LOOKUP(AV5,$A$96:$A$113,$B$96:$B$113))) ->  | AW4: =IF(AW5=0,"",AW6&IF(AW5=1,"",LOOKUP(AW5,$A$96:$A$113,$B$96:$B$113))) ->  | AX4: =IF(AX5=0,"",AX6&IF(AX5=1,"",LOOKUP(AX5,$A$96:$A$113,$B$96:$B$113))) ->  | AY4: =IF(AY5=0,"",AY6&IF(AY5=1,"",LOOKUP(AY5,$A$96:$A$113,$B$96:$B$113))) ->  | AZ4: =IF(AZ5=0,"",AZ6&IF(AZ5=1,"",LOOKUP(AZ5,$A$96:$A$113,$B$96:$B$113))) ->  | BA4: =IF(BA5=0,"",BA6&IF(BA5=1,"",LOOKUP(BA5,$A$96:$A$113,$B$96:$B$113))) ->  | BB4: =IF(BB5=0,"",BB6&IF(BB5=1,"",LOOKUP(BB5,$A$96:$A$113,$B$96:$B$113))) ->  | BC4: =IF(BC5=0,"",BC6&IF(BC5=1,"",LOOKUP(BC5,$A$96:$A$113,$B$96:$B$113))) ->  | BD4: =IF(BD5=0,"",BD6&IF(BD5=1,"",LOOKUP(BD5,$A$96:$A$113,$B$96:$B$113))) ->  | BE4: =IF(BE5=0,"",BE6&IF(BE5=1,"",LOOKUP(BE5,$A$96:$A$113,$B$96:$B$113))) ->  | BF4: =IF(BF5=0,"",BF6&IF(BF5=1,"",LOOKUP(BF5,$A$96:$A$113,$B$96:$B$113))) ->  | BG4: =IF(BG5=0,"",BG6&IF(BG5=1,"",LOOKUP(BG5,$A$96:$A$113,$B$96:$B$113))) ->  | BH4: =IF(BH5=0,"",BH6&IF(BH5=1,"",LOOKUP(BH5,$A$96:$A$113,$B$96:$B$113))) ->  | BI4: =IF(BI5=0,"",BI6&IF(BI5=1,"",LOOKUP(BI5,$A$96:$A$113,$B$96:$B$113))) ->  | BJ4: =IF(BJ5=0,"",BJ6&IF(BJ5=1,"",LOOKUP(BJ5,$A$96:$A$113,$B$96:$B$113))) ->  | BK4: =IF(BK5=0,"",BK6&IF(BK5=1,"",LOOKUP(BK5,$A$96:$A$113,$B$96:$B$113))) ->  | BL4: =IF(BL5=0,"",BL6&IF(BL5=1,"",LOOKUP(BL5,$A$96:$A$113,$B$96:$B$113))) ->  | BM4: =IF(BM5=0,"",BM6&IF(BM5=1,"",LOOKUP(BM5,$A$96:$A$113,$B$96:$B$113))) ->  | BN4: =IF(BN5=0,"",BN6&IF(BN5=1,"",LOOKUP(BN5,$A$96:$A$113,$B$96:$B$113))) ->  | BO4: =IF(BO5=0,"",BO6&IF(BO5=1,"",LOOKUP(BO5,$A$96:$A$113,$B$96:$B$113))) ->  | BP4: =IF(BP5=0,"",BP6&IF(BP5=1,"",LOOKUP(BP5,$A$96:$A$113,$B$96:$B$113))) ->  | BQ4: =IF(BQ5=0,"",BQ6&IF(BQ5=1,"",LOOKUP(BQ5,$A$96:$A$113,$B$96:$B$113))) ->  | BR4: =IF(BR5=0,"",BR6&IF(BR5=1,"",LOOKUP(BR5,$A$96:$A$113,$B$96:$B$113))) ->  | BS4: =IF(BS5=0,"",BS6&IF(BS5=1,"",LOOKUP(BS5,$A$96:$A$113,$B$96:$B$113))) ->  | BT4: =IF(BT5=0,"",BT6&IF(BT5=1,"",LOOKUP(BT5,$A$96:$A$113,$B$96:$B$113))) ->  | BU4: =IF(BU5=0,"",BU6&IF(BU5=1,"",LOOKUP(BU5,$A$96:$A$113,$B$96:$B$113))) ->  | BV4: =IF(BV5=0,"",BV6&IF(BV5=1,"",LOOKUP(BV5,$A$96:$A$113,$B$96:$B$113))) ->  | BW4: =IF(BW5=0,"",BW6&IF(BW5=1,"",LOOKUP(BW5,$A$96:$A$113,$B$96:$B$113))) ->  | BX4: =IF(BX5=0,"",BX6&IF(BX5=1,"",LOOKUP(BX5,$A$96:$A$113,$B$96:$B$113))) ->  | BY4: =IF(BY5=0,"",BY6&IF(BY5=1,"",LOOKUP(BY5,$A$96:$A$113,$B$96:$B$113))) ->  | BZ4: =IF(BZ5=0,"",BZ6&IF(BZ5=1,"",LOOKUP(BZ5,$A$96:$A$113,$B$96:$B$113))) ->  | CA4: =IF(CA5=0,"",CA6&IF(CA5=1,"",LOOKUP(CA5,$A$96:$A$113,$B$96:$B$113))) ->  | CB4: =IF(CB5=0,"",CB6&IF(CB5=1,"",LOOKUP(CB5,$A$96:$A$113,$B$96:$B$113))) ->  | CC4: =IF(CC5=0,"",CC6&IF(CC5=1,"",LOOKUP(CC5,$A$96:$A$113,$B$96:$B$113))) ->  | CD4: =IF(CD5=0,"",CD6&IF(CD5=1,"",LOOKUP(CD5,$A$96:$A$113,$B$96:$B$113))) ->  | CE4: =IF(CE5=0,"",CE6&IF(CE5=1,"",LOOKUP(CE5,$A$96:$A$113,$B$96:$B$113))) ->  | CF4: =IF(CF5=0,"",CF6&IF(CF5=1,"",LOOKUP(CF5,$A$96:$A$113,$B$96:$B$113))) ->  | CG4: =IF(CG5=0,"",CG6&IF(CG5=1,"",LOOKUP(CG5,$A$96:$A$113,$B$96:$B$113))) ->  | CH4: =IF(CH5=0,"",CH6&IF(CH5=1,"",LOOKUP(CH5,$A$96:$A$113,$B$96:$B$113))) ->  | CI4: =IF(CI5=0,"",CI6&IF(CI5=1,"",LOOKUP(CI5,$A$96:$A$113,$B$96:$B$113))) ->  | CJ4: =IF(CJ5=0,"",CJ6&IF(CJ5=1,"",LOOKUP(CJ5,$A$96:$A$113,$B$96:$B$113))) ->  | CK4: =IF(CK5=0,"",CK6&IF(CK5=1,"",LOOKUP(CK5,$A$96:$A$113,$B$96:$B$113))) ->  | CL4: =IF(CL5=0,"",CL6&IF(CL5=1,"",LOOKUP(CL5,$A$96:$A$113,$B$96:$B$113))) ->  | CM4: =IF(CM5=0,"",CM6&IF(CM5=1,"",LOOKUP(CM5,$A$96:$A$113,$B$96:$B$113))) ->  | CN4: =IF(CN5=0,"",CN6&IF(CN5=1,"",LOOKUP(CN5,$A$96:$A$113,$B$96:$B$113))) ->  | CO4: =IF(CO5=0,"",CO6&IF(CO5=1,"",LOOKUP(CO5,$A$96:$A$113,$B$96:$B$113))) ->  | CP4: =IF(CP5=0,"",CP6&IF(CP5=1,"",LOOKUP(CP5,$A$96:$A$113,$B$96:$B$113))) ->  | CQ4: =IF(CQ5=0,"",CQ6&IF(CQ5=1,"",LOOKUP(CQ5,$A$96:$A$113,$B$96:$B$113))) ->  | CR4: =IF(CR5=0,"",CR6&IF(CR5=1,"",LOOKUP(CR5,$A$96:$A$113,$B$96:$B$113))) ->  | CS4: =IF(CS5=0,"",CS6&IF(CS5=1,"",LOOKUP(CS5,$A$96:$A$113,$B$96:$B$113))) ->  | CT4: =IF(CT5=0,"",CT6&IF(CT5=1,"",LOOKUP(CT5,$A$96:$A$113,$B$96:$B$113))) ->  | CU4: =IF(CU5=0,"",CU6&IF(CU5=1,"",LOOKUP(CU5,$A$96:$A$113,$B$96:$B$113))) ->  | CV4: =IF(CV5=0,"",CV6&IF(CV5=1,"",LOOKUP(CV5,$A$96:$A$113,$B$96:$B$113))) ->  | CW4: =IF(CW5=0,"",CW6&IF(CW5=1,"",LOOKUP(CW5,$A$96:$A$113,$B$96:$B$113))) ->  | CX4: =IF(CX5=0,"",CX6&IF(CX5=1,"",LOOKUP(CX5,$A$96:$A$113,$B$96:$B$113))) ->  | CY4: =IF(CY5=0,"",CY6&IF(CY5=1,"",LOOKUP(CY5,$A$96:$A$113,$B$96:$B$113))) ->  | CZ4: =IF(CZ5=0,"",CZ6&IF(CZ5=1,"",LOOKUP(CZ5,$A$96:$A$113,$B$96:$B$113))) ->  | DA4: =IF(DA5=0,"",DA6&IF(DA5=1,"",LOOKUP(DA5,$A$96:$A$113,$B$96:$B$113))) ->  | DB4: =IF(DB5=0,"",DB6&IF(DB5=1,"",LOOKUP(DB5,$A$96:$A$113,$B$96:$B$113))) ->  | DC4: =IF(DC5=0,"",DC6&IF(DC5=1,"",LOOKUP(DC5,$A$96:$A$113,$B$96:$B$113))) ->  | DD4: =IF(DD5=0,"",DD6&IF(DD5=1,"",LOOKUP(DD5,$A$96:$A$113,$B$96:$B$113))) ->  | DE4: =IF(DE5=0,"",DE6&IF(DE5=1,"",LOOKUP(DE5,$A$96:$A$113,$B$96:$B$113))) ->  | DF4: =IF(DF5=0,"",DF6&IF(DF5=1,"",LOOKUP(DF5,$A$96:$A$113,$B$96:$B$113))) ->  | DG4: =IF(DG5=0,"",DG6&IF(DG5=1,"",LOOKUP(DG5,$A$96:$A$113,$B$96:$B$113))) ->  | DH4: =IF(DH5=0,"",DH6&IF(DH5=1,"",LOOKUP(DH5,$A$96:$A$113,$B$96:$B$113))) ->  | DI4: =IF(DI5=0,"",DI6&IF(DI5=1,"",LOOKUP(DI5,$A$96:$A$113,$B$96:$B$113))) ->  | DJ4: =IF(DJ5=0,"",DJ6&IF(DJ5=1,"",LOOKUP(DJ5,$A$96:$A$113,$B$96:$B$113))) ->  | DK4: =IF(DK5=0,"",DK6&IF(DK5=1,"",LOOKUP(DK5,$A$96:$A$113,$B$96:$B$113))) ->  | DL4: =IF(DL5=0,"",DL6&IF(DL5=1,"",LOOKUP(DL5,$A$96:$A$113,$B$96:$B$113))) ->  | DM4: =IF(DM5=0,"",DM6&IF(DM5=1,"",LOOKUP(DM5,$A$96:$A$113,$B$96:$B$113))) ->  | DN4: =IF(DN5=0,"",DN6&IF(DN5=1,"",LOOKUP(DN5,$A$96:$A$113,$B$96:$B$113))) ->  | DO4: =IF(DO5=0,"",DO6&IF(DO5=1,"",LOOKUP(DO5,$A$96:$A$113,$B$96:$B$113))) ->  | DP4: =IF(DP5=0,"",DP6&IF(DP5=1,"",LOOKUP(DP5,$A$96:$A$113,$B$96:$B$113))) ->  | DQ4: =IF(DQ5=0,"",DQ6&IF(DQ5=1,"",LOOKUP(DQ5,$A$96:$A$113,$B$96:$B$113))) ->  | DR4: =IF(DR5=0,"",DR6&IF(DR5=1,"",LOOKUP(DR5,$A$96:$A$113,$B$96:$B$113))) ->  | DS4: =IF(DS5=0,"",DS6&IF(DS5=1,"",LOOKUP(DS5,$A$96:$A$113,$B$96:$B$113))) ->  | DT4: =IF(DT5=0,"",DT6&IF(DT5=1,"",LOOKUP(DT5,$A$96:$A$113,$B$96:$B$113))) ->  | DU4: =IF(DU5=0,"",DU6&IF(DU5=1,"",LOOKUP(DU5,$A$96:$A$113,$B$96:$B$113))) ->  | DV4: =IF(DV5=0,"",DV6&IF(DV5=1,"",LOOKUP(DV5,$A$96:$A$113,$B$96:$B$113))) ->  | DW4: =IF(DW5=0,"",DW6&IF(DW5=1,"",LOOKUP(DW5,$A$96:$A$113,$B$96:$B$113))) ->  | DX4: =IF(DX5=0,"",DX6&IF(DX5=1,"",LOOKUP(DX5,$A$96:$A$113,$B$96:$B$113))) ->  | DY4: =IF(DY5=0,"",DY6&IF(DY5=1,"",LOOKUP(DY5,$A$96:$A$113,$B$96:$B$113))) ->  | DZ4: =IF(DZ5=0,"",DZ6&IF(DZ5=1,"",LOOKUP(DZ5,$A$96:$A$113,$B$96:$B$113))) ->  | EA4: =IF(EA5=0,"",EA6&IF(EA5=1,"",LOOKUP(EA5,$A$96:$A$113,$B$96:$B$113))) ->  | EB4: =IF(EB5=0,"",EB6&IF(EB5=1,"",LOOKUP(EB5,$A$96:$A$113,$B$96:$B$113))) ->  | EC4: =IF(EC5=0,"",EC6&IF(EC5=1,"",LOOKUP(EC5,$A$96:$A$113,$B$96:$B$113))) ->  | ED4: =IF(ED5=0,"",ED6&IF(ED5=1,"",LOOKUP(ED5,$A$96:$A$113,$B$96:$B$113))) ->  | EE4: =IF(EE5=0,"",EE6&IF(EE5=1,"",LOOKUP(EE5,$A$96:$A$113,$B$96:$B$113))) ->  | EF4: =IF(EF5=0,"",EF6&IF(EF5=1,"",LOOKUP(EF5,$A$96:$A$113,$B$96:$B$113))) ->  | EG4: =IF(EG5=0,"",EG6&IF(EG5=1,"",LOOKUP(EG5,$A$96:$A$113,$B$96:$B$113))) ->  | EH4: =IF(EH5=0,"",EH6&IF(EH5=1,"",LOOKUP(EH5,$A$96:$A$113,$B$96:$B$113))) ->  | EI4: =IF(EI5=0,"",EI6&IF(EI5=1,"",LOOKUP(EI5,$A$96:$A$113,$B$96:$B$113))) ->  | EJ4: =IF(EJ5=0,"",EJ6&IF(EJ5=1,"",LOOKUP(EJ5,$A$96:$A$113,$B$96:$B$113))) ->  | EK4: =IF(EK5=0,"",EK6&IF(EK5=1,"",LOOKUP(EK5,$A$96:$A$113,$B$96:$B$113))) ->  | EL4: =IF(EL5=0,"",EL6&IF(EL5=1,"",LOOKUP(EL5,$A$96:$A$113,$B$96:$B$113))) ->  | EM4: =IF(EM5=0,"",EM6&IF(EM5=1,"",LOOKUP(EM5,$A$96:$A$113,$B$96:$B$113))) ->  | EN4: =IF(EN5=0,"",EN6&IF(EN5=1,"",LOOKUP(EN5,$A$96:$A$113,$B$96:$B$113))) ->  | EO4: =IF(EO5=0,"",EO6&IF(EO5=1,"",LOOKUP(EO5,$A$96:$A$113,$B$96:$B$113))) ->  | EP4: =IF(EP5=0,"",EP6&IF(EP5=1,"",LOOKUP(EP5,$A$96:$A$113,$B$96:$B$113))) ->  | EQ4: =IF(EQ5=0,"",EQ6&IF(EQ5=1,"",LOOKUP(EQ5,$A$96:$A$113,$B$96:$B$113))) ->  | ER4: =IF(ER5=0,"",ER6&IF(ER5=1,"",LOOKUP(ER5,$A$96:$A$113,$B$96:$B$113))) ->  | ES4: =IF(ES5=0,"",ES6&IF(ES5=1,"",LOOKUP(ES5,$A$96:$A$113,$B$96:$B$113))) ->  | ET4: =IF(ET5=0,"",ET6&IF(ET5=1,"",LOOKUP(ET5,$A$96:$A$113,$B$96:$B$113))) ->  | EU4: =IF(EU5=0,"",EU6&IF(EU5=1,"",LOOKUP(EU5,$A$96:$A$113,$B$96:$B$113))) ->  | EV4: =IF(EV5=0,"",EV6&IF(EV5=1,"",LOOKUP(EV5,$A$96:$A$113,$B$96:$B$113))) ->  | EW4: =IF(EW5=0,"",EW6&IF(EW5=1,"",LOOKUP(EW5,$A$96:$A$113,$B$96:$B$113))) ->  | EX4: =IF(EX5=0,"",EX6&IF(EX5=1,"",LOOKUP(EX5,$A$96:$A$113,$B$96:$B$113))) ->  | EY4: =IF(EY5=0,"",EY6&IF(EY5=1,"",LOOKUP(EY5,$A$96:$A$113,$B$96:$B$113))) ->  | EZ4: =IF(EZ5=0,"",EZ6&IF(EZ5=1,"",LOOKUP(EZ5,$A$96:$A$113,$B$96:$B$113))) ->  | FA4: =IF(FA5=0,"",FA6&IF(FA5=1,"",LOOKUP(FA5,$A$96:$A$113,$B$96:$B$113))) ->  | FB4: =IF(FB5=0,"",FB6&IF(FB5=1,"",LOOKUP(FB5,$A$96:$A$113,$B$96:$B$113))) ->  | FC4: =IF(FC5=0,"",FC6&IF(FC5=1,"",LOOKUP(FC5,$A$96:$A$113,$B$96:$B$113))) ->  | FD4: =IF(FD5=0,"",FD6&IF(FD5=1,"",LOOKUP(FD5,$A$96:$A$113,$B$96:$B$113))) ->  | FE4: =IF(FE5=0,"",FE6&IF(FE5=1,"",LOOKUP(FE5,$A$96:$A$113,$B$96:$B$113))) ->  | FF4: =IF(FF5=0,"",FF6&IF(FF5=1,"",LOOKUP(FF5,$A$96:$A$113,$B$96:$B$113))) ->  | FG4: =IF(FG5=0,"",FG6&IF(FG5=1,"",LOOKUP(FG5,$A$96:$A$113,$B$96:$B$113))) ->  | FH4: =IF(FH5=0,"",FH6&IF(FH5=1,"",LOOKUP(FH5,$A$96:$A$113,$B$96:$B$113))) ->  | FI4: =IF(FI5=0,"",FI6&IF(FI5=1,"",LOOKUP(FI5,$A$96:$A$113,$B$96:$B$113))) ->  | FJ4: =IF(FJ5=0,"",FJ6&IF(FJ5=1,"",LOOKUP(FJ5,$A$96:$A$113,$B$96:$B$113))) ->  | FK4: =IF(FK5=0,"",FK6&IF(FK5=1,"",LOOKUP(FK5,$A$96:$A$113,$B$96:$B$113))) ->  | FL4: =IF(FL5=0,"",FL6&IF(FL5=1,"",LOOKUP(FL5,$A$96:$A$113,$B$96:$B$113))) ->  | FM4: =IF(FM5=0,"",FM6&IF(FM5=1,"",LOOKUP(FM5,$A$96:$A$113,$B$96:$B$113))) ->  | FN4: =IF(FN5=0,"",FN6&IF(FN5=1,"",LOOKUP(FN5,$A$96:$A$113,$B$96:$B$113))) ->  | FO4: =IF(FO5=0,"",FO6&IF(FO5=1,"",LOOKUP(FO5,$A$96:$A$113,$B$96:$B$113))) ->  | FP4: =IF(FP5=0,"",FP6&IF(FP5=1,"",LOOKUP(FP5,$A$96:$A$113,$B$96:$B$113))) ->  | FQ4: =IF(FQ5=0,"",FQ6&IF(FQ5=1,"",LOOKUP(FQ5,$A$96:$A$113,$B$96:$B$113))) ->  | FR4: =IF(FR5=0,"",FR6&IF(FR5=1,"",LOOKUP(FR5,$A$96:$A$113,$B$96:$B$113))) ->  | FS4: =IF(FS5=0,"",FS6&IF(FS5=1,"",LOOKUP(FS5,$A$96:$A$113,$B$96:$B$113))) ->  | FT4: =IF(FT5=0,"",FT6&IF(FT5=1,"",LOOKUP(FT5,$A$96:$A$113,$B$96:$B$113))) ->  | FU4: =IF(FU5=0,"",FU6&IF(FU5=1,"",LOOKUP(FU5,$A$96:$A$113,$B$96:$B$113))) ->  | FV4: =IF(FV5=0,"",FV6&IF(FV5=1,"",LOOKUP(FV5,$A$96:$A$113,$B$96:$B$113))) ->  | FW4: =IF(FW5=0,"",FW6&IF(FW5=1,"",LOOKUP(FW5,$A$96:$A$113,$B$96:$B$113))) ->  | FX4: =IF(FX5=0,"",FX6&IF(FX5=1,"",LOOKUP(FX5,$A$96:$A$113,$B$96:$B$113))) ->  | FY4: =IF(FY5=0,"",FY6&IF(FY5=1,"",LOOKUP(FY5,$A$96:$A$113,$B$96:$B$113))) ->  | FZ4: =IF(FZ5=0,"",FZ6&IF(FZ5=1,"",LOOKUP(FZ5,$A$96:$A$113,$B$96:$B$113))) ->  | GA4: =IF(GA5=0,"",GA6&IF(GA5=1,"",LOOKUP(GA5,$A$96:$A$113,$B$96:$B$113))) ->  | GB4: =IF(GB5=0,"",GB6&IF(GB5=1,"",LOOKUP(GB5,$A$96:$A$113,$B$96:$B$113))) ->  | GC4: =IF(GC5=0,"",GC6&IF(GC5=1,"",LOOKUP(GC5,$A$96:$A$113,$B$96:$B$113))) ->  | GD4: =IF(GD5=0,"",GD6&IF(GD5=1,"",LOOKUP(GD5,$A$96:$A$113,$B$96:$B$113))) ->  | GE4: =IF(GE5=0,"",GE6&IF(GE5=1,"",LOOKUP(GE5,$A$96:$A$113,$B$96:$B$113))) ->  | GF4: =IF(GF5=0,"",GF6&IF(GF5=1,"",LOOKUP(GF5,$A$96:$A$113,$B$96:$B$113))) ->  | GG4: =IF(GG5=0,"",GG6&IF(GG5=1,"",LOOKUP(GG5,$A$96:$A$113,$B$96:$B$113))) ->  | GH4: =IF(GH5=0,"",GH6&IF(GH5=1,"",LOOKUP(GH5,$A$96:$A$113,$B$96:$B$113))) ->  | GI4: =IF(GI5=0,"",GI6&IF(GI5=1,"",LOOKUP(GI5,$A$96:$A$113,$B$96:$B$113))) ->  | GJ4: =IF(GJ5=0,"",GJ6&IF(GJ5=1,"",LOOKUP(GJ5,$A$96:$A$113,$B$96:$B$113))) ->  | GK4: =IF(GK5=0,"",GK6&IF(GK5=1,"",LOOKUP(GK5,$A$96:$A$113,$B$96:$B$113))) ->  | GL4: =IF(GL5=0,"",GL6&IF(GL5=1,"",LOOKUP(GL5,$A$96:$A$113,$B$96:$B$113))) ->  | GM4: =IF(GM5=0,"",GM6&IF(GM5=1,"",LOOKUP(GM5,$A$96:$A$113,$B$96:$B$113))) ->  | GN4: =IF(GN5=0,"",GN6&IF(GN5=1,"",LOOKUP(GN5,$A$96:$A$113,$B$96:$B$113))) ->  | GO4: =IF(GO5=0,"",GO6&IF(GO5=1,"",LOOKUP(GO5,$A$96:$A$113,$B$96:$B$113))) ->  | GP4: =IF(GP5=0,"",GP6&IF(GP5=1,"",LOOKUP(GP5,$A$96:$A$113,$B$96:$B$113))) ->  | GQ4: =IF(GQ5=0,"",GQ6&IF(GQ5=1,"",LOOKUP(GQ5,$A$96:$A$113,$B$96:$B$113))) ->  | GR4: =IF(GR5=0,"",GR6&IF(GR5=1,"",LOOKUP(GR5,$A$96:$A$113,$B$96:$B$113))) ->  | GS4: =IF(GS5=0,"",GS6&IF(GS5=1,"",LOOKUP(GS5,$A$96:$A$113,$B$96:$B$113))) ->  | GT4: =IF(GT5=0,"",GT6&IF(GT5=1,"",LOOKUP(GT5,$A$96:$A$113,$B$96:$B$113))) ->  | GU4: =IF(GU5=0,"",GU6&IF(GU5=1,"",LOOKUP(GU5,$A$96:$A$113,$B$96:$B$113))) ->  | GV4: =IF(GV5=0,"",GV6&IF(GV5=1,"",LOOKUP(GV5,$A$96:$A$113,$B$96:$B$113))) ->  | GW4: =IF(GW5=0,"",GW6&IF(GW5=1,"",LOOKUP(GW5,$A$96:$A$113,$B$96:$B$113))) ->  | GX4: =IF(GX5=0,"",GX6&IF(GX5=1,"",LOOKUP(GX5,$A$96:$A$113,$B$96:$B$113))) ->  | GY4: =IF(GY5=0,"",GY6&IF(GY5=1,"",LOOKUP(GY5,$A$96:$A$113,$B$96:$B$113))) ->  | GZ4: =IF(GZ5=0,"",GZ6&IF(GZ5=1,"",LOOKUP(GZ5,$A$96:$A$113,$B$96:$B$113))) ->  | HA4: =IF(HA5=0,"",HA6&IF(HA5=1,"",LOOKUP(HA5,$A$96:$A$113,$B$96:$B$113))) ->  | HB4: =IF(HB5=0,"",HB6&IF(HB5=1,"",LOOKUP(HB5,$A$96:$A$113,$B$96:$B$113))) ->  | HC4: =IF(HC5=0,"",HC6&IF(HC5=1,"",LOOKUP(HC5,$A$96:$A$113,$B$96:$B$113))) ->  | HD4: =IF(HD5=0,"",HD6&IF(HD5=1,"",LOOKUP(HD5,$A$96:$A$113,$B$96:$B$113))) ->  | HE4: =IF(HE5=0,"",HE6&IF(HE5=1,"",LOOKUP(HE5,$A$96:$A$113,$B$96:$B$113))) ->  | HF4: =IF(HF5=0,"",HF6&IF(HF5=1,"",LOOKUP(HF5,$A$96:$A$113,$B$96:$B$113))) ->  | HG4: =IF(HG5=0,"",HG6&IF(HG5=1,"",LOOKUP(HG5,$A$96:$A$113,$B$96:$B$113))) ->  | HH4: =IF(HH5=0,"",HH6&IF(HH5=1,"",LOOKUP(HH5,$A$96:$A$113,$B$96:$B$113))) ->  | HI4: =IF(HI5=0,"",HI6&IF(HI5=1,"",LOOKUP(HI5,$A$96:$A$113,$B$96:$B$113))) ->  | HJ4: =IF(HJ5=0,"",HJ6&IF(HJ5=1,"",LOOKUP(HJ5,$A$96:$A$113,$B$96:$B$113))) ->  | HK4: =IF(HK5=0,"",HK6&IF(HK5=1,"",LOOKUP(HK5,$A$96:$A$113,$B$96:$B$113))) ->  | HL4: =IF(HL5=0,"",HL6&IF(HL5=1,"",LOOKUP(HL5,$A$96:$A$113,$B$96:$B$113))) ->  | HM4: =IF(HM5=0,"",HM6&IF(HM5=1,"",LOOKUP(HM5,$A$96:$A$113,$B$96:$B$113))) ->  | HN4: =IF(HN5=0,"",HN6&IF(HN5=1,"",LOOKUP(HN5,$A$96:$A$113,$B$96:$B$113))) ->  | HO4: =IF(HO5=0,"",HO6&IF(HO5=1,"",LOOKUP(HO5,$A$96:$A$113,$B$96:$B$113))) ->  | HP4: =IF(HP5=0,"",HP6&IF(HP5=1,"",LOOKUP(HP5,$A$96:$A$113,$B$96:$B$113))) ->  | HQ4: =IF(HQ5=0,"",HQ6&IF(HQ5=1,"",LOOKUP(HQ5,$A$96:$A$113,$B$96:$B$113))) ->  | HR4: =IF(HR5=0,"",HR6&IF(HR5=1,"",LOOKUP(HR5,$A$96:$A$113,$B$96:$B$113))) ->  | HS4: =IF(HS5=0,"",HS6&IF(HS5=1,"",LOOKUP(HS5,$A$96:$A$113,$B$96:$B$113))) ->  | HT4: =IF(HT5=0,"",HT6&IF(HT5=1,"",LOOKUP(HT5,$A$96:$A$113,$B$96:$B$113))) ->  | HU4: =IF(HU5=0,"",HU6&IF(HU5=1,"",LOOKUP(HU5,$A$96:$A$113,$B$96:$B$113))) ->  | HV4: =IF(HV5=0,"",HV6&IF(HV5=1,"",LOOKUP(HV5,$A$96:$A$113,$B$96:$B$113))) ->  | HW4: =IF(HW5=0,"",HW6&IF(HW5=1,"",LOOKUP(HW5,$A$96:$A$113,$B$96:$B$113))) ->  | HX4: =IF(HX5=0,"",HX6&IF(HX5=1,"",LOOKUP(HX5,$A$96:$A$113,$B$96:$B$113))) ->  | HY4: =IF(HY5=0,"",HY6&IF(HY5=1,"",LOOKUP(HY5,$A$96:$A$113,$B$96:$B$113))) ->  | HZ4: =IF(HZ5=0,"",HZ6&IF(HZ5=1,"",LOOKUP(HZ5,$A$96:$A$113,$B$96:$B$113))) ->  | IA4: =IF(IA5=0,"",IA6&IF(IA5=1,"",LOOKUP(IA5,$A$96:$A$113,$B$96:$B$113))) ->  | IB4: =IF(IB5=0,"",IB6&IF(IB5=1,"",LOOKUP(IB5,$A$96:$A$113,$B$96:$B$113))) ->  | IC4: =IF(IC5=0,"",IC6&IF(IC5=1,"",LOOKUP(IC5,$A$96:$A$113,$B$96:$B$113))) ->  | ID4: =IF(ID5=0,"",ID6&IF(ID5=1,"",LOOKUP(ID5,$A$96:$A$113,$B$96:$B$113))) ->  | IE4: =IF(IE5=0,"",IE6&IF(IE5=1,"",LOOKUP(IE5,$A$96:$A$113,$B$96:$B$113))) ->  | IF4: =IF(IF5=0,"",IF6&IF(IF5=1,"",LOOKUP(IF5,$A$96:$A$113,$B$96:$B$113))) ->  | IG4: =IF(IG5=0,"",IG6&IF(IG5=1,"",LOOKUP(IG5,$A$96:$A$113,$B$96:$B$113))) ->  | IH4: =IF(IH5=0,"",IH6&IF(IH5=1,"",LOOKUP(IH5,$A$96:$A$113,$B$96:$B$113))) ->  | II4: =IF(II5=0,"",II6&IF(II5=1,"",LOOKUP(II5,$A$96:$A$113,$B$96:$B$113))) ->  | IJ4: =IF(IJ5=0,"",IJ6&IF(IJ5=1,"",LOOKUP(IJ5,$A$96:$A$113,$B$96:$B$113))) ->  | IK4: =IF(IK5=0,"",IK6&IF(IK5=1,"",LOOKUP(IK5,$A$96:$A$113,$B$96:$B$113))) ->  | IL4: =IF(IL5=0,"",IL6&IF(IL5=1,"",LOOKUP(IL5,$A$96:$A$113,$B$96:$B$113))) ->  | IM4: =IF(IM5=0,"",IM6&IF(IM5=1,"",LOOKUP(IM5,$A$96:$A$113,$B$96:$B$113))) ->  | IN4: =IF(IN5=0,"",IN6&IF(IN5=1,"",LOOKUP(IN5,$A$96:$A$113,$B$96:$B$113))) ->  | IO4: =IF(IO5=0,"",IO6&IF(IO5=1,"",LOOKUP(IO5,$A$96:$A$113,$B$96:$B$113))) ->  | IP4: =IF(IP5=0,"",IP6&IF(IP5=1,"",LOOKUP(IP5,$A$96:$A$113,$B$96:$B$113))) ->  | IQ4: =IF(IQ5=0,"",IQ6&IF(IQ5=1,"",LOOKUP(IQ5,$A$96:$A$113,$B$96:$B$113))) ->  | IR4: =IF(IR5=0,"",IR6&IF(IR5=1,"",LOOKUP(IR5,$A$96:$A$113,$B$96:$B$113))) ->  | IS4: =IF(IS5=0,"",IS6&IF(IS5=1,"",LOOKUP(IS5,$A$96:$A$113,$B$96:$B$113))) ->  | IT4: =IF(IT5=0,"",IT6&IF(IT5=1,"",LOOKUP(IT5,$A$96:$A$113,$B$96:$B$113))) ->  | IU4: =IF(IU5=0,"",IU6&IF(IU5=1,"",LOOKUP(IU5,$A$96:$A$113,$B$96:$B$113))) ->  | IV4: =IF(IV5=0,"",IV6&IF(IV5=1,"",LOOKUP(IV5,$A$96:$A$113,$B$96:$B$113))) ->  | IW4: =IF(IW5=0,"",IW6&IF(IW5=1,"",LOOKUP(IW5,$A$96:$A$113,$B$96:$B$113))) ->  | IX4: =IF(IX5=0,"",IX6&IF(IX5=1,"",LOOKUP(IX5,$A$96:$A$113,$B$96:$B$113))) ->  | IY4: =IF(IY5=0,"",IY6&IF(IY5=1,"",LOOKUP(IY5,$A$96:$A$113,$B$96:$B$113))) ->  | IZ4: =IF(IZ5=0,"",IZ6&IF(IZ5=1,"",LOOKUP(IZ5,$A$96:$A$113,$B$96:$B$113))) ->  | JA4: =IF(JA5=0,"",JA6&IF(JA5=1,"",LOOKUP(JA5,$A$96:$A$113,$B$96:$B$113))) ->  | JB4: =IF(JB5=0,"",JB6&IF(JB5=1,"",LOOKUP(JB5,$A$96:$A$113,$B$96:$B$113))) ->  | JC4: =IF(JC5=0,"",JC6&IF(JC5=1,"",LOOKUP(JC5,$A$96:$A$113,$B$96:$B$113))) ->  | JD4: =IF(JD5=0,"",JD6&IF(JD5=1,"",LOOKUP(JD5,$A$96:$A$113,$B$96:$B$113))) ->  | JE4: =IF(JE5=0,"",JE6&IF(JE5=1,"",LOOKUP(JE5,$A$96:$A$113,$B$96:$B$113))) ->  | JF4: =IF(JF5=0,"",JF6&IF(JF5=1,"",LOOKUP(JF5,$A$96:$A$113,$B$96:$B$113))) ->  | JG4: =IF(JG5=0,"",JG6&IF(JG5=1,"",LOOKUP(JG5,$A$96:$A$113,$B$96:$B$113))) ->  | JH4: =IF(JH5=0,"",JH6&IF(JH5=1,"",LOOKUP(JH5,$A$96:$A$113,$B$96:$B$113))) ->  | JI4: =IF(JI5=0,"",JI6&IF(JI5=1,"",LOOKUP(JI5,$A$96:$A$113,$B$96:$B$113))) ->  | JJ4: =IF(JJ5=0,"",JJ6&IF(JJ5=1,"",LOOKUP(JJ5,$A$96:$A$113,$B$96:$B$113))) ->  | JK4: =IF(JK5=0,"",JK6&IF(JK5=1,"",LOOKUP(JK5,$A$96:$A$113,$B$96:$B$113))) ->  | JL4: =IF(JL5=0,"",JL6&IF(JL5=1,"",LOOKUP(JL5,$A$96:$A$113,$B$96:$B$113))) ->  | JM4: =IF(JM5=0,"",JM6&IF(JM5=1,"",LOOKUP(JM5,$A$96:$A$113,$B$96:$B$113))) ->  | JN4: =IF(JN5=0,"",JN6&IF(JN5=1,"",LOOKUP(JN5,$A$96:$A$113,$B$96:$B$113))) ->  | JO4: =IF(JO5=0,"",JO6&IF(JO5=1,"",LOOKUP(JO5,$A$96:$A$113,$B$96:$B$113))) ->  | JP4: =IF(JP5=0,"",JP6&IF(JP5=1,"",LOOKUP(JP5,$A$96:$A$113,$B$96:$B$113))) ->  | JQ4: =IF(JQ5=0,"",JQ6&IF(JQ5=1,"",LOOKUP(JQ5,$A$96:$A$113,$B$96:$B$113))) ->  | JR4: =IF(JR5=0,"",JR6&IF(JR5=1,"",LOOKUP(JR5,$A$96:$A$113,$B$96:$B$113))) ->  | JS4: =IF(JS5=0,"",JS6&IF(JS5=1,"",LOOKUP(JS5,$A$96:$A$113,$B$96:$B$113))) ->  | JT4: =IF(JT5=0,"",JT6&IF(JT5=1,"",LOOKUP(JT5,$A$96:$A$113,$B$96:$B$113))) ->  | JU4: =IF(JU5=0,"",JU6&IF(JU5=1,"",LOOKUP(JU5,$A$96:$A$113,$B$96:$B$113))) ->  | JV4: =IF(JV5=0,"",JV6&IF(JV5=1,"",LOOKUP(JV5,$A$96:$A$113,$B$96:$B$113))) ->  | JW4: =IF(JW5=0,"",JW6&IF(JW5=1,"",LOOKUP(JW5,$A$96:$A$113,$B$96:$B$113))) ->  | JX4: =IF(JX5=0,"",JX6&IF(JX5=1,"",LOOKUP(JX5,$A$96:$A$113,$B$96:$B$113))) ->  | JY4: =IF(JY5=0,"",JY6&IF(JY5=1,"",LOOKUP(JY5,$A$96:$A$113,$B$96:$B$113))) ->  | JZ4: =IF(JZ5=0,"",JZ6&IF(JZ5=1,"",LOOKUP(JZ5,$A$96:$A$113,$B$96:$B$113))) ->  | KA4: =IF(KA5=0,"",KA6&IF(KA5=1,"",LOOKUP(KA5,$A$96:$A$113,$B$96:$B$113))) ->  | KB4: =IF(KB5=0,"",KB6&IF(KB5=1,"",LOOKUP(KB5,$A$96:$A$113,$B$96:$B$113))) ->  | KC4: =IF(KC5=0,"",KC6&IF(KC5=1,"",LOOKUP(KC5,$A$96:$A$113,$B$96:$B$113))) ->  | KD4: =IF(KD5=0,"",KD6&IF(KD5=1,"",LOOKUP(KD5,$A$96:$A$113,$B$96:$B$113))) ->  | KE4: =IF(KE5=0,"",KE6&IF(KE5=1,"",LOOKUP(KE5,$A$96:$A$113,$B$96:$B$113))) ->  | KF4: =IF(KF5=0,"",KF6&IF(KF5=1,"",LOOKUP(KF5,$A$96:$A$113,$B$96:$B$113))) ->  | KG4: =IF(KG5=0,"",KG6&IF(KG5=1,"",LOOKUP(KG5,$A$96:$A$113,$B$96:$B$113))) ->  | KH4: =IF(KH5=0,"",KH6&IF(KH5=1,"",LOOKUP(KH5,$A$96:$A$113,$B$96:$B$113))) ->  | KI4: =IF(KI5=0,"",KI6&IF(KI5=1,"",LOOKUP(KI5,$A$96:$A$113,$B$96:$B$113))) ->  | KJ4: =IF(KJ5=0,"",KJ6&IF(KJ5=1,"",LOOKUP(KJ5,$A$96:$A$113,$B$96:$B$113))) ->  | KK4: =IF(KK5=0,"",KK6&IF(KK5=1,"",LOOKUP(KK5,$A$96:$A$113,$B$96:$B$113))) ->  | KL4: =IF(KL5=0,"",KL6&IF(KL5=1,"",LOOKUP(KL5,$A$96:$A$113,$B$96:$B$113))) ->  | KM4: =IF(KM5=0,"",KM6&IF(KM5=1,"",LOOKUP(KM5,$A$96:$A$113,$B$96:$B$113))) ->  | KN4: =IF(KN5=0,"",KN6&IF(KN5=1,"",LOOKUP(KN5,$A$96:$A$113,$B$96:$B$113))) ->  | KO4: =IF(KO5=0,"",KO6&IF(KO5=1,"",LOOKUP(KO5,$A$96:$A$113,$B$96:$B$113))) ->  | KP4: =IF(KP5=0,"",KP6&IF(KP5=1,"",LOOKUP(KP5,$A$96:$A$113,$B$96:$B$113))) ->  | KQ4: =IF(KQ5=0,"",KQ6&IF(KQ5=1,"",LOOKUP(KQ5,$A$96:$A$113,$B$96:$B$113))) ->  | KR4: =IF(KR5=0,"",KR6&IF(KR5=1,"",LOOKUP(KR5,$A$96:$A$113,$B$96:$B$113))) ->  | KS4: =IF(KS5=0,"",KS6&IF(KS5=1,"",LOOKUP(KS5,$A$96:$A$113,$B$96:$B$113))) ->  | KT4: =IF(KT5=0,"",KT6&IF(KT5=1,"",LOOKUP(KT5,$A$96:$A$113,$B$96:$B$113))) ->  | KU4: =IF(KU5=0,"",KU6&IF(KU5=1,"",LOOKUP(KU5,$A$96:$A$113,$B$96:$B$113))) ->  | KV4: =IF(KV5=0,"",KV6&IF(KV5=1,"",LOOKUP(KV5,$A$96:$A$113,$B$96:$B$113))) ->  | KW4: =IF(KW5=0,"",KW6&IF(KW5=1,"",LOOKUP(KW5,$A$96:$A$113,$B$96:$B$113))) ->  | KX4: =IF(KX5=0,"",KX6&IF(KX5=1,"",LOOKUP(KX5,$A$96:$A$113,$B$96:$B$113))) ->  | KY4: =IF(KY5=0,"",KY6&IF(KY5=1,"",LOOKUP(KY5,$A$96:$A$113,$B$96:$B$113))) ->  | KZ4: =IF(KZ5=0,"",KZ6&IF(KZ5=1,"",LOOKUP(KZ5,$A$96:$A$113,$B$96:$B$113))) ->  | LA4: =IF(LA5=0,"",LA6&IF(LA5=1,"",LOOKUP(LA5,$A$96:$A$113,$B$96:$B$113))) ->  | LB4: =IF(LB5=0,"",LB6&IF(LB5=1,"",LOOKUP(LB5,$A$96:$A$113,$B$96:$B$113))) ->  | LC4: =IF(LC5=0,"",LC6&IF(LC5=1,"",LOOKUP(LC5,$A$96:$A$113,$B$96:$B$113))) ->  | LD4: =IF(LD5=0,"",LD6&IF(LD5=1,"",LOOKUP(LD5,$A$96:$A$113,$B$96:$B$113))) ->  | LE4: =IF(LE5=0,"",LE6&IF(LE5=1,"",LOOKUP(LE5,$A$96:$A$113,$B$96:$B$113))) ->  | LF4: =IF(LF5=0,"",LF6&IF(LF5=1,"",LOOKUP(LF5,$A$96:$A$113,$B$96:$B$113))) ->  | LG4: =IF(LG5=0,"",LG6&IF(LG5=1,"",LOOKUP(LG5,$A$96:$A$113,$B$96:$B$113))) ->  | LH4: =IF(LH5=0,"",LH6&IF(LH5=1,"",LOOKUP(LH5,$A$96:$A$113,$B$96:$B$113))) ->  | LI4: =IF(LI5=0,"",LI6&IF(LI5=1,"",LOOKUP(LI5,$A$96:$A$113,$B$96:$B$113))) ->  | LJ4: =IF(LJ5=0,"",LJ6&IF(LJ5=1,"",LOOKUP(LJ5,$A$96:$A$113,$B$96:$B$113))) ->  | LK4: =IF(LK5=0,"",LK6&IF(LK5=1,"",LOOKUP(LK5,$A$96:$A$113,$B$96:$B$113))) ->  | LL4: =IF(LL5=0,"",LL6&IF(LL5=1,"",LOOKUP(LL5,$A$96:$A$113,$B$96:$B$113))) ->  | LM4: =IF(LM5=0,"",LM6&IF(LM5=1,"",LOOKUP(LM5,$A$96:$A$113,$B$96:$B$113))) ->  | LN4: =IF(LN5=0,"",LN6&IF(LN5=1,"",LOOKUP(LN5,$A$96:$A$113,$B$96:$B$113))) ->  | LO4: =IF(LO5=0,"",LO6&IF(LO5=1,"",LOOKUP(LO5,$A$96:$A$113,$B$96:$B$113))) ->  | LP4: =IF(LP5=0,"",LP6&IF(LP5=1,"",LOOKUP(LP5,$A$96:$A$113,$B$96:$B$113))) ->  | LQ4: =IF(LQ5=0,"",LQ6&IF(LQ5=1,"",LOOKUP(LQ5,$A$96:$A$113,$B$96:$B$113))) ->  | LR4: =IF(LR5=0,"",LR6&IF(LR5=1,"",LOOKUP(LR5,$A$96:$A$113,$B$96:$B$113))) ->  | LS4: =IF(LS5=0,"",LS6&IF(LS5=1,"",LOOKUP(LS5,$A$96:$A$113,$B$96:$B$113))) ->  | LT4: =IF(LT5=0,"",LT6&IF(LT5=1,"",LOOKUP(LT5,$A$96:$A$113,$B$96:$B$113))) ->  | LU4: =IF(LU5=0,"",LU6&IF(LU5=1,"",LOOKUP(LU5,$A$96:$A$113,$B$96:$B$113))) ->  | LV4: =IF(LV5=0,"",LV6&IF(LV5=1,"",LOOKUP(LV5,$A$96:$A$113,$B$96:$B$113))) ->  | LW4: =IF(LW5=0,"",LW6&IF(LW5=1,"",LOOKUP(LW5,$A$96:$A$113,$B$96:$B$113))) ->  | LX4: =IF(LX5=0,"",LX6&IF(LX5=1,"",LOOKUP(LX5,$A$96:$A$113,$B$96:$B$113))) ->  | LY4: =IF(LY5=0,"",LY6&IF(LY5=1,"",LOOKUP(LY5,$A$96:$A$113,$B$96:$B$113))) ->  | LZ4: =IF(LZ5=0,"",LZ6&IF(LZ5=1,"",LOOKUP(LZ5,$A$96:$A$113,$B$96:$B$113))) ->  | MA4: =IF(MA5=0,"",MA6&IF(MA5=1,"",LOOKUP(MA5,$A$96:$A$113,$B$96:$B$113))) ->  | MB4: =IF(MB5=0,"",MB6&IF(MB5=1,"",LOOKUP(MB5,$A$96:$A$113,$B$96:$B$113))) ->  | MC4: =IF(MC5=0,"",MC6&IF(MC5=1,"",LOOKUP(MC5,$A$96:$A$113,$B$96:$B$113))) ->  | MD4: =IF(MD5=0,"",MD6&IF(MD5=1,"",LOOKUP(MD5,$A$96:$A$113,$B$96:$B$113))) ->  | ME4: =IF(ME5=0,"",ME6&IF(ME5=1,"",LOOKUP(ME5,$A$96:$A$113,$B$96:$B$113))) ->  | MF4: =IF(MF5=0,"",MF6&IF(MF5=1,"",LOOKUP(MF5,$A$96:$A$113,$B$96:$B$113))) ->  | MG4: =IF(MG5=0,"",MG6&IF(MG5=1,"",LOOKUP(MG5,$A$96:$A$113,$B$96:$B$113))) ->  | MH4: =IF(MH5=0,"",MH6&IF(MH5=1,"",LOOKUP(MH5,$A$96:$A$113,$B$96:$B$113))) ->  | MI4: =IF(MI5=0,"",MI6&IF(MI5=1,"",LOOKUP(MI5,$A$96:$A$113,$B$96:$B$113))) ->  | MJ4: =IF(MJ5=0,"",MJ6&IF(MJ5=1,"",LOOKUP(MJ5,$A$96:$A$113,$B$96:$B$113))) ->  | MK4: =IF(MK5=0,"",MK6&IF(MK5=1,"",LOOKUP(MK5,$A$96:$A$113,$B$96:$B$113))) ->  | ML4: =IF(ML5=0,"",ML6&IF(ML5=1,"",LOOKUP(ML5,$A$96:$A$113,$B$96:$B$113))) ->  | MM4: =IF(MM5=0,"",MM6&IF(MM5=1,"",LOOKUP(MM5,$A$96:$A$113,$B$96:$B$113))) ->  | MN4: =IF(MN5=0,"",MN6&IF(MN5=1,"",LOOKUP(MN5,$A$96:$A$113,$B$96:$B$113))) ->  | MO4: =IF(MO5=0,"",MO6&IF(MO5=1,"",LOOKUP(MO5,$A$96:$A$113,$B$96:$B$113))) ->  | MP4: =IF(MP5=0,"",MP6&IF(MP5=1,"",LOOKUP(MP5,$A$96:$A$113,$B$96:$B$113))) ->  | MQ4: =IF(MQ5=0,"",MQ6&IF(MQ5=1,"",LOOKUP(MQ5,$A$96:$A$113,$B$96:$B$113))) ->  | MR4: =IF(MR5=0,"",MR6&IF(MR5=1,"",LOOKUP(MR5,$A$96:$A$113,$B$96:$B$113))) ->  | MS4: =IF(MS5=0,"",MS6&IF(MS5=1,"",LOOKUP(MS5,$A$96:$A$113,$B$96:$B$113))) ->  | MT4: =IF(MT5=0,"",MT6&IF(MT5=1,"",LOOKUP(MT5,$A$96:$A$113,$B$96:$B$113))) ->  | MU4: =IF(MU5=0,"",MU6&IF(MU5=1,"",LOOKUP(MU5,$A$96:$A$113,$B$96:$B$113))) ->  | MV4: =IF(MV5=0,"",MV6&IF(MV5=1,"",LOOKUP(MV5,$A$96:$A$113,$B$96:$B$113))) ->  | MW4: =IF(MW5=0,"",MW6&IF(MW5=1,"",LOOKUP(MW5,$A$96:$A$113,$B$96:$B$113))) ->  | MX4: =IF(MX5=0,"",MX6&IF(MX5=1,"",LOOKUP(MX5,$A$96:$A$113,$B$96:$B$113))) ->  | MY4: =IF(MY5=0,"",MY6&IF(MY5=1,"",LOOKUP(MY5,$A$96:$A$113,$B$96:$B$113))) ->  | MZ4: =IF(MZ5=0,"",MZ6&IF(MZ5=1,"",LOOKUP(MZ5,$A$96:$A$113,$B$96:$B$113))) ->  | NA4: =IF(NA5=0,"",NA6&IF(NA5=1,"",LOOKUP(NA5,$A$96:$A$113,$B$96:$B$113))) ->  | NB4: =IF(NB5=0,"",NB6&IF(NB5=1,"",LOOKUP(NB5,$A$96:$A$113,$B$96:$B$113))) ->  | NC4: =IF(NC5=0,"",NC6&IF(NC5=1,"",LOOKUP(NC5,$A$96:$A$113,$B$96:$B$113))) ->  | ND4: =IF(ND5=0,"",ND6&IF(ND5=1,"",LOOKUP(ND5,$A$96:$A$113,$B$96:$B$113))) ->  | NE4: =IF(NE5=0,"",NE6&IF(NE5=1,"",LOOKUP(NE5,$A$96:$A$113,$B$96:$B$113))) ->  | NF4: =IF(NF5=0,"",NF6&IF(NF5=1,"",LOOKUP(NF5,$A$96:$A$113,$B$96:$B$113))) ->  | NG4: =IF(NG5=0,"",NG6&IF(NG5=1,"",LOOKUP(NG5,$A$96:$A$113,$B$96:$B$113))) ->  | NH4: =IF(NH5=0,"",NH6&IF(NH5=1,"",LOOKUP(NH5,$A$96:$A$113,$B$96:$B$113))) ->  | NI4: =IF(NI5=0,"",NI6&IF(NI5=1,"",LOOKUP(NI5,$A$96:$A$113,$B$96:$B$113))) ->  | NJ4: =IF(NJ5=0,"",NJ6&IF(NJ5=1,"",LOOKUP(NJ5,$A$96:$A$113,$B$96:$B$113))) ->  | NK4: =IF(NK5=0,"",NK6&IF(NK5=1,"",LOOKUP(NK5,$A$96:$A$113,$B$96:$B$113))) ->  | NL4: =IF(NL5=0,"",NL6&IF(NL5=1,"",LOOKUP(NL5,$A$96:$A$113,$B$96:$B$113))) ->  | NM4: =IF(NM5=0,"",NM6&IF(NM5=1,"",LOOKUP(NM5,$A$96:$A$113,$B$96:$B$113))) ->  | NN4: =IF(NN5=0,"",NN6&IF(NN5=1,"",LOOKUP(NN5,$A$96:$A$113,$B$96:$B$113))) ->  | NO4: =IF(NO5=0,"",NO6&IF(NO5=1,"",LOOKUP(NO5,$A$96:$A$113,$B$96:$B$113))) ->  | NP4: =IF(NP5=0,"",NP6&IF(NP5=1,"",LOOKUP(NP5,$A$96:$A$113,$B$96:$B$113))) ->  | NQ4: =IF(NQ5=0,"",NQ6&IF(NQ5=1,"",LOOKUP(NQ5,$A$96:$A$113,$B$96:$B$113))) ->  | NR4: =IF(NR5=0,"",NR6&IF(NR5=1,"",LOOKUP(NR5,$A$96:$A$113,$B$96:$B$113))) ->  | NS4: =IF(NS5=0,"",NS6&IF(NS5=1,"",LOOKUP(NS5,$A$96:$A$113,$B$96:$B$113))) ->  | NT4: =IF(NT5=0,"",NT6&IF(NT5=1,"",LOOKUP(NT5,$A$96:$A$113,$B$96:$B$113))) ->  | NU4: =IF(NU5=0,"",NU6&IF(NU5=1,"",LOOKUP(NU5,$A$96:$A$113,$B$96:$B$113))) ->  | NV4: =IF(NV5=0,"",NV6&IF(NV5=1,"",LOOKUP(NV5,$A$96:$A$113,$B$96:$B$113))) ->  | NW4: =IF(NW5=0,"",NW6&IF(NW5=1,"",LOOKUP(NW5,$A$96:$A$113,$B$96:$B$113))) ->  | NX4: =IF(NX5=0,"",NX6&IF(NX5=1,"",LOOKUP(NX5,$A$96:$A$113,$B$96:$B$113))) ->  | NY4: =IF(NY5=0,"",NY6&IF(NY5=1,"",LOOKUP(NY5,$A$96:$A$113,$B$96:$B$113))) ->  | NZ4: =IF(NZ5=0,"",NZ6&IF(NZ5=1,"",LOOKUP(NZ5,$A$96:$A$113,$B$96:$B$113))) ->  | OA4: =IF(OA5=0,"",OA6&IF(OA5=1,"",LOOKUP(OA5,$A$96:$A$113,$B$96:$B$113))) ->  | OB4: =IF(OB5=0,"",OB6&IF(OB5=1,"",LOOKUP(OB5,$A$96:$A$113,$B$96:$B$113))) ->  | OC4: =IF(OC5=0,"",OC6&IF(OC5=1,"",LOOKUP(OC5,$A$96:$A$113,$B$96:$B$113))) ->  | OD4: =IF(OD5=0,"",OD6&IF(OD5=1,"",LOOKUP(OD5,$A$96:$A$113,$B$96:$B$113))) ->  | OE4: =IF(OE5=0,"",OE6&IF(OE5=1,"",LOOKUP(OE5,$A$96:$A$113,$B$96:$B$113))) ->  | OF4: =IF(OF5=0,"",OF6&IF(OF5=1,"",LOOKUP(OF5,$A$96:$A$113,$B$96:$B$113))) ->  | OG4: =IF(OG5=0,"",OG6&IF(OG5=1,"",LOOKUP(OG5,$A$96:$A$113,$B$96:$B$113))) ->  | OH4: =IF(OH5=0,"",OH6&IF(OH5=1,"",LOOKUP(OH5,$A$96:$A$113,$B$96:$B$113))) ->  | OI4: =IF(OI5=0,"",OI6&IF(OI5=1,"",LOOKUP(OI5,$A$96:$A$113,$B$96:$B$113))) ->  | OJ4: =IF(OJ5=0,"",OJ6&IF(OJ5=1,"",LOOKUP(OJ5,$A$96:$A$113,$B$96:$B$113))) ->  | OK4: =IF(OK5=0,"",OK6&IF(OK5=1,"",LOOKUP(OK5,$A$96:$A$113,$B$96:$B$113))) ->  | OL4: =IF(OL5=0,"",OL6&IF(OL5=1,"",LOOKUP(OL5,$A$96:$A$113,$B$96:$B$113))) ->  | OM4: =IF(OM5=0,"",OM6&IF(OM5=1,"",LOOKUP(OM5,$A$96:$A$113,$B$96:$B$113))) ->  | ON4: =IF(ON5=0,"",ON6&IF(ON5=1,"",LOOKUP(ON5,$A$96:$A$113,$B$96:$B$113))) ->  | OO4: =IF(OO5=0,"",OO6&IF(OO5=1,"",LOOKUP(OO5,$A$96:$A$113,$B$96:$B$113))) ->  | OP4: =IF(OP5=0,"",OP6&IF(OP5=1,"",LOOKUP(OP5,$A$96:$A$113,$B$96:$B$113))) ->  | OQ4: =IF(OQ5=0,"",OQ6&IF(OQ5=1,"",LOOKUP(OQ5,$A$96:$A$113,$B$96:$B$113))) ->  | OR4: =IF(OR5=0,"",OR6&IF(OR5=1,"",LOOKUP(OR5,$A$96:$A$113,$B$96:$B$113))) ->  | OS4: =IF(OS5=0,"",OS6&IF(OS5=1,"",LOOKUP(OS5,$A$96:$A$113,$B$96:$B$113))) ->  | OT4: =IF(OT5=0,"",OT6&IF(OT5=1,"",LOOKUP(OT5,$A$96:$A$113,$B$96:$B$113))) ->  | OU4: =IF(OU5=0,"",OU6&IF(OU5=1,"",LOOKUP(OU5,$A$96:$A$113,$B$96:$B$113))) ->  | OV4: =IF(OV5=0,"",OV6&IF(OV5=1,"",LOOKUP(OV5,$A$96:$A$113,$B$96:$B$113))) ->  | OW4: =IF(OW5=0,"",OW6&IF(OW5=1,"",LOOKUP(OW5,$A$96:$A$113,$B$96:$B$113))) ->  | OX4: =IF(OX5=0,"",OX6&IF(OX5=1,"",LOOKUP(OX5,$A$96:$A$113,$B$96:$B$113))) ->  | OY4: =IF(OY5=0,"",OY6&IF(OY5=1,"",LOOKUP(OY5,$A$96:$A$113,$B$96:$B$113))) ->  | OZ4: =IF(OZ5=0,"",OZ6&IF(OZ5=1,"",LOOKUP(OZ5,$A$96:$A$113,$B$96:$B$113))) ->  | PA4: =IF(PA5=0,"",PA6&IF(PA5=1,"",LOOKUP(PA5,$A$96:$A$113,$B$96:$B$113))) ->  | PB4: =IF(PB5=0,"",PB6&IF(PB5=1,"",LOOKUP(PB5,$A$96:$A$113,$B$96:$B$113))) ->  | PC4: =IF(PC5=0,"",PC6&IF(PC5=1,"",LOOKUP(PC5,$A$96:$A$113,$B$96:$B$113))) ->  | PD4: =IF(PD5=0,"",PD6&IF(PD5=1,"",LOOKUP(PD5,$A$96:$A$113,$B$96:$B$113))) ->  | PE4: =IF(PE5=0,"",PE6&IF(PE5=1,"",LOOKUP(PE5,$A$96:$A$113,$B$96:$B$113))) ->  | PF4: =IF(PF5=0,"",PF6&IF(PF5=1,"",LOOKUP(PF5,$A$96:$A$113,$B$96:$B$113))) ->  | PG4: =IF(PG5=0,"",PG6&IF(PG5=1,"",LOOKUP(PG5,$A$96:$A$113,$B$96:$B$113))) ->  | PH4: =IF(PH5=0,"",PH6&IF(PH5=1,"",LOOKUP(PH5,$A$96:$A$113,$B$96:$B$113))) ->  | PI4: =IF(PI5=0,"",PI6&IF(PI5=1,"",LOOKUP(PI5,$A$96:$A$113,$B$96:$B$113))) ->  | PJ4: =IF(PJ5=0,"",PJ6&IF(PJ5=1,"",LOOKUP(PJ5,$A$96:$A$113,$B$96:$B$113))) ->  | PK4: =IF(PK5=0,"",PK6&IF(PK5=1,"",LOOKUP(PK5,$A$96:$A$113,$B$96:$B$113))) ->  | PL4: =IF(PL5=0,"",PL6&IF(PL5=1,"",LOOKUP(PL5,$A$96:$A$113,$B$96:$B$113))) ->  | PM4: =IF(PM5=0,"",PM6&IF(PM5=1,"",LOOKUP(PM5,$A$96:$A$113,$B$96:$B$113))) ->  | PN4: =IF(PN5=0,"",PN6&IF(PN5=1,"",LOOKUP(PN5,$A$96:$A$113,$B$96:$B$113))) ->  | PO4: =IF(PO5=0,"",PO6&IF(PO5=1,"",LOOKUP(PO5,$A$96:$A$113,$B$96:$B$113))) ->  | PP4: =IF(PP5=0,"",PP6&IF(PP5=1,"",LOOKUP(PP5,$A$96:$A$113,$B$96:$B$113))) ->  | PQ4: =IF(PQ5=0,"",PQ6&IF(PQ5=1,"",LOOKUP(PQ5,$A$96:$A$113,$B$96:$B$113))) ->  | PR4: =IF(PR5=0,"",PR6&IF(PR5=1,"",LOOKUP(PR5,$A$96:$A$113,$B$96:$B$113))) ->  | PS4: =IF(PS5=0,"",PS6&IF(PS5=1,"",LOOKUP(PS5,$A$96:$A$113,$B$96:$B$113))) ->  | PT4: =IF(PT5=0,"",PT6&IF(PT5=1,"",LOOKUP(PT5,$A$96:$A$113,$B$96:$B$113))) ->  | PU4: =IF(PU5=0,"",PU6&IF(PU5=1,"",LOOKUP(PU5,$A$96:$A$113,$B$96:$B$113))) ->  | PV4: =IF(PV5=0,"",PV6&IF(PV5=1,"",LOOKUP(PV5,$A$96:$A$113,$B$96:$B$113))) ->  | PW4: =IF(PW5=0,"",PW6&IF(PW5=1,"",LOOKUP(PW5,$A$96:$A$113,$B$96:$B$113))) ->  | PX4: =IF(PX5=0,"",PX6&IF(PX5=1,"",LOOKUP(PX5,$A$96:$A$113,$B$96:$B$113))) ->  | PY4: =IF(PY5=0,"",PY6&IF(PY5=1,"",LOOKUP(PY5,$A$96:$A$113,$B$96:$B$113))) ->  | PZ4: =IF(PZ5=0,"",PZ6&IF(PZ5=1,"",LOOKUP(PZ5,$A$96:$A$113,$B$96:$B$113))) ->  | QA4: =IF(QA5=0,"",QA6&IF(QA5=1,"",LOOKUP(QA5,$A$96:$A$113,$B$96:$B$113))) ->  | QB4: =IF(QB5=0,"",QB6&IF(QB5=1,"",LOOKUP(QB5,$A$96:$A$113,$B$96:$B$113))) ->  | QC4: =IF(QC5=0,"",QC6&IF(QC5=1,"",LOOKUP(QC5,$A$96:$A$113,$B$96:$B$113))) ->  | QD4: =IF(QD5=0,"",QD6&IF(QD5=1,"",LOOKUP(QD5,$A$96:$A$113,$B$96:$B$113))) ->  | QE4: =IF(QE5=0,"",QE6&IF(QE5=1,"",LOOKUP(QE5,$A$96:$A$113,$B$96:$B$113))) ->  | QF4: =IF(QF5=0,"",QF6&IF(QF5=1,"",LOOKUP(QF5,$A$96:$A$113,$B$96:$B$113))) ->  | QG4: =IF(QG5=0,"",QG6&IF(QG5=1,"",LOOKUP(QG5,$A$96:$A$113,$B$96:$B$113))) ->  | QH4: =IF(QH5=0,"",QH6&IF(QH5=1,"",LOOKUP(QH5,$A$96:$A$113,$B$96:$B$113))) ->  | QI4: =IF(QI5=0,"",QI6&IF(QI5=1,"",LOOKUP(QI5,$A$96:$A$113,$B$96:$B$113))) ->  | QJ4: =IF(QJ5=0,"",QJ6&IF(QJ5=1,"",LOOKUP(QJ5,$A$96:$A$113,$B$96:$B$113))) ->  | QK4: =IF(QK5=0,"",QK6&IF(QK5=1,"",LOOKUP(QK5,$A$96:$A$113,$B$96:$B$113))) ->  | QL4: =IF(QL5=0,"",QL6&IF(QL5=1,"",LOOKUP(QL5,$A$96:$A$113,$B$96:$B$113))) ->  | QM4: =IF(QM5=0,"",QM6&IF(QM5=1,"",LOOKUP(QM5,$A$96:$A$113,$B$96:$B$113))) ->  | QN4: =IF(QN5=0,"",QN6&IF(QN5=1,"",LOOKUP(QN5,$A$96:$A$113,$B$96:$B$113))) ->  | QO4: =IF(QO5=0,"",QO6&IF(QO5=1,"",LOOKUP(QO5,$A$96:$A$113,$B$96:$B$113))) ->  | QP4: =IF(QP5=0,"",QP6&IF(QP5=1,"",LOOKUP(QP5,$A$96:$A$113,$B$96:$B$113))) ->  | QQ4: =IF(QQ5=0,"",QQ6&IF(QQ5=1,"",LOOKUP(QQ5,$A$96:$A$113,$B$96:$B$113))) ->  | QR4: =IF(QR5=0,"",QR6&IF(QR5=1,"",LOOKUP(QR5,$A$96:$A$113,$B$96:$B$113))) ->  | QS4: =IF(QS5=0,"",QS6&IF(QS5=1,"",LOOKUP(QS5,$A$96:$A$113,$B$96:$B$113))) ->  | QT4: =IF(QT5=0,"",QT6&IF(QT5=1,"",LOOKUP(QT5,$A$96:$A$113,$B$96:$B$113))) ->  | QU4: =IF(QU5=0,"",QU6&IF(QU5=1,"",LOOKUP(QU5,$A$96:$A$113,$B$96:$B$113))) ->  | QV4: =IF(QV5=0,"",QV6&IF(QV5=1,"",LOOKUP(QV5,$A$96:$A$113,$B$96:$B$113))) ->  | QW4: =IF(QW5=0,"",QW6&IF(QW5=1,"",LOOKUP(QW5,$A$96:$A$113,$B$96:$B$113))) ->  | QX4: =IF(QX5=0,"",QX6&IF(QX5=1,"",LOOKUP(QX5,$A$96:$A$113,$B$96:$B$113))) ->  | QY4: =IF(QY5=0,"",QY6&IF(QY5=1,"",LOOKUP(QY5,$A$96:$A$113,$B$96:$B$113))) ->  | QZ4: =IF(QZ5=0,"",QZ6&IF(QZ5=1,"",LOOKUP(QZ5,$A$96:$A$113,$B$96:$B$113))) ->  | RA4: =IF(RA5=0,"",RA6&IF(RA5=1,"",LOOKUP(RA5,$A$96:$A$113,$B$96:$B$113))) ->  | RB4: =IF(RB5=0,"",RB6&IF(RB5=1,"",LOOKUP(RB5,$A$96:$A$113,$B$96:$B$113))) ->  | RC4: =IF(RC5=0,"",RC6&IF(RC5=1,"",LOOKUP(RC5,$A$96:$A$113,$B$96:$B$113))) ->  | RD4: =IF(RD5=0,"",RD6&IF(RD5=1,"",LOOKUP(RD5,$A$96:$A$113,$B$96:$B$113))) ->  | RE4: =IF(RE5=0,"",RE6&IF(RE5=1,"",LOOKUP(RE5,$A$96:$A$113,$B$96:$B$113))) ->  | RF4: =IF(RF5=0,"",RF6&IF(RF5=1,"",LOOKUP(RF5,$A$96:$A$113,$B$96:$B$113))) ->  | RG4: =IF(RG5=0,"",RG6&IF(RG5=1,"",LOOKUP(RG5,$A$96:$A$113,$B$96:$B$113))) ->  | RH4: =IF(RH5=0,"",RH6&IF(RH5=1,"",LOOKUP(RH5,$A$96:$A$113,$B$96:$B$113))) ->  | RI4: =IF(RI5=0,"",RI6&IF(RI5=1,"",LOOKUP(RI5,$A$96:$A$113,$B$96:$B$113))) ->  | RJ4: =IF(RJ5=0,"",RJ6&IF(RJ5=1,"",LOOKUP(RJ5,$A$96:$A$113,$B$96:$B$113))) ->  | RK4: =IF(RK5=0,"",RK6&IF(RK5=1,"",LOOKUP(RK5,$A$96:$A$113,$B$96:$B$113))) ->  | RL4: =IF(RL5=0,"",RL6&IF(RL5=1,"",LOOKUP(RL5,$A$96:$A$113,$B$96:$B$113))) ->  | RM4: =IF(RM5=0,"",RM6&IF(RM5=1,"",LOOKUP(RM5,$A$96:$A$113,$B$96:$B$113))) ->  | RN4: =IF(RN5=0,"",RN6&IF(RN5=1,"",LOOKUP(RN5,$A$96:$A$113,$B$96:$B$113))) ->  | RO4: =IF(RO5=0,"",RO6&IF(RO5=1,"",LOOKUP(RO5,$A$96:$A$113,$B$96:$B$113))) ->  | RP4: =IF(RP5=0,"",RP6&IF(RP5=1,"",LOOKUP(RP5,$A$96:$A$113,$B$96:$B$113))) ->  | RQ4: =IF(RQ5=0,"",RQ6&IF(RQ5=1,"",LOOKUP(RQ5,$A$96:$A$113,$B$96:$B$113))) ->  | RR4: =IF(RR5=0,"",RR6&IF(RR5=1,"",LOOKUP(RR5,$A$96:$A$113,$B$96:$B$113))) ->  | RS4: =IF(RS5=0,"",RS6&IF(RS5=1,"",LOOKUP(RS5,$A$96:$A$113,$B$96:$B$113))) ->  | RT4: =IF(RT5=0,"",RT6&IF(RT5=1,"",LOOKUP(RT5,$A$96:$A$113,$B$96:$B$113))) ->  | RU4: =IF(RU5=0,"",RU6&IF(RU5=1,"",LOOKUP(RU5,$A$96:$A$113,$B$96:$B$113))) ->  | RV4: =IF(RV5=0,"",RV6&IF(RV5=1,"",LOOKUP(RV5,$A$96:$A$113,$B$96:$B$113))) ->  | RW4: =IF(RW5=0,"",RW6&IF(RW5=1,"",LOOKUP(RW5,$A$96:$A$113,$B$96:$B$113))) ->  | RX4: =IF(RX5=0,"",RX6&IF(RX5=1,"",LOOKUP(RX5,$A$96:$A$113,$B$96:$B$113))) ->  | RY4: =IF(RY5=0,"",RY6&IF(RY5=1,"",LOOKUP(RY5,$A$96:$A$113,$B$96:$B$113))) ->  | RZ4: =IF(RZ5=0,"",RZ6&IF(RZ5=1,"",LOOKUP(RZ5,$A$96:$A$113,$B$96:$B$113))) ->  | SA4: =IF(SA5=0,"",SA6&IF(SA5=1,"",LOOKUP(SA5,$A$96:$A$113,$B$96:$B$113))) ->  | SB4: =IF(SB5=0,"",SB6&IF(SB5=1,"",LOOKUP(SB5,$A$96:$A$113,$B$96:$B$113))) ->  | SC4: =IF(SC5=0,"",SC6&IF(SC5=1,"",LOOKUP(SC5,$A$96:$A$113,$B$96:$B$113))) ->  | SD4: =IF(SD5=0,"",SD6&IF(SD5=1,"",LOOKUP(SD5,$A$96:$A$113,$B$96:$B$113))) ->  | SE4: =IF(SE5=0,"",SE6&IF(SE5=1,"",LOOKUP(SE5,$A$96:$A$113,$B$96:$B$113))) ->  | SF4: =IF(SF5=0,"",SF6&IF(SF5=1,"",LOOKUP(SF5,$A$96:$A$113,$B$96:$B$113))) ->  | SG4: =IF(SG5=0,"",SG6&IF(SG5=1,"",LOOKUP(SG5,$A$96:$A$113,$B$96:$B$113))) ->  | SH4: =IF(SH5=0,"",SH6&IF(SH5=1,"",LOOKUP(SH5,$A$96:$A$113,$B$96:$B$113))) ->  | SI4: =IF(SI5=0,"",SI6&IF(SI5=1,"",LOOKUP(SI5,$A$96:$A$113,$B$96:$B$113))) ->  | SJ4: =IF(SJ5=0,"",SJ6&IF(SJ5=1,"",LOOKUP(SJ5,$A$96:$A$113,$B$96:$B$113))) ->  | SK4: =IF(SK5=0,"",SK6&IF(SK5=1,"",LOOKUP(SK5,$A$96:$A$113,$B$96:$B$113))) ->  | SL4: =IF(SL5=0,"",SL6&IF(SL5=1,"",LOOKUP(SL5,$A$96:$A$113,$B$96:$B$113))) ->  | SM4: =IF(SM5=0,"",SM6&IF(SM5=1,"",LOOKUP(SM5,$A$96:$A$113,$B$96:$B$113))) ->  | SN4: =IF(SN5=0,"",SN6&IF(SN5=1,"",LOOKUP(SN5,$A$96:$A$113,$B$96:$B$113))) ->  | SO4: =IF(SO5=0,"",SO6&IF(SO5=1,"",LOOKUP(SO5,$A$96:$A$113,$B$96:$B$113))) ->  | SP4: =IF(SP5=0,"",SP6&IF(SP5=1,"",LOOKUP(SP5,$A$96:$A$113,$B$96:$B$113))) ->  | SQ4: =IF(SQ5=0,"",SQ6&IF(SQ5=1,"",LOOKUP(SQ5,$A$96:$A$113,$B$96:$B$113))) ->  | SR4: =IF(SR5=0,"",SR6&IF(SR5=1,"",LOOKUP(SR5,$A$96:$A$113,$B$96:$B$113))) ->  | SS4: =IF(SS5=0,"",SS6&IF(SS5=1,"",LOOKUP(SS5,$A$96:$A$113,$B$96:$B$113))) ->  | ST4: =IF(ST5=0,"",ST6&IF(ST5=1,"",LOOKUP(ST5,$A$96:$A$113,$B$96:$B$113))) ->  | SU4: =IF(SU5=0,"",SU6&IF(SU5=1,"",LOOKUP(SU5,$A$96:$A$113,$B$96:$B$113))) ->  | SV4: =IF(SV5=0,"",SV6&IF(SV5=1,"",LOOKUP(SV5,$A$96:$A$113,$B$96:$B$113))) ->  | SW4: =IF(SW5=0,"",SW6&IF(SW5=1,"",LOOKUP(SW5,$A$96:$A$113,$B$96:$B$113))) ->  | SX4: =IF(SX5=0,"",SX6&IF(SX5=1,"",LOOKUP(SX5,$A$96:$A$113,$B$96:$B$113))) ->  | SY4: =IF(SY5=0,"",SY6&IF(SY5=1,"",LOOKUP(SY5,$A$96:$A$113,$B$96:$B$113))) ->  | SZ4: =IF(SZ5=0,"",SZ6&IF(SZ5=1,"",LOOKUP(SZ5,$A$96:$A$113,$B$96:$B$113))) ->  | TA4: =IF(TA5=0,"",TA6&IF(TA5=1,"",LOOKUP(TA5,$A$96:$A$113,$B$96:$B$113))) ->  | TB4: =IF(TB5=0,"",TB6&IF(TB5=1,"",LOOKUP(TB5,$A$96:$A$113,$B$96:$B$113))) ->  | TC4: =IF(TC5=0,"",TC6&IF(TC5=1,"",LOOKUP(TC5,$A$96:$A$113,$B$96:$B$113))) ->  | TD4: =IF(TD5=0,"",TD6&IF(TD5=1,"",LOOKUP(TD5,$A$96:$A$113,$B$96:$B$113))) ->  | TE4: =IF(TE5=0,"",TE6&IF(TE5=1,"",LOOKUP(TE5,$A$96:$A$113,$B$96:$B$113))) ->  | TF4: =IF(TF5=0,"",TF6&IF(TF5=1,"",LOOKUP(TF5,$A$96:$A$113,$B$96:$B$113))) ->  | TG4: =IF(TG5=0,"",TG6&IF(TG5=1,"",LOOKUP(TG5,$A$96:$A$113,$B$96:$B$113))) ->  | TH4: =IF(TH5=0,"",TH6&IF(TH5=1,"",LOOKUP(TH5,$A$96:$A$113,$B$96:$B$113))) ->  | TI4: =IF(TI5=0,"",TI6&IF(TI5=1,"",LOOKUP(TI5,$A$96:$A$113,$B$96:$B$113))) ->  | TJ4: =IF(TJ5=0,"",TJ6&IF(TJ5=1,"",LOOKUP(TJ5,$A$96:$A$113,$B$96:$B$113))) ->  | TK4: =IF(TK5=0,"",TK6&IF(TK5=1,"",LOOKUP(TK5,$A$96:$A$113,$B$96:$B$113))) ->  | TL4: =IF(TL5=0,"",TL6&IF(TL5=1,"",LOOKUP(TL5,$A$96:$A$113,$B$96:$B$113))) ->  | TM4: =IF(TM5=0,"",TM6&IF(TM5=1,"",LOOKUP(TM5,$A$96:$A$113,$B$96:$B$113))) ->  | TN4: =IF(TN5=0,"",TN6&IF(TN5=1,"",LOOKUP(TN5,$A$96:$A$113,$B$96:$B$113))) ->  | TO4: =IF(TO5=0,"",TO6&IF(TO5=1,"",LOOKUP(TO5,$A$96:$A$113,$B$96:$B$113))) ->  | TP4: =IF(TP5=0,"",TP6&IF(TP5=1,"",LOOKUP(TP5,$A$96:$A$113,$B$96:$B$113))) ->  | TQ4: =IF(TQ5=0,"",TQ6&IF(TQ5=1,"",LOOKUP(TQ5,$A$96:$A$113,$B$96:$B$113))) ->  | TR4: =IF(TR5=0,"",TR6&IF(TR5=1,"",LOOKUP(TR5,$A$96:$A$113,$B$96:$B$113))) ->  | TS4: =IF(TS5=0,"",TS6&IF(TS5=1,"",LOOKUP(TS5,$A$96:$A$113,$B$96:$B$113))) ->  | TT4: =IF(TT5=0,"",TT6&IF(TT5=1,"",LOOKUP(TT5,$A$96:$A$113,$B$96:$B$113))) ->  | TU4: =IF(TU5=0,"",TU6&IF(TU5=1,"",LOOKUP(TU5,$A$96:$A$113,$B$96:$B$113))) ->  | TV4: =IF(TV5=0,"",TV6&IF(TV5=1,"",LOOKUP(TV5,$A$96:$A$113,$B$96:$B$113))) ->  | TW4: =IF(TW5=0,"",TW6&IF(TW5=1,"",LOOKUP(TW5,$A$96:$A$113,$B$96:$B$113))) ->  | TX4: =IF(TX5=0,"",TX6&IF(TX5=1,"",LOOKUP(TX5,$A$96:$A$113,$B$96:$B$113))) ->  | TY4: =IF(TY5=0,"",TY6&IF(TY5=1,"",LOOKUP(TY5,$A$96:$A$113,$B$96:$B$113))) ->  | TZ4: =IF(TZ5=0,"",TZ6&IF(TZ5=1,"",LOOKUP(TZ5,$A$96:$A$113,$B$96:$B$113))) ->  | UA4: =IF(UA5=0,"",UA6&IF(UA5=1,"",LOOKUP(UA5,$A$96:$A$113,$B$96:$B$113))) ->  | UB4: =IF(UB5=0,"",UB6&IF(UB5=1,"",LOOKUP(UB5,$A$96:$A$113,$B$96:$B$113))) ->  | UC4: =IF(UC5=0,"",UC6&IF(UC5=1,"",LOOKUP(UC5,$A$96:$A$113,$B$96:$B$113))) ->  | UD4: =IF(UD5=0,"",UD6&IF(UD5=1,"",LOOKUP(UD5,$A$96:$A$113,$B$96:$B$113))) ->  | UE4: =IF(UE5=0,"",UE6&IF(UE5=1,"",LOOKUP(UE5,$A$96:$A$113,$B$96:$B$113))) ->  | UF4: =IF(UF5=0,"",UF6&IF(UF5=1,"",LOOKUP(UF5,$A$96:$A$113,$B$96:$B$113))) ->  | UG4: =IF(UG5=0,"",UG6&IF(UG5=1,"",LOOKUP(UG5,$A$96:$A$113,$B$96:$B$113))) ->  | UH4: =IF(UH5=0,"",UH6&IF(UH5=1,"",LOOKUP(UH5,$A$96:$A$113,$B$96:$B$113))) ->  | UI4: =IF(UI5=0,"",UI6&IF(UI5=1,"",LOOKUP(UI5,$A$96:$A$113,$B$96:$B$113))) ->  | UJ4: =IF(UJ5=0,"",UJ6&IF(UJ5=1,"",LOOKUP(UJ5,$A$96:$A$113,$B$96:$B$113))) ->  | UK4: =IF(UK5=0,"",UK6&IF(UK5=1,"",LOOKUP(UK5,$A$96:$A$113,$B$96:$B$113))) ->  | UL4: =IF(UL5=0,"",UL6&IF(UL5=1,"",LOOKUP(UL5,$A$96:$A$113,$B$96:$B$113))) ->  | UM4: =IF(UM5=0,"",UM6&IF(UM5=1,"",LOOKUP(UM5,$A$96:$A$113,$B$96:$B$113))) ->  | UN4: =IF(UN5=0,"",UN6&IF(UN5=1,"",LOOKUP(UN5,$A$96:$A$113,$B$96:$B$113))) ->  | UO4: =IF(UO5=0,"",UO6&IF(UO5=1,"",LOOKUP(UO5,$A$96:$A$113,$B$96:$B$113))) ->  | UP4: =IF(UP5=0,"",UP6&IF(UP5=1,"",LOOKUP(UP5,$A$96:$A$113,$B$96:$B$113))) ->  | UQ4: =IF(UQ5=0,"",UQ6&IF(UQ5=1,"",LOOKUP(UQ5,$A$96:$A$113,$B$96:$B$113))) ->  | UR4: =IF(UR5=0,"",UR6&IF(UR5=1,"",LOOKUP(UR5,$A$96:$A$113,$B$96:$B$113))) ->  | US4: =IF(US5=0,"",US6&IF(US5=1,"",LOOKUP(US5,$A$96:$A$113,$B$96:$B$113))) ->  | UT4: =IF(UT5=0,"",UT6&IF(UT5=1,"",LOOKUP(UT5,$A$96:$A$113,$B$96:$B$113))) ->  | UU4: =IF(UU5=0,"",UU6&IF(UU5=1,"",LOOKUP(UU5,$A$96:$A$113,$B$96:$B$113))) ->  | UV4: =IF(UV5=0,"",UV6&IF(UV5=1,"",LOOKUP(UV5,$A$96:$A$113,$B$96:$B$113))) ->  | UW4: =IF(UW5=0,"",UW6&IF(UW5=1,"",LOOKUP(UW5,$A$96:$A$113,$B$96:$B$113))) ->  | UX4: =IF(UX5=0,"",UX6&IF(UX5=1,"",LOOKUP(UX5,$A$96:$A$113,$B$96:$B$113))) ->  | UY4: =IF(UY5=0,"",UY6&IF(UY5=1,"",LOOKUP(UY5,$A$96:$A$113,$B$96:$B$113))) ->  | UZ4: =IF(UZ5=0,"",UZ6&IF(UZ5=1,"",LOOKUP(UZ5,$A$96:$A$113,$B$96:$B$113))) ->  | VA4: =IF(VA5=0,"",VA6&IF(VA5=1,"",LOOKUP(VA5,$A$96:$A$113,$B$96:$B$113))) ->  | VB4: =IF(VB5=0,"",VB6&IF(VB5=1,"",LOOKUP(VB5,$A$96:$A$113,$B$96:$B$113))) ->  | VC4: =IF(VC5=0,"",VC6&IF(VC5=1,"",LOOKUP(VC5,$A$96:$A$113,$B$96:$B$113))) ->  | VD4: =IF(VD5=0,"",VD6&IF(VD5=1,"",LOOKUP(VD5,$A$96:$A$113,$B$96:$B$113))) ->  | VE4: =IF(VE5=0,"",VE6&IF(VE5=1,"",LOOKUP(VE5,$A$96:$A$113,$B$96:$B$113))) ->  | VF4: =IF(VF5=0,"",VF6&IF(VF5=1,"",LOOKUP(VF5,$A$96:$A$113,$B$96:$B$113))) ->  | VG4: =IF(VG5=0,"",VG6&IF(VG5=1,"",LOOKUP(VG5,$A$96:$A$113,$B$96:$B$113))) ->  | VH4: =IF(VH5=0,"",VH6&IF(VH5=1,"",LOOKUP(VH5,$A$96:$A$113,$B$96:$B$113))) ->  | VI4: =IF(VI5=0,"",VI6&IF(VI5=1,"",LOOKUP(VI5,$A$96:$A$113,$B$96:$B$113))) ->  | VJ4: =IF(VJ5=0,"",VJ6&IF(VJ5=1,"",LOOKUP(VJ5,$A$96:$A$113,$B$96:$B$113))) ->  | VK4: =IF(VK5=0,"",VK6&IF(VK5=1,"",LOOKUP(VK5,$A$96:$A$113,$B$96:$B$113))) ->  | VL4: =IF(VL5=0,"",VL6&IF(VL5=1,"",LOOKUP(VL5,$A$96:$A$113,$B$96:$B$113))) ->  | VM4: =IF(VM5=0,"",VM6&IF(VM5=1,"",LOOKUP(VM5,$A$96:$A$113,$B$96:$B$113))) ->  | VN4: =IF(VN5=0,"",VN6&IF(VN5=1,"",LOOKUP(VN5,$A$96:$A$113,$B$96:$B$113))) ->  | VO4: =IF(VO5=0,"",VO6&IF(VO5=1,"",LOOKUP(VO5,$A$96:$A$113,$B$96:$B$113))) ->  | VP4: =IF(VP5=0,"",VP6&IF(VP5=1,"",LOOKUP(VP5,$A$96:$A$113,$B$96:$B$113))) ->  | VQ4: =IF(VQ5=0,"",VQ6&IF(VQ5=1,"",LOOKUP(VQ5,$A$96:$A$113,$B$96:$B$113))) ->  | VR4: =IF(VR5=0,"",VR6&IF(VR5=1,"",LOOKUP(VR5,$A$96:$A$113,$B$96:$B$113))) ->  | VS4: =IF(VS5=0,"",VS6&IF(VS5=1,"",LOOKUP(VS5,$A$96:$A$113,$B$96:$B$113))) ->  | VT4: =IF(VT5=0,"",VT6&IF(VT5=1,"",LOOKUP(VT5,$A$96:$A$113,$B$96:$B$113))) ->  | VU4: =IF(VU5=0,"",VU6&IF(VU5=1,"",LOOKUP(VU5,$A$96:$A$113,$B$96:$B$113))) ->  | VV4: =IF(VV5=0,"",VV6&IF(VV5=1,"",LOOKUP(VV5,$A$96:$A$113,$B$96:$B$113))) ->  | VW4: =IF(VW5=0,"",VW6&IF(VW5=1,"",LOOKUP(VW5,$A$96:$A$113,$B$96:$B$113))) ->  | VX4: =IF(VX5=0,"",VX6&IF(VX5=1,"",LOOKUP(VX5,$A$96:$A$113,$B$96:$B$113))) ->  | VY4: =IF(VY5=0,"",VY6&IF(VY5=1,"",LOOKUP(VY5,$A$96:$A$113,$B$96:$B$113))) ->  | VZ4: =IF(VZ5=0,"",VZ6&IF(VZ5=1,"",LOOKUP(VZ5,$A$96:$A$113,$B$96:$B$113))) ->  | WA4: =IF(WA5=0,"",WA6&IF(WA5=1,"",LOOKUP(WA5,$A$96:$A$113,$B$96:$B$113))) ->  | WB4: =IF(WB5=0,"",WB6&IF(WB5=1,"",LOOKUP(WB5,$A$96:$A$113,$B$96:$B$113))) ->  | WC4: =IF(WC5=0,"",WC6&IF(WC5=1,"",LOOKUP(WC5,$A$96:$A$113,$B$96:$B$113))) ->  | WD4: =IF(WD5=0,"",WD6&IF(WD5=1,"",LOOKUP(WD5,$A$96:$A$113,$B$96:$B$113))) ->  | WE4: =IF(WE5=0,"",WE6&IF(WE5=1,"",LOOKUP(WE5,$A$96:$A$113,$B$96:$B$113))) ->  | WF4: =IF(WF5=0,"",WF6&IF(WF5=1,"",LOOKUP(WF5,$A$96:$A$113,$B$96:$B$113))) ->  | WG4: =IF(WG5=0,"",WG6&IF(WG5=1,"",LOOKUP(WG5,$A$96:$A$113,$B$96:$B$113))) ->  | WH4: =IF(WH5=0,"",WH6&IF(WH5=1,"",LOOKUP(WH5,$A$96:$A$113,$B$96:$B$113))) ->  | WI4: =IF(WI5=0,"",WI6&IF(WI5=1,"",LOOKUP(WI5,$A$96:$A$113,$B$96:$B$113))) ->  | WJ4: =IF(WJ5=0,"",WJ6&IF(WJ5=1,"",LOOKUP(WJ5,$A$96:$A$113,$B$96:$B$113))) ->  | WK4: =IF(WK5=0,"",WK6&IF(WK5=1,"",LOOKUP(WK5,$A$96:$A$113,$B$96:$B$113))) ->  | WL4: =IF(WL5=0,"",WL6&IF(WL5=1,"",LOOKUP(WL5,$A$96:$A$113,$B$96:$B$113))) ->  | WM4: =IF(WM5=0,"",WM6&IF(WM5=1,"",LOOKUP(WM5,$A$96:$A$113,$B$96:$B$113))) ->  | WN4: =IF(WN5=0,"",WN6&IF(WN5=1,"",LOOKUP(WN5,$A$96:$A$113,$B$96:$B$113))) ->  | WO4: =IF(WO5=0,"",WO6&IF(WO5=1,"",LOOKUP(WO5,$A$96:$A$113,$B$96:$B$113))) ->  | WP4: =IF(WP5=0,"",WP6&IF(WP5=1,"",LOOKUP(WP5,$A$96:$A$113,$B$96:$B$113))) ->  | WQ4: =IF(WQ5=0,"",WQ6&IF(WQ5=1,"",LOOKUP(WQ5,$A$96:$A$113,$B$96:$B$113))) ->  | WR4: =IF(WR5=0,"",WR6&IF(WR5=1,"",LOOKUP(WR5,$A$96:$A$113,$B$96:$B$113))) ->  | WS4: =IF(WS5=0,"",WS6&IF(WS5=1,"",LOOKUP(WS5,$A$96:$A$113,$B$96:$B$113))) ->  | WT4: =IF(WT5=0,"",WT6&IF(WT5=1,"",LOOKUP(WT5,$A$96:$A$113,$B$96:$B$113))) ->  | WU4: =IF(WU5=0,"",WU6&IF(WU5=1,"",LOOKUP(WU5,$A$96:$A$113,$B$96:$B$113))) ->  | WV4: =IF(WV5=0,"",WV6&IF(WV5=1,"",LOOKUP(WV5,$A$96:$A$113,$B$96:$B$113))) ->  | WW4: =IF(WW5=0,"",WW6&IF(WW5=1,"",LOOKUP(WW5,$A$96:$A$113,$B$96:$B$113))) ->  | WX4: =IF(WX5=0,"",WX6&IF(WX5=1,"",LOOKUP(WX5,$A$96:$A$113,$B$96:$B$113))) ->  | WY4: =IF(WY5=0,"",WY6&IF(WY5=1,"",LOOKUP(WY5,$A$96:$A$113,$B$96:$B$113))) ->  | WZ4: =IF(WZ5=0,"",WZ6&IF(WZ5=1,"",LOOKUP(WZ5,$A$96:$A$113,$B$96:$B$113))) ->  | XA4: =IF(XA5=0,"",XA6&IF(XA5=1,"",LOOKUP(XA5,$A$96:$A$113,$B$96:$B$113))) ->  | XB4: =IF(XB5=0,"",XB6&IF(XB5=1,"",LOOKUP(XB5,$A$96:$A$113,$B$96:$B$113))) ->  | XC4: =IF(XC5=0,"",XC6&IF(XC5=1,"",LOOKUP(XC5,$A$96:$A$113,$B$96:$B$113))) ->  | XD4: =IF(XD5=0,"",XD6&IF(XD5=1,"",LOOKUP(XD5,$A$96:$A$113,$B$96:$B$113))) ->  | XE4: =IF(XE5=0,"",XE6&IF(XE5=1,"",LOOKUP(XE5,$A$96:$A$113,$B$96:$B$113))) ->  | XF4: =IF(XF5=0,"",XF6&IF(XF5=1,"",LOOKUP(XF5,$A$96:$A$113,$B$96:$B$113))) ->  | XG4: =IF(XG5=0,"",XG6&IF(XG5=1,"",LOOKUP(XG5,$A$96:$A$113,$B$96:$B$113))) ->  | XH4: =IF(XH5=0,"",XH6&IF(XH5=1,"",LOOKUP(XH5,$A$96:$A$113,$B$96:$B$113))) ->  | XI4: =IF(XI5=0,"",XI6&IF(XI5=1,"",LOOKUP(XI5,$A$96:$A$113,$B$96:$B$113))) ->  | XJ4: =IF(XJ5=0,"",XJ6&IF(XJ5=1,"",LOOKUP(XJ5,$A$96:$A$113,$B$96:$B$113))) ->  | XK4: =IF(XK5=0,"",XK6&IF(XK5=1,"",LOOKUP(XK5,$A$96:$A$113,$B$96:$B$113))) ->  | XL4: =IF(XL5=0,"",XL6&IF(XL5=1,"",LOOKUP(XL5,$A$96:$A$113,$B$96:$B$113))) ->  | XM4: =IF(XM5=0,"",XM6&IF(XM5=1,"",LOOKUP(XM5,$A$96:$A$113,$B$96:$B$113))) ->  | XN4: =IF(XN5=0,"",XN6&IF(XN5=1,"",LOOKUP(XN5,$A$96:$A$113,$B$96:$B$113))) ->  | XO4: =IF(XO5=0,"",XO6&IF(XO5=1,"",LOOKUP(XO5,$A$96:$A$113,$B$96:$B$113))) ->  | XP4: =IF(XP5=0,"",XP6&IF(XP5=1,"",LOOKUP(XP5,$A$96:$A$113,$B$96:$B$113))) ->  | XQ4: =IF(XQ5=0,"",XQ6&IF(XQ5=1,"",LOOKUP(XQ5,$A$96:$A$113,$B$96:$B$113))) ->  | XR4: =IF(XR5=0,"",XR6&IF(XR5=1,"",LOOKUP(XR5,$A$96:$A$113,$B$96:$B$113))) ->  | XS4: =IF(XS5=0,"",XS6&IF(XS5=1,"",LOOKUP(XS5,$A$96:$A$113,$B$96:$B$113))) ->  | XT4: =IF(XT5=0,"",XT6&IF(XT5=1,"",LOOKUP(XT5,$A$96:$A$113,$B$96:$B$113))) ->  | XU4: =IF(XU5=0,"",XU6&IF(XU5=1,"",LOOKUP(XU5,$A$96:$A$113,$B$96:$B$113))) ->  | XV4: =IF(XV5=0,"",XV6&IF(XV5=1,"",LOOKUP(XV5,$A$96:$A$113,$B$96:$B$113))) ->  | XW4: =IF(XW5=0,"",XW6&IF(XW5=1,"",LOOKUP(XW5,$A$96:$A$113,$B$96:$B$113))) ->  | XX4: =IF(XX5=0,"",XX6&IF(XX5=1,"",LOOKUP(XX5,$A$96:$A$113,$B$96:$B$113))) ->  | XY4: =IF(XY5=0,"",XY6&IF(XY5=1,"",LOOKUP(XY5,$A$96:$A$113,$B$96:$B$113))) ->  | XZ4: =IF(XZ5=0,"",XZ6&IF(XZ5=1,"",LOOKUP(XZ5,$A$96:$A$113,$B$96:$B$113))) ->  | YA4: =IF(YA5=0,"",YA6&IF(YA5=1,"",LOOKUP(YA5,$A$96:$A$113,$B$96:$B$113))) ->  | YB4: =IF(YB5=0,"",YB6&IF(YB5=1,"",LOOKUP(YB5,$A$96:$A$113,$B$96:$B$113))) ->  | YC4: =IF(YC5=0,"",YC6&IF(YC5=1,"",LOOKUP(YC5,$A$96:$A$113,$B$96:$B$113))) ->  | YD4: =IF(YD5=0,"",YD6&IF(YD5=1,"",LOOKUP(YD5,$A$96:$A$113,$B$96:$B$113))) ->  | YE4: =IF(YE5=0,"",YE6&IF(YE5=1,"",LOOKUP(YE5,$A$96:$A$113,$B$96:$B$113))) ->  | YF4: =IF(YF5=0,"",YF6&IF(YF5=1,"",LOOKUP(YF5,$A$96:$A$113,$B$96:$B$113))) ->  | YG4: =IF(YG5=0,"",YG6&IF(YG5=1,"",LOOKUP(YG5,$A$96:$A$113,$B$96:$B$113))) ->  | YH4: =IF(YH5=0,"",YH6&IF(YH5=1,"",LOOKUP(YH5,$A$96:$A$113,$B$96:$B$113))) ->  | YI4: =IF(YI5=0,"",YI6&IF(YI5=1,"",LOOKUP(YI5,$A$96:$A$113,$B$96:$B$113))) ->  | YJ4: =IF(YJ5=0,"",YJ6&IF(YJ5=1,"",LOOKUP(YJ5,$A$96:$A$113,$B$96:$B$113))) ->  | YK4: =IF(YK5=0,"",YK6&IF(YK5=1,"",LOOKUP(YK5,$A$96:$A$113,$B$96:$B$113))) ->  | YL4: =IF(YL5=0,"",YL6&IF(YL5=1,"",LOOKUP(YL5,$A$96:$A$113,$B$96:$B$113))) ->  | YM4: =IF(YM5=0,"",YM6&IF(YM5=1,"",LOOKUP(YM5,$A$96:$A$113,$B$96:$B$113))) ->  | YN4: =IF(YN5=0,"",YN6&IF(YN5=1,"",LOOKUP(YN5,$A$96:$A$113,$B$96:$B$113))) ->  | YO4: =IF(YO5=0,"",YO6&IF(YO5=1,"",LOOKUP(YO5,$A$96:$A$113,$B$96:$B$113))) ->  | YP4: =IF(YP5=0,"",YP6&IF(YP5=1,"",LOOKUP(YP5,$A$96:$A$113,$B$96:$B$113))) ->  | YQ4: =IF(YQ5=0,"",YQ6&IF(YQ5=1,"",LOOKUP(YQ5,$A$96:$A$113,$B$96:$B$113))) ->  | YR4: =IF(YR5=0,"",YR6&IF(YR5=1,"",LOOKUP(YR5,$A$96:$A$113,$B$96:$B$113))) ->  | YS4: =IF(YS5=0,"",YS6&IF(YS5=1,"",LOOKUP(YS5,$A$96:$A$113,$B$96:$B$113))) ->  | YT4: =IF(YT5=0,"",YT6&IF(YT5=1,"",LOOKUP(YT5,$A$96:$A$113,$B$96:$B$113))) ->  | YU4: =IF(YU5=0,"",YU6&IF(YU5=1,"",LOOKUP(YU5,$A$96:$A$113,$B$96:$B$113))) ->  | YV4: =IF(YV5=0,"",YV6&IF(YV5=1,"",LOOKUP(YV5,$A$96:$A$113,$B$96:$B$113))) ->  | YW4: =IF(YW5=0,"",YW6&IF(YW5=1,"",LOOKUP(YW5,$A$96:$A$113,$B$96:$B$113))) ->  | YX4: =IF(YX5=0,"",YX6&IF(YX5=1,"",LOOKUP(YX5,$A$96:$A$113,$B$96:$B$113))) ->  | YY4: =IF(YY5=0,"",YY6&IF(YY5=1,"",LOOKUP(YY5,$A$96:$A$113,$B$96:$B$113))) ->  | YZ4: =IF(YZ5=0,"",YZ6&IF(YZ5=1,"",LOOKUP(YZ5,$A$96:$A$113,$B$96:$B$113))) ->  | ZA4: =IF(ZA5=0,"",ZA6&IF(ZA5=1,"",LOOKUP(ZA5,$A$96:$A$113,$B$96:$B$113))) ->  | ZB4: =IF(ZB5=0,"",ZB6&IF(ZB5=1,"",LOOKUP(ZB5,$A$96:$A$113,$B$96:$B$113))) ->  | ZC4: =IF(ZC5=0,"",ZC6&IF(ZC5=1,"",LOOKUP(ZC5,$A$96:$A$113,$B$96:$B$113))) ->  | ZD4: =IF(ZD5=0,"",ZD6&IF(ZD5=1,"",LOOKUP(ZD5,$A$96:$A$113,$B$96:$B$113))) ->  | ZE4: =IF(ZE5=0,"",ZE6&IF(ZE5=1,"",LOOKUP(ZE5,$A$96:$A$113,$B$96:$B$113))) ->  | ZF4: =IF(ZF5=0,"",ZF6&IF(ZF5=1,"",LOOKUP(ZF5,$A$96:$A$113,$B$96:$B$113))) ->  | ZG4: =IF(ZG5=0,"",ZG6&IF(ZG5=1,"",LOOKUP(ZG5,$A$96:$A$113,$B$96:$B$113))) ->  | ZH4: =IF(ZH5=0,"",ZH6&IF(ZH5=1,"",LOOKUP(ZH5,$A$96:$A$113,$B$96:$B$113))) ->  | ZI4: =IF(ZI5=0,"",ZI6&IF(ZI5=1,"",LOOKUP(ZI5,$A$96:$A$113,$B$96:$B$113))) ->  | ZJ4: =IF(ZJ5=0,"",ZJ6&IF(ZJ5=1,"",LOOKUP(ZJ5,$A$96:$A$113,$B$96:$B$113))) ->  | ZK4: =IF(ZK5=0,"",ZK6&IF(ZK5=1,"",LOOKUP(ZK5,$A$96:$A$113,$B$96:$B$113))) ->  | ZL4: =IF(ZL5=0,"",ZL6&IF(ZL5=1,"",LOOKUP(ZL5,$A$96:$A$113,$B$96:$B$113))) ->  | ZM4: =IF(ZM5=0,"",ZM6&IF(ZM5=1,"",LOOKUP(ZM5,$A$96:$A$113,$B$96:$B$113))) ->  | ZN4: =IF(ZN5=0,"",ZN6&IF(ZN5=1,"",LOOKUP(ZN5,$A$96:$A$113,$B$96:$B$113))) ->  | ZO4: =IF(ZO5=0,"",ZO6&IF(ZO5=1,"",LOOKUP(ZO5,$A$96:$A$113,$B$96:$B$113))) ->  | ZP4: =IF(ZP5=0,"",ZP6&IF(ZP5=1,"",LOOKUP(ZP5,$A$96:$A$113,$B$96:$B$113))) ->  | ZQ4: =IF(ZQ5=0,"",ZQ6&IF(ZQ5=1,"",LOOKUP(ZQ5,$A$96:$A$113,$B$96:$B$113))) ->  | ZR4: =IF(ZR5=0,"",ZR6&IF(ZR5=1,"",LOOKUP(ZR5,$A$96:$A$113,$B$96:$B$113))) ->  | ZS4: =IF(ZS5=0,"",ZS6&IF(ZS5=1,"",LOOKUP(ZS5,$A$96:$A$113,$B$96:$B$113))) ->  | ZT4: =IF(ZT5=0,"",ZT6&IF(ZT5=1,"",LOOKUP(ZT5,$A$96:$A$113,$B$96:$B$113))) ->  | ZU4: =IF(ZU5=0,"",ZU6&IF(ZU5=1,"",LOOKUP(ZU5,$A$96:$A$113,$B$96:$B$113))) ->  | ZV4: =IF(ZV5=0,"",ZV6&IF(ZV5=1,"",LOOKUP(ZV5,$A$96:$A$113,$B$96:$B$113))) ->  | ZW4: =IF(ZW5=0,"",ZW6&IF(ZW5=1,"",LOOKUP(ZW5,$A$96:$A$113,$B$96:$B$113))) ->  | ZX4: =IF(ZX5=0,"",ZX6&IF(ZX5=1,"",LOOKUP(ZX5,$A$96:$A$113,$B$96:$B$113))) ->  | ZY4: =IF(ZY5=0,"",ZY6&IF(ZY5=1,"",LOOKUP(ZY5,$A$96:$A$113,$B$96:$B$113))) ->  | ZZ4: =IF(ZZ5=0,"",ZZ6&IF(ZZ5=1,"",LOOKUP(ZZ5,$A$96:$A$113,$B$96:$B$113))) ->  | AAA4: =IF(AAA5=0,"",AAA6&IF(AAA5=1,"",LOOKUP(AAA5,$A$96:$A$113,$B$96:$B$113))) ->  | AAB4: =IF(AAB5=0,"",AAB6&IF(AAB5=1,"",LOOKUP(AAB5,$A$96:$A$113,$B$96:$B$113))) ->  | AAC4: =IF(AAC5=0,"",AAC6&IF(AAC5=1,"",LOOKUP(AAC5,$A$96:$A$113,$B$96:$B$113))) ->  | AAD4: =IF(AAD5=0,"",AAD6&IF(AAD5=1,"",LOOKUP(AAD5,$A$96:$A$113,$B$96:$B$113))) ->  | AAE4: =IF(AAE5=0,"",AAE6&IF(AAE5=1,"",LOOKUP(AAE5,$A$96:$A$113,$B$96:$B$113))) ->  | AAF4: =IF(AAF5=0,"",AAF6&IF(AAF5=1,"",LOOKUP(AAF5,$A$96:$A$113,$B$96:$B$113))) ->  | AAG4: =IF(AAG5=0,"",AAG6&IF(AAG5=1,"",LOOKUP(AAG5,$A$96:$A$113,$B$96:$B$113))) ->  | AAH4: =IF(AAH5=0,"",AAH6&IF(AAH5=1,"",LOOKUP(AAH5,$A$96:$A$113,$B$96:$B$113))) ->  | AAI4: =IF(AAI5=0,"",AAI6&IF(AAI5=1,"",LOOKUP(AAI5,$A$96:$A$113,$B$96:$B$113))) ->  | AAJ4: =IF(AAJ5=0,"",AAJ6&IF(AAJ5=1,"",LOOKUP(AAJ5,$A$96:$A$113,$B$96:$B$113))) ->  | AAK4: =IF(AAK5=0,"",AAK6&IF(AAK5=1,"",LOOKUP(AAK5,$A$96:$A$113,$B$96:$B$113))) ->  | AAL4: =IF(AAL5=0,"",AAL6&IF(AAL5=1,"",LOOKUP(AAL5,$A$96:$A$113,$B$96:$B$113))) ->  | AAM4: =IF(AAM5=0,"",AAM6&IF(AAM5=1,"",LOOKUP(AAM5,$A$96:$A$113,$B$96:$B$113))) ->  | AAN4: =IF(AAN5=0,"",AAN6&IF(AAN5=1,"",LOOKUP(AAN5,$A$96:$A$113,$B$96:$B$113))) ->  | AAO4: =IF(AAO5=0,"",AAO6&IF(AAO5=1,"",LOOKUP(AAO5,$A$96:$A$113,$B$96:$B$113))) ->  | AAP4: =IF(AAP5=0,"",AAP6&IF(AAP5=1,"",LOOKUP(AAP5,$A$96:$A$113,$B$96:$B$113))) ->  | AAQ4: =IF(AAQ5=0,"",AAQ6&IF(AAQ5=1,"",LOOKUP(AAQ5,$A$96:$A$113,$B$96:$B$113))) ->  | AAR4: =IF(AAR5=0,"",AAR6&IF(AAR5=1,"",LOOKUP(AAR5,$A$96:$A$113,$B$96:$B$113))) ->  | AAS4: =IF(AAS5=0,"",AAS6&IF(AAS5=1,"",LOOKUP(AAS5,$A$96:$A$113,$B$96:$B$113))) ->  | AAT4: =IF(AAT5=0,"",AAT6&IF(AAT5=1,"",LOOKUP(AAT5,$A$96:$A$113,$B$96:$B$113))) ->  | AAU4: =IF(AAU5=0,"",AAU6&IF(AAU5=1,"",LOOKUP(AAU5,$A$96:$A$113,$B$96:$B$113))) ->  | AAV4: =IF(AAV5=0,"",AAV6&IF(AAV5=1,"",LOOKUP(AAV5,$A$96:$A$113,$B$96:$B$113))) ->  | AAW4: =IF(AAW5=0,"",AAW6&IF(AAW5=1,"",LOOKUP(AAW5,$A$96:$A$113,$B$96:$B$113))) ->  | AAX4: =IF(AAX5=0,"",AAX6&IF(AAX5=1,"",LOOKUP(AAX5,$A$96:$A$113,$B$96:$B$113))) ->  | AAY4: =IF(AAY5=0,"",AAY6&IF(AAY5=1,"",LOOKUP(AAY5,$A$96:$A$113,$B$96:$B$113))) ->  | AAZ4: =IF(AAZ5=0,"",AAZ6&IF(AAZ5=1,"",LOOKUP(AAZ5,$A$96:$A$113,$B$96:$B$113))) ->  | ABA4: =IF(ABA5=0,"",ABA6&IF(ABA5=1,"",LOOKUP(ABA5,$A$96:$A$113,$B$96:$B$113))) ->  | ABB4: =IF(ABB5=0,"",ABB6&IF(ABB5=1,"",LOOKUP(ABB5,$A$96:$A$113,$B$96:$B$113))) ->  | ABC4: =IF(ABC5=0,"",ABC6&IF(ABC5=1,"",LOOKUP(ABC5,$A$96:$A$113,$B$96:$B$113))) ->  | ABD4: =IF(ABD5=0,"",ABD6&IF(ABD5=1,"",LOOKUP(ABD5,$A$96:$A$113,$B$96:$B$113))) ->  | ABE4: =IF(ABE5=0,"",ABE6&IF(ABE5=1,"",LOOKUP(ABE5,$A$96:$A$113,$B$96:$B$113))) ->  | ABF4: =IF(ABF5=0,"",ABF6&IF(ABF5=1,"",LOOKUP(ABF5,$A$96:$A$113,$B$96:$B$113))) ->  | ABG4: =IF(ABG5=0,"",ABG6&IF(ABG5=1,"",LOOKUP(ABG5,$A$96:$A$113,$B$96:$B$113))) ->  | ABH4: =IF(ABH5=0,"",ABH6&IF(ABH5=1,"",LOOKUP(ABH5,$A$96:$A$113,$B$96:$B$113))) ->  | ABI4: =IF(ABI5=0,"",ABI6&IF(ABI5=1,"",LOOKUP(ABI5,$A$96:$A$113,$B$96:$B$113))) ->  | ABJ4: =IF(ABJ5=0,"",ABJ6&IF(ABJ5=1,"",LOOKUP(ABJ5,$A$96:$A$113,$B$96:$B$113))) ->  | ABK4: =IF(ABK5=0,"",ABK6&IF(ABK5=1,"",LOOKUP(ABK5,$A$96:$A$113,$B$96:$B$113))) ->  | ABL4: =IF(ABL5=0,"",ABL6&IF(ABL5=1,"",LOOKUP(ABL5,$A$96:$A$113,$B$96:$B$113))) ->  | ABM4: =IF(ABM5=0,"",ABM6&IF(ABM5=1,"",LOOKUP(ABM5,$A$96:$A$113,$B$96:$B$113))) ->  | ABN4: =IF(ABN5=0,"",ABN6&IF(ABN5=1,"",LOOKUP(ABN5,$A$96:$A$113,$B$96:$B$113))) ->  | ABO4: =IF(ABO5=0,"",ABO6&IF(ABO5=1,"",LOOKUP(ABO5,$A$96:$A$113,$B$96:$B$113))) ->  | ABP4: =IF(ABP5=0,"",ABP6&IF(ABP5=1,"",LOOKUP(ABP5,$A$96:$A$113,$B$96:$B$113))) ->  | ABQ4: =IF(ABQ5=0,"",ABQ6&IF(ABQ5=1,"",LOOKUP(ABQ5,$A$96:$A$113,$B$96:$B$113))) ->  | ABR4: =IF(ABR5=0,"",ABR6&IF(ABR5=1,"",LOOKUP(ABR5,$A$96:$A$113,$B$96:$B$113))) ->  | ABS4: =IF(ABS5=0,"",ABS6&IF(ABS5=1,"",LOOKUP(ABS5,$A$96:$A$113,$B$96:$B$113))) ->  | ABT4: =IF(ABT5=0,"",ABT6&IF(ABT5=1,"",LOOKUP(ABT5,$A$96:$A$113,$B$96:$B$113))) ->  | ABU4: =IF(ABU5=0,"",ABU6&IF(ABU5=1,"",LOOKUP(ABU5,$A$96:$A$113,$B$96:$B$113))) ->  | ABV4: =IF(ABV5=0,"",ABV6&IF(ABV5=1,"",LOOKUP(ABV5,$A$96:$A$113,$B$96:$B$113))) ->  | ABW4: =IF(ABW5=0,"",ABW6&IF(ABW5=1,"",LOOKUP(ABW5,$A$96:$A$113,$B$96:$B$113))) ->  | ABX4: =IF(ABX5=0,"",ABX6&IF(ABX5=1,"",LOOKUP(ABX5,$A$96:$A$113,$B$96:$B$113))) ->  | ABY4: =IF(ABY5=0,"",ABY6&IF(ABY5=1,"",LOOKUP(ABY5,$A$96:$A$113,$B$96:$B$113))) ->  | ABZ4: =IF(ABZ5=0,"",ABZ6&IF(ABZ5=1,"",LOOKUP(ABZ5,$A$96:$A$113,$B$96:$B$113))) ->  | ACA4: =IF(ACA5=0,"",ACA6&IF(ACA5=1,"",LOOKUP(ACA5,$A$96:$A$113,$B$96:$B$113))) ->  | ACB4: =IF(ACB5=0,"",ACB6&IF(ACB5=1,"",LOOKUP(ACB5,$A$96:$A$113,$B$96:$B$113))) ->  | ACC4: =IF(ACC5=0,"",ACC6&IF(ACC5=1,"",LOOKUP(ACC5,$A$96:$A$113,$B$96:$B$113))) ->  | ACD4: =IF(ACD5=0,"",ACD6&IF(ACD5=1,"",LOOKUP(ACD5,$A$96:$A$113,$B$96:$B$113))) ->  | ACE4: =IF(ACE5=0,"",ACE6&IF(ACE5=1,"",LOOKUP(ACE5,$A$96:$A$113,$B$96:$B$113))) ->  | ACF4: =IF(ACF5=0,"",ACF6&IF(ACF5=1,"",LOOKUP(ACF5,$A$96:$A$113,$B$96:$B$113))) ->  | ACG4: =IF(ACG5=0,"",ACG6&IF(ACG5=1,"",LOOKUP(ACG5,$A$96:$A$113,$B$96:$B$113))) ->  | ACH4: =IF(ACH5=0,"",ACH6&IF(ACH5=1,"",LOOKUP(ACH5,$A$96:$A$113,$B$96:$B$113))) ->  | ACI4: =IF(ACI5=0,"",ACI6&IF(ACI5=1,"",LOOKUP(ACI5,$A$96:$A$113,$B$96:$B$113))) ->  | ACJ4: =IF(ACJ5=0,"",ACJ6&IF(ACJ5=1,"",LOOKUP(ACJ5,$A$96:$A$113,$B$96:$B$113))) ->  | ACK4: =IF(ACK5=0,"",ACK6&IF(ACK5=1,"",LOOKUP(ACK5,$A$96:$A$113,$B$96:$B$113))) ->  | ACL4: =IF(ACL5=0,"",ACL6&IF(ACL5=1,"",LOOKUP(ACL5,$A$96:$A$113,$B$96:$B$113))) ->  | ACM4: =IF(ACM5=0,"",ACM6&IF(ACM5=1,"",LOOKUP(ACM5,$A$96:$A$113,$B$96:$B$113))) ->  | ACN4: =IF(ACN5=0,"",ACN6&IF(ACN5=1,"",LOOKUP(ACN5,$A$96:$A$113,$B$96:$B$113))) ->  | ACO4: =IF(ACO5=0,"",ACO6&IF(ACO5=1,"",LOOKUP(ACO5,$A$96:$A$113,$B$96:$B$113))) ->  | ACP4: =IF(ACP5=0,"",ACP6&IF(ACP5=1,"",LOOKUP(ACP5,$A$96:$A$113,$B$96:$B$113))) ->  | ACQ4: =IF(ACQ5=0,"",ACQ6&IF(ACQ5=1,"",LOOKUP(ACQ5,$A$96:$A$113,$B$96:$B$113))) ->  | ACR4: =IF(ACR5=0,"",ACR6&IF(ACR5=1,"",LOOKUP(ACR5,$A$96:$A$113,$B$96:$B$113))) ->  | ACS4: =IF(ACS5=0,"",ACS6&IF(ACS5=1,"",LOOKUP(ACS5,$A$96:$A$113,$B$96:$B$113))) ->  | ACT4: =IF(ACT5=0,"",ACT6&IF(ACT5=1,"",LOOKUP(ACT5,$A$96:$A$113,$B$96:$B$113))) ->  | ACU4: =IF(ACU5=0,"",ACU6&IF(ACU5=1,"",LOOKUP(ACU5,$A$96:$A$113,$B$96:$B$113))) ->  | ACV4: =IF(ACV5=0,"",ACV6&IF(ACV5=1,"",LOOKUP(ACV5,$A$96:$A$113,$B$96:$B$113))) ->  | ACW4: =IF(ACW5=0,"",ACW6&IF(ACW5=1,"",LOOKUP(ACW5,$A$96:$A$113,$B$96:$B$113))) ->  | ACX4: =IF(ACX5=0,"",ACX6&IF(ACX5=1,"",LOOKUP(ACX5,$A$96:$A$113,$B$96:$B$113))) ->  | ACY4: =IF(ACY5=0,"",ACY6&IF(ACY5=1,"",LOOKUP(ACY5,$A$96:$A$113,$B$96:$B$113))) ->  | ACZ4: =IF(ACZ5=0,"",ACZ6&IF(ACZ5=1,"",LOOKUP(ACZ5,$A$96:$A$113,$B$96:$B$113))) ->  | ADA4: =IF(ADA5=0,"",ADA6&IF(ADA5=1,"",LOOKUP(ADA5,$A$96:$A$113,$B$96:$B$113))) ->  | ADB4: =IF(ADB5=0,"",ADB6&IF(ADB5=1,"",LOOKUP(ADB5,$A$96:$A$113,$B$96:$B$113))) ->  | ADC4: =IF(ADC5=0,"",ADC6&IF(ADC5=1,"",LOOKUP(ADC5,$A$96:$A$113,$B$96:$B$113))) ->  | ADD4: =IF(ADD5=0,"",ADD6&IF(ADD5=1,"",LOOKUP(ADD5,$A$96:$A$113,$B$96:$B$113))) ->  | ADE4: =IF(ADE5=0,"",ADE6&IF(ADE5=1,"",LOOKUP(ADE5,$A$96:$A$113,$B$96:$B$113))) ->  | ADF4: =IF(ADF5=0,"",ADF6&IF(ADF5=1,"",LOOKUP(ADF5,$A$96:$A$113,$B$96:$B$113))) ->  | ADG4: =IF(ADG5=0,"",ADG6&IF(ADG5=1,"",LOOKUP(ADG5,$A$96:$A$113,$B$96:$B$113))) ->  | ADH4: =IF(ADH5=0,"",ADH6&IF(ADH5=1,"",LOOKUP(ADH5,$A$96:$A$113,$B$96:$B$113))) ->  | ADI4: =IF(ADI5=0,"",ADI6&IF(ADI5=1,"",LOOKUP(ADI5,$A$96:$A$113,$B$96:$B$113))) ->  | ADJ4: =IF(ADJ5=0,"",ADJ6&IF(ADJ5=1,"",LOOKUP(ADJ5,$A$96:$A$113,$B$96:$B$113))) ->  | ADK4: =IF(ADK5=0,"",ADK6&IF(ADK5=1,"",LOOKUP(ADK5,$A$96:$A$113,$B$96:$B$113))) ->  | ADL4: =IF(ADL5=0,"",ADL6&IF(ADL5=1,"",LOOKUP(ADL5,$A$96:$A$113,$B$96:$B$113))) ->  | ADM4: =IF(ADM5=0,"",ADM6&IF(ADM5=1,"",LOOKUP(ADM5,$A$96:$A$113,$B$96:$B$113))) ->  | ADN4: =IF(ADN5=0,"",ADN6&IF(ADN5=1,"",LOOKUP(ADN5,$A$96:$A$113,$B$96:$B$113))) ->  | ADO4: =IF(ADO5=0,"",ADO6&IF(ADO5=1,"",LOOKUP(ADO5,$A$96:$A$113,$B$96:$B$113))) ->  | ADP4: =IF(ADP5=0,"",ADP6&IF(ADP5=1,"",LOOKUP(ADP5,$A$96:$A$113,$B$96:$B$113))) ->  | ADQ4: =IF(ADQ5=0,"",ADQ6&IF(ADQ5=1,"",LOOKUP(ADQ5,$A$96:$A$113,$B$96:$B$113))) ->  | ADR4: =IF(ADR5=0,"",ADR6&IF(ADR5=1,"",LOOKUP(ADR5,$A$96:$A$113,$B$96:$B$113))) ->  | ADS4: =IF(ADS5=0,"",ADS6&IF(ADS5=1,"",LOOKUP(ADS5,$A$96:$A$113,$B$96:$B$113))) ->  | ADT4: =IF(ADT5=0,"",ADT6&IF(ADT5=1,"",LOOKUP(ADT5,$A$96:$A$113,$B$96:$B$113))) ->  | ADU4: =IF(ADU5=0,"",ADU6&IF(ADU5=1,"",LOOKUP(ADU5,$A$96:$A$113,$B$96:$B$113))) ->  | ADV4: =IF(ADV5=0,"",ADV6&IF(ADV5=1,"",LOOKUP(ADV5,$A$96:$A$113,$B$96:$B$113))) ->  | ADW4: =IF(ADW5=0,"",ADW6&IF(ADW5=1,"",LOOKUP(ADW5,$A$96:$A$113,$B$96:$B$113))) ->  | ADX4: =IF(ADX5=0,"",ADX6&IF(ADX5=1,"",LOOKUP(ADX5,$A$96:$A$113,$B$96:$B$113))) ->  | ADY4: =IF(ADY5=0,"",ADY6&IF(ADY5=1,"",LOOKUP(ADY5,$A$96:$A$113,$B$96:$B$113))) ->  | ADZ4: =IF(ADZ5=0,"",ADZ6&IF(ADZ5=1,"",LOOKUP(ADZ5,$A$96:$A$113,$B$96:$B$113))) ->  | AEA4: =IF(AEA5=0,"",AEA6&IF(AEA5=1,"",LOOKUP(AEA5,$A$96:$A$113,$B$96:$B$113))) ->  | AEB4: =IF(AEB5=0,"",AEB6&IF(AEB5=1,"",LOOKUP(AEB5,$A$96:$A$113,$B$96:$B$113))) ->  | AEC4: =IF(AEC5=0,"",AEC6&IF(AEC5=1,"",LOOKUP(AEC5,$A$96:$A$113,$B$96:$B$113))) ->  | AED4: =IF(AED5=0,"",AED6&IF(AED5=1,"",LOOKUP(AED5,$A$96:$A$113,$B$96:$B$113))) ->  | AEE4: =IF(AEE5=0,"",AEE6&IF(AEE5=1,"",LOOKUP(AEE5,$A$96:$A$113,$B$96:$B$113))) ->  | AEF4: =IF(AEF5=0,"",AEF6&IF(AEF5=1,"",LOOKUP(AEF5,$A$96:$A$113,$B$96:$B$113))) ->  | AEG4: =IF(AEG5=0,"",AEG6&IF(AEG5=1,"",LOOKUP(AEG5,$A$96:$A$113,$B$96:$B$113))) ->  | AEH4: =IF(AEH5=0,"",AEH6&IF(AEH5=1,"",LOOKUP(AEH5,$A$96:$A$113,$B$96:$B$113))) ->  | AEI4: =IF(AEI5=0,"",AEI6&IF(AEI5=1,"",LOOKUP(AEI5,$A$96:$A$113,$B$96:$B$113))) ->  | AEJ4: =IF(AEJ5=0,"",AEJ6&IF(AEJ5=1,"",LOOKUP(AEJ5,$A$96:$A$113,$B$96:$B$113))) ->  | AEK4: =IF(AEK5=0,"",AEK6&IF(AEK5=1,"",LOOKUP(AEK5,$A$96:$A$113,$B$96:$B$113))) ->  | AEL4: =IF(AEL5=0,"",AEL6&IF(AEL5=1,"",LOOKUP(AEL5,$A$96:$A$113,$B$96:$B$113))) ->  | AEM4: =IF(AEM5=0,"",AEM6&IF(AEM5=1,"",LOOKUP(AEM5,$A$96:$A$113,$B$96:$B$113))) ->  | AEN4: =IF(AEN5=0,"",AEN6&IF(AEN5=1,"",LOOKUP(AEN5,$A$96:$A$113,$B$96:$B$113))) ->  | AEO4: =IF(AEO5=0,"",AEO6&IF(AEO5=1,"",LOOKUP(AEO5,$A$96:$A$113,$B$96:$B$113))) ->  | AEP4: =IF(AEP5=0,"",AEP6&IF(AEP5=1,"",LOOKUP(AEP5,$A$96:$A$113,$B$96:$B$113))) ->  | AEQ4: =IF(AEQ5=0,"",AEQ6&IF(AEQ5=1,"",LOOKUP(AEQ5,$A$96:$A$113,$B$96:$B$113))) ->  | AER4: =IF(AER5=0,"",AER6&IF(AER5=1,"",LOOKUP(AER5,$A$96:$A$113,$B$96:$B$113))) ->  | AES4: =IF(AES5=0,"",AES6&IF(AES5=1,"",LOOKUP(AES5,$A$96:$A$113,$B$96:$B$113))) ->  | AET4: =IF(AET5=0,"",AET6&IF(AET5=1,"",LOOKUP(AET5,$A$96:$A$113,$B$96:$B$113))) ->  | AEU4: =IF(AEU5=0,"",AEU6&IF(AEU5=1,"",LOOKUP(AEU5,$A$96:$A$113,$B$96:$B$113))) ->  | AEV4: =IF(AEV5=0,"",AEV6&IF(AEV5=1,"",LOOKUP(AEV5,$A$96:$A$113,$B$96:$B$113))) ->  | AEW4: =IF(AEW5=0,"",AEW6&IF(AEW5=1,"",LOOKUP(AEW5,$A$96:$A$113,$B$96:$B$113))) ->  | AEX4: =IF(AEX5=0,"",AEX6&IF(AEX5=1,"",LOOKUP(AEX5,$A$96:$A$113,$B$96:$B$113))) ->  | AEY4: =IF(AEY5=0,"",AEY6&IF(AEY5=1,"",LOOKUP(AEY5,$A$96:$A$113,$B$96:$B$113))) ->  | AEZ4: =IF(AEZ5=0,"",AEZ6&IF(AEZ5=1,"",LOOKUP(AEZ5,$A$96:$A$113,$B$96:$B$113))) ->  | AFA4: =IF(AFA5=0,"",AFA6&IF(AFA5=1,"",LOOKUP(AFA5,$A$96:$A$113,$B$96:$B$113))) ->  | AFB4: =IF(AFB5=0,"",AFB6&IF(AFB5=1,"",LOOKUP(AFB5,$A$96:$A$113,$B$96:$B$113))) ->  | AFC4: =IF(AFC5=0,"",AFC6&IF(AFC5=1,"",LOOKUP(AFC5,$A$96:$A$113,$B$96:$B$113))) ->  | AFD4: =IF(AFD5=0,"",AFD6&IF(AFD5=1,"",LOOKUP(AFD5,$A$96:$A$113,$B$96:$B$113))) ->  | AFE4: =IF(AFE5=0,"",AFE6&IF(AFE5=1,"",LOOKUP(AFE5,$A$96:$A$113,$B$96:$B$113))) ->  | AFF4: =IF(AFF5=0,"",AFF6&IF(AFF5=1,"",LOOKUP(AFF5,$A$96:$A$113,$B$96:$B$113))) ->  | AFG4: =IF(AFG5=0,"",AFG6&IF(AFG5=1,"",LOOKUP(AFG5,$A$96:$A$113,$B$96:$B$113))) ->  | AFH4: =IF(AFH5=0,"",AFH6&IF(AFH5=1,"",LOOKUP(AFH5,$A$96:$A$113,$B$96:$B$113))) ->  | AFI4: =IF(AFI5=0,"",AFI6&IF(AFI5=1,"",LOOKUP(AFI5,$A$96:$A$113,$B$96:$B$113))) ->  | AFJ4: =IF(AFJ5=0,"",AFJ6&IF(AFJ5=1,"",LOOKUP(AFJ5,$A$96:$A$113,$B$96:$B$113))) ->  | AFK4: =IF(AFK5=0,"",AFK6&IF(AFK5=1,"",LOOKUP(AFK5,$A$96:$A$113,$B$96:$B$113))) ->  | AFL4: =IF(AFL5=0,"",AFL6&IF(AFL5=1,"",LOOKUP(AFL5,$A$96:$A$113,$B$96:$B$113))) ->  | AFM4: =IF(AFM5=0,"",AFM6&IF(AFM5=1,"",LOOKUP(AFM5,$A$96:$A$113,$B$96:$B$113))) ->  | AFN4: =IF(AFN5=0,"",AFN6&IF(AFN5=1,"",LOOKUP(AFN5,$A$96:$A$113,$B$96:$B$113))) ->  | AFO4: =IF(AFO5=0,"",AFO6&IF(AFO5=1,"",LOOKUP(AFO5,$A$96:$A$113,$B$96:$B$113))) ->  | AFP4: =IF(AFP5=0,"",AFP6&IF(AFP5=1,"",LOOKUP(AFP5,$A$96:$A$113,$B$96:$B$113))) ->  | AFQ4: =IF(AFQ5=0,"",AFQ6&IF(AFQ5=1,"",LOOKUP(AFQ5,$A$96:$A$113,$B$96:$B$113))) ->  | AFR4: =IF(AFR5=0,"",AFR6&IF(AFR5=1,"",LOOKUP(AFR5,$A$96:$A$113,$B$96:$B$113))) ->  | AFS4: =IF(AFS5=0,"",AFS6&IF(AFS5=1,"",LOOKUP(AFS5,$A$96:$A$113,$B$96:$B$113))) ->  | AFT4: =IF(AFT5=0,"",AFT6&IF(AFT5=1,"",LOOKUP(AFT5,$A$96:$A$113,$B$96:$B$113))) ->  | AFU4: =IF(AFU5=0,"",AFU6&IF(AFU5=1,"",LOOKUP(AFU5,$A$96:$A$113,$B$96:$B$113))) ->  | AFV4: =IF(AFV5=0,"",AFV6&IF(AFV5=1,"",LOOKUP(AFV5,$A$96:$A$113,$B$96:$B$113))) ->  | AFW4: =IF(AFW5=0,"",AFW6&IF(AFW5=1,"",LOOKUP(AFW5,$A$96:$A$113,$B$96:$B$113))) ->  | AFX4: =IF(AFX5=0,"",AFX6&IF(AFX5=1,"",LOOKUP(AFX5,$A$96:$A$113,$B$96:$B$113))) ->  | AFY4: =IF(AFY5=0,"",AFY6&IF(AFY5=1,"",LOOKUP(AFY5,$A$96:$A$113,$B$96:$B$113))) ->  | AFZ4: =IF(AFZ5=0,"",AFZ6&IF(AFZ5=1,"",LOOKUP(AFZ5,$A$96:$A$113,$B$96:$B$113))) ->  | AGA4: =IF(AGA5=0,"",AGA6&IF(AGA5=1,"",LOOKUP(AGA5,$A$96:$A$113,$B$96:$B$113))) ->  | AGB4: =IF(AGB5=0,"",AGB6&IF(AGB5=1,"",LOOKUP(AGB5,$A$96:$A$113,$B$96:$B$113))) ->  | AGC4: =IF(AGC5=0,"",AGC6&IF(AGC5=1,"",LOOKUP(AGC5,$A$96:$A$113,$B$96:$B$113))) ->  | AGD4: =IF(AGD5=0,"",AGD6&IF(AGD5=1,"",LOOKUP(AGD5,$A$96:$A$113,$B$96:$B$113))) ->  | AGE4: =IF(AGE5=0,"",AGE6&IF(AGE5=1,"",LOOKUP(AGE5,$A$96:$A$113,$B$96:$B$113))) ->  | AGF4: =IF(AGF5=0,"",AGF6&IF(AGF5=1,"",LOOKUP(AGF5,$A$96:$A$113,$B$96:$B$113))) ->  | AGG4: =IF(AGG5=0,"",AGG6&IF(AGG5=1,"",LOOKUP(AGG5,$A$96:$A$113,$B$96:$B$113))) ->  | AGH4: =IF(AGH5=0,"",AGH6&IF(AGH5=1,"",LOOKUP(AGH5,$A$96:$A$113,$B$96:$B$113))) ->  | AGI4: =IF(AGI5=0,"",AGI6&IF(AGI5=1,"",LOOKUP(AGI5,$A$96:$A$113,$B$96:$B$113))) ->  | AGJ4: =IF(AGJ5=0,"",AGJ6&IF(AGJ5=1,"",LOOKUP(AGJ5,$A$96:$A$113,$B$96:$B$113))) ->  | AGK4: =IF(AGK5=0,"",AGK6&IF(AGK5=1,"",LOOKUP(AGK5,$A$96:$A$113,$B$96:$B$113))) ->  | AGL4: =IF(AGL5=0,"",AGL6&IF(AGL5=1,"",LOOKUP(AGL5,$A$96:$A$113,$B$96:$B$113))) ->  | AGM4: =IF(AGM5=0,"",AGM6&IF(AGM5=1,"",LOOKUP(AGM5,$A$96:$A$113,$B$96:$B$113))) ->  | AGN4: =IF(AGN5=0,"",AGN6&IF(AGN5=1,"",LOOKUP(AGN5,$A$96:$A$113,$B$96:$B$113))) ->  | AGO4: =IF(AGO5=0,"",AGO6&IF(AGO5=1,"",LOOKUP(AGO5,$A$96:$A$113,$B$96:$B$113))) ->  | AGP4: =IF(AGP5=0,"",AGP6&IF(AGP5=1,"",LOOKUP(AGP5,$A$96:$A$113,$B$96:$B$113))) ->  | AGQ4: =IF(AGQ5=0,"",AGQ6&IF(AGQ5=1,"",LOOKUP(AGQ5,$A$96:$A$113,$B$96:$B$113))) ->  | AGR4: =IF(AGR5=0,"",AGR6&IF(AGR5=1,"",LOOKUP(AGR5,$A$96:$A$113,$B$96:$B$113))) ->  | AGS4: =IF(AGS5=0,"",AGS6&IF(AGS5=1,"",LOOKUP(AGS5,$A$96:$A$113,$B$96:$B$113))) ->  | AGT4: =IF(AGT5=0,"",AGT6&IF(AGT5=1,"",LOOKUP(AGT5,$A$96:$A$113,$B$96:$B$113))) ->  | AGU4: =IF(AGU5=0,"",AGU6&IF(AGU5=1,"",LOOKUP(AGU5,$A$96:$A$113,$B$96:$B$113))) ->  | AGV4: =IF(AGV5=0,"",AGV6&IF(AGV5=1,"",LOOKUP(AGV5,$A$96:$A$113,$B$96:$B$113))) ->  | AGW4: =IF(AGW5=0,"",AGW6&IF(AGW5=1,"",LOOKUP(AGW5,$A$96:$A$113,$B$96:$B$113))) ->  | AGX4: =IF(AGX5=0,"",AGX6&IF(AGX5=1,"",LOOKUP(AGX5,$A$96:$A$113,$B$96:$B$113))) ->  | AGY4: =IF(AGY5=0,"",AGY6&IF(AGY5=1,"",LOOKUP(AGY5,$A$96:$A$113,$B$96:$B$113))) ->  | AGZ4: =IF(AGZ5=0,"",AGZ6&IF(AGZ5=1,"",LOOKUP(AGZ5,$A$96:$A$113,$B$96:$B$113))) ->  | AHA4: =IF(AHA5=0,"",AHA6&IF(AHA5=1,"",LOOKUP(AHA5,$A$96:$A$113,$B$96:$B$113))) ->  | AHB4: =IF(AHB5=0,"",AHB6&IF(AHB5=1,"",LOOKUP(AHB5,$A$96:$A$113,$B$96:$B$113))) ->  | AHC4: =IF(AHC5=0,"",AHC6&IF(AHC5=1,"",LOOKUP(AHC5,$A$96:$A$113,$B$96:$B$113))) ->  | AHD4: =IF(AHD5=0,"",AHD6&IF(AHD5=1,"",LOOKUP(AHD5,$A$96:$A$113,$B$96:$B$113))) ->  | AHE4: =IF(AHE5=0,"",AHE6&IF(AHE5=1,"",LOOKUP(AHE5,$A$96:$A$113,$B$96:$B$113))) ->  | AHF4: =IF(AHF5=0,"",AHF6&IF(AHF5=1,"",LOOKUP(AHF5,$A$96:$A$113,$B$96:$B$113))) ->  | AHG4: =IF(AHG5=0,"",AHG6&IF(AHG5=1,"",LOOKUP(AHG5,$A$96:$A$113,$B$96:$B$113))) ->  | AHH4: =IF(AHH5=0,"",AHH6&IF(AHH5=1,"",LOOKUP(AHH5,$A$96:$A$113,$B$96:$B$113))) ->  | AHI4: =IF(AHI5=0,"",AHI6&IF(AHI5=1,"",LOOKUP(AHI5,$A$96:$A$113,$B$96:$B$113))) ->  | AHJ4: =IF(AHJ5=0,"",AHJ6&IF(AHJ5=1,"",LOOKUP(AHJ5,$A$96:$A$113,$B$96:$B$113))) ->  | AHK4: =IF(AHK5=0,"",AHK6&IF(AHK5=1,"",LOOKUP(AHK5,$A$96:$A$113,$B$96:$B$113))) ->  | AHL4: =IF(AHL5=0,"",AHL6&IF(AHL5=1,"",LOOKUP(AHL5,$A$96:$A$113,$B$96:$B$113))) ->  | AHM4: =IF(AHM5=0,"",AHM6&IF(AHM5=1,"",LOOKUP(AHM5,$A$96:$A$113,$B$96:$B$113))) ->  | AHN4: =IF(AHN5=0,"",AHN6&IF(AHN5=1,"",LOOKUP(AHN5,$A$96:$A$113,$B$96:$B$113))) ->  | AHO4: =IF(AHO5=0,"",AHO6&IF(AHO5=1,"",LOOKUP(AHO5,$A$96:$A$113,$B$96:$B$113))) ->  | AHP4: =IF(AHP5=0,"",AHP6&IF(AHP5=1,"",LOOKUP(AHP5,$A$96:$A$113,$B$96:$B$113))) ->  | AHQ4: =IF(AHQ5=0,"",AHQ6&IF(AHQ5=1,"",LOOKUP(AHQ5,$A$96:$A$113,$B$96:$B$113))) ->  | AHR4: =IF(AHR5=0,"",AHR6&IF(AHR5=1,"",LOOKUP(AHR5,$A$96:$A$113,$B$96:$B$113))) ->  | AHS4: =IF(AHS5=0,"",AHS6&IF(AHS5=1,"",LOOKUP(AHS5,$A$96:$A$113,$B$96:$B$113))) ->  | AHT4: =IF(AHT5=0,"",AHT6&IF(AHT5=1,"",LOOKUP(AHT5,$A$96:$A$113,$B$96:$B$113))) ->  | AHU4: =IF(AHU5=0,"",AHU6&IF(AHU5=1,"",LOOKUP(AHU5,$A$96:$A$113,$B$96:$B$113))) ->  | AHV4: =IF(AHV5=0,"",AHV6&IF(AHV5=1,"",LOOKUP(AHV5,$A$96:$A$113,$B$96:$B$113))) ->  | AHW4: =IF(AHW5=0,"",AHW6&IF(AHW5=1,"",LOOKUP(AHW5,$A$96:$A$113,$B$96:$B$113))) ->  | AHX4: =IF(AHX5=0,"",AHX6&IF(AHX5=1,"",LOOKUP(AHX5,$A$96:$A$113,$B$96:$B$113))) ->  | AHY4: =IF(AHY5=0,"",AHY6&IF(AHY5=1,"",LOOKUP(AHY5,$A$96:$A$113,$B$96:$B$113))) ->  | AHZ4: =IF(AHZ5=0,"",AHZ6&IF(AHZ5=1,"",LOOKUP(AHZ5,$A$96:$A$113,$B$96:$B$113))) ->  | AIA4: =IF(AIA5=0,"",AIA6&IF(AIA5=1,"",LOOKUP(AIA5,$A$96:$A$113,$B$96:$B$113))) ->  | AIB4: =IF(AIB5=0,"",AIB6&IF(AIB5=1,"",LOOKUP(AIB5,$A$96:$A$113,$B$96:$B$113))) ->  | AIC4: =IF(AIC5=0,"",AIC6&IF(AIC5=1,"",LOOKUP(AIC5,$A$96:$A$113,$B$96:$B$113))) ->  | AID4: =IF(AID5=0,"",AID6&IF(AID5=1,"",LOOKUP(AID5,$A$96:$A$113,$B$96:$B$113))) ->  | AIE4: =IF(AIE5=0,"",AIE6&IF(AIE5=1,"",LOOKUP(AIE5,$A$96:$A$113,$B$96:$B$113))) ->  | AIF4: =IF(AIF5=0,"",AIF6&IF(AIF5=1,"",LOOKUP(AIF5,$A$96:$A$113,$B$96:$B$113))) ->  | AIG4: =IF(AIG5=0,"",AIG6&IF(AIG5=1,"",LOOKUP(AIG5,$A$96:$A$113,$B$96:$B$113))) ->  | AIH4: =IF(AIH5=0,"",AIH6&IF(AIH5=1,"",LOOKUP(AIH5,$A$96:$A$113,$B$96:$B$113))) ->  | AII4: =IF(AII5=0,"",AII6&IF(AII5=1,"",LOOKUP(AII5,$A$96:$A$113,$B$96:$B$113))) ->  | AIJ4: =IF(AIJ5=0,"",AIJ6&IF(AIJ5=1,"",LOOKUP(AIJ5,$A$96:$A$113,$B$96:$B$113))) ->  | AIK4: =IF(AIK5=0,"",AIK6&IF(AIK5=1,"",LOOKUP(AIK5,$A$96:$A$113,$B$96:$B$113))) ->  | AIL4: =IF(AIL5=0,"",AIL6&IF(AIL5=1,"",LOOKUP(AIL5,$A$96:$A$113,$B$96:$B$113))) ->  | AIM4: =IF(AIM5=0,"",AIM6&IF(AIM5=1,"",LOOKUP(AIM5,$A$96:$A$113,$B$96:$B$113))) ->  | AIN4: =IF(AIN5=0,"",AIN6&IF(AIN5=1,"",LOOKUP(AIN5,$A$96:$A$113,$B$96:$B$113))) ->  | AIO4: =IF(AIO5=0,"",AIO6&IF(AIO5=1,"",LOOKUP(AIO5,$A$96:$A$113,$B$96:$B$113))) ->  | AIP4: =IF(AIP5=0,"",AIP6&IF(AIP5=1,"",LOOKUP(AIP5,$A$96:$A$113,$B$96:$B$113))) ->  | AIQ4: =IF(AIQ5=0,"",AIQ6&IF(AIQ5=1,"",LOOKUP(AIQ5,$A$96:$A$113,$B$96:$B$113))) ->  | AIR4: =IF(AIR5=0,"",AIR6&IF(AIR5=1,"",LOOKUP(AIR5,$A$96:$A$113,$B$96:$B$113))) ->  | AIS4: =IF(AIS5=0,"",AIS6&IF(AIS5=1,"",LOOKUP(AIS5,$A$96:$A$113,$B$96:$B$113))) ->  | AIT4: =IF(AIT5=0,"",AIT6&IF(AIT5=1,"",LOOKUP(AIT5,$A$96:$A$113,$B$96:$B$113))) ->  | AIU4: =IF(AIU5=0,"",AIU6&IF(AIU5=1,"",LOOKUP(AIU5,$A$96:$A$113,$B$96:$B$113))) ->  | AIV4: =IF(AIV5=0,"",AIV6&IF(AIV5=1,"",LOOKUP(AIV5,$A$96:$A$113,$B$96:$B$113))) ->  | AIW4: =IF(AIW5=0,"",AIW6&IF(AIW5=1,"",LOOKUP(AIW5,$A$96:$A$113,$B$96:$B$113))) ->  | AIX4: =IF(AIX5=0,"",AIX6&IF(AIX5=1,"",LOOKUP(AIX5,$A$96:$A$113,$B$96:$B$113))) ->  | AIY4: =IF(AIY5=0,"",AIY6&IF(AIY5=1,"",LOOKUP(AIY5,$A$96:$A$113,$B$96:$B$113))) ->  | AIZ4: =IF(AIZ5=0,"",AIZ6&IF(AIZ5=1,"",LOOKUP(AIZ5,$A$96:$A$113,$B$96:$B$113))) ->  | AJA4: =IF(AJA5=0,"",AJA6&IF(AJA5=1,"",LOOKUP(AJA5,$A$96:$A$113,$B$96:$B$113))) ->  | AJB4: =IF(AJB5=0,"",AJB6&IF(AJB5=1,"",LOOKUP(AJB5,$A$96:$A$113,$B$96:$B$113))) ->  | AJC4: =IF(AJC5=0,"",AJC6&IF(AJC5=1,"",LOOKUP(AJC5,$A$96:$A$113,$B$96:$B$113))) ->  | AJD4: =IF(AJD5=0,"",AJD6&IF(AJD5=1,"",LOOKUP(AJD5,$A$96:$A$113,$B$96:$B$113))) ->  | AJE4: =IF(AJE5=0,"",AJE6&IF(AJE5=1,"",LOOKUP(AJE5,$A$96:$A$113,$B$96:$B$113))) ->  | AJF4: =IF(AJF5=0,"",AJF6&IF(AJF5=1,"",LOOKUP(AJF5,$A$96:$A$113,$B$96:$B$113))) ->  | AJG4: =IF(AJG5=0,"",AJG6&IF(AJG5=1,"",LOOKUP(AJG5,$A$96:$A$113,$B$96:$B$113))) ->  | AJH4: =IF(AJH5=0,"",AJH6&IF(AJH5=1,"",LOOKUP(AJH5,$A$96:$A$113,$B$96:$B$113))) ->  | AJI4: =IF(AJI5=0,"",AJI6&IF(AJI5=1,"",LOOKUP(AJI5,$A$96:$A$113,$B$96:$B$113))) ->  | AJJ4: =IF(AJJ5=0,"",AJJ6&IF(AJJ5=1,"",LOOKUP(AJJ5,$A$96:$A$113,$B$96:$B$113))) ->  | AJK4: =IF(AJK5=0,"",AJK6&IF(AJK5=1,"",LOOKUP(AJK5,$A$96:$A$113,$B$96:$B$113))) ->  | AJL4: =IF(AJL5=0,"",AJL6&IF(AJL5=1,"",LOOKUP(AJL5,$A$96:$A$113,$B$96:$B$113))) ->  | AJM4: =IF(AJM5=0,"",AJM6&IF(AJM5=1,"",LOOKUP(AJM5,$A$96:$A$113,$B$96:$B$113))) ->  | AJN4: =IF(AJN5=0,"",AJN6&IF(AJN5=1,"",LOOKUP(AJN5,$A$96:$A$113,$B$96:$B$113))) ->  | AJO4: =IF(AJO5=0,"",AJO6&IF(AJO5=1,"",LOOKUP(AJO5,$A$96:$A$113,$B$96:$B$113))) ->  | AJP4: =IF(AJP5=0,"",AJP6&IF(AJP5=1,"",LOOKUP(AJP5,$A$96:$A$113,$B$96:$B$113))) ->  | AJQ4: =IF(AJQ5=0,"",AJQ6&IF(AJQ5=1,"",LOOKUP(AJQ5,$A$96:$A$113,$B$96:$B$113))) ->  | AJR4: =IF(AJR5=0,"",AJR6&IF(AJR5=1,"",LOOKUP(AJR5,$A$96:$A$113,$B$96:$B$113))) ->  | AJS4: =IF(AJS5=0,"",AJS6&IF(AJS5=1,"",LOOKUP(AJS5,$A$96:$A$113,$B$96:$B$113))) ->  | AJT4: =IF(AJT5=0,"",AJT6&IF(AJT5=1,"",LOOKUP(AJT5,$A$96:$A$113,$B$96:$B$113))) ->  | AJU4: =IF(AJU5=0,"",AJU6&IF(AJU5=1,"",LOOKUP(AJU5,$A$96:$A$113,$B$96:$B$113))) ->  | AJV4: =IF(AJV5=0,"",AJV6&IF(AJV5=1,"",LOOKUP(AJV5,$A$96:$A$113,$B$96:$B$113))) ->  | AJW4: =IF(AJW5=0,"",AJW6&IF(AJW5=1,"",LOOKUP(AJW5,$A$96:$A$113,$B$96:$B$113))) ->  | AJX4: =IF(AJX5=0,"",AJX6&IF(AJX5=1,"",LOOKUP(AJX5,$A$96:$A$113,$B$96:$B$113))) ->  | AJY4: =IF(AJY5=0,"",AJY6&IF(AJY5=1,"",LOOKUP(AJY5,$A$96:$A$113,$B$96:$B$113))) ->  | AJZ4: =IF(AJZ5=0,"",AJZ6&IF(AJZ5=1,"",LOOKUP(AJZ5,$A$96:$A$113,$B$96:$B$113))) ->  | AKA4: =IF(AKA5=0,"",AKA6&IF(AKA5=1,"",LOOKUP(AKA5,$A$96:$A$113,$B$96:$B$113))) ->  | AKB4: =IF(AKB5=0,"",AKB6&IF(AKB5=1,"",LOOKUP(AKB5,$A$96:$A$113,$B$96:$B$113))) ->  | AKC4: =IF(AKC5=0,"",AKC6&IF(AKC5=1,"",LOOKUP(AKC5,$A$96:$A$113,$B$96:$B$113))) ->  | AKD4: =IF(AKD5=0,"",AKD6&IF(AKD5=1,"",LOOKUP(AKD5,$A$96:$A$113,$B$96:$B$113))) ->  | AKE4: =IF(AKE5=0,"",AKE6&IF(AKE5=1,"",LOOKUP(AKE5,$A$96:$A$113,$B$96:$B$113))) ->  | AKF4: =IF(AKF5=0,"",AKF6&IF(AKF5=1,"",LOOKUP(AKF5,$A$96:$A$113,$B$96:$B$113))) ->  | AKG4: =IF(AKG5=0,"",AKG6&IF(AKG5=1,"",LOOKUP(AKG5,$A$96:$A$113,$B$96:$B$113))) ->  | AKH4: =IF(AKH5=0,"",AKH6&IF(AKH5=1,"",LOOKUP(AKH5,$A$96:$A$113,$B$96:$B$113))) ->  | AKI4: =IF(AKI5=0,"",AKI6&IF(AKI5=1,"",LOOKUP(AKI5,$A$96:$A$113,$B$96:$B$113))) ->  | AKJ4: =IF(AKJ5=0,"",AKJ6&IF(AKJ5=1,"",LOOKUP(AKJ5,$A$96:$A$113,$B$96:$B$113))) ->  | AKK4: =IF(AKK5=0,"",AKK6&IF(AKK5=1,"",LOOKUP(AKK5,$A$96:$A$113,$B$96:$B$113))) ->  | AKL4: =IF(AKL5=0,"",AKL6&IF(AKL5=1,"",LOOKUP(AKL5,$A$96:$A$113,$B$96:$B$113))) ->  | AKM4: =IF(AKM5=0,"",AKM6&IF(AKM5=1,"",LOOKUP(AKM5,$A$96:$A$113,$B$96:$B$113))) ->  | AKN4: =IF(AKN5=0,"",AKN6&IF(AKN5=1,"",LOOKUP(AKN5,$A$96:$A$113,$B$96:$B$113))) ->  | AKO4: =IF(AKO5=0,"",AKO6&IF(AKO5=1,"",LOOKUP(AKO5,$A$96:$A$113,$B$96:$B$113))) ->  | AKP4: =IF(AKP5=0,"",AKP6&IF(AKP5=1,"",LOOKUP(AKP5,$A$96:$A$113,$B$96:$B$113))) ->  | AKQ4: =IF(AKQ5=0,"",AKQ6&IF(AKQ5=1,"",LOOKUP(AKQ5,$A$96:$A$113,$B$96:$B$113))) ->  | AKR4: =IF(AKR5=0,"",AKR6&IF(AKR5=1,"",LOOKUP(AKR5,$A$96:$A$113,$B$96:$B$113))) ->  | AKS4: =IF(AKS5=0,"",AKS6&IF(AKS5=1,"",LOOKUP(AKS5,$A$96:$A$113,$B$96:$B$113))) ->  | AKT4: =IF(AKT5=0,"",AKT6&IF(AKT5=1,"",LOOKUP(AKT5,$A$96:$A$113,$B$96:$B$113))) ->  | AKU4: =IF(AKU5=0,"",AKU6&IF(AKU5=1,"",LOOKUP(AKU5,$A$96:$A$113,$B$96:$B$113))) ->  | AKV4: =IF(AKV5=0,"",AKV6&IF(AKV5=1,"",LOOKUP(AKV5,$A$96:$A$113,$B$96:$B$113))) ->  | AKW4: =IF(AKW5=0,"",AKW6&IF(AKW5=1,"",LOOKUP(AKW5,$A$96:$A$113,$B$96:$B$113))) ->  | AKX4: =IF(AKX5=0,"",AKX6&IF(AKX5=1,"",LOOKUP(AKX5,$A$96:$A$113,$B$96:$B$113))) ->  | AKY4: =IF(AKY5=0,"",AKY6&IF(AKY5=1,"",LOOKUP(AKY5,$A$96:$A$113,$B$96:$B$113))) ->  | AKZ4: =IF(AKZ5=0,"",AKZ6&IF(AKZ5=1,"",LOOKUP(AKZ5,$A$96:$A$113,$B$96:$B$113))) ->  | ALA4: =IF(ALA5=0,"",ALA6&IF(ALA5=1,"",LOOKUP(ALA5,$A$96:$A$113,$B$96:$B$113))) ->  | ALB4: =IF(ALB5=0,"",ALB6&IF(ALB5=1,"",LOOKUP(ALB5,$A$96:$A$113,$B$96:$B$113))) ->  | ALC4: =IF(ALC5=0,"",ALC6&IF(ALC5=1,"",LOOKUP(ALC5,$A$96:$A$113,$B$96:$B$113))) ->  | ALD4: =IF(ALD5=0,"",ALD6&IF(ALD5=1,"",LOOKUP(ALD5,$A$96:$A$113,$B$96:$B$113))) ->  | ALE4: =IF(ALE5=0,"",ALE6&IF(ALE5=1,"",LOOKUP(ALE5,$A$96:$A$113,$B$96:$B$113))) ->  | ALF4: =IF(ALF5=0,"",ALF6&IF(ALF5=1,"",LOOKUP(ALF5,$A$96:$A$113,$B$96:$B$113))) ->  | ALG4: =IF(ALG5=0,"",ALG6&IF(ALG5=1,"",LOOKUP(ALG5,$A$96:$A$113,$B$96:$B$113))) ->  | ALH4: =IF(ALH5=0,"",ALH6&IF(ALH5=1,"",LOOKUP(ALH5,$A$96:$A$113,$B$96:$B$113))) ->  | ALI4: =IF(ALI5=0,"",ALI6&IF(ALI5=1,"",LOOKUP(ALI5,$A$96:$A$113,$B$96:$B$113))) ->  | ALJ4: =IF(ALJ5=0,"",ALJ6&IF(ALJ5=1,"",LOOKUP(ALJ5,$A$96:$A$113,$B$96:$B$113))) ->  | ALK4: =IF(ALK5=0,"",ALK6&IF(ALK5=1,"",LOOKUP(ALK5,$A$96:$A$113,$B$96:$B$113))) ->  | ALL4: =IF(ALL5=0,"",ALL6&IF(ALL5=1,"",LOOKUP(ALL5,$A$96:$A$113,$B$96:$B$113))) ->  | ALM4: =IF(ALM5=0,"",ALM6&IF(ALM5=1,"",LOOKUP(ALM5,$A$96:$A$113,$B$96:$B$113))) ->  | ALN4: =IF(ALN5=0,"",ALN6&IF(ALN5=1,"",LOOKUP(ALN5,$A$96:$A$113,$B$96:$B$113))) ->  | ALO4: =IF(ALO5=0,"",ALO6&IF(ALO5=1,"",LOOKUP(ALO5,$A$96:$A$113,$B$96:$B$113))) ->  | ALP4: =IF(ALP5=0,"",ALP6&IF(ALP5=1,"",LOOKUP(ALP5,$A$96:$A$113,$B$96:$B$113))) ->  | ALQ4: =IF(ALQ5=0,"",ALQ6&IF(ALQ5=1,"",LOOKUP(ALQ5,$A$96:$A$113,$B$96:$B$113))) -> 
A5: #1: | B5: =Venn!E2 -> 180 | C5: =SUM(F5:ALQ5) -> 5 | F5: =14-COUNTIF(F7:F20,0) -> 2 | G5: =14-COUNTIF(G7:G20,0) -> 2 | H5: 1 | I5: 0 | J5: 0 | K5: 0 | L5: 0 | M5: 0 | N5: 0 | O5: 0 | P5: 0 | Q5: 0 | R5: 0 | S5: 0 | T5: 0 | U5: 0 | V5: 0 | W5: 0 | X5: 0 | Y5: 0 | Z5: 0 | AA5: 0 | AB5: 0 | AC5: 0 | AD5: 0 | AE5: 0 | AF5: 0 | AG5: 0 | AH5: 0 | AI5: 0 | AJ5: 0 | AK5: 0 | AL5: 0 | AM5: 0 | AN5: 0 | AO5: 0 | AP5: 0 | AQ5: 0 | AR5: 0 | AS5: 0 | AT5: 0 | AU5: 0 | AV5: 0 | AW5: 0 | AX5: 0 | AY5: 0 | AZ5: 0 | BA5: 0 | BB5: 0 | BC5: 0 | BD5: 0 | BE5: 0 | BF5: 0 | BG5: 0 | BH5: 0 | BI5: 0 | BJ5: 0 | BK5: 0 | BL5: 0 | BM5: 0 | BN5: 0 | BO5: 0 | BP5: 0 | BQ5: 0 | BR5: 0 | BS5: =14-COUNTIF(BS7:BS20,0) -> 0 | BT5: 0 | BU5: 0 | BV5: 0 | BW5: 0 | BX5: 0 | BY5: 0 | BZ5: 0 | CA5: 0 | CB5: 0 | CC5: 0 | CD5: 0 | CE5: 0 | CF5: 0 | CG5: 0 | CH5: 0 | CI5: 0 | CJ5: 0 | CK5: 0 | CL5: 0 | CM5: 0 | CN5: 0 | CO5: 0 | CP5: 0 | CQ5: 0 | CR5: 0 | CS5: 0 | CT5: 0 | CU5: 0 | CV5: 0 | CW5: 0 | CX5: 0 | CY5: 0 | CZ5: 0 | DA5: 0 | DB5: 0 | DC5: 0 | DD5: 0 | DE5: 0 | DF5: 0 | DG5: 0 | DH5: 0 | DI5: 0 | DJ5: 0 | DK5: 0 | DL5: 0 | DM5: 0 | DN5: 0 | DO5: 0 | DP5: 0 | DQ5: 0 | DR5: 0 | DS5: 0 | DT5: 0 | DU5: 0 | DV5: 0 | DW5: 0 | DX5: 0 | DY5: 0 | DZ5: 0 | EA5: 0 | EB5: 0 | EC5: 0 | ED5: 0 | EE5: =14-COUNTIF(EE7:EE20,0) -> 0 | EF5: 0 | EG5: 0 | EH5: 0 | EI5: 0 | EJ5: 0 | EK5: 0 | EL5: 0 | EM5: 0 | EN5: 0 | EO5: 0 | EP5: 0 | EQ5: 0 | ER5: 0 | ES5: 0 | ET5: 0 | EU5: 0 | EV5: 0 | EW5: 0 | EX5: 0 | EY5: 0 | EZ5: 0 | FA5: 0 | FB5: 0 | FC5: 0 | FD5: 0 | FE5: 0 | FF5: 0 | FG5: 0 | FH5: 0 | FI5: 0 | FJ5: 0 | FK5: 0 | FL5: 0 | FM5: 0 | FN5: 0 | FO5: 0 | FP5: 0 | FQ5: 0 | FR5: 0 | FS5: 0 | FT5: 0 | FU5: 0 | FV5: 0 | FW5: 0 | FX5: 0 | FY5: 0 | FZ5: 0 | GA5: 0 | GB5: 0 | GC5: 0 | GD5: 0 | GE5: 0 | GF5: 0 | GG5: 0 | GH5: 0 | GI5: 0 | GJ5: 0 | GK5: 0 | GL5: 0 | GM5: 0 | GN5: 0 | GO5: 0 | GP5: 0 | GQ5: =14-COUNTIF(GQ7:GQ20,0) -> 0 | GR5: 0 | GS5: 0 | GT5: 0 | GU5: 0 | GV5: 0 | GW5: 0 | GX5: 0 | GY5: 0 | GZ5: 0 | HA5: 0 | HB5: 0 | HC5: 0 | HD5: 0 | HE5: 0 | HF5: 0 | HG5: 0 | HH5: 0 | HI5: 0 | HJ5: 0 | HK5: 0 | HL5: 0 | HM5: 0 | HN5: 0 | HO5: 0 | HP5: 0 | HQ5: 0 | HR5: 0 | HS5: 0 | HT5: 0 | HU5: 0 | HV5: 0 | HW5: 0 | HX5: 0 | HY5: 0 | HZ5: 0 | IA5: 0 | IB5: 0 | IC5: 0 | ID5: 0 | IE5: 0 | IF5: 0 | IG5: 0 | IH5: 0 | II5: 0 | IJ5: 0 | IK5: 0 | IL5: 0 | IM5: 0 | IN5: 0 | IO5: 0 | IP5: 0 | IQ5: 0 | IR5: 0 | IS5: 0 | IT5: 0 | IU5: 0 | IV5: 0 | IW5: 0 | IX5: 0 | IY5: 0 | IZ5: 0 | JA5: 0 | JB5: 0 | JC5: =14-COUNTIF(JC7:JC20,0) -> 0 | JD5: 0 | JE5: 0 | JF5: 0 | JG5: 0 | JH5: 0 | JI5: 0 | JJ5: 0 | JK5: 0 | JL5: 0 | JM5: 0 | JN5: 0 | JO5: 0 | JP5: 0 | JQ5: 0 | JR5: 0 | JS5: 0 | JT5: 0 | JU5: 0 | JV5: 0 | JW5: 0 | JX5: 0 | JY5: 0 | JZ5: 0 | KA5: 0 | KB5: 0 | KC5: 0 | KD5: 0 | KE5: 0 | KF5: 0 | KG5: 0 | KH5: 0 | KI5: 0 | KJ5: 0 | KK5: 0 | KL5: 0 | KM5: 0 | KN5: 0 | KO5: 0 | KP5: 0 | KQ5: 0 | KR5: 0 | KS5: 0 | KT5: 0 | KU5: 0 | KV5: 0 | KW5: 0 | KX5: 0 | KY5: 0 | KZ5: 0 | LA5: 0 | LB5: 0 | LC5: 0 | LD5: 0 | LE5: 0 | LF5: 0 | LG5: 0 | LH5: 0 | LI5: 0 | LJ5: 0 | LK5: 0 | LL5: 0 | LM5: 0 | LN5: 0 | LO5: =14-COUNTIF(LO7:LO20,0) -> 0 | LP5: 0 | LQ5: 0 | LR5: 0 | LS5: 0 | LT5: 0 | LU5: 0 | LV5: 0 | LW5: 0 | LX5: 0 | LY5: 0 | LZ5: 0 | MA5: 0 | MB5: 0 | MC5: 0 | MD5: 0 | ME5: 0 | MF5: 0 | MG5: 0 | MH5: 0 | MI5: 0 | MJ5: 0 | MK5: 0 | ML5: 0 | MM5: 0 | MN5: 0 | MO5: 0 | MP5: 0 | MQ5: 0 | MR5: 0 | MS5: 0 | MT5: 0 | MU5: 0 | MV5: 0 | MW5: 0 | MX5: 0 | MY5: 0 | MZ5: 0 | NA5: 0 | NB5: 0 | NC5: 0 | ND5: 0 | NE5: 0 | NF5: 0 | NG5: 0 | NH5: 0 | NI5: 0 | NJ5: 0 | NK5: 0 | NL5: 0 | NM5: 0 | NN5: 0 | NO5: 0 | NP5: 0 | NQ5: 0 | NR5: 0 | NS5: 0 | NT5: 0 | NU5: 0 | NV5: 0 | NW5: 0 | NX5: 0 | NY5: 0 | NZ5: 0 | OA5: =14-COUNTIF(OA7:OA20,0) -> 0 | OB5: 0 | OC5: 0 | OD5: 0 | OE5: 0 | OF5: 0 | OG5: 0 | OH5: 0 | OI5: 0 | OJ5: 0 | OK5: 0 | OL5: 0 | OM5: 0 | ON5: 0 | OO5: 0 | OP5: 0 | OQ5: 0 | OR5: 0 | OS5: 0 | OT5: 0 | OU5: 0 | OV5: 0 | OW5: 0 | OX5: 0 | OY5: 0 | OZ5: 0 | PA5: 0 | PB5: 0 | PC5: 0 | PD5: 0 | PE5: 0 | PF5: 0 | PG5: 0 | PH5: 0 | PI5: 0 | PJ5: 0 | PK5: 0 | PL5: 0 | PM5: 0 | PN5: 0 | PO5: 0 | PP5: 0 | PQ5: 0 | PR5: 0 | PS5: 0 | PT5: 0 | PU5: 0 | PV5: 0 | PW5: 0 | PX5: 0 | PY5: 0 | PZ5: 0 | QA5: 0 | QB5: 0 | QC5: 0 | QD5: 0 | QE5: 0 | QF5: 0 | QG5: 0 | QH5: 0 | QI5: 0 | QJ5: 0 | QK5: 0 | QL5: 0 | QM5: =14-COUNTIF(QM7:QM20,0) -> 0 | QN5: 0 | QO5: 0 | QP5: 0 | QQ5: 0 | QR5: 0 | QS5: 0 | QT5: 0 | QU5: 0 | QV5: 0 | QW5: 0 | QX5: 0 | QY5: 0 | QZ5: 0 | RA5: 0 | RB5: 0 | RC5: 0 | RD5: 0 | RE5: 0 | RF5: 0 | RG5: 0 | RH5: 0 | RI5: 0 | RJ5: 0 | RK5: 0 | RL5: 0 | RM5: 0 | RN5: 0 | RO5: 0 | RP5: 0 | RQ5: 0 | RR5: 0 | RS5: 0 | RT5: 0 | RU5: 0 | RV5: 0 | RW5: 0 | RX5: 0 | RY5: 0 | RZ5: 0 | SA5: 0 | SB5: 0 | SC5: 0 | SD5: 0 | SE5: 0 | SF5: 0 | SG5: 0 | SH5: 0 | SI5: 0 | SJ5: 0 | SK5: 0 | SL5: 0 | SM5: 0 | SN5: 0 | SO5: 0 | SP5: 0 | SQ5: 0 | SR5: 0 | SS5: 0 | ST5: 0 | SU5: 0 | SV5: 0 | SW5: 0 | SX5: 0 | SY5: =14-COUNTIF(SY7:SY20,0) -> 0 | SZ5: 0 | TA5: 0 | TB5: 0 | TC5: 0 | TD5: 0 | TE5: 0 | TF5: 0 | TG5: 0 | TH5: 0 | TI5: 0 | TJ5: 0 | TK5: 0 | TL5: 0 | TM5: 0 | TN5: 0 | TO5: 0 | TP5: 0 | TQ5: 0 | TR5: 0 | TS5: 0 | TT5: 0 | TU5: 0 | TV5: 0 | TW5: 0 | TX5: 0 | TY5: 0 | TZ5: 0 | UA5: 0 | UB5: 0 | UC5: 0 | UD5: 0 | UE5: 0 | UF5: 0 | UG5: 0 | UH5: 0 | UI5: 0 | UJ5: 0 | UK5: 0 | UL5: 0 | UM5: 0 | UN5: 0 | UO5: 0 | UP5: 0 | UQ5: 0 | UR5: 0 | US5: 0 | UT5: 0 | UU5: 0 | UV5: 0 | UW5: 0 | UX5: 0 | UY5: 0 | UZ5: 0 | VA5: 0 | VB5: 0 | VC5: 0 | VD5: 0 | VE5: 0 | VF5: 0 | VG5: 0 | VH5: 0 | VI5: 0 | VJ5: 0 | VK5: =14-COUNTIF(VK7:VK20,0) -> 0 | VL5: 0 | VM5: 0 | VN5: 0 | VO5: 0 | VP5: 0 | VQ5: 0 | VR5: 0 | VS5: 0 | VT5: 0 | VU5: 0 | VV5: 0 | VW5: 0 | VX5: 0 | VY5: 0 | VZ5: 0 | WA5: 0 | WB5: 0 | WC5: 0 | WD5: 0 | WE5: 0 | WF5: 0 | WG5: 0 | WH5: 0 | WI5: 0 | WJ5: 0 | WK5: 0 | WL5: 0 | WM5: 0 | WN5: 0 | WO5: 0 | WP5: 0 | WQ5: 0 | WR5: 0 | WS5: 0 | WT5: 0 | WU5: 0 | WV5: 0 | WW5: 0 | WX5: 0 | WY5: 0 | WZ5: 0 | XA5: 0 | XB5: 0 | XC5: 0 | XD5: 0 | XE5: 0 | XF5: 0 | XG5: 0 | XH5: 0 | XI5: 0 | XJ5: 0 | XK5: 0 | XL5: 0 | XM5: 0 | XN5: 0 | XO5: 0 | XP5: 0 | XQ5: 0 | XR5: 0 | XS5: 0 | XT5: 0 | XU5: 0 | XV5: 0 | XW5: =14-COUNTIF(XW7:XW20,0) -> 0 | XX5: 0 | XY5: 0 | XZ5: 0 | YA5: 0 | YB5: 0 | YC5: 0 | YD5: 0 | YE5: 0 | YF5: 0 | YG5: 0 | YH5: 0 | YI5: 0 | YJ5: 0 | YK5: 0 | YL5: 0 | YM5: 0 | YN5: 0 | YO5: 0 | YP5: 0 | YQ5: 0 | YR5: 0 | YS5: 0 | YT5: 0 | YU5: 0 | YV5: 0 | YW5: 0 | YX5: 0 | YY5: 0 | YZ5: 0 | ZA5: 0 | ZB5: 0 | ZC5: 0 | ZD5: 0 | ZE5: 0 | ZF5: 0 | ZG5: 0 | ZH5: 0 | ZI5: 0 | ZJ5: 0 | ZK5: 0 | ZL5: 0 | ZM5: 0 | ZN5: 0 | ZO5: 0 | ZP5: 0 | ZQ5: 0 | ZR5: 0 | ZS5: 0 | ZT5: 0 | ZU5: 0 | ZV5: 0 | ZW5: 0 | ZX5: 0 | ZY5: 0 | ZZ5: 0 | AAA5: 0 | AAB5: 0 | AAC5: 0 | AAD5: 0 | AAE5: 0 | AAF5: 0 | AAG5: 0 | AAH5: 0 | AAI5: =14-COUNTIF(AAI7:AAI20,0) -> 0 | AAJ5: 0 | AAK5: 0 | AAL5: 0 | AAM5: 0 | AAN5: 0 | AAO5: 0 | AAP5: 0 | AAQ5: 0 | AAR5: 0 | AAS5: 0 | AAT5: 0 | AAU5: 0 | AAV5: 0 | AAW5: 0 | AAX5: 0 | AAY5: 0 | AAZ5: 0 | ABA5: 0 | ABB5: 0 | ABC5: 0 | ABD5: 0 | ABE5: 0 | ABF5: 0 | ABG5: 0 | ABH5: 0 | ABI5: 0 | ABJ5: 0 | ABK5: 0 | ABL5: 0 | ABM5: 0 | ABN5: 0 | ABO5: 0 | ABP5: 0 | ABQ5: 0 | ABR5: 0 | ABS5: 0 | ABT5: 0 | ABU5: 0 | ABV5: 0 | ABW5: 0 | ABX5: 0 | ABY5: 0 | ABZ5: 0 | ACA5: 0 | ACB5: 0 | ACC5: 0 | ACD5: 0 | ACE5: 0 | ACF5: 0 | ACG5: 0 | ACH5: 0 | ACI5: 0 | ACJ5: 0 | ACK5: 0 | ACL5: 0 | ACM5: 0 | ACN5: 0 | ACO5: 0 | ACP5: 0 | ACQ5: 0 | ACR5: 0 | ACS5: 0 | ACT5: 0 | ACU5: =14-COUNTIF(ACU7:ACU20,0) -> 0 | ACV5: 0 | ACW5: 0 | ACX5: 0 | ACY5: 0 | ACZ5: 0 | ADA5: 0 | ADB5: 0 | ADC5: 0 | ADD5: 0 | ADE5: 0 | ADF5: 0 | ADG5: 0 | ADH5: 0 | ADI5: 0 | ADJ5: 0 | ADK5: 0 | ADL5: 0 | ADM5: 0 | ADN5: 0 | ADO5: 0 | ADP5: 0 | ADQ5: 0 | ADR5: 0 | ADS5: 0 | ADT5: 0 | ADU5: 0 | ADV5: 0 | ADW5: 0 | ADX5: 0 | ADY5: 0 | ADZ5: 0 | AEA5: 0 | AEB5: 0 | AEC5: 0 | AED5: 0 | AEE5: 0 | AEF5: 0 | AEG5: 0 | AEH5: 0 | AEI5: 0 | AEJ5: 0 | AEK5: 0 | AEL5: 0 | AEM5: 0 | AEN5: 0 | AEO5: 0 | AEP5: 0 | AEQ5: 0 | AER5: 0 | AES5: 0 | AET5: 0 | AEU5: 0 | AEV5: 0 | AEW5: 0 | AEX5: 0 | AEY5: 0 | AEZ5: 0 | AFA5: 0 | AFB5: 0 | AFC5: 0 | AFD5: 0 | AFE5: 0 | AFF5: 0 | AFG5: =14-COUNTIF(AFG7:AFG20,0) -> 0 | AFH5: 0 | AFI5: 0 | AFJ5: 0 | AFK5: 0 | AFL5: 0 | AFM5: 0 | AFN5: 0 | AFO5: 0 | AFP5: 0 | AFQ5: 0 | AFR5: 0 | AFS5: 0 | AFT5: 0 | AFU5: 0 | AFV5: 0 | AFW5: 0 | AFX5: 0 | AFY5: 0 | AFZ5: 0 | AGA5: 0 | AGB5: 0 | AGC5: 0 | AGD5: 0 | AGE5: 0 | AGF5: 0 | AGG5: 0 | AGH5: 0 | AGI5: 0 | AGJ5: 0 | AGK5: 0 | AGL5: 0 | AGM5: 0 | AGN5: 0 | AGO5: 0 | AGP5: 0 | AGQ5: 0 | AGR5: 0 | AGS5: 0 | AGT5: 0 | AGU5: 0 | AGV5: 0 | AGW5: 0 | AGX5: 0 | AGY5: 0 | AGZ5: 0 | AHA5: 0 | AHB5: 0 | AHC5: 0 | AHD5: 0 | AHE5: 0 | AHF5: 0 | AHG5: 0 | AHH5: 0 | AHI5: 0 | AHJ5: 0 | AHK5: 0 | AHL5: 0 | AHM5: 0 | AHN5: 0 | AHO5: 0 | AHP5: 0 | AHQ5: 0 | AHR5: 0 | AHS5: =14-COUNTIF(AHS7:AHS20,0) -> 0 | AHT5: 0 | AHU5: 0 | AHV5: 0 | AHW5: 0 | AHX5: 0 | AHY5: 0 | AHZ5: 0 | AIA5: 0 | AIB5: 0 | AIC5: 0 | AID5: 0 | AIE5: 0 | AIF5: 0 | AIG5: 0 | AIH5: 0 | AII5: 0 | AIJ5: 0 | AIK5: 0 | AIL5: 0 | AIM5: 0 | AIN5: 0 | AIO5: 0 | AIP5: 0 | AIQ5: 0 | AIR5: 0 | AIS5: 0 | AIT5: 0 | AIU5: 0 | AIV5: 0 | AIW5: 0 | AIX5: 0 | AIY5: 0 | AIZ5: 0 | AJA5: 0 | AJB5: 0 | AJC5: 0 | AJD5: 0 | AJE5: 0 | AJF5: 0 | AJG5: 0 | AJH5: 0 | AJI5: 0 | AJJ5: 0 | AJK5: 0 | AJL5: 0 | AJM5: 0 | AJN5: 0 | AJO5: 0 | AJP5: 0 | AJQ5: 0 | AJR5: 0 | AJS5: 0 | AJT5: 0 | AJU5: 0 | AJV5: 0 | AJW5: 0 | AJX5: 0 | AJY5: 0 | AJZ5: 0 | AKA5: 0 | AKB5: 0 | AKC5: 0 | AKD5: 0 | AKE5: =14-COUNTIF(AKE7:AKE20,0) -> 0 | AKF5: 0 | AKG5: 0 | AKH5: 0 | AKI5: 0 | AKJ5: 0 | AKK5: 0 | AKL5: 0 | AKM5: 0 | AKN5: 0 | AKO5: 0 | AKP5: 0 | AKQ5: 0 | AKR5: 0 | AKS5: 0 | AKT5: 0 | AKU5: 0 | AKV5: 0 | AKW5: 0 | AKX5: 0 | AKY5: 0 | AKZ5: 0 | ALA5: 0 | ALB5: 0 | ALC5: 0 | ALD5: 0 | ALE5: 0 | ALF5: 0 | ALG5: 0 | ALH5: 0 | ALI5: 0 | ALJ5: 0 | ALK5: 0 | ALL5: 0 | ALM5: 0 | ALN5: 0 | ALO5: 0 | ALP5: 0 | ALQ5: 0
A6: #2: | B6: =Venn!S2 -> 423 | C6: =SUM(F28:ALQ28) -> 3 | F6: 2 | G6: 3 | H6: 5 | I6: 7 | J6: 11 | K6: 13 | L6: 17 | M6: 19 | N6: 23 | O6: 29 | P6: 31 | Q6: 37 | R6: 41 | S6: 43 | T6: 47 | U6: 53 | V6: 59 | W6: 61 | X6: 67 | Y6: 71 | Z6: 73 | AA6: 79 | AB6: 83 | AC6: 89 | AD6: 97 | AE6: 101 | AF6: 103 | AG6: 107 | AH6: 109 | AI6: 113 | AJ6: 127 | AK6: 131 | AL6: 137 | AM6: 139 | AN6: 149 | AO6: 151 | AP6: 157 | AQ6: 163 | AR6: 167 | AS6: 173 | AT6: 179 | AU6: 181 | AV6: 191 | AW6: 193 | AX6: 197 | AY6: 199 | AZ6: 211 | BA6: 223 | BB6: 227 | BC6: 229 | BD6: 233 | BE6: 239 | BF6: 241 | BG6: 251 | BH6: 257 | BI6: 263 | BJ6: 269 | BK6: 271 | BL6: 277 | BM6: 281 | BN6: 283 | BO6: 293 | BP6: 307 | BQ6: 311 | BR6: 313 | BS6: 317 | BT6: 331 | BU6: 337 | BV6: 347 | BW6: 349 | BX6: 353 | BY6: 359 | BZ6: 367 | CA6: 373 | CB6: 379 | CC6: 383 | CD6: 389 | CE6: 397 | CF6: 401 | CG6: 409 | CH6: 419 | CI6: 421 | CJ6: 431 | CK6: 433 | CL6: 439 | CM6: 443 | CN6: 449 | CO6: 457 | CP6: 461 | CQ6: 463 | CR6: 467 | CS6: 479 | CT6: 487 | CU6: 491 | CV6: 499 | CW6: 503 | CX6: 509 | CY6: 521 | CZ6: 523 | DA6: 541 | DB6: 547 | DC6: 557 | DD6: 563 | DE6: 569 | DF6: 571 | DG6: 577 | DH6: 587 | DI6: 593 | DJ6: 599 | DK6: 601 | DL6: 607 | DM6: 613 | DN6: 617 | DO6: 619 | DP6: 631 | DQ6: 641 | DR6: 643 | DS6: 647 | DT6: 653 | DU6: 659 | DV6: 661 | DW6: 673 | DX6: 677 | DY6: 683 | DZ6: 691 | EA6: 701 | EB6: 709 | EC6: 719 | ED6: 727 | EE6: 733 | EF6: 739 | EG6: 743 | EH6: 751 | EI6: 757 | EJ6: 761 | EK6: 769 | EL6: 773 | EM6: 787 | EN6: 797 | EO6: 809 | EP6: 811 | EQ6: 821 | ER6: 823 | ES6: 827 | ET6: 829 | EU6: 839 | EV6: 853 | EW6: 857 | EX6: 859 | EY6: 863 | EZ6: 877 | FA6: 881 | FB6: 883 | FC6: 887 | FD6: 907 | FE6: 911 | FF6: 919 | FG6: 929 | FH6: 937 | FI6: 941 | FJ6: 947 | FK6: 953 | FL6: 967 | FM6: 971 | FN6: 977 | FO6: 983 | FP6: 991 | FQ6: 997 | FR6: 1009 | FS6: 1013 | FT6: 1019 | FU6: 1021 | FV6: 1031 | FW6: 1033 | FX6: 1039 | FY6: 1049 | FZ6: 1051 | GA6: 1061 | GB6: 1063 | GC6: 1069 | GD6: 1087 | GE6: 1091 | GF6: 1093 | GG6: 1097 | GH6: 1103 | GI6: 1109 | GJ6: 1117 | GK6: 1123 | GL6: 1129 | GM6: 1151 | GN6: 1153 | GO6: 1163 | GP6: 1171 | GQ6: 1181 | GR6: 1187 | GS6: 1193 | GT6: 1201 | GU6: 1213 | GV6: 1217 | GW6: 1223 | GX6: 1229 | GY6: 1231 | GZ6: 1237 | HA6: 1249 | HB6: 1259 | HC6: 1277 | HD6: 1279 | HE6: 1283 | HF6: 1289 | HG6: 1291 | HH6: 1297 | HI6: 1301 | HJ6: 1303 | HK6: 1307 | HL6: 1319 | HM6: 1321 | HN6: 1327 | HO6: 1361 | HP6: 1367 | HQ6: 1373 | HR6: 1381 | HS6: 1399 | HT6: 1409 | HU6: 1423 | HV6: 1427 | HW6: 1429 | HX6: 1433 | HY6: 1439 | HZ6: 1447 | IA6: 1451 | IB6: 1453 | IC6: 1459 | ID6: 1471 | IE6: 1481 | IF6: 1483 | IG6: 1487 | IH6: 1489 | II6: 1493 | IJ6: 1499 | IK6: 1511 | IL6: 1523 | IM6: 1531 | IN6: 1543 | IO6: 1549 | IP6: 1553 | IQ6: 1559 | IR6: 1567 | IS6: 1571 | IT6: 1579 | IU6: 1583 | IV6: 1597 | IW6: 1601 | IX6: 1607 | IY6: 1609 | IZ6: 1613 | JA6: 1619 | JB6: 1621 | JC6: 1627 | JD6: 1637 | JE6: 1657 | JF6: 1663 | JG6: 1667 | JH6: 1669 | JI6: 1693 | JJ6: 1697 | JK6: 1699 | JL6: 1709 | JM6: 1721 | JN6: 1723 | JO6: 1733 | JP6: 1741 | JQ6: 1747 | JR6: 1753 | JS6: 1759 | JT6: 1777 | JU6: 1783 | JV6: 1787 | JW6: 1789 | JX6: 1801 | JY6: 1811 | JZ6: 1823 | KA6: 1831 | KB6: 1847 | KC6: 1861 | KD6: 1867 | KE6: 1871 | KF6: 1873 | KG6: 1877 | KH6: 1879 | KI6: 1889 | KJ6: 1901 | KK6: 1907 | KL6: 1913 | KM6: 1931 | KN6: 1933 | KO6: 1949 | KP6: 1951 | KQ6: 1973 | KR6: 1979 | KS6: 1987 | KT6: 1993 | KU6: 1997 | KV6: 1999 | KW6: 2003 | KX6: 2011 | KY6: 2017 | KZ6: 2027 | LA6: 2029 | LB6: 2039 | LC6: 2053 | LD6: 2063 | LE6: 2069 | LF6: 2081 | LG6: 2083 | LH6: 2087 | LI6: 2089 | LJ6: 2099 | LK6: 2111 | LL6: 2113 | LM6: 2129 | LN6: 2131 | LO6: 2137 | LP6: 2141 | LQ6: 2143 | LR6: 2153 | LS6: 2161 | LT6: 2179 | LU6: 2203 | LV6: 2207 | LW6: 2213 | LX6: 2221 | LY6: 2237 | LZ6: 2239 | MA6: 2243 | MB6: 2251 | MC6: 2267 | MD6: 2269 | ME6: 2273 | MF6: 2281 | MG6: 2287 | MH6: 2293 | MI6: 2297 | MJ6: 2309 | MK6: 2311 | ML6: 2333 | MM6: 2339 | MN6: 2341 | MO6: 2347 | MP6: 2351 | MQ6: 2357 | MR6: 2371 | MS6: 2377 | MT6: 2381 | MU6: 2383 | MV6: 2389 | MW6: 2393 | MX6: 2399 | MY6: 2411 | MZ6: 2417 | NA6: 2423 | NB6: 2437 | NC6: 2441 | ND6: 2447 | NE6: 2459 | NF6: 2467 | NG6: 2473 | NH6: 2477 | NI6: 2503 | NJ6: 2521 | NK6: 2531 | NL6: 2539 | NM6: 2543 | NN6: 2549 | NO6: 2551 | NP6: 2557 | NQ6: 2579 | NR6: 2591 | NS6: 2593 | NT6: 2609 | NU6: 2617 | NV6: 2621 | NW6: 2633 | NX6: 2647 | NY6: 2657 | NZ6: 2659 | OA6: 2663 | OB6: 2671 | OC6: 2677 | OD6: 2683 | OE6: 2687 | OF6: 2689 | OG6: 2693 | OH6: 2699 | OI6: 2707 | OJ6: 2711 | OK6: 2713 | OL6: 2719 | OM6: 2729 | ON6: 2731 | OO6: 2741 | OP6: 2749 | OQ6: 2753 | OR6: 2767 | OS6: 2777 | OT6: 2789 | OU6: 2791 | OV6: 2797 | OW6: 2801 | OX6: 2803 | OY6: 2819 | OZ6: 2833 | PA6: 2837 | PB6: 2843 | PC6: 2851 | PD6: 2857 | PE6: 2861 | PF6: 2879 | PG6: 2887 | PH6: 2897 | PI6: 2903 | PJ6: 2909 | PK6: 2917 | PL6: 2927 | PM6: 2939 | PN6: 2953 | PO6: 2957 | PP6: 2963 | PQ6: 2969 | PR6: 2971 | PS6: 2999 | PT6: 3001 | PU6: 3011 | PV6: 3019 | PW6: 3023 | PX6: 3037 | PY6: 3041 | PZ6: 3049 | QA6: 3061 | QB6: 3067 | QC6: 3079 | QD6: 3083 | QE6: 3089 | QF6: 3109 | QG6: 3119 | QH6: 3121 | QI6: 3137 | QJ6: 3163 | QK6: 3167 | QL6: 3169 | QM6: 3181 | QN6: 3187 | QO6: 3191 | QP6: 3203 | QQ6: 3209 | QR6: 3217 | QS6: 3221 | QT6: 3229 | QU6: 3251 | QV6: 3253 | QW6: 3257 | QX6: 3259 | QY6: 3271 | QZ6: 3299 | RA6: 3301 | RB6: 3307 | RC6: 3313 | RD6: 3319 | RE6: 3323 | RF6: 3329 | RG6: 3331 | RH6: 3343 | RI6: 3347 | RJ6: 3359 | RK6: 3361 | RL6: 3371 | RM6: 3373 | RN6: 3389 | RO6: 3391 | RP6: 3407 | RQ6: 3413 | RR6: 3433 | RS6: 3449 | RT6: 3457 | RU6: 3461 | RV6: 3463 | RW6: 3467 | RX6: 3469 | RY6: 3491 | RZ6: 3499 | SA6: 3511 | SB6: 3517 | SC6: 3527 | SD6: 3529 | SE6: 3533 | SF6: 3539 | SG6: 3541 | SH6: 3547 | SI6: 3557 | SJ6: 3559 | SK6: 3571 | SL6: 3581 | SM6: 3583 | SN6: 3593 | SO6: 3607 | SP6: 3613 | SQ6: 3617 | SR6: 3623 | SS6: 3631 | ST6: 3637 | SU6: 3643 | SV6: 3659 | SW6: 3671 | SX6: 3673 | SY6: 3677 | SZ6: 3691 | TA6: 3697 | TB6: 3701 | TC6: 3709 | TD6: 3719 | TE6: 3727 | TF6: 3733 | TG6: 3739 | TH6: 3761 | TI6: 3767 | TJ6: 3769 | TK6: 3779 | TL6: 3793 | TM6: 3797 | TN6: 3803 | TO6: 3821 | TP6: 3823 | TQ6: 3833 | TR6: 3847 | TS6: 3851 | TT6: 3853 | TU6: 3863 | TV6: 3877 | TW6: 3881 | TX6: 3889 | TY6: 3907 | TZ6: 3911 | UA6: 3917 | UB6: 3919 | UC6: 3923 | UD6: 3929 | UE6: 3931 | UF6: 3943 | UG6: 3947 | UH6: 3967 | UI6: 3989 | UJ6: 4001 | UK6: 4003 | UL6: 4007 | UM6: 4013 | UN6: 4019 | UO6: 4021 | UP6: 4027 | UQ6: 4049 | UR6: 4051 | US6: 4057 | UT6: 4073 | UU6: 4079 | UV6: 4091 | UW6: 4093 | UX6: 4099 | UY6: 4111 | UZ6: 4127 | VA6: 4129 | VB6: 4133 | VC6: 4139 | VD6: 4153 | VE6: 4157 | VF6: 4159 | VG6: 4177 | VH6: 4201 | VI6: 4211 | VJ6: 4217 | VK6: 4219 | VL6: 4229 | VM6: 4231 | VN6: 4241 | VO6: 4243 | VP6: 4253 | VQ6: 4259 | VR6: 4261 | VS6: 4271 | VT6: 4273 | VU6: 4283 | VV6: 4289 | VW6: 4297 | VX6: 4327 | VY6: 4337 | VZ6: 4339 | WA6: 4349 | WB6: 4357 | WC6: 4363 | WD6: 4373 | WE6: 4391 | WF6: 4397 | WG6: 4409 | WH6: 4421 | WI6: 4423 | WJ6: 4441 | WK6: 4447 | WL6: 4451 | WM6: 4457 | WN6: 4463 | WO6: 4481 | WP6: 4483 | WQ6: 4493 | WR6: 4507 | WS6: 4513 | WT6: 4517 | WU6: 4519 | WV6: 4523 | WW6: 4547 | WX6: 4549 | WY6: 4561 | WZ6: 4567 | XA6: 4583 | XB6: 4591 | XC6: 4597 | XD6: 4603 | XE6: 4621 | XF6: 4637 | XG6: 4639 | XH6: 4643 | XI6: 4649 | XJ6: 4651 | XK6: 4657 | XL6: 4663 | XM6: 4673 | XN6: 4679 | XO6: 4691 | XP6: 4703 | XQ6: 4721 | XR6: 4723 | XS6: 4729 | XT6: 4733 | XU6: 4751 | XV6: 4759 | XW6: 4783 | XX6: 4787 | XY6: 4789 | XZ6: 4793 | YA6: 4799 | YB6: 4801 | YC6: 4813 | YD6: 4817 | YE6: 4831 | YF6: 4861 | YG6: 4871 | YH6: 4877 | YI6: 4889 | YJ6: 4903 | YK6: 4909 | YL6: 4919 | YM6: 4931 | YN6: 4933 | YO6: 4937 | YP6: 4943 | YQ6: 4951 | YR6: 4957 | YS6: 4967 | YT6: 4969 | YU6: 4973 | YV6: 4987 | YW6: 4993 | YX6: 4999 | YY6: 5003 | YZ6: 5009 | ZA6: 5011 | ZB6: 5021 | ZC6: 5023 | ZD6: 5039 | ZE6: 5051 | ZF6: 5059 | ZG6: 5077 | ZH6: 5081 | ZI6: 5087 | ZJ6: 5099 | ZK6: 5101 | ZL6: 5107 | ZM6: 5113 | ZN6: 5119 | ZO6: 5147 | ZP6: 5153 | ZQ6: 5167 | ZR6: 5171 | ZS6: 5179 | ZT6: 5189 | ZU6: 5197 | ZV6: 5209 | ZW6: 5227 | ZX6: 5231 | ZY6: 5233 | ZZ6: 5237 | AAA6: 5261 | AAB6: 5273 | AAC6: 5279 | AAD6: 5281 | AAE6: 5297 | AAF6: 5303 | AAG6: 5309 | AAH6: 5323 | AAI6: 5333 | AAJ6: 5347 | AAK6: 5351 | AAL6: 5381 | AAM6: 5387 | AAN6: 5393 | AAO6: 5399 | AAP6: 5407 | AAQ6: 5413 | AAR6: 5417 | AAS6: 5419 | AAT6: 5431 | AAU6: 5437 | AAV6: 5441 | AAW6: 5443 | AAX6: 5449 | AAY6: 5471 | AAZ6: 5477 | ABA6: 5479 | ABB6: 5483 | ABC6: 5501 | ABD6: 5503 | ABE6: 5507 | ABF6: 5519 | ABG6: 5521 | ABH6: 5527 | ABI6: 5531 | ABJ6: 5557 | ABK6: 5563 | ABL6: 5569 | ABM6: 5573 | ABN6: 5581 | ABO6: 5591 | ABP6: 5623 | ABQ6: 5639 | ABR6: 5641 | ABS6: 5647 | ABT6: 5651 | ABU6: 5653 | ABV6: 5657 | ABW6: 5659 | ABX6: 5669 | ABY6: 5683 | ABZ6: 5689 | ACA6: 5693 | ACB6: 5701 | ACC6: 5711 | ACD6: 5717 | ACE6: 5737 | ACF6: 5741 | ACG6: 5743 | ACH6: 5749 | ACI6: 5779 | ACJ6: 5783 | ACK6: 5791 | ACL6: 5801 | ACM6: 5807 | ACN6: 5813 | ACO6: 5821 | ACP6: 5827 | ACQ6: 5839 | ACR6: 5843 | ACS6: 5849 | ACT6: 5851 | ACU6: 5857 | ACV6: 5861 | ACW6: 5867 | ACX6: 5869 | ACY6: 5879 | ACZ6: 5881 | ADA6: 5897 | ADB6: 5903 | ADC6: 5923 | ADD6: 5927 | ADE6: 5939 | ADF6: 5953 | ADG6: 5981 | ADH6: 5987 | ADI6: 6007 | ADJ6: 6011 | ADK6: 6029 | ADL6: 6037 | ADM6: 6043 | ADN6: 6047 | ADO6: 6053 | ADP6: 6067 | ADQ6: 6073 | ADR6: 6079 | ADS6: 6089 | ADT6: 6091 | ADU6: 6101 | ADV6: 6113 | ADW6: 6121 | ADX6: 6131 | ADY6: 6133 | ADZ6: 6143 | AEA6: 6151 | AEB6: 6163 | AEC6: 6173 | AED6: 6197 | AEE6: 6199 | AEF6: 6203 | AEG6: 6211 | AEH6: 6217 | AEI6: 6221 | AEJ6: 6229 | AEK6: 6247 | AEL6: 6257 | AEM6: 6263 | AEN6: 6269 | AEO6: 6271 | AEP6: 6277 | AEQ6: 6287 | AER6: 6299 | AES6: 6301 | AET6: 6311 | AEU6: 6317 | AEV6: 6323 | AEW6: 6329 | AEX6: 6337 | AEY6: 6343 | AEZ6: 6353 | AFA6: 6359 | AFB6: 6361 | AFC6: 6367 | AFD6: 6373 | AFE6: 6379 | AFF6: 6389 | AFG6: 6397 | AFH6: 6421 | AFI6: 6427 | AFJ6: 6449 | AFK6: 6451 | AFL6: 6469 | AFM6: 6473 | AFN6: 6481 | AFO6: 6491 | AFP6: 6521 | AFQ6: 6529 | AFR6: 6547 | AFS6: 6551 | AFT6: 6553 | AFU6: 6563 | AFV6: 6569 | AFW6: 6571 | AFX6: 6577 | AFY6: 6581 | AFZ6: 6599 | AGA6: 6607 | AGB6: 6619 | AGC6: 6637 | AGD6: 6653 | AGE6: 6659 | AGF6: 6661 | AGG6: 6673 | AGH6: 6679 | AGI6: 6689 | AGJ6: 6691 | AGK6: 6701 | AGL6: 6703 | AGM6: 6709 | AGN6: 6719 | AGO6: 6733 | AGP6: 6737 | AGQ6: 6761 | AGR6: 6763 | AGS6: 6779 | AGT6: 6781 | AGU6: 6791 | AGV6: 6793 | AGW6: 6803 | AGX6: 6823 | AGY6: 6827 | AGZ6: 6829 | AHA6: 6833 | AHB6: 6841 | AHC6: 6857 | AHD6: 6863 | AHE6: 6869 | AHF6: 6871 | AHG6: 6883 | AHH6: 6899 | AHI6: 6907 | AHJ6: 6911 | AHK6: 6917 | AHL6: 6947 | AHM6: 6949 | AHN6: 6959 | AHO6: 6961 | AHP6: 6967 | AHQ6: 6971 | AHR6: 6977 | AHS6: 6983 | AHT6: 6991 | AHU6: 6997 | AHV6: 7001 | AHW6: 7013 | AHX6: 7019 | AHY6: 7027 | AHZ6: 7039 | AIA6: 7043 | AIB6: 7057 | AIC6: 7069 | AID6: 7079 | AIE6: 7103 | AIF6: 7109 | AIG6: 7121 | AIH6: 7127 | AII6: 7129 | AIJ6: 7151 | AIK6: 7159 | AIL6: 7177 | AIM6: 7187 | AIN6: 7193 | AIO6: 7207 | AIP6: 7211 | AIQ6: 7213 | AIR6: 7219 | AIS6: 7229 | AIT6: 7237 | AIU6: 7243 | AIV6: 7247 | AIW6: 7253 | AIX6: 7283 | AIY6: 7297 | AIZ6: 7307 | AJA6: 7309 | AJB6: 7321 | AJC6: 7331 | AJD6: 7333 | AJE6: 7349 | AJF6: 7351 | AJG6: 7369 | AJH6: 7393 | AJI6: 7411 | AJJ6: 7417 | AJK6: 7433 | AJL6: 7451 | AJM6: 7457 | AJN6: 7459 | AJO6: 7477 | AJP6: 7481 | AJQ6: 7487 | AJR6: 7489 | AJS6: 7499 | AJT6: 7507 | AJU6: 7517 | AJV6: 7523 | AJW6: 7529 | AJX6: 7537 | AJY6: 7541 | AJZ6: 7547 | AKA6: 7549 | AKB6: 7559 | AKC6: 7561 | AKD6: 7573 | AKE6: 7577 | AKF6: 7583 | AKG6: 7589 | AKH6: 7591 | AKI6: 7603 | AKJ6: 7607 | AKK6: 7621 | AKL6: 7639 | AKM6: 7643 | AKN6: 7649 | AKO6: 7669 | AKP6: 7673 | AKQ6: 7681 | AKR6: 7687 | AKS6: 7691 | AKT6: 7699 | AKU6: 7703 | AKV6: 7717 | AKW6: 7723 | AKX6: 7727 | AKY6: 7741 | AKZ6: 7753 | ALA6: 7757 | ALB6: 7759 | ALC6: 7789 | ALD6: 7793 | ALE6: 7817 | ALF6: 7823 | ALG6: 7829 | ALH6: 7841 | ALI6: 7853 | ALJ6: 7867 | ALK6: 7873 | ALL6: 7877 | ALM6: 7879 | ALN6: 7883 | ALO6: 7901 | ALP6: 7907 | ALQ6: 7919 | ALR6: 10000
F7: =IF($B5/F$6=ROUND($B5/F$6,0),$B5/F$6,0) -> 90 | G7: 60 | H7: 36 | I7: 0 | J7: 0 | K7: 0 | L7: 0 | M7: 0 | N7: 0 | O7: 0 | P7: 0 | Q7: 0 | R7: 0 | S7: 0 | T7: 0 | U7: 0 | V7: 0 | W7: 0 | X7: 0 | Y7: 0 | Z7: 0 | AA7: 0 | AB7: 0 | AC7: 0 | AD7: 0 | AE7: 0 | AF7: 0 | AG7: 0 | AH7: 0 | AI7: 0 | AJ7: 0 | AK7: 0 | AL7: 0 | AM7: 0 | AN7: 0 | AO7: 0 | AP7: 0 | AQ7: 0 | AR7: 0 | AS7: 0 | AT7: 0 | AU7: 0 | AV7: 0 | AW7: 0 | AX7: 0 | AY7: 0 | AZ7: 0 | BA7: 0 | BB7: 0 | BC7: 0 | BD7: 0 | BE7: 0 | BF7: 0 | BG7: 0 | BH7: 0 | BI7: 0 | BJ7: 0 | BK7: 0 | BL7: 0 | BM7: 0 | BN7: 0 | BO7: 0 | BP7: 0 | BQ7: 0 | BR7: =IF($B5/BR$6=ROUND($B5/BR$6,0),$B5/BR$6,0) -> 0 | BS7: 0 | BT7: 0 | BU7: 0 | BV7: 0 | BW7: 0 | BX7: 0 | BY7: 0 | BZ7: 0 | CA7: 0 | CB7: 0 | CC7: 0 | CD7: 0 | CE7: 0 | CF7: 0 | CG7: 0 | CH7: 0 | CI7: 0 | CJ7: 0 | CK7: 0 | CL7: 0 | CM7: 0 | CN7: 0 | CO7: 0 | CP7: 0 | CQ7: 0 | CR7: 0 | CS7: 0 | CT7: 0 | CU7: 0 | CV7: 0 | CW7: 0 | CX7: 0 | CY7: 0 | CZ7: 0 | DA7: 0 | DB7: 0 | DC7: 0 | DD7: 0 | DE7: 0 | DF7: 0 | DG7: 0 | DH7: 0 | DI7: 0 | DJ7: 0 | DK7: 0 | DL7: 0 | DM7: 0 | DN7: 0 | DO7: 0 | DP7: 0 | DQ7: 0 | DR7: 0 | DS7: 0 | DT7: 0 | DU7: 0 | DV7: 0 | DW7: 0 | DX7: 0 | DY7: 0 | DZ7: 0 | EA7: 0 | EB7: 0 | EC7: 0 | ED7: =IF($B5/ED$6=ROUND($B5/ED$6,0),$B5/ED$6,0) -> 0 | EE7: 0 | EF7: 0 | EG7: 0 | EH7: 0 | EI7: 0 | EJ7: 0 | EK7: 0 | EL7: 0 | EM7: 0 | EN7: 0 | EO7: 0 | EP7: 0 | EQ7: 0 | ER7: 0 | ES7: 0 | ET7: 0 | EU7: 0 | EV7: 0 | EW7: 0 | EX7: 0 | EY7: 0 | EZ7: 0 | FA7: 0 | FB7: 0 | FC7: 0 | FD7: 0 | FE7: 0 | FF7: 0 | FG7: 0 | FH7: 0 | FI7: 0 | FJ7: 0 | FK7: 0 | FL7: 0 | FM7: 0 | FN7: 0 | FO7: 0 | FP7: 0 | FQ7: 0 | FR7: 0 | FS7: 0 | FT7: 0 | FU7: 0 | FV7: 0 | FW7: 0 | FX7: 0 | FY7: 0 | FZ7: 0 | GA7: 0 | GB7: 0 | GC7: 0 | GD7: 0 | GE7: 0 | GF7: 0 | GG7: 0 | GH7: 0 | GI7: 0 | GJ7: 0 | GK7: 0 | GL7: 0 | GM7: 0 | GN7: 0 | GO7: 0 | GP7: =IF($B5/GP$6=ROUND($B5/GP$6,0),$B5/GP$6,0) -> 0 | GQ7: 0 | GR7: 0 | GS7: 0 | GT7: 0 | GU7: 0 | GV7: 0 | GW7: 0 | GX7: 0 | GY7: 0 | GZ7: 0 | HA7: 0 | HB7: 0 | HC7: 0 | HD7: 0 | HE7: 0 | HF7: 0 | HG7: 0 | HH7: 0 | HI7: 0 | HJ7: 0 | HK7: 0 | HL7: 0 | HM7: 0 | HN7: 0 | HO7: 0 | HP7: 0 | HQ7: 0 | HR7: 0 | HS7: 0 | HT7: 0 | HU7: 0 | HV7: 0 | HW7: 0 | HX7: 0 | HY7: 0 | HZ7: 0 | IA7: 0 | IB7: 0 | IC7: 0 | ID7: 0 | IE7: 0 | IF7: 0 | IG7: 0 | IH7: 0 | II7: 0 | IJ7: 0 | IK7: 0 | IL7: 0 | IM7: 0 | IN7: 0 | IO7: 0 | IP7: 0 | IQ7: 0 | IR7: 0 | IS7: 0 | IT7: 0 | IU7: 0 | IV7: 0 | IW7: 0 | IX7: 0 | IY7: 0 | IZ7: 0 | JA7: 0 | JB7: =IF($B5/JB$6=ROUND($B5/JB$6,0),$B5/JB$6,0) -> 0 | JC7: 0 | JD7: 0 | JE7: 0 | JF7: 0 | JG7: 0 | JH7: 0 | JI7: 0 | JJ7: 0 | JK7: 0 | JL7: 0 | JM7: 0 | JN7: 0 | JO7: 0 | JP7: 0 | JQ7: 0 | JR7: 0 | JS7: 0 | JT7: 0 | JU7: 0 | JV7: 0 | JW7: 0 | JX7: 0 | JY7: 0 | JZ7: 0 | KA7: 0 | KB7: 0 | KC7: 0 | KD7: 0 | KE7: 0 | KF7: 0 | KG7: 0 | KH7: 0 | KI7: 0 | KJ7: 0 | KK7: 0 | KL7: 0 | KM7: 0 | KN7: 0 | KO7: 0 | KP7: 0 | KQ7: 0 | KR7: 0 | KS7: 0 | KT7: 0 | KU7: 0 | KV7: 0 | KW7: 0 | KX7: 0 | KY7: 0 | KZ7: 0 | LA7: 0 | LB7: 0 | LC7: 0 | LD7: 0 | LE7: 0 | LF7: 0 | LG7: 0 | LH7: 0 | LI7: 0 | LJ7: 0 | LK7: 0 | LL7: 0 | LM7: 0 | LN7: =IF($B5/LN$6=ROUND($B5/LN$6,0),$B5/LN$6,0) -> 0 | LO7: 0 | LP7: 0 | LQ7: 0 | LR7: 0 | LS7: 0 | LT7: 0 | LU7: 0 | LV7: 0 | LW7: 0 | LX7: 0 | LY7: 0 | LZ7: 0 | MA7: 0 | MB7: 0 | MC7: 0 | MD7: 0 | ME7: 0 | MF7: 0 | MG7: 0 | MH7: 0 | MI7: 0 | MJ7: 0 | MK7: 0 | ML7: 0 | MM7: 0 | MN7: 0 | MO7: 0 | MP7: 0 | MQ7: 0 | MR7: 0 | MS7: 0 | MT7: 0 | MU7: 0 | MV7: 0 | MW7: 0 | MX7: 0 | MY7: 0 | MZ7: 0 | NA7: 0 | NB7: 0 | NC7: 0 | ND7: 0 | NE7: 0 | NF7: 0 | NG7: 0 | NH7: 0 | NI7: 0 | NJ7: 0 | NK7: 0 | NL7: 0 | NM7: 0 | NN7: 0 | NO7: 0 | NP7: 0 | NQ7: 0 | NR7: 0 | NS7: 0 | NT7: 0 | NU7: 0 | NV7: 0 | NW7: 0 | NX7: 0 | NY7: 0 | NZ7: =IF($B5/NZ$6=ROUND($B5/NZ$6,0),$B5/NZ$6,0) -> 0 | OA7: 0 | OB7: 0 | OC7: 0 | OD7: 0 | OE7: 0 | OF7: 0 | OG7: 0 | OH7: 0 | OI7: 0 | OJ7: 0 | OK7: 0 | OL7: 0 | OM7: 0 | ON7: 0 | OO7: 0 | OP7: 0 | OQ7: 0 | OR7: 0 | OS7: 0 | OT7: 0 | OU7: 0 | OV7: 0 | OW7: 0 | OX7: 0 | OY7: 0 | OZ7: 0 | PA7: 0 | PB7: 0 | PC7: 0 | PD7: 0 | PE7: 0 | PF7: 0 | PG7: 0 | PH7: 0 | PI7: 0 | PJ7: 0 | PK7: 0 | PL7: 0 | PM7: 0 | PN7: 0 | PO7: 0 | PP7: 0 | PQ7: 0 | PR7: 0 | PS7: 0 | PT7: 0 | PU7: 0 | PV7: 0 | PW7: 0 | PX7: 0 | PY7: 0 | PZ7: 0 | QA7: 0 | QB7: 0 | QC7: 0 | QD7: 0 | QE7: 0 | QF7: 0 | QG7: 0 | QH7: 0 | QI7: 0 | QJ7: 0 | QK7: 0 | QL7: =IF($B5/QL$6=ROUND($B5/QL$6,0),$B5/QL$6,0) -> 0 | QM7: 0 | QN7: 0 | QO7: 0 | QP7: 0 | QQ7: 0 | QR7: 0 | QS7: 0 | QT7: 0 | QU7: 0 | QV7: 0 | QW7: 0 | QX7: 0 | QY7: 0 | QZ7: 0 | RA7: 0 | RB7: 0 | RC7: 0 | RD7: 0 | RE7: 0 | RF7: 0 | RG7: 0 | RH7: 0 | RI7: 0 | RJ7: 0 | RK7: 0 | RL7: 0 | RM7: 0 | RN7: 0 | RO7: 0 | RP7: 0 | RQ7: 0 | RR7: 0 | RS7: 0 | RT7: 0 | RU7: 0 | RV7: 0 | RW7: 0 | RX7: 0 | RY7: 0 | RZ7: 0 | SA7: 0 | SB7: 0 | SC7: 0 | SD7: 0 | SE7: 0 | SF7: 0 | SG7: 0 | SH7: 0 | SI7: 0 | SJ7: 0 | SK7: 0 | SL7: 0 | SM7: 0 | SN7: 0 | SO7: 0 | SP7: 0 | SQ7: 0 | SR7: 0 | SS7: 0 | ST7: 0 | SU7: 0 | SV7: 0 | SW7: 0 | SX7: =IF($B5/SX$6=ROUND($B5/SX$6,0),$B5/SX$6,0) -> 0 | SY7: 0 | SZ7: 0 | TA7: 0 | TB7: 0 | TC7: 0 | TD7: 0 | TE7: 0 | TF7: 0 | TG7: 0 | TH7: 0 | TI7: 0 | TJ7: 0 | TK7: 0 | TL7: 0 | TM7: 0 | TN7: 0 | TO7: 0 | TP7: 0 | TQ7: 0 | TR7: 0 | TS7: 0 | TT7: 0 | TU7: 0 | TV7: 0 | TW7: 0 | TX7: 0 | TY7: 0 | TZ7: 0 | UA7: 0 | UB7: 0 | UC7: 0 | UD7: 0 | UE7: 0 | UF7: 0 | UG7: 0 | UH7: 0 | UI7: 0 | UJ7: 0 | UK7: 0 | UL7: 0 | UM7: 0 | UN7: 0 | UO7: 0 | UP7: 0 | UQ7: 0 | UR7: 0 | US7: 0 | UT7: 0 | UU7: 0 | UV7: 0 | UW7: 0 | UX7: 0 | UY7: 0 | UZ7: 0 | VA7: 0 | VB7: 0 | VC7: 0 | VD7: 0 | VE7: 0 | VF7: 0 | VG7: 0 | VH7: 0 | VI7: 0 | VJ7: =IF($B5/VJ$6=ROUND($B5/VJ$6,0),$B5/VJ$6,0) -> 0 | VK7: 0 | VL7: 0 | VM7: 0 | VN7: 0 | VO7: 0 | VP7: 0 | VQ7: 0 | VR7: 0 | VS7: 0 | VT7: 0 | VU7: 0 | VV7: 0 | VW7: 0 | VX7: 0 | VY7: 0 | VZ7: 0 | WA7: 0 | WB7: 0 | WC7: 0 | WD7: 0 | WE7: 0 | WF7: 0 | WG7: 0 | WH7: 0 | WI7: 0 | WJ7: 0 | WK7: 0 | WL7: 0 | WM7: 0 | WN7: 0 | WO7: 0 | WP7: 0 | WQ7: 0 | WR7: 0 | WS7: 0 | WT7: 0 | WU7: 0 | WV7: 0 | WW7: 0 | WX7: 0 | WY7: 0 | WZ7: 0 | XA7: 0 | XB7: 0 | XC7: 0 | XD7: 0 | XE7: 0 | XF7: 0 | XG7: 0 | XH7: 0 | XI7: 0 | XJ7: 0 | XK7: 0 | XL7: 0 | XM7: 0 | XN7: 0 | XO7: 0 | XP7: 0 | XQ7: 0 | XR7: 0 | XS7: 0 | XT7: 0 | XU7: 0 | XV7: =IF($B5/XV$6=ROUND($B5/XV$6,0),$B5/XV$6,0) -> 0 | XW7: 0 | XX7: 0 | XY7: 0 | XZ7: 0 | YA7: 0 | YB7: 0 | YC7: 0 | YD7: 0 | YE7: 0 | YF7: 0 | YG7: 0 | YH7: 0 | YI7: 0 | YJ7: 0 | YK7: 0 | YL7: 0 | YM7: 0 | YN7: 0 | YO7: 0 | YP7: 0 | YQ7: 0 | YR7: 0 | YS7: 0 | YT7: 0 | YU7: 0 | YV7: 0 | YW7: 0 | YX7: 0 | YY7: 0 | YZ7: 0 | ZA7: 0 | ZB7: 0 | ZC7: 0 | ZD7: 0 | ZE7: 0 | ZF7: 0 | ZG7: 0 | ZH7: 0 | ZI7: 0 | ZJ7: 0 | ZK7: 0 | ZL7: 0 | ZM7: 0 | ZN7: 0 | ZO7: 0 | ZP7: 0 | ZQ7: 0 | ZR7: 0 | ZS7: 0 | ZT7: 0 | ZU7: 0 | ZV7: 0 | ZW7: 0 | ZX7: 0 | ZY7: 0 | ZZ7: 0 | AAA7: 0 | AAB7: 0 | AAC7: 0 | AAD7: 0 | AAE7: 0 | AAF7: 0 | AAG7: 0 | AAH7: =IF($B5/AAH$6=ROUND($B5/AAH$6,0),$B5/AAH$6,0) -> 0 | AAI7: 0 | AAJ7: 0 | AAK7: 0 | AAL7: 0 | AAM7: 0 | AAN7: 0 | AAO7: 0 | AAP7: 0 | AAQ7: 0 | AAR7: 0 | AAS7: 0 | AAT7: 0 | AAU7: 0 | AAV7: 0 | AAW7: 0 | AAX7: 0 | AAY7: 0 | AAZ7: 0 | ABA7: 0 | ABB7: 0 | ABC7: 0 | ABD7: 0 | ABE7: 0 | ABF7: 0 | ABG7: 0 | ABH7: 0 | ABI7: 0 | ABJ7: 0 | ABK7: 0 | ABL7: 0 | ABM7: 0 | ABN7: 0 | ABO7: 0 | ABP7: 0 | ABQ7: 0 | ABR7: 0 | ABS7: 0 | ABT7: 0 | ABU7: 0 | ABV7: 0 | ABW7: 0 | ABX7: 0 | ABY7: 0 | ABZ7: 0 | ACA7: 0 | ACB7: 0 | ACC7: 0 | ACD7: 0 | ACE7: 0 | ACF7: 0 | ACG7: 0 | ACH7: 0 | ACI7: 0 | ACJ7: 0 | ACK7: 0 | ACL7: 0 | ACM7: 0 | ACN7: 0 | ACO7: 0 | ACP7: 0 | ACQ7: 0 | ACR7: 0 | ACS7: 0 | ACT7: =IF($B5/ACT$6=ROUND($B5/ACT$6,0),$B5/ACT$6,0) -> 0 | ACU7: 0 | ACV7: 0 | ACW7: 0 | ACX7: 0 | ACY7: 0 | ACZ7: 0 | ADA7: 0 | ADB7: 0 | ADC7: 0 | ADD7: 0 | ADE7: 0 | ADF7: 0 | ADG7: 0 | ADH7: 0 | ADI7: 0 | ADJ7: 0 | ADK7: 0 | ADL7: 0 | ADM7: 0 | ADN7: 0 | ADO7: 0 | ADP7: 0 | ADQ7: 0 | ADR7: 0 | ADS7: 0 | ADT7: 0 | ADU7: 0 | ADV7: 0 | ADW7: 0 | ADX7: 0 | ADY7: 0 | ADZ7: 0 | AEA7: 0 | AEB7: 0 | AEC7: 0 | AED7: 0 | AEE7: 0 | AEF7: 0 | AEG7: 0 | AEH7: 0 | AEI7: 0 | AEJ7: 0 | AEK7: 0 | AEL7: 0 | AEM7: 0 | AEN7: 0 | AEO7: 0 | AEP7: 0 | AEQ7: 0 | AER7: 0 | AES7: 0 | AET7: 0 | AEU7: 0 | AEV7: 0 | AEW7: 0 | AEX7: 0 | AEY7: 0 | AEZ7: 0 | AFA7: 0 | AFB7: 0 | AFC7: 0 | AFD7: 0 | AFE7: 0 | AFF7: =IF($B5/AFF$6=ROUND($B5/AFF$6,0),$B5/AFF$6,0) -> 0 | AFG7: 0 | AFH7: 0 | AFI7: 0 | AFJ7: 0 | AFK7: 0 | AFL7: 0 | AFM7: 0 | AFN7: 0 | AFO7: 0 | AFP7: 0 | AFQ7: 0 | AFR7: 0 | AFS7: 0 | AFT7: 0 | AFU7: 0 | AFV7: 0 | AFW7: 0 | AFX7: 0 | AFY7: 0 | AFZ7: 0 | AGA7: 0 | AGB7: 0 | AGC7: 0 | AGD7: 0 | AGE7: 0 | AGF7: 0 | AGG7: 0 | AGH7: 0 | AGI7: 0 | AGJ7: 0 | AGK7: 0 | AGL7: 0 | AGM7: 0 | AGN7: 0 | AGO7: 0 | AGP7: 0 | AGQ7: 0 | AGR7: 0 | AGS7: 0 | AGT7: 0 | AGU7: 0 | AGV7: 0 | AGW7: 0 | AGX7: 0 | AGY7: 0 | AGZ7: 0 | AHA7: 0 | AHB7: 0 | AHC7: 0 | AHD7: 0 | AHE7: 0 | AHF7: 0 | AHG7: 0 | AHH7: 0 | AHI7: 0 | AHJ7: 0 | AHK7: 0 | AHL7: 0 | AHM7: 0 | AHN7: 0 | AHO7: 0 | AHP7: 0 | AHQ7: 0 | AHR7: =IF($B5/AHR$6=ROUND($B5/AHR$6,0),$B5/AHR$6,0) -> 0 | AHS7: 0 | AHT7: 0 | AHU7: 0 | AHV7: 0 | AHW7: 0 | AHX7: 0 | AHY7: 0 | AHZ7: 0 | AIA7: 0 | AIB7: 0 | AIC7: 0 | AID7: 0 | AIE7: 0 | AIF7: 0 | AIG7: 0 | AIH7: 0 | AII7: 0 | AIJ7: 0 | AIK7: 0 | AIL7: 0 | AIM7: 0 | AIN7: 0 | AIO7: 0 | AIP7: 0 | AIQ7: 0 | AIR7: 0 | AIS7: 0 | AIT7: 0 | AIU7: 0 | AIV7: 0 | AIW7: 0 | AIX7: 0 | AIY7: 0 | AIZ7: 0 | AJA7: 0 | AJB7: 0 | AJC7: 0 | AJD7: 0 | AJE7: 0 | AJF7: 0 | AJG7: 0 | AJH7: 0 | AJI7: 0 | AJJ7: 0 | AJK7: 0 | AJL7: 0 | AJM7: 0 | AJN7: 0 | AJO7: 0 | AJP7: 0 | AJQ7: 0 | AJR7: 0 | AJS7: 0 | AJT7: 0 | AJU7: 0 | AJV7: 0 | AJW7: 0 | AJX7: 0 | AJY7: 0 | AJZ7: 0 | AKA7: 0 | AKB7: 0 | AKC7: 0 | AKD7: =IF($B5/AKD$6=ROUND($B5/AKD$6,0),$B5/AKD$6,0) -> 0 | AKE7: 0 | AKF7: 0 | AKG7: 0 | AKH7: 0 | AKI7: 0 | AKJ7: 0 | AKK7: 0 | AKL7: 0 | AKM7: 0 | AKN7: 0 | AKO7: 0 | AKP7: 0 | AKQ7: 0 | AKR7: 0 | AKS7: 0 | AKT7: 0 | AKU7: 0 | AKV7: 0 | AKW7: 0 | AKX7: 0 | AKY7: 0 | AKZ7: 0 | ALA7: 0 | ALB7: 0 | ALC7: 0 | ALD7: 0 | ALE7: 0 | ALF7: 0 | ALG7: 0 | ALH7: 0 | ALI7: 0 | ALJ7: 0 | ALK7: 0 | ALL7: 0 | ALM7: 0 | ALN7: 0 | ALO7: 0 | ALP7: 0 | ALQ7: 0
A8: Max: | B8: =F6*ALQ6 -> 15838 | F8: =IF(AND(F7/F$6=ROUND(F7/F$6,0),NOT(F7=0)),F7/F$6,0) -> 45 | G8: =IF(AND(G7/G$6=ROUND(G7/G$6,0),NOT(G7=0)),G7/G$6,0) -> 20 | H8: 0 | I8: 0 | J8: 0 | K8: 0 | L8: 0 | M8: 0 | N8: 0 | O8: 0 | P8: 0 | Q8: 0 | R8: 0 | S8: 0 | T8: 0 | U8: 0 | V8: 0 | W8: 0 | X8: 0 | Y8: 0 | Z8: 0 | AA8: 0 | AB8: 0 | AC8: 0 | AD8: 0 | AE8: 0 | AF8: 0 | AG8: 0 | AH8: 0 | AI8: 0 | AJ8: 0 | AK8: 0 | AL8: 0 | AM8: 0 | AN8: 0 | AO8: 0 | AP8: 0 | AQ8: 0 | AR8: 0 | AS8: 0 | AT8: 0 | AU8: 0 | AV8: 0 | AW8: 0 | AX8: 0 | AY8: 0 | AZ8: 0 | BA8: 0 | BB8: 0 | BC8: 0 | BD8: 0 | BE8: 0 | BF8: 0 | BG8: 0 | BH8: 0 | BI8: 0 | BJ8: 0 | BK8: 0 | BL8: 0 | BM8: 0 | BN8: 0 | BO8: 0 | BP8: 0 | BQ8: 0 | BR8: 0 | BS8: =IF(AND(BS7/BS$6=ROUND(BS7/BS$6,0),NOT(BS7=0)),BS7/BS$6,0) -> 0 | BT8: 0 | BU8: 0 | BV8: 0 | BW8: 0 | BX8: 0 | BY8: 0 | BZ8: 0 | CA8: 0 | CB8: 0 | CC8: 0 | CD8: 0 | CE8: 0 | CF8: 0 | CG8: 0 | CH8: 0 | CI8: 0 | CJ8: 0 | CK8: 0 | CL8: 0 | CM8: 0 | CN8: 0 | CO8: 0 | CP8: 0 | CQ8: 0 | CR8: 0 | CS8: 0 | CT8: 0 | CU8: 0 | CV8: 0 | CW8: 0 | CX8: 0 | CY8: 0 | CZ8: 0 | DA8: 0 | DB8: 0 | DC8: 0 | DD8: 0 | DE8: 0 | DF8: 0 | DG8: 0 | DH8: 0 | DI8: 0 | DJ8: 0 | DK8: 0 | DL8: 0 | DM8: 0 | DN8: 0 | DO8: 0 | DP8: 0 | DQ8: 0 | DR8: 0 | DS8: 0 | DT8: 0 | DU8: 0 | DV8: 0 | DW8: 0 | DX8: 0 | DY8: 0 | DZ8: 0 | EA8: 0 | EB8: 0 | EC8: 0 | ED8: 0 | EE8: =IF(AND(EE7/EE$6=ROUND(EE7/EE$6,0),NOT(EE7=0)),EE7/EE$6,0) -> 0 | EF8: 0 | EG8: 0 | EH8: 0 | EI8: 0 | EJ8: 0 | EK8: 0 | EL8: 0 | EM8: 0 | EN8: 0 | EO8: 0 | EP8: 0 | EQ8: 0 | ER8: 0 | ES8: 0 | ET8: 0 | EU8: 0 | EV8: 0 | EW8: 0 | EX8: 0 | EY8: 0 | EZ8: 0 | FA8: 0 | FB8: 0 | FC8: 0 | FD8: 0 | FE8: 0 | FF8: 0 | FG8: 0 | FH8: 0 | FI8: 0 | FJ8: 0 | FK8: 0 | FL8: 0 | FM8: 0 | FN8: 0 | FO8: 0 | FP8: 0 | FQ8: 0 | FR8: 0 | FS8: 0 | FT8: 0 | FU8: 0 | FV8: 0 | FW8: 0 | FX8: 0 | FY8: 0 | FZ8: 0 | GA8: 0 | GB8: 0 | GC8: 0 | GD8: 0 | GE8: 0 | GF8: 0 | GG8: 0 | GH8: 0 | GI8: 0 | GJ8: 0 | GK8: 0 | GL8: 0 | GM8: 0 | GN8: 0 | GO8: 0 | GP8: 0 | GQ8: =IF(AND(GQ7/GQ$6=ROUND(GQ7/GQ$6,0),NOT(GQ7=0)),GQ7/GQ$6,0) -> 0 | GR8: 0 | GS8: 0 | GT8: 0 | GU8: 0 | GV8: 0 | GW8: 0 | GX8: 0 | GY8: 0 | GZ8: 0 | HA8: 0 | HB8: 0 | HC8: 0 | HD8: 0 | HE8: 0 | HF8: 0 | HG8: 0 | HH8: 0 | HI8: 0 | HJ8: 0 | HK8: 0 | HL8: 0 | HM8: 0 | HN8: 0 | HO8: 0 | HP8: 0 | HQ8: 0 | HR8: 0 | HS8: 0 | HT8: 0 | HU8: 0 | HV8: 0 | HW8: 0 | HX8: 0 | HY8: 0 | HZ8: 0 | IA8: 0 | IB8: 0 | IC8: 0 | ID8: 0 | IE8: 0 | IF8: 0 | IG8: 0 | IH8: 0 | II8: 0 | IJ8: 0 | IK8: 0 | IL8: 0 | IM8: 0 | IN8: 0 | IO8: 0 | IP8: 0 | IQ8: 0 | IR8: 0 | IS8: 0 | IT8: 0 | IU8: 0 | IV8: 0 | IW8: 0 | IX8: 0 | IY8: 0 | IZ8: 0 | JA8: 0 | JB8: 0 | JC8: =IF(AND(JC7/JC$6=ROUND(JC7/JC$6,0),NOT(JC7=0)),JC7/JC$6,0) -> 0 | JD8: 0 | JE8: 0 | JF8: 0 | JG8: 0 | JH8: 0 | JI8: 0 | JJ8: 0 | JK8: 0 | JL8: 0 | JM8: 0 | JN8: 0 | JO8: 0 | JP8: 0 | JQ8: 0 | JR8: 0 | JS8: 0 | JT8: 0 | JU8: 0 | JV8: 0 | JW8: 0 | JX8: 0 | JY8: 0 | JZ8: 0 | KA8: 0 | KB8: 0 | KC8: 0 | KD8: 0 | KE8: 0 | KF8: 0 | KG8: 0 | KH8: 0 | KI8: 0 | KJ8: 0 | KK8: 0 | KL8: 0 | KM8: 0 | KN8: 0 | KO8: 0 | KP8: 0 | KQ8: 0 | KR8: 0 | KS8: 0 | KT8: 0 | KU8: 0 | KV8: 0 | KW8: 0 | KX8: 0 | KY8: 0 | KZ8: 0 | LA8: 0 | LB8: 0 | LC8: 0 | LD8: 0 | LE8: 0 | LF8: 0 | LG8: 0 | LH8: 0 | LI8: 0 | LJ8: 0 | LK8: 0 | LL8: 0 | LM8: 0 | LN8: 0 | LO8: =IF(AND(LO7/LO$6=ROUND(LO7/LO$6,0),NOT(LO7=0)),LO7/LO$6,0) -> 0 | LP8: 0 | LQ8: 0 | LR8: 0 | LS8: 0 | LT8: 0 | LU8: 0 | LV8: 0 | LW8: 0 | LX8: 0 | LY8: 0 | LZ8: 0 | MA8: 0 | MB8: 0 | MC8: 0 | MD8: 0 | ME8: 0 | MF8: 0 | MG8: 0 | MH8: 0 | MI8: 0 | MJ8: 0 | MK8: 0 | ML8: 0 | MM8: 0 | MN8: 0 | MO8: 0 | MP8: 0 | MQ8: 0 | MR8: 0 | MS8: 0 | MT8: 0 | MU8: 0 | MV8: 0 | MW8: 0 | MX8: 0 | MY8: 0 | MZ8: 0 | NA8: 0 | NB8: 0 | NC8: 0 | ND8: 0 | NE8: 0 | NF8: 0 | NG8: 0 | NH8: 0 | NI8: 0 | NJ8: 0 | NK8: 0 | NL8: 0 | NM8: 0 | NN8: 0 | NO8: 0 | NP8: 0 | NQ8: 0 | NR8: 0 | NS8: 0 | NT8: 0 | NU8: 0 | NV8: 0 | NW8: 0 | NX8: 0 | NY8: 0 | NZ8: 0 | OA8: =IF(AND(OA7/OA$6=ROUND(OA7/OA$6,0),NOT(OA7=0)),OA7/OA$6,0) -> 0 | OB8: 0 | OC8: 0 | OD8: 0 | OE8: 0 | OF8: 0 | OG8: 0 | OH8: 0 | OI8: 0 | OJ8: 0 | OK8: 0 | OL8: 0 | OM8: 0 | ON8: 0 | OO8: 0 | OP8: 0 | OQ8: 0 | OR8: 0 | OS8: 0 | OT8: 0 | OU8: 0 | OV8: 0 | OW8: 0 | OX8: 0 | OY8: 0 | OZ8: 0 | PA8: 0 | PB8: 0 | PC8: 0 | PD8: 0 | PE8: 0 | PF8: 0 | PG8: 0 | PH8: 0 | PI8: 0 | PJ8: 0 | PK8: 0 | PL8: 0 | PM8: 0 | PN8: 0 | PO8: 0 | PP8: 0 | PQ8: 0 | PR8: 0 | PS8: 0 | PT8: 0 | PU8: 0 | PV8: 0 | PW8: 0 | PX8: 0 | PY8: 0 | PZ8: 0 | QA8: 0 | QB8: 0 | QC8: 0 | QD8: 0 | QE8: 0 | QF8: 0 | QG8: 0 | QH8: 0 | QI8: 0 | QJ8: 0 | QK8: 0 | QL8: 0 | QM8: =IF(AND(QM7/QM$6=ROUND(QM7/QM$6,0),NOT(QM7=0)),QM7/QM$6,0) -> 0 | QN8: 0 | QO8: 0 | QP8: 0 | QQ8: 0 | QR8: 0 | QS8: 0 | QT8: 0 | QU8: 0 | QV8: 0 | QW8: 0 | QX8: 0 | QY8: 0 | QZ8: 0 | RA8: 0 | RB8: 0 | RC8: 0 | RD8: 0 | RE8: 0 | RF8: 0 | RG8: 0 | RH8: 0 | RI8: 0 | RJ8: 0 | RK8: 0 | RL8: 0 | RM8: 0 | RN8: 0 | RO8: 0 | RP8: 0 | RQ8: 0 | RR8: 0 | RS8: 0 | RT8: 0 | RU8: 0 | RV8: 0 | RW8: 0 | RX8: 0 | RY8: 0 | RZ8: 0 | SA8: 0 | SB8: 0 | SC8: 0 | SD8: 0 | SE8: 0 | SF8: 0 | SG8: 0 | SH8: 0 | SI8: 0 | SJ8: 0 | SK8: 0 | SL8: 0 | SM8: 0 | SN8: 0 | SO8: 0 | SP8: 0 | SQ8: 0 | SR8: 0 | SS8: 0 | ST8: 0 | SU8: 0 | SV8: 0 | SW8: 0 | SX8: 0 | SY8: =IF(AND(SY7/SY$6=ROUND(SY7/SY$6,0),NOT(SY7=0)),SY7/SY$6,0) -> 0 | SZ8: 0 | TA8: 0 | TB8: 0 | TC8: 0 | TD8: 0 | TE8: 0 | TF8: 0 | TG8: 0 | TH8: 0 | TI8: 0 | TJ8: 0 | TK8: 0 | TL8: 0 | TM8: 0 | TN8: 0 | TO8: 0 | TP8: 0 | TQ8: 0 | TR8: 0 | TS8: 0 | TT8: 0 | TU8: 0 | TV8: 0 | TW8: 0 | TX8: 0 | TY8: 0 | TZ8: 0 | UA8: 0 | UB8: 0 | UC8: 0 | UD8: 0 | UE8: 0 | UF8: 0 | UG8: 0 | UH8: 0 | UI8: 0 | UJ8: 0 | UK8: 0 | UL8: 0 | UM8: 0 | UN8: 0 | UO8: 0 | UP8: 0 | UQ8: 0 | UR8: 0 | US8: 0 | UT8: 0 | UU8: 0 | UV8: 0 | UW8: 0 | UX8: 0 | UY8: 0 | UZ8: 0 | VA8: 0 | VB8: 0 | VC8: 0 | VD8: 0 | VE8: 0 | VF8: 0 | VG8: 0 | VH8: 0 | VI8: 0 | VJ8: 0 | VK8: =IF(AND(VK7/VK$6=ROUND(VK7/VK$6,0),NOT(VK7=0)),VK7/VK$6,0) -> 0 | VL8: 0 | VM8: 0 | VN8: 0 | VO8: 0 | VP8: 0 | VQ8: 0 | VR8: 0 | VS8: 0 | VT8: 0 | VU8: 0 | VV8: 0 | VW8: 0 | VX8: 0 | VY8: 0 | VZ8: 0 | WA8: 0 | WB8: 0 | WC8: 0 | WD8: 0 | WE8: 0 | WF8: 0 | WG8: 0 | WH8: 0 | WI8: 0 | WJ8: 0 | WK8: 0 | WL8: 0 | WM8: 0 | WN8: 0 | WO8: 0 | WP8: 0 | WQ8: 0 | WR8: 0 | WS8: 0 | WT8: 0 | WU8: 0 | WV8: 0 | WW8: 0 | WX8: 0 | WY8: 0 | WZ8: 0 | XA8: 0 | XB8: 0 | XC8: 0 | XD8: 0 | XE8: 0 | XF8: 0 | XG8: 0 | XH8: 0 | XI8: 0 | XJ8: 0 | XK8: 0 | XL8: 0 | XM8: 0 | XN8: 0 | XO8: 0 | XP8: 0 | XQ8: 0 | XR8: 0 | XS8: 0 | XT8: 0 | XU8: 0 | XV8: 0 | XW8: =IF(AND(XW7/XW$6=ROUND(XW7/XW$6,0),NOT(XW7=0)),XW7/XW$6,0) -> 0 | XX8: 0 | XY8: 0 | XZ8: 0 | YA8: 0 | YB8: 0 | YC8: 0 | YD8: 0 | YE8: 0 | YF8: 0 | YG8: 0 | YH8: 0 | YI8: 0 | YJ8: 0 | YK8: 0 | YL8: 0 | YM8: 0 | YN8: 0 | YO8: 0 | YP8: 0 | YQ8: 0 | YR8: 0 | YS8: 0 | YT8: 0 | YU8: 0 | YV8: 0 | YW8: 0 | YX8: 0 | YY8: 0 | YZ8: 0 | ZA8: 0 | ZB8: 0 | ZC8: 0 | ZD8: 0 | ZE8: 0 | ZF8: 0 | ZG8: 0 | ZH8: 0 | ZI8: 0 | ZJ8: 0 | ZK8: 0 | ZL8: 0 | ZM8: 0 | ZN8: 0 | ZO8: 0 | ZP8: 0 | ZQ8: 0 | ZR8: 0 | ZS8: 0 | ZT8: 0 | ZU8: 0 | ZV8: 0 | ZW8: 0 | ZX8: 0 | ZY8: 0 | ZZ8: 0 | AAA8: 0 | AAB8: 0 | AAC8: 0 | AAD8: 0 | AAE8: 0 | AAF8: 0 | AAG8: 0 | AAH8: 0 | AAI8: =IF(AND(AAI7/AAI$6=ROUND(AAI7/AAI$6,0),NOT(AAI7=0)),AAI7/AAI$6,0) -> 0 | AAJ8: 0 | AAK8: 0 | AAL8: 0 | AAM8: 0 | AAN8: 0 | AAO8: 0 | AAP8: 0 | AAQ8: 0 | AAR8: 0 | AAS8: 0 | AAT8: 0 | AAU8: 0 | AAV8: 0 | AAW8: 0 | AAX8: 0 | AAY8: 0 | AAZ8: 0 | ABA8: 0 | ABB8: 0 | ABC8: 0 | ABD8: 0 | ABE8: 0 | ABF8: 0 | ABG8: 0 | ABH8: 0 | ABI8: 0 | ABJ8: 0 | ABK8: 0 | ABL8: 0 | ABM8: 0 | ABN8: 0 | ABO8: 0 | ABP8: 0 | ABQ8: 0 | ABR8: 0 | ABS8: 0 | ABT8: 0 | ABU8: 0 | ABV8: 0 | ABW8: 0 | ABX8: 0 | ABY8: 0 | ABZ8: 0 | ACA8: 0 | ACB8: 0 | ACC8: 0 | ACD8: 0 | ACE8: 0 | ACF8: 0 | ACG8: 0 | ACH8: 0 | ACI8: 0 | ACJ8: 0 | ACK8: 0 | ACL8: 0 | ACM8: 0 | ACN8: 0 | ACO8: 0 | ACP8: 0 | ACQ8: 0 | ACR8: 0 | ACS8: 0 | ACT8: 0 | ACU8: =IF(AND(ACU7/ACU$6=ROUND(ACU7/ACU$6,0),NOT(ACU7=0)),ACU7/ACU$6,0) -> 0 | ACV8: 0 | ACW8: 0 | ACX8: 0 | ACY8: 0 | ACZ8: 0 | ADA8: 0 | ADB8: 0 | ADC8: 0 | ADD8: 0 | ADE8: 0 | ADF8: 0 | ADG8: 0 | ADH8: 0 | ADI8: 0 | ADJ8: 0 | ADK8: 0 | ADL8: 0 | ADM8: 0 | ADN8: 0 | ADO8: 0 | ADP8: 0 | ADQ8: 0 | ADR8: 0 | ADS8: 0 | ADT8: 0 | ADU8: 0 | ADV8: 0 | ADW8: 0 | ADX8: 0 | ADY8: 0 | ADZ8: 0 | AEA8: 0 | AEB8: 0 | AEC8: 0 | AED8: 0 | AEE8: 0 | AEF8: 0 | AEG8: 0 | AEH8: 0 | AEI8: 0 | AEJ8: 0 | AEK8: 0 | AEL8: 0 | AEM8: 0 | AEN8: 0 | AEO8: 0 | AEP8: 0 | AEQ8: 0 | AER8: 0 | AES8: 0 | AET8: 0 | AEU8: 0 | AEV8: 0 | AEW8: 0 | AEX8: 0 | AEY8: 0 | AEZ8: 0 | AFA8: 0 | AFB8: 0 | AFC8: 0 | AFD8: 0 | AFE8: 0 | AFF8: 0 | AFG8: =IF(AND(AFG7/AFG$6=ROUND(AFG7/AFG$6,0),NOT(AFG7=0)),AFG7/AFG$6,0) -> 0 | AFH8: 0 | AFI8: 0 | AFJ8: 0 | AFK8: 0 | AFL8: 0 | AFM8: 0 | AFN8: 0 | AFO8: 0 | AFP8: 0 | AFQ8: 0 | AFR8: 0 | AFS8: 0 | AFT8: 0 | AFU8: 0 | AFV8: 0 | AFW8: 0 | AFX8: 0 | AFY8: 0 | AFZ8: 0 | AGA8: 0 | AGB8: 0 | AGC8: 0 | AGD8: 0 | AGE8: 0 | AGF8: 0 | AGG8: 0 | AGH8: 0 | AGI8: 0 | AGJ8: 0 | AGK8: 0 | AGL8: 0 | AGM8: 0 | AGN8: 0 | AGO8: 0 | AGP8: 0 | AGQ8: 0 | AGR8: 0 | AGS8: 0 | AGT8: 0 | AGU8: 0 | AGV8: 0 | AGW8: 0 | AGX8: 0 | AGY8: 0 | AGZ8: 0 | AHA8: 0 | AHB8: 0 | AHC8: 0 | AHD8: 0 | AHE8: 0 | AHF8: 0 | AHG8: 0 | AHH8: 0 | AHI8: 0 | AHJ8: 0 | AHK8: 0 | AHL8: 0 | AHM8: 0 | AHN8: 0 | AHO8: 0 | AHP8: 0 | AHQ8: 0 | AHR8: 0 | AHS8: =IF(AND(AHS7/AHS$6=ROUND(AHS7/AHS$6,0),NOT(AHS7=0)),AHS7/AHS$6,0) -> 0 | AHT8: 0 | AHU8: 0 | AHV8: 0 | AHW8: 0 | AHX8: 0 | AHY8: 0 | AHZ8: 0 | AIA8: 0 | AIB8: 0 | AIC8: 0 | AID8: 0 | AIE8: 0 | AIF8: 0 | AIG8: 0 | AIH8: 0 | AII8: 0 | AIJ8: 0 | AIK8: 0 | AIL8: 0 | AIM8: 0 | AIN8: 0 | AIO8: 0 | AIP8: 0 | AIQ8: 0 | AIR8: 0 | AIS8: 0 | AIT8: 0 | AIU8: 0 | AIV8: 0 | AIW8: 0 | AIX8: 0 | AIY8: 0 | AIZ8: 0 | AJA8: 0 | AJB8: 0 | AJC8: 0 | AJD8: 0 | AJE8: 0 | AJF8: 0 | AJG8: 0 | AJH8: 0 | AJI8: 0 | AJJ8: 0 | AJK8: 0 | AJL8: 0 | AJM8: 0 | AJN8: 0 | AJO8: 0 | AJP8: 0 | AJQ8: 0 | AJR8: 0 | AJS8: 0 | AJT8: 0 | AJU8: 0 | AJV8: 0 | AJW8: 0 | AJX8: 0 | AJY8: 0 | AJZ8: 0 | AKA8: 0 | AKB8: 0 | AKC8: 0 | AKD8: 0 | AKE8: =IF(AND(AKE7/AKE$6=ROUND(AKE7/AKE$6,0),NOT(AKE7=0)),AKE7/AKE$6,0) -> 0 | AKF8: 0 | AKG8: 0 | AKH8: 0 | AKI8: 0 | AKJ8: 0 | AKK8: 0 | AKL8: 0 | AKM8: 0 | AKN8: 0 | AKO8: 0 | AKP8: 0 | AKQ8: 0 | AKR8: 0 | AKS8: 0 | AKT8: 0 | AKU8: 0 | AKV8: 0 | AKW8: 0 | AKX8: 0 | AKY8: 0 | AKZ8: 0 | ALA8: 0 | ALB8: 0 | ALC8: 0 | ALD8: 0 | ALE8: 0 | ALF8: 0 | ALG8: 0 | ALH8: 0 | ALI8: 0 | ALJ8: 0 | ALK8: 0 | ALL8: 0 | ALM8: 0 | ALN8: 0 | ALO8: 0 | ALP8: 0 | ALQ8: 0
F9: 0 | G9: 0 | H9: 0 | I9: 0 | J9: 0 | K9: 0 | L9: 0 | M9: 0 | N9: 0 | O9: 0 | P9: 0 | Q9: 0 | R9: 0 | S9: 0 | T9: 0 | U9: 0 | V9: 0 | W9: 0 | X9: 0 | Y9: 0 | Z9: 0 | AA9: 0 | AB9: 0 | AC9: 0 | AD9: 0 | AE9: 0 | AF9: 0 | AG9: 0 | AH9: 0 | AI9: 0 | AJ9: 0 | AK9: 0 | AL9: 0 | AM9: 0 | AN9: 0 | AO9: 0 | AP9: 0 | AQ9: 0 | AR9: 0 | AS9: 0 | AT9: 0 | AU9: 0 | AV9: 0 | AW9: 0 | AX9: 0 | AY9: 0 | AZ9: 0 | BA9: 0 | BB9: =IF(AND(BB8/BB$6=ROUND(BB8/BB$6,0),NOT(BB8=0)),BB8/BB$6,0) -> 0 | BC9: =IF(AND(BC8/BC$6=ROUND(BC8/BC$6,0),NOT(BC8=0)),BC8/BC$6,0) -> 0 | BD9: =IF(AND(BD8/BD$6=ROUND(BD8/BD$6,0),NOT(BD8=0)),BD8/BD$6,0) -> 0 | BE9: =IF(AND(BE8/BE$6=ROUND(BE8/BE$6,0),NOT(BE8=0)),BE8/BE$6,0) -> 0 | BF9: =IF(AND(BF8/BF$6=ROUND(BF8/BF$6,0),NOT(BF8=0)),BF8/BF$6,0) -> 0 | BG9: =IF(AND(BG8/BG$6=ROUND(BG8/BG$6,0),NOT(BG8=0)),BG8/BG$6,0) -> 0 | BH9: =IF(AND(BH8/BH$6=ROUND(BH8/BH$6,0),NOT(BH8=0)),BH8/BH$6,0) -> 0 | BI9: =IF(AND(BI8/BI$6=ROUND(BI8/BI$6,0),NOT(BI8=0)),BI8/BI$6,0) -> 0 | BJ9: =IF(AND(BJ8/BJ$6=ROUND(BJ8/BJ$6,0),NOT(BJ8=0)),BJ8/BJ$6,0) -> 0 | BK9: =IF(AND(BK8/BK$6=ROUND(BK8/BK$6,0),NOT(BK8=0)),BK8/BK$6,0) -> 0 | BL9: =IF(AND(BL8/BL$6=ROUND(BL8/BL$6,0),NOT(BL8=0)),BL8/BL$6,0) -> 0 | BM9: =IF(AND(BM8/BM$6=ROUND(BM8/BM$6,0),NOT(BM8=0)),BM8/BM$6,0) -> 0 | BN9: =IF(AND(BN8/BN$6=ROUND(BN8/BN$6,0),NOT(BN8=0)),BN8/BN$6,0) -> 0 | BO9: =IF(AND(BO8/BO$6=ROUND(BO8/BO$6,0),NOT(BO8=0)),BO8/BO$6,0) -> 0 | BP9: =IF(AND(BP8/BP$6=ROUND(BP8/BP$6,0),NOT(BP8=0)),BP8/BP$6,0) -> 0 | BQ9: =IF(AND(BQ8/BQ$6=ROUND(BQ8/BQ$6,0),NOT(BQ8=0)),BQ8/BQ$6,0) -> 0 | BR9: =IF(AND(BR8/BR$6=ROUND(BR8/BR$6,0),NOT(BR8=0)),BR8/BR$6,0) -> 0 | BS9: 0 | BT9: 0 | BU9: 0 | BV9: 0 | BW9: 0 | BX9: 0 | BY9: 0 | BZ9: 0 | CA9: 0 | CB9: 0 | CC9: 0 | CD9: 0 | CE9: 0 | CF9: 0 | CG9: 0 | CH9: 0 | CI9: 0 | CJ9: 0 | CK9: 0 | CL9: 0 | CM9: 0 | CN9: 0 | CO9: 0 | CP9: 0 | CQ9: 0 | CR9: 0 | CS9: 0 | CT9: 0 | CU9: 0 | CV9: 0 | CW9: 0 | CX9: 0 | CY9: 0 | CZ9: 0 | DA9: 0 | DB9: 0 | DC9: 0 | DD9: 0 | DE9: 0 | DF9: 0 | DG9: 0 | DH9: 0 | DI9: 0 | DJ9: 0 | DK9: 0 | DL9: 0 | DM9: 0 | DN9: 0 | DO9: 0 | DP9: 0 | DQ9: 0 | DR9: 0 | DS9: 0 | DT9: 0 | DU9: 0 | DV9: 0 | DW9: 0 | DX9: 0 | DY9: 0 | DZ9: 0 | EA9: 0 | EB9: 0 | EC9: 0 | ED9: 0 | EE9: 0 | EF9: 0 | EG9: 0 | EH9: 0 | EI9: 0 | EJ9: 0 | EK9: 0 | EL9: 0 | EM9: 0 | EN9: 0 | EO9: 0 | EP9: 0 | EQ9: 0 | ER9: 0 | ES9: 0 | ET9: 0 | EU9: 0 | EV9: 0 | EW9: 0 | EX9: 0 | EY9: 0 | EZ9: 0 | FA9: 0 | FB9: 0 | FC9: 0 | FD9: 0 | FE9: 0 | FF9: 0 | FG9: 0 | FH9: 0 | FI9: 0 | FJ9: 0 | FK9: 0 | FL9: 0 | FM9: 0 | FN9: 0 | FO9: 0 | FP9: 0 | FQ9: 0 | FR9: 0 | FS9: 0 | FT9: 0 | FU9: 0 | FV9: 0 | FW9: 0 | FX9: 0 | FY9: 0 | FZ9: 0 | GA9: 0 | GB9: 0 | GC9: 0 | GD9: 0 | GE9: 0 | GF9: 0 | GG9: 0 | GH9: 0 | GI9: 0 | GJ9: 0 | GK9: 0 | GL9: 0 | GM9: 0 | GN9: 0 | GO9: 0 | GP9: 0 | GQ9: 0 | GR9: 0 | GS9: 0 | GT9: 0 | GU9: 0 | GV9: 0 | GW9: 0 | GX9: 0 | GY9: 0 | GZ9: 0 | HA9: 0 | HB9: 0 | HC9: 0 | HD9: 0 | HE9: 0 | HF9: 0 | HG9: 0 | HH9: 0 | HI9: 0 | HJ9: 0 | HK9: 0 | HL9: 0 | HM9: 0 | HN9: 0 | HO9: 0 | HP9: 0 | HQ9: 0 | HR9: 0 | HS9: 0 | HT9: 0 | HU9: 0 | HV9: 0 | HW9: 0 | HX9: 0 | HY9: 0 | HZ9: 0 | IA9: 0 | IB9: 0 | IC9: 0 | ID9: 0 | IE9: 0 | IF9: 0 | IG9: 0 | IH9: 0 | II9: 0 | IJ9: 0 | IK9: 0 | IL9: 0 | IM9: 0 | IN9: 0 | IO9: 0 | IP9: 0 | IQ9: 0 | IR9: 0 | IS9: 0 | IT9: 0 | IU9: 0 | IV9: 0 | IW9: 0 | IX9: 0 | IY9: 0 | IZ9: 0 | JA9: 0 | JB9: 0 | JC9: 0 | JD9: 0 | JE9: 0 | JF9: 0 | JG9: 0 | JH9: 0 | JI9: 0 | JJ9: 0 | JK9: 0 | JL9: 0 | JM9: 0 | JN9: 0 | JO9: 0 | JP9: 0 | JQ9: 0 | JR9: 0 | JS9: 0 | JT9: 0 | JU9: 0 | JV9: 0 | JW9: 0 | JX9: 0 | JY9: 0 | JZ9: 0 | KA9: 0 | KB9: 0 | KC9: 0 | KD9: 0 | KE9: 0 | KF9: 0 | KG9: 0 | KH9: 0 | KI9: 0 | KJ9: 0 | KK9: 0 | KL9: 0 | KM9: 0 | KN9: 0 | KO9: 0 | KP9: 0 | KQ9: 0 | KR9: 0 | KS9: 0 | KT9: 0 | KU9: 0 | KV9: 0 | KW9: 0 | KX9: 0 | KY9: 0 | KZ9: 0 | LA9: 0 | LB9: 0 | LC9: 0 | LD9: 0 | LE9: 0 | LF9: 0 | LG9: 0 | LH9: 0 | LI9: 0 | LJ9: 0 | LK9: 0 | LL9: 0 | LM9: 0 | LN9: 0 | LO9: 0 | LP9: 0 | LQ9: 0 | LR9: 0 | LS9: 0 | LT9: 0 | LU9: 0 | LV9: 0 | LW9: 0 | LX9: 0 | LY9: 0 | LZ9: 0 | MA9: 0 | MB9: 0 | MC9: 0 | MD9: 0 | ME9: 0 | MF9: 0 | MG9: 0 | MH9: 0 | MI9: 0 | MJ9: 0 | MK9: 0 | ML9: 0 | MM9: 0 | MN9: 0 | MO9: 0 | MP9: 0 | MQ9: 0 | MR9: 0 | MS9: 0 | MT9: 0 | MU9: 0 | MV9: 0 | MW9: 0 | MX9: 0 | MY9: 0 | MZ9: 0 | NA9: 0 | NB9: 0 | NC9: 0 | ND9: 0 | NE9: 0 | NF9: 0 | NG9: 0 | NH9: 0 | NI9: 0 | NJ9: 0 | NK9: 0 | NL9: 0 | NM9: 0 | NN9: 0 | NO9: 0 | NP9: 0 | NQ9: 0 | NR9: 0 | NS9: 0 | NT9: 0 | NU9: 0 | NV9: 0 | NW9: 0 | NX9: 0 | NY9: 0 | NZ9: 0 | OA9: 0 | OB9: 0 | OC9: 0 | OD9: 0 | OE9: 0 | OF9: 0 | OG9: 0 | OH9: 0 | OI9: 0 | OJ9: 0 | OK9: 0 | OL9: 0 | OM9: 0 | ON9: 0 | OO9: 0 | OP9: 0 | OQ9: 0 | OR9: 0 | OS9: 0 | OT9: 0 | OU9: 0 | OV9: 0 | OW9: 0 | OX9: 0 | OY9: 0 | OZ9: 0 | PA9: 0 | PB9: 0 | PC9: 0 | PD9: 0 | PE9: 0 | PF9: 0 | PG9: 0 | PH9: 0 | PI9: 0 | PJ9: 0 | PK9: 0 | PL9: 0 | PM9: 0 | PN9: 0 | PO9: 0 | PP9: 0 | PQ9: 0 | PR9: 0 | PS9: 0 | PT9: 0 | PU9: 0 | PV9: 0 | PW9: 0 | PX9: 0 | PY9: 0 | PZ9: 0 | QA9: 0 | QB9: 0 | QC9: 0 | QD9: 0 | QE9: 0 | QF9: 0 | QG9: 0 | QH9: 0 | QI9: 0 | QJ9: 0 | QK9: 0 | QL9: 0 | QM9: 0 | QN9: 0 | QO9: 0 | QP9: 0 | QQ9: 0 | QR9: 0 | QS9: 0 | QT9: 0 | QU9: 0 | QV9: 0 | QW9: 0 | QX9: 0 | QY9: 0 | QZ9: 0 | RA9: 0 | RB9: 0 | RC9: 0 | RD9: 0 | RE9: 0 | RF9: 0 | RG9: 0 | RH9: 0 | RI9: 0 | RJ9: 0 | RK9: 0 | RL9: 0 | RM9: 0 | RN9: 0 | RO9: 0 | RP9: 0 | RQ9: 0 | RR9: 0 | RS9: 0 | RT9: 0 | RU9: 0 | RV9: 0 | RW9: 0 | RX9: 0 | RY9: 0 | RZ9: 0 | SA9: 0 | SB9: 0 | SC9: 0 | SD9: 0 | SE9: 0 | SF9: 0 | SG9: 0 | SH9: 0 | SI9: 0 | SJ9: 0 | SK9: 0 | SL9: 0 | SM9: 0 | SN9: 0 | SO9: 0 | SP9: 0 | SQ9: 0 | SR9: 0 | SS9: 0 | ST9: 0 | SU9: 0 | SV9: 0 | SW9: 0 | SX9: 0 | SY9: 0 | SZ9: 0 | TA9: 0 | TB9: 0 | TC9: 0 | TD9: 0 | TE9: 0 | TF9: 0 | TG9: 0 | TH9: 0 | TI9: 0 | TJ9: 0 | TK9: 0 | TL9: 0 | TM9: 0 | TN9: 0 | TO9: 0 | TP9: 0 | TQ9: 0 | TR9: 0 | TS9: 0 | TT9: 0 | TU9: 0 | TV9: 0 | TW9: 0 | TX9: 0 | TY9: 0 | TZ9: 0 | UA9: 0 | UB9: 0 | UC9: 0 | UD9: 0 | UE9: 0 | UF9: 0 | UG9: 0 | UH9: 0 | UI9: 0 | UJ9: 0 | UK9: 0 | UL9: 0 | UM9: 0 | UN9: 0 | UO9: 0 | UP9: 0 | UQ9: 0 | UR9: 0 | US9: 0 | UT9: 0 | UU9: 0 | UV9: 0 | UW9: 0 | UX9: 0 | UY9: 0 | UZ9: 0 | VA9: 0 | VB9: 0 | VC9: 0 | VD9: 0 | VE9: 0 | VF9: 0 | VG9: 0 | VH9: 0 | VI9: 0 | VJ9: 0 | VK9: 0 | VL9: 0 | VM9: 0 | VN9: 0 | VO9: 0 | VP9: 0 | VQ9: 0 | VR9: 0 | VS9: 0 | VT9: 0 | VU9: 0 | VV9: 0 | VW9: 0 | VX9: 0 | VY9: 0 | VZ9: 0 | WA9: 0 | WB9: 0 | WC9: 0 | WD9: 0 | WE9: 0 | WF9: 0 | WG9: 0 | WH9: 0 | WI9: 0 | WJ9: 0 | WK9: 0 | WL9: 0 | WM9: 0 | WN9: 0 | WO9: 0 | WP9: 0 | WQ9: 0 | WR9: 0 | WS9: 0 | WT9: 0 | WU9: 0 | WV9: 0 | WW9: 0 | WX9: 0 | WY9: 0 | WZ9: 0 | XA9: 0 | XB9: 0 | XC9: 0 | XD9: 0 | XE9: 0 | XF9: 0 | XG9: 0 | XH9: 0 | XI9: 0 | XJ9: 0 | XK9: 0 | XL9: 0 | XM9: 0 | XN9: 0 | XO9: 0 | XP9: 0 | XQ9: 0 | XR9: 0 | XS9: 0 | XT9: 0 | XU9: 0 | XV9: 0 | XW9: 0 | XX9: 0 | XY9: 0 | XZ9: 0 | YA9: 0 | YB9: 0 | YC9: 0 | YD9: 0 | YE9: 0 | YF9: 0 | YG9: 0 | YH9: 0 | YI9: 0 | YJ9: 0 | YK9: 0 | YL9: 0 | YM9: 0 | YN9: 0 | YO9: 0 | YP9: 0 | YQ9: 0 | YR9: 0 | YS9: 0 | YT9: 0 | YU9: 0 | YV9: 0 | YW9: 0 | YX9: 0 | YY9: 0 | YZ9: 0 | ZA9: 0 | ZB9: 0 | ZC9: 0 | ZD9: 0 | ZE9: 0 | ZF9: 0 | ZG9: 0 | ZH9: 0 | ZI9: 0 | ZJ9: 0 | ZK9: 0 | ZL9: 0 | ZM9: 0 | ZN9: 0 | ZO9: 0 | ZP9: 0 | ZQ9: 0 | ZR9: 0 | ZS9: 0 | ZT9: 0 | ZU9: 0 | ZV9: 0 | ZW9: 0 | ZX9: 0 | ZY9: 0 | ZZ9: 0 | AAA9: 0 | AAB9: 0 | AAC9: 0 | AAD9: 0 | AAE9: 0 | AAF9: 0 | AAG9: 0 | AAH9: 0 | AAI9: 0 | AAJ9: 0 | AAK9: 0 | AAL9: 0 | AAM9: 0 | AAN9: 0 | AAO9: 0 | AAP9: 0 | AAQ9: 0 | AAR9: 0 | AAS9: 0 | AAT9: 0 | AAU9: 0 | AAV9: 0 | AAW9: 0 | AAX9: 0 | AAY9: 0 | AAZ9: 0 | ABA9: 0 | ABB9: 0 | ABC9: 0 | ABD9: 0 | ABE9: 0 | ABF9: 0 | ABG9: 0 | ABH9: 0 | ABI9: 0 | ABJ9: 0 | ABK9: 0 | ABL9: 0 | ABM9: 0 | ABN9: 0 | ABO9: 0 | ABP9: 0 | ABQ9: 0 | ABR9: 0 | ABS9: 0 | ABT9: 0 | ABU9: 0 | ABV9: 0 | ABW9: 0 | ABX9: 0 | ABY9: 0 | ABZ9: 0 | ACA9: 0 | ACB9: 0 | ACC9: 0 | ACD9: 0 | ACE9: 0 | ACF9: 0 | ACG9: 0 | ACH9: 0 | ACI9: 0 | ACJ9: 0 | ACK9: 0 | ACL9: 0 | ACM9: 0 | ACN9: 0 | ACO9: 0 | ACP9: 0 | ACQ9: 0 | ACR9: 0 | ACS9: 0 | ACT9: 0 | ACU9: 0 | ACV9: 0 | ACW9: 0 | ACX9: 0 | ACY9: 0 | ACZ9: 0 | ADA9: 0 | ADB9: 0 | ADC9: 0 | ADD9: 0 | ADE9: 0 | ADF9: 0 | ADG9: 0 | ADH9: 0 | ADI9: 0 | ADJ9: 0 | ADK9: 0 | ADL9: 0 | ADM9: 0 | ADN9: 0 | ADO9: 0 | ADP9: 0 | ADQ9: 0 | ADR9: 0 | ADS9: 0 | ADT9: 0 | ADU9: 0 | ADV9: 0 | ADW9: 0 | ADX9: 0 | ADY9: 0 | ADZ9: 0 | AEA9: 0 | AEB9: 0 | AEC9: 0 | AED9: 0 | AEE9: 0 | AEF9: 0 | AEG9: 0 | AEH9: 0 | AEI9: 0 | AEJ9: 0 | AEK9: 0 | AEL9: 0 | AEM9: 0 | AEN9: 0 | AEO9: 0 | AEP9: 0 | AEQ9: 0 | AER9: 0 | AES9: 0 | AET9: 0 | AEU9: 0 | AEV9: 0 | AEW9: 0 | AEX9: 0 | AEY9: 0 | AEZ9: 0 | AFA9: 0 | AFB9: 0 | AFC9: 0 | AFD9: 0 | AFE9: 0 | AFF9: 0 | AFG9: 0 | AFH9: 0 | AFI9: 0 | AFJ9: 0 | AFK9: 0 | AFL9: 0 | AFM9: 0 | AFN9: 0 | AFO9: 0 | AFP9: 0 | AFQ9: 0 | AFR9: 0 | AFS9: 0 | AFT9: 0 | AFU9: 0 | AFV9: 0 | AFW9: 0 | AFX9: 0 | AFY9: 0 | AFZ9: 0 | AGA9: 0 | AGB9: 0 | AGC9: 0 | AGD9: 0 | AGE9: 0 | AGF9: 0 | AGG9: 0 | AGH9: 0 | AGI9: 0 | AGJ9: 0 | AGK9: 0 | AGL9: 0 | AGM9: 0 | AGN9: 0 | AGO9: 0 | AGP9: 0 | AGQ9: 0 | AGR9: 0 | AGS9: 0 | AGT9: 0 | AGU9: 0 | AGV9: 0 | AGW9: 0 | AGX9: 0 | AGY9: 0 | AGZ9: 0 | AHA9: 0 | AHB9: 0 | AHC9: 0 | AHD9: 0 | AHE9: 0 | AHF9: 0 | AHG9: 0 | AHH9: 0 | AHI9: 0 | AHJ9: 0 | AHK9: 0 | AHL9: 0 | AHM9: 0 | AHN9: 0 | AHO9: 0 | AHP9: 0 | AHQ9: 0 | AHR9: 0 | AHS9: 0 | AHT9: 0 | AHU9: 0 | AHV9: 0 | AHW9: 0 | AHX9: 0 | AHY9: 0 | AHZ9: 0 | AIA9: 0 | AIB9: 0 | AIC9: 0 | AID9: 0 | AIE9: 0 | AIF9: 0 | AIG9: 0 | AIH9: 0 | AII9: 0 | AIJ9: 0 | AIK9: 0 | AIL9: 0 | AIM9: 0 | AIN9: 0 | AIO9: 0 | AIP9: 0 | AIQ9: 0 | AIR9: 0 | AIS9: 0 | AIT9: 0 | AIU9: 0 | AIV9: 0 | AIW9: 0 | AIX9: 0 | AIY9: 0 | AIZ9: 0 | AJA9: 0 | AJB9: 0 | AJC9: 0 | AJD9: 0 | AJE9: 0 | AJF9: 0 | AJG9: 0 | AJH9: 0 | AJI9: 0 | AJJ9: 0 | AJK9: 0 | AJL9: 0 | AJM9: 0 | AJN9: 0 | AJO9: 0 | AJP9: 0 | AJQ9: 0 | AJR9: 0 | AJS9: 0 | AJT9: 0 | AJU9: 0 | AJV9: 0 | AJW9: 0 | AJX9: 0 | AJY9: 0 | AJZ9: 0 | AKA9: 0 | AKB9: 0 | AKC9: 0 | AKD9: 0 | AKE9: 0 | AKF9: 0 | AKG9: 0 | AKH9: 0 | AKI9: 0 | AKJ9: 0 | AKK9: 0 | AKL9: 0 | AKM9: 0 | AKN9: 0 | AKO9: 0 | AKP9: 0 | AKQ9: 0 | AKR9: 0 | AKS9: 0 | AKT9: 0 | AKU9: 0 | AKV9: 0 | AKW9: 0 | AKX9: 0 | AKY9: 0 | AKZ9: 0 | ALA9: 0 | ALB9: 0 | ALC9: 0 | ALD9: 0 | ALE9: 0 | ALF9: 0 | ALG9: 0 | ALH9: 0 | ALI9: 0 | ALJ9: 0 | ALK9: 0 | ALL9: 0 | ALM9: 0 | ALN9: 0 | ALO9: 0 | ALP9: 0 | ALQ9: 0
A10: HCF: | B10: =PRODUCT(F48:ALQ48) -> 9 | F10: 0 | G10: =IF(AND(G9/G$6=ROUND(G9/G$6,0),NOT(G9=0)),G9/G$6,0) -> 0 | H10: =IF(AND(H9/H$6=ROUND(H9/H$6,0),NOT(H9=0)),H9/H$6,0) -> 0 | I10: =IF(AND(I9/I$6=ROUND(I9/I$6,0),NOT(I9=0)),I9/I$6,0) -> 0 | J10: =IF(AND(J9/J$6=ROUND(J9/J$6,0),NOT(J9=0)),J9/J$6,0) -> 0 | K10: =IF(AND(K9/K$6=ROUND(K9/K$6,0),NOT(K9=0)),K9/K$6,0) -> 0 | L10: =IF(AND(L9/L$6=ROUND(L9/L$6,0),NOT(L9=0)),L9/L$6,0) -> 0 | M10: =IF(AND(M9/M$6=ROUND(M9/M$6,0),NOT(M9=0)),M9/M$6,0) -> 0 | N10: =IF(AND(N9/N$6=ROUND(N9/N$6,0),NOT(N9=0)),N9/N$6,0) -> 0 | O10: =IF(AND(O9/O$6=ROUND(O9/O$6,0),NOT(O9=0)),O9/O$6,0) -> 0 | P10: =IF(AND(P9/P$6=ROUND(P9/P$6,0),NOT(P9=0)),P9/P$6,0) -> 0 | Q10: =IF(AND(Q9/Q$6=ROUND(Q9/Q$6,0),NOT(Q9=0)),Q9/Q$6,0) -> 0 | R10: =IF(AND(R9/R$6=ROUND(R9/R$6,0),NOT(R9=0)),R9/R$6,0) -> 0 | S10: =IF(AND(S9/S$6=ROUND(S9/S$6,0),NOT(S9=0)),S9/S$6,0) -> 0 | T10: =IF(AND(T9/T$6=ROUND(T9/T$6,0),NOT(T9=0)),T9/T$6,0) -> 0 | U10: =IF(AND(U9/U$6=ROUND(U9/U$6,0),NOT(U9=0)),U9/U$6,0) -> 0 | V10: =IF(AND(V9/V$6=ROUND(V9/V$6,0),NOT(V9=0)),V9/V$6,0) -> 0 | W10: =IF(AND(W9/W$6=ROUND(W9/W$6,0),NOT(W9=0)),W9/W$6,0) -> 0 | X10: =IF(AND(X9/X$6=ROUND(X9/X$6,0),NOT(X9=0)),X9/X$6,0) -> 0 | Y10: =IF(AND(Y9/Y$6=ROUND(Y9/Y$6,0),NOT(Y9=0)),Y9/Y$6,0) -> 0 | Z10: =IF(AND(Z9/Z$6=ROUND(Z9/Z$6,0),NOT(Z9=0)),Z9/Z$6,0) -> 0 | AA10: =IF(AND(AA9/AA$6=ROUND(AA9/AA$6,0),NOT(AA9=0)),AA9/AA$6,0) -> 0 | AB10: =IF(AND(AB9/AB$6=ROUND(AB9/AB$6,0),NOT(AB9=0)),AB9/AB$6,0) -> 0 | AC10: =IF(AND(AC9/AC$6=ROUND(AC9/AC$6,0),NOT(AC9=0)),AC9/AC$6,0) -> 0 | AD10: =IF(AND(AD9/AD$6=ROUND(AD9/AD$6,0),NOT(AD9=0)),AD9/AD$6,0) -> 0 | AE10: =IF(AND(AE9/AE$6=ROUND(AE9/AE$6,0),NOT(AE9=0)),AE9/AE$6,0) -> 0 | AF10: =IF(AND(AF9/AF$6=ROUND(AF9/AF$6,0),NOT(AF9=0)),AF9/AF$6,0) -> 0 | AG10: =IF(AND(AG9/AG$6=ROUND(AG9/AG$6,0),NOT(AG9=0)),AG9/AG$6,0) -> 0 | AH10: =IF(AND(AH9/AH$6=ROUND(AH9/AH$6,0),NOT(AH9=0)),AH9/AH$6,0) -> 0 | AI10: =IF(AND(AI9/AI$6=ROUND(AI9/AI$6,0),NOT(AI9=0)),AI9/AI$6,0) -> 0 | AJ10: =IF(AND(AJ9/AJ$6=ROUND(AJ9/AJ$6,0),NOT(AJ9=0)),AJ9/AJ$6,0) -> 0 | AK10: =IF(AND(AK9/AK$6=ROUND(AK9/AK$6,0),NOT(AK9=0)),AK9/AK$6,0) -> 0 | AL10: =IF(AND(AL9/AL$6=ROUND(AL9/AL$6,0),NOT(AL9=0)),AL9/AL$6,0) -> 0 | AM10: =IF(AND(AM9/AM$6=ROUND(AM9/AM$6,0),NOT(AM9=0)),AM9/AM$6,0) -> 0 | AN10: =IF(AND(AN9/AN$6=ROUND(AN9/AN$6,0),NOT(AN9=0)),AN9/AN$6,0) -> 0 | AO10: =IF(AND(AO9/AO$6=ROUND(AO9/AO$6,0),NOT(AO9=0)),AO9/AO$6,0) -> 0 | AP10: =IF(AND(AP9/AP$6=ROUND(AP9/AP$6,0),NOT(AP9=0)),AP9/AP$6,0) -> 0 | AQ10: =IF(AND(AQ9/AQ$6=ROUND(AQ9/AQ$6,0),NOT(AQ9=0)),AQ9/AQ$6,0) -> 0 | AR10: =IF(AND(AR9/AR$6=ROUND(AR9/AR$6,0),NOT(AR9=0)),AR9/AR$6,0) -> 0 | AS10: =IF(AND(AS9/AS$6=ROUND(AS9/AS$6,0),NOT(AS9=0)),AS9/AS$6,0) -> 0 | AT10: =IF(AND(AT9/AT$6=ROUND(AT9/AT$6,0),NOT(AT9=0)),AT9/AT$6,0) -> 0 | AU10: =IF(AND(AU9/AU$6=ROUND(AU9/AU$6,0),NOT(AU9=0)),AU9/AU$6,0) -> 0 | AV10: =IF(AND(AV9/AV$6=ROUND(AV9/AV$6,0),NOT(AV9=0)),AV9/AV$6,0) -> 0 | AW10: =IF(AND(AW9/AW$6=ROUND(AW9/AW$6,0),NOT(AW9=0)),AW9/AW$6,0) -> 0 | AX10: =IF(AND(AX9/AX$6=ROUND(AX9/AX$6,0),NOT(AX9=0)),AX9/AX$6,0) -> 0 | AY10: =IF(AND(AY9/AY$6=ROUND(AY9/AY$6,0),NOT(AY9=0)),AY9/AY$6,0) -> 0 | AZ10: =IF(AND(AZ9/AZ$6=ROUND(AZ9/AZ$6,0),NOT(AZ9=0)),AZ9/AZ$6,0) -> 0 | BA10: =IF(AND(BA9/BA$6=ROUND(BA9/BA$6,0),NOT(BA9=0)),BA9/BA$6,0) -> 0 | BB10: =IF(AND(BB9/BB$6=ROUND(BB9/BB$6,0),NOT(BB9=0)),BB9/BB$6,0) -> 0 | BC10: =IF(AND(BC9/BC$6=ROUND(BC9/BC$6,0),NOT(BC9=0)),BC9/BC$6,0) -> 0 | BD10: =IF(AND(BD9/BD$6=ROUND(BD9/BD$6,0),NOT(BD9=0)),BD9/BD$6,0) -> 0 | BE10: =IF(AND(BE9/BE$6=ROUND(BE9/BE$6,0),NOT(BE9=0)),BE9/BE$6,0) -> 0 | BF10: =IF(AND(BF9/BF$6=ROUND(BF9/BF$6,0),NOT(BF9=0)),BF9/BF$6,0) -> 0 | BG10: =IF(AND(BG9/BG$6=ROUND(BG9/BG$6,0),NOT(BG9=0)),BG9/BG$6,0) -> 0 | BH10: =IF(AND(BH9/BH$6=ROUND(BH9/BH$6,0),NOT(BH9=0)),BH9/BH$6,0) -> 0 | BI10: =IF(AND(BI9/BI$6=ROUND(BI9/BI$6,0),NOT(BI9=0)),BI9/BI$6,0) -> 0 | BJ10: =IF(AND(BJ9/BJ$6=ROUND(BJ9/BJ$6,0),NOT(BJ9=0)),BJ9/BJ$6,0) -> 0 | BK10: =IF(AND(BK9/BK$6=ROUND(BK9/BK$6,0),NOT(BK9=0)),BK9/BK$6,0) -> 0 | BL10: =IF(AND(BL9/BL$6=ROUND(BL9/BL$6,0),NOT(BL9=0)),BL9/BL$6,0) -> 0 | BM10: =IF(AND(BM9/BM$6=ROUND(BM9/BM$6,0),NOT(BM9=0)),BM9/BM$6,0) -> 0 | BN10: =IF(AND(BN9/BN$6=ROUND(BN9/BN$6,0),NOT(BN9=0)),BN9/BN$6,0) -> 0 | BO10: =IF(AND(BO9/BO$6=ROUND(BO9/BO$6,0),NOT(BO9=0)),BO9/BO$6,0) -> 0 | BP10: =IF(AND(BP9/BP$6=ROUND(BP9/BP$6,0),NOT(BP9=0)),BP9/BP$6,0) -> 0 | BQ10: =IF(AND(BQ9/BQ$6=ROUND(BQ9/BQ$6,0),NOT(BQ9=0)),BQ9/BQ$6,0) -> 0 | BR10: =IF(AND(BR9/BR$6=ROUND(BR9/BR$6,0),NOT(BR9=0)),BR9/BR$6,0) -> 0 | BS10: =IF(AND(BS9/BS$6=ROUND(BS9/BS$6,0),NOT(BS9=0)),BS9/BS$6,0) -> 0 | BT10: =IF(AND(BT9/BT$6=ROUND(BT9/BT$6,0),NOT(BT9=0)),BT9/BT$6,0) -> 0 | BU10: =IF(AND(BU9/BU$6=ROUND(BU9/BU$6,0),NOT(BU9=0)),BU9/BU$6,0) -> 0 | BV10: =IF(AND(BV9/BV$6=ROUND(BV9/BV$6,0),NOT(BV9=0)),BV9/BV$6,0) -> 0 | BW10: =IF(AND(BW9/BW$6=ROUND(BW9/BW$6,0),NOT(BW9=0)),BW9/BW$6,0) -> 0 | BX10: =IF(AND(BX9/BX$6=ROUND(BX9/BX$6,0),NOT(BX9=0)),BX9/BX$6,0) -> 0 | BY10: =IF(AND(BY9/BY$6=ROUND(BY9/BY$6,0),NOT(BY9=0)),BY9/BY$6,0) -> 0 | BZ10: =IF(AND(BZ9/BZ$6=ROUND(BZ9/BZ$6,0),NOT(BZ9=0)),BZ9/BZ$6,0) -> 0 | CA10: =IF(AND(CA9/CA$6=ROUND(CA9/CA$6,0),NOT(CA9=0)),CA9/CA$6,0) -> 0 | CB10: =IF(AND(CB9/CB$6=ROUND(CB9/CB$6,0),NOT(CB9=0)),CB9/CB$6,0) -> 0 | CC10: =IF(AND(CC9/CC$6=ROUND(CC9/CC$6,0),NOT(CC9=0)),CC9/CC$6,0) -> 0 | CD10: =IF(AND(CD9/CD$6=ROUND(CD9/CD$6,0),NOT(CD9=0)),CD9/CD$6,0) -> 0 | CE10: =IF(AND(CE9/CE$6=ROUND(CE9/CE$6,0),NOT(CE9=0)),CE9/CE$6,0) -> 0 | CF10: =IF(AND(CF9/CF$6=ROUND(CF9/CF$6,0),NOT(CF9=0)),CF9/CF$6,0) -> 0 | CG10: =IF(AND(CG9/CG$6=ROUND(CG9/CG$6,0),NOT(CG9=0)),CG9/CG$6,0) -> 0 | CH10: =IF(AND(CH9/CH$6=ROUND(CH9/CH$6,0),NOT(CH9=0)),CH9/CH$6,0) -> 0 | CI10: =IF(AND(CI9/CI$6=ROUND(CI9/CI$6,0),NOT(CI9=0)),CI9/CI$6,0) -> 0 | CJ10: =IF(AND(CJ9/CJ$6=ROUND(CJ9/CJ$6,0),NOT(CJ9=0)),CJ9/CJ$6,0) -> 0 | CK10: =IF(AND(CK9/CK$6=ROUND(CK9/CK$6,0),NOT(CK9=0)),CK9/CK$6,0) -> 0 | CL10: =IF(AND(CL9/CL$6=ROUND(CL9/CL$6,0),NOT(CL9=0)),CL9/CL$6,0) -> 0 | CM10: =IF(AND(CM9/CM$6=ROUND(CM9/CM$6,0),NOT(CM9=0)),CM9/CM$6,0) -> 0 | CN10: =IF(AND(CN9/CN$6=ROUND(CN9/CN$6,0),NOT(CN9=0)),CN9/CN$6,0) -> 0 | CO10: =IF(AND(CO9/CO$6=ROUND(CO9/CO$6,0),NOT(CO9=0)),CO9/CO$6,0) -> 0 | CP10: =IF(AND(CP9/CP$6=ROUND(CP9/CP$6,0),NOT(CP9=0)),CP9/CP$6,0) -> 0 | CQ10: =IF(AND(CQ9/CQ$6=ROUND(CQ9/CQ$6,0),NOT(CQ9=0)),CQ9/CQ$6,0) -> 0 | CR10: =IF(AND(CR9/CR$6=ROUND(CR9/CR$6,0),NOT(CR9=0)),CR9/CR$6,0) -> 0 | CS10: =IF(AND(CS9/CS$6=ROUND(CS9/CS$6,0),NOT(CS9=0)),CS9/CS$6,0) -> 0 | CT10: =IF(AND(CT9/CT$6=ROUND(CT9/CT$6,0),NOT(CT9=0)),CT9/CT$6,0) -> 0 | CU10: =IF(AND(CU9/CU$6=ROUND(CU9/CU$6,0),NOT(CU9=0)),CU9/CU$6,0) -> 0 | CV10: =IF(AND(CV9/CV$6=ROUND(CV9/CV$6,0),NOT(CV9=0)),CV9/CV$6,0) -> 0 | CW10: =IF(AND(CW9/CW$6=ROUND(CW9/CW$6,0),NOT(CW9=0)),CW9/CW$6,0) -> 0 | CX10: =IF(AND(CX9/CX$6=ROUND(CX9/CX$6,0),NOT(CX9=0)),CX9/CX$6,0) -> 0 | CY10: =IF(AND(CY9/CY$6=ROUND(CY9/CY$6,0),NOT(CY9=0)),CY9/CY$6,0) -> 0 | CZ10: =IF(AND(CZ9/CZ$6=ROUND(CZ9/CZ$6,0),NOT(CZ9=0)),CZ9/CZ$6,0) -> 0 | DA10: =IF(AND(DA9/DA$6=ROUND(DA9/DA$6,0),NOT(DA9=0)),DA9/DA$6,0) -> 0 | DB10: =IF(AND(DB9/DB$6=ROUND(DB9/DB$6,0),NOT(DB9=0)),DB9/DB$6,0) -> 0 | DC10: =IF(AND(DC9/DC$6=ROUND(DC9/DC$6,0),NOT(DC9=0)),DC9/DC$6,0) -> 0 | DD10: =IF(AND(DD9/DD$6=ROUND(DD9/DD$6,0),NOT(DD9=0)),DD9/DD$6,0) -> 0 | DE10: =IF(AND(DE9/DE$6=ROUND(DE9/DE$6,0),NOT(DE9=0)),DE9/DE$6,0) -> 0 | DF10: =IF(AND(DF9/DF$6=ROUND(DF9/DF$6,0),NOT(DF9=0)),DF9/DF$6,0) -> 0 | DG10: =IF(AND(DG9/DG$6=ROUND(DG9/DG$6,0),NOT(DG9=0)),DG9/DG$6,0) -> 0 | DH10: =IF(AND(DH9/DH$6=ROUND(DH9/DH$6,0),NOT(DH9=0)),DH9/DH$6,0) -> 0 | DI10: =IF(AND(DI9/DI$6=ROUND(DI9/DI$6,0),NOT(DI9=0)),DI9/DI$6,0) -> 0 | DJ10: =IF(AND(DJ9/DJ$6=ROUND(DJ9/DJ$6,0),NOT(DJ9=0)),DJ9/DJ$6,0) -> 0 | DK10: =IF(AND(DK9/DK$6=ROUND(DK9/DK$6,0),NOT(DK9=0)),DK9/DK$6,0) -> 0 | DL10: =IF(AND(DL9/DL$6=ROUND(DL9/DL$6,0),NOT(DL9=0)),DL9/DL$6,0) -> 0 | DM10: =IF(AND(DM9/DM$6=ROUND(DM9/DM$6,0),NOT(DM9=0)),DM9/DM$6,0) -> 0 | DN10: =IF(AND(DN9/DN$6=ROUND(DN9/DN$6,0),NOT(DN9=0)),DN9/DN$6,0) -> 0 | DO10: =IF(AND(DO9/DO$6=ROUND(DO9/DO$6,0),NOT(DO9=0)),DO9/DO$6,0) -> 0 | DP10: =IF(AND(DP9/DP$6=ROUND(DP9/DP$6,0),NOT(DP9=0)),DP9/DP$6,0) -> 0 | DQ10: =IF(AND(DQ9/DQ$6=ROUND(DQ9/DQ$6,0),NOT(DQ9=0)),DQ9/DQ$6,0) -> 0 | DR10: =IF(AND(DR9/DR$6=ROUND(DR9/DR$6,0),NOT(DR9=0)),DR9/DR$6,0) -> 0 | DS10: =IF(AND(DS9/DS$6=ROUND(DS9/DS$6,0),NOT(DS9=0)),DS9/DS$6,0) -> 0 | DT10: =IF(AND(DT9/DT$6=ROUND(DT9/DT$6,0),NOT(DT9=0)),DT9/DT$6,0) -> 0 | DU10: =IF(AND(DU9/DU$6=ROUND(DU9/DU$6,0),NOT(DU9=0)),DU9/DU$6,0) -> 0 | DV10: =IF(AND(DV9/DV$6=ROUND(DV9/DV$6,0),NOT(DV9=0)),DV9/DV$6,0) -> 0 | DW10: =IF(AND(DW9/DW$6=ROUND(DW9/DW$6,0),NOT(DW9=0)),DW9/DW$6,0) -> 0 | DX10: =IF(AND(DX9/DX$6=ROUND(DX9/DX$6,0),NOT(DX9=0)),DX9/DX$6,0) -> 0 | DY10: =IF(AND(DY9/DY$6=ROUND(DY9/DY$6,0),NOT(DY9=0)),DY9/DY$6,0) -> 0 | DZ10: =IF(AND(DZ9/DZ$6=ROUND(DZ9/DZ$6,0),NOT(DZ9=0)),DZ9/DZ$6,0) -> 0 | EA10: =IF(AND(EA9/EA$6=ROUND(EA9/EA$6,0),NOT(EA9=0)),EA9/EA$6,0) -> 0 | EB10: =IF(AND(EB9/EB$6=ROUND(EB9/EB$6,0),NOT(EB9=0)),EB9/EB$6,0) -> 0 | EC10: =IF(AND(EC9/EC$6=ROUND(EC9/EC$6,0),NOT(EC9=0)),EC9/EC$6,0) -> 0 | ED10: =IF(AND(ED9/ED$6=ROUND(ED9/ED$6,0),NOT(ED9=0)),ED9/ED$6,0) -> 0 | EE10: =IF(AND(EE9/EE$6=ROUND(EE9/EE$6,0),NOT(EE9=0)),EE9/EE$6,0) -> 0 | EF10: =IF(AND(EF9/EF$6=ROUND(EF9/EF$6,0),NOT(EF9=0)),EF9/EF$6,0) -> 0 | EG10: =IF(AND(EG9/EG$6=ROUND(EG9/EG$6,0),NOT(EG9=0)),EG9/EG$6,0) -> 0 | EH10: =IF(AND(EH9/EH$6=ROUND(EH9/EH$6,0),NOT(EH9=0)),EH9/EH$6,0) -> 0 | EI10: =IF(AND(EI9/EI$6=ROUND(EI9/EI$6,0),NOT(EI9=0)),EI9/EI$6,0) -> 0 | EJ10: =IF(AND(EJ9/EJ$6=ROUND(EJ9/EJ$6,0),NOT(EJ9=0)),EJ9/EJ$6,0) -> 0 | EK10: =IF(AND(EK9/EK$6=ROUND(EK9/EK$6,0),NOT(EK9=0)),EK9/EK$6,0) -> 0 | EL10: =IF(AND(EL9/EL$6=ROUND(EL9/EL$6,0),NOT(EL9=0)),EL9/EL$6,0) -> 0 | EM10: =IF(AND(EM9/EM$6=ROUND(EM9/EM$6,0),NOT(EM9=0)),EM9/EM$6,0) -> 0 | EN10: =IF(AND(EN9/EN$6=ROUND(EN9/EN$6,0),NOT(EN9=0)),EN9/EN$6,0) -> 0 | EO10: =IF(AND(EO9/EO$6=ROUND(EO9/EO$6,0),NOT(EO9=0)),EO9/EO$6,0) -> 0 | EP10: =IF(AND(EP9/EP$6=ROUND(EP9/EP$6,0),NOT(EP9=0)),EP9/EP$6,0) -> 0 | EQ10: =IF(AND(EQ9/EQ$6=ROUND(EQ9/EQ$6,0),NOT(EQ9=0)),EQ9/EQ$6,0) -> 0 | ER10: =IF(AND(ER9/ER$6=ROUND(ER9/ER$6,0),NOT(ER9=0)),ER9/ER$6,0) -> 0 | ES10: =IF(AND(ES9/ES$6=ROUND(ES9/ES$6,0),NOT(ES9=0)),ES9/ES$6,0) -> 0 | ET10: =IF(AND(ET9/ET$6=ROUND(ET9/ET$6,0),NOT(ET9=0)),ET9/ET$6,0) -> 0 | EU10: =IF(AND(EU9/EU$6=ROUND(EU9/EU$6,0),NOT(EU9=0)),EU9/EU$6,0) -> 0 | EV10: =IF(AND(EV9/EV$6=ROUND(EV9/EV$6,0),NOT(EV9=0)),EV9/EV$6,0) -> 0 | EW10: =IF(AND(EW9/EW$6=ROUND(EW9/EW$6,0),NOT(EW9=0)),EW9/EW$6,0) -> 0 | EX10: =IF(AND(EX9/EX$6=ROUND(EX9/EX$6,0),NOT(EX9=0)),EX9/EX$6,0) -> 0 | EY10: =IF(AND(EY9/EY$6=ROUND(EY9/EY$6,0),NOT(EY9=0)),EY9/EY$6,0) -> 0 | EZ10: =IF(AND(EZ9/EZ$6=ROUND(EZ9/EZ$6,0),NOT(EZ9=0)),EZ9/EZ$6,0) -> 0 | FA10: =IF(AND(FA9/FA$6=ROUND(FA9/FA$6,0),NOT(FA9=0)),FA9/FA$6,0) -> 0 | FB10: =IF(AND(FB9/FB$6=ROUND(FB9/FB$6,0),NOT(FB9=0)),FB9/FB$6,0) -> 0 | FC10: =IF(AND(FC9/FC$6=ROUND(FC9/FC$6,0),NOT(FC9=0)),FC9/FC$6,0) -> 0 | FD10: =IF(AND(FD9/FD$6=ROUND(FD9/FD$6,0),NOT(FD9=0)),FD9/FD$6,0) -> 0 | FE10: =IF(AND(FE9/FE$6=ROUND(FE9/FE$6,0),NOT(FE9=0)),FE9/FE$6,0) -> 0 | FF10: =IF(AND(FF9/FF$6=ROUND(FF9/FF$6,0),NOT(FF9=0)),FF9/FF$6,0) -> 0 | FG10: =IF(AND(FG9/FG$6=ROUND(FG9/FG$6,0),NOT(FG9=0)),FG9/FG$6,0) -> 0 | FH10: =IF(AND(FH9/FH$6=ROUND(FH9/FH$6,0),NOT(FH9=0)),FH9/FH$6,0) -> 0 | FI10: =IF(AND(FI9/FI$6=ROUND(FI9/FI$6,0),NOT(FI9=0)),FI9/FI$6,0) -> 0 | FJ10: =IF(AND(FJ9/FJ$6=ROUND(FJ9/FJ$6,0),NOT(FJ9=0)),FJ9/FJ$6,0) -> 0 | FK10: =IF(AND(FK9/FK$6=ROUND(FK9/FK$6,0),NOT(FK9=0)),FK9/FK$6,0) -> 0 | FL10: =IF(AND(FL9/FL$6=ROUND(FL9/FL$6,0),NOT(FL9=0)),FL9/FL$6,0) -> 0 | FM10: =IF(AND(FM9/FM$6=ROUND(FM9/FM$6,0),NOT(FM9=0)),FM9/FM$6,0) -> 0 | FN10: =IF(AND(FN9/FN$6=ROUND(FN9/FN$6,0),NOT(FN9=0)),FN9/FN$6,0) -> 0 | FO10: =IF(AND(FO9/FO$6=ROUND(FO9/FO$6,0),NOT(FO9=0)),FO9/FO$6,0) -> 0 | FP10: =IF(AND(FP9/FP$6=ROUND(FP9/FP$6,0),NOT(FP9=0)),FP9/FP$6,0) -> 0 | FQ10: =IF(AND(FQ9/FQ$6=ROUND(FQ9/FQ$6,0),NOT(FQ9=0)),FQ9/FQ$6,0) -> 0 | FR10: =IF(AND(FR9/FR$6=ROUND(FR9/FR$6,0),NOT(FR9=0)),FR9/FR$6,0) -> 0 | FS10: =IF(AND(FS9/FS$6=ROUND(FS9/FS$6,0),NOT(FS9=0)),FS9/FS$6,0) -> 0 | FT10: =IF(AND(FT9/FT$6=ROUND(FT9/FT$6,0),NOT(FT9=0)),FT9/FT$6,0) -> 0 | FU10: =IF(AND(FU9/FU$6=ROUND(FU9/FU$6,0),NOT(FU9=0)),FU9/FU$6,0) -> 0 | FV10: =IF(AND(FV9/FV$6=ROUND(FV9/FV$6,0),NOT(FV9=0)),FV9/FV$6,0) -> 0 | FW10: =IF(AND(FW9/FW$6=ROUND(FW9/FW$6,0),NOT(FW9=0)),FW9/FW$6,0) -> 0 | FX10: =IF(AND(FX9/FX$6=ROUND(FX9/FX$6,0),NOT(FX9=0)),FX9/FX$6,0) -> 0 | FY10: =IF(AND(FY9/FY$6=ROUND(FY9/FY$6,0),NOT(FY9=0)),FY9/FY$6,0) -> 0 | FZ10: =IF(AND(FZ9/FZ$6=ROUND(FZ9/FZ$6,0),NOT(FZ9=0)),FZ9/FZ$6,0) -> 0 | GA10: =IF(AND(GA9/GA$6=ROUND(GA9/GA$6,0),NOT(GA9=0)),GA9/GA$6,0) -> 0 | GB10: =IF(AND(GB9/GB$6=ROUND(GB9/GB$6,0),NOT(GB9=0)),GB9/GB$6,0) -> 0 | GC10: =IF(AND(GC9/GC$6=ROUND(GC9/GC$6,0),NOT(GC9=0)),GC9/GC$6,0) -> 0 | GD10: =IF(AND(GD9/GD$6=ROUND(GD9/GD$6,0),NOT(GD9=0)),GD9/GD$6,0) -> 0 | GE10: =IF(AND(GE9/GE$6=ROUND(GE9/GE$6,0),NOT(GE9=0)),GE9/GE$6,0) -> 0 | GF10: =IF(AND(GF9/GF$6=ROUND(GF9/GF$6,0),NOT(GF9=0)),GF9/GF$6,0) -> 0 | GG10: =IF(AND(GG9/GG$6=ROUND(GG9/GG$6,0),NOT(GG9=0)),GG9/GG$6,0) -> 0 | GH10: =IF(AND(GH9/GH$6=ROUND(GH9/GH$6,0),NOT(GH9=0)),GH9/GH$6,0) -> 0 | GI10: =IF(AND(GI9/GI$6=ROUND(GI9/GI$6,0),NOT(GI9=0)),GI9/GI$6,0) -> 0 | GJ10: =IF(AND(GJ9/GJ$6=ROUND(GJ9/GJ$6,0),NOT(GJ9=0)),GJ9/GJ$6,0) -> 0 | GK10: =IF(AND(GK9/GK$6=ROUND(GK9/GK$6,0),NOT(GK9=0)),GK9/GK$6,0) -> 0 | GL10: =IF(AND(GL9/GL$6=ROUND(GL9/GL$6,0),NOT(GL9=0)),GL9/GL$6,0) -> 0 | GM10: =IF(AND(GM9/GM$6=ROUND(GM9/GM$6,0),NOT(GM9=0)),GM9/GM$6,0) -> 0 | GN10: =IF(AND(GN9/GN$6=ROUND(GN9/GN$6,0),NOT(GN9=0)),GN9/GN$6,0) -> 0 | GO10: =IF(AND(GO9/GO$6=ROUND(GO9/GO$6,0),NOT(GO9=0)),GO9/GO$6,0) -> 0 | GP10: =IF(AND(GP9/GP$6=ROUND(GP9/GP$6,0),NOT(GP9=0)),GP9/GP$6,0) -> 0 | GQ10: =IF(AND(GQ9/GQ$6=ROUND(GQ9/GQ$6,0),NOT(GQ9=0)),GQ9/GQ$6,0) -> 0 | GR10: =IF(AND(GR9/GR$6=ROUND(GR9/GR$6,0),NOT(GR9=0)),GR9/GR$6,0) -> 0 | GS10: =IF(AND(GS9/GS$6=ROUND(GS9/GS$6,0),NOT(GS9=0)),GS9/GS$6,0) -> 0 | GT10: =IF(AND(GT9/GT$6=ROUND(GT9/GT$6,0),NOT(GT9=0)),GT9/GT$6,0) -> 0 | GU10: =IF(AND(GU9/GU$6=ROUND(GU9/GU$6,0),NOT(GU9=0)),GU9/GU$6,0) -> 0 | GV10: =IF(AND(GV9/GV$6=ROUND(GV9/GV$6,0),NOT(GV9=0)),GV9/GV$6,0) -> 0 | GW10: =IF(AND(GW9/GW$6=ROUND(GW9/GW$6,0),NOT(GW9=0)),GW9/GW$6,0) -> 0 | GX10: =IF(AND(GX9/GX$6=ROUND(GX9/GX$6,0),NOT(GX9=0)),GX9/GX$6,0) -> 0 | GY10: =IF(AND(GY9/GY$6=ROUND(GY9/GY$6,0),NOT(GY9=0)),GY9/GY$6,0) -> 0 | GZ10: =IF(AND(GZ9/GZ$6=ROUND(GZ9/GZ$6,0),NOT(GZ9=0)),GZ9/GZ$6,0) -> 0 | HA10: =IF(AND(HA9/HA$6=ROUND(HA9/HA$6,0),NOT(HA9=0)),HA9/HA$6,0) -> 0 | HB10: =IF(AND(HB9/HB$6=ROUND(HB9/HB$6,0),NOT(HB9=0)),HB9/HB$6,0) -> 0 | HC10: =IF(AND(HC9/HC$6=ROUND(HC9/HC$6,0),NOT(HC9=0)),HC9/HC$6,0) -> 0 | HD10: =IF(AND(HD9/HD$6=ROUND(HD9/HD$6,0),NOT(HD9=0)),HD9/HD$6,0) -> 0 | HE10: =IF(AND(HE9/HE$6=ROUND(HE9/HE$6,0),NOT(HE9=0)),HE9/HE$6,0) -> 0 | HF10: =IF(AND(HF9/HF$6=ROUND(HF9/HF$6,0),NOT(HF9=0)),HF9/HF$6,0) -> 0 | HG10: =IF(AND(HG9/HG$6=ROUND(HG9/HG$6,0),NOT(HG9=0)),HG9/HG$6,0) -> 0 | HH10: =IF(AND(HH9/HH$6=ROUND(HH9/HH$6,0),NOT(HH9=0)),HH9/HH$6,0) -> 0 | HI10: =IF(AND(HI9/HI$6=ROUND(HI9/HI$6,0),NOT(HI9=0)),HI9/HI$6,0) -> 0 | HJ10: =IF(AND(HJ9/HJ$6=ROUND(HJ9/HJ$6,0),NOT(HJ9=0)),HJ9/HJ$6,0) -> 0 | HK10: =IF(AND(HK9/HK$6=ROUND(HK9/HK$6,0),NOT(HK9=0)),HK9/HK$6,0) -> 0 | HL10: =IF(AND(HL9/HL$6=ROUND(HL9/HL$6,0),NOT(HL9=0)),HL9/HL$6,0) -> 0 | HM10: =IF(AND(HM9/HM$6=ROUND(HM9/HM$6,0),NOT(HM9=0)),HM9/HM$6,0) -> 0 | HN10: =IF(AND(HN9/HN$6=ROUND(HN9/HN$6,0),NOT(HN9=0)),HN9/HN$6,0) -> 0 | HO10: =IF(AND(HO9/HO$6=ROUND(HO9/HO$6,0),NOT(HO9=0)),HO9/HO$6,0) -> 0 | HP10: =IF(AND(HP9/HP$6=ROUND(HP9/HP$6,0),NOT(HP9=0)),HP9/HP$6,0) -> 0 | HQ10: =IF(AND(HQ9/HQ$6=ROUND(HQ9/HQ$6,0),NOT(HQ9=0)),HQ9/HQ$6,0) -> 0 | HR10: =IF(AND(HR9/HR$6=ROUND(HR9/HR$6,0),NOT(HR9=0)),HR9/HR$6,0) -> 0 | HS10: =IF(AND(HS9/HS$6=ROUND(HS9/HS$6,0),NOT(HS9=0)),HS9/HS$6,0) -> 0 | HT10: =IF(AND(HT9/HT$6=ROUND(HT9/HT$6,0),NOT(HT9=0)),HT9/HT$6,0) -> 0 | HU10: =IF(AND(HU9/HU$6=ROUND(HU9/HU$6,0),NOT(HU9=0)),HU9/HU$6,0) -> 0 | HV10: =IF(AND(HV9/HV$6=ROUND(HV9/HV$6,0),NOT(HV9=0)),HV9/HV$6,0) -> 0 | HW10: =IF(AND(HW9/HW$6=ROUND(HW9/HW$6,0),NOT(HW9=0)),HW9/HW$6,0) -> 0 | HX10: =IF(AND(HX9/HX$6=ROUND(HX9/HX$6,0),NOT(HX9=0)),HX9/HX$6,0) -> 0 | HY10: =IF(AND(HY9/HY$6=ROUND(HY9/HY$6,0),NOT(HY9=0)),HY9/HY$6,0) -> 0 | HZ10: =IF(AND(HZ9/HZ$6=ROUND(HZ9/HZ$6,0),NOT(HZ9=0)),HZ9/HZ$6,0) -> 0 | IA10: =IF(AND(IA9/IA$6=ROUND(IA9/IA$6,0),NOT(IA9=0)),IA9/IA$6,0) -> 0 | IB10: =IF(AND(IB9/IB$6=ROUND(IB9/IB$6,0),NOT(IB9=0)),IB9/IB$6,0) -> 0 | IC10: =IF(AND(IC9/IC$6=ROUND(IC9/IC$6,0),NOT(IC9=0)),IC9/IC$6,0) -> 0 | ID10: =IF(AND(ID9/ID$6=ROUND(ID9/ID$6,0),NOT(ID9=0)),ID9/ID$6,0) -> 0 | IE10: =IF(AND(IE9/IE$6=ROUND(IE9/IE$6,0),NOT(IE9=0)),IE9/IE$6,0) -> 0 | IF10: =IF(AND(IF9/IF$6=ROUND(IF9/IF$6,0),NOT(IF9=0)),IF9/IF$6,0) -> 0 | IG10: =IF(AND(IG9/IG$6=ROUND(IG9/IG$6,0),NOT(IG9=0)),IG9/IG$6,0) -> 0 | IH10: =IF(AND(IH9/IH$6=ROUND(IH9/IH$6,0),NOT(IH9=0)),IH9/IH$6,0) -> 0 | II10: =IF(AND(II9/II$6=ROUND(II9/II$6,0),NOT(II9=0)),II9/II$6,0) -> 0 | IJ10: =IF(AND(IJ9/IJ$6=ROUND(IJ9/IJ$6,0),NOT(IJ9=0)),IJ9/IJ$6,0) -> 0 | IK10: =IF(AND(IK9/IK$6=ROUND(IK9/IK$6,0),NOT(IK9=0)),IK9/IK$6,0) -> 0 | IL10: =IF(AND(IL9/IL$6=ROUND(IL9/IL$6,0),NOT(IL9=0)),IL9/IL$6,0) -> 0 | IM10: =IF(AND(IM9/IM$6=ROUND(IM9/IM$6,0),NOT(IM9=0)),IM9/IM$6,0) -> 0 | IN10: =IF(AND(IN9/IN$6=ROUND(IN9/IN$6,0),NOT(IN9=0)),IN9/IN$6,0) -> 0 | IO10: =IF(AND(IO9/IO$6=ROUND(IO9/IO$6,0),NOT(IO9=0)),IO9/IO$6,0) -> 0 | IP10: =IF(AND(IP9/IP$6=ROUND(IP9/IP$6,0),NOT(IP9=0)),IP9/IP$6,0) -> 0 | IQ10: =IF(AND(IQ9/IQ$6=ROUND(IQ9/IQ$6,0),NOT(IQ9=0)),IQ9/IQ$6,0) -> 0 | IR10: =IF(AND(IR9/IR$6=ROUND(IR9/IR$6,0),NOT(IR9=0)),IR9/IR$6,0) -> 0 | IS10: =IF(AND(IS9/IS$6=ROUND(IS9/IS$6,0),NOT(IS9=0)),IS9/IS$6,0) -> 0 | IT10: =IF(AND(IT9/IT$6=ROUND(IT9/IT$6,0),NOT(IT9=0)),IT9/IT$6,0) -> 0 | IU10: =IF(AND(IU9/IU$6=ROUND(IU9/IU$6,0),NOT(IU9=0)),IU9/IU$6,0) -> 0 | IV10: =IF(AND(IV9/IV$6=ROUND(IV9/IV$6,0),NOT(IV9=0)),IV9/IV$6,0) -> 0 | IW10: =IF(AND(IW9/IW$6=ROUND(IW9/IW$6,0),NOT(IW9=0)),IW9/IW$6,0) -> 0 | IX10: =IF(AND(IX9/IX$6=ROUND(IX9/IX$6,0),NOT(IX9=0)),IX9/IX$6,0) -> 0 | IY10: =IF(AND(IY9/IY$6=ROUND(IY9/IY$6,0),NOT(IY9=0)),IY9/IY$6,0) -> 0 | IZ10: =IF(AND(IZ9/IZ$6=ROUND(IZ9/IZ$6,0),NOT(IZ9=0)),IZ9/IZ$6,0) -> 0 | JA10: =IF(AND(JA9/JA$6=ROUND(JA9/JA$6,0),NOT(JA9=0)),JA9/JA$6,0) -> 0 | JB10: =IF(AND(JB9/JB$6=ROUND(JB9/JB$6,0),NOT(JB9=0)),JB9/JB$6,0) -> 0 | JC10: =IF(AND(JC9/JC$6=ROUND(JC9/JC$6,0),NOT(JC9=0)),JC9/JC$6,0) -> 0 | JD10: =IF(AND(JD9/JD$6=ROUND(JD9/JD$6,0),NOT(JD9=0)),JD9/JD$6,0) -> 0 | JE10: =IF(AND(JE9/JE$6=ROUND(JE9/JE$6,0),NOT(JE9=0)),JE9/JE$6,0) -> 0 | JF10: =IF(AND(JF9/JF$6=ROUND(JF9/JF$6,0),NOT(JF9=0)),JF9/JF$6,0) -> 0 | JG10: =IF(AND(JG9/JG$6=ROUND(JG9/JG$6,0),NOT(JG9=0)),JG9/JG$6,0) -> 0 | JH10: =IF(AND(JH9/JH$6=ROUND(JH9/JH$6,0),NOT(JH9=0)),JH9/JH$6,0) -> 0 | JI10: =IF(AND(JI9/JI$6=ROUND(JI9/JI$6,0),NOT(JI9=0)),JI9/JI$6,0) -> 0 | JJ10: =IF(AND(JJ9/JJ$6=ROUND(JJ9/JJ$6,0),NOT(JJ9=0)),JJ9/JJ$6,0) -> 0 | JK10: =IF(AND(JK9/JK$6=ROUND(JK9/JK$6,0),NOT(JK9=0)),JK9/JK$6,0) -> 0 | JL10: =IF(AND(JL9/JL$6=ROUND(JL9/JL$6,0),NOT(JL9=0)),JL9/JL$6,0) -> 0 | JM10: =IF(AND(JM9/JM$6=ROUND(JM9/JM$6,0),NOT(JM9=0)),JM9/JM$6,0) -> 0 | JN10: =IF(AND(JN9/JN$6=ROUND(JN9/JN$6,0),NOT(JN9=0)),JN9/JN$6,0) -> 0 | JO10: =IF(AND(JO9/JO$6=ROUND(JO9/JO$6,0),NOT(JO9=0)),JO9/JO$6,0) -> 0 | JP10: =IF(AND(JP9/JP$6=ROUND(JP9/JP$6,0),NOT(JP9=0)),JP9/JP$6,0) -> 0 | JQ10: =IF(AND(JQ9/JQ$6=ROUND(JQ9/JQ$6,0),NOT(JQ9=0)),JQ9/JQ$6,0) -> 0 | JR10: =IF(AND(JR9/JR$6=ROUND(JR9/JR$6,0),NOT(JR9=0)),JR9/JR$6,0) -> 0 | JS10: =IF(AND(JS9/JS$6=ROUND(JS9/JS$6,0),NOT(JS9=0)),JS9/JS$6,0) -> 0 | JT10: =IF(AND(JT9/JT$6=ROUND(JT9/JT$6,0),NOT(JT9=0)),JT9/JT$6,0) -> 0 | JU10: =IF(AND(JU9/JU$6=ROUND(JU9/JU$6,0),NOT(JU9=0)),JU9/JU$6,0) -> 0 | JV10: =IF(AND(JV9/JV$6=ROUND(JV9/JV$6,0),NOT(JV9=0)),JV9/JV$6,0) -> 0 | JW10: =IF(AND(JW9/JW$6=ROUND(JW9/JW$6,0),NOT(JW9=0)),JW9/JW$6,0) -> 0 | JX10: =IF(AND(JX9/JX$6=ROUND(JX9/JX$6,0),NOT(JX9=0)),JX9/JX$6,0) -> 0 | JY10: =IF(AND(JY9/JY$6=ROUND(JY9/JY$6,0),NOT(JY9=0)),JY9/JY$6,0) -> 0 | JZ10: =IF(AND(JZ9/JZ$6=ROUND(JZ9/JZ$6,0),NOT(JZ9=0)),JZ9/JZ$6,0) -> 0 | KA10: =IF(AND(KA9/KA$6=ROUND(KA9/KA$6,0),NOT(KA9=0)),KA9/KA$6,0) -> 0 | KB10: =IF(AND(KB9/KB$6=ROUND(KB9/KB$6,0),NOT(KB9=0)),KB9/KB$6,0) -> 0 | KC10: =IF(AND(KC9/KC$6=ROUND(KC9/KC$6,0),NOT(KC9=0)),KC9/KC$6,0) -> 0 | KD10: =IF(AND(KD9/KD$6=ROUND(KD9/KD$6,0),NOT(KD9=0)),KD9/KD$6,0) -> 0 | KE10: =IF(AND(KE9/KE$6=ROUND(KE9/KE$6,0),NOT(KE9=0)),KE9/KE$6,0) -> 0 | KF10: =IF(AND(KF9/KF$6=ROUND(KF9/KF$6,0),NOT(KF9=0)),KF9/KF$6,0) -> 0 | KG10: =IF(AND(KG9/KG$6=ROUND(KG9/KG$6,0),NOT(KG9=0)),KG9/KG$6,0) -> 0 | KH10: =IF(AND(KH9/KH$6=ROUND(KH9/KH$6,0),NOT(KH9=0)),KH9/KH$6,0) -> 0 | KI10: =IF(AND(KI9/KI$6=ROUND(KI9/KI$6,0),NOT(KI9=0)),KI9/KI$6,0) -> 0 | KJ10: =IF(AND(KJ9/KJ$6=ROUND(KJ9/KJ$6,0),NOT(KJ9=0)),KJ9/KJ$6,0) -> 0 | KK10: =IF(AND(KK9/KK$6=ROUND(KK9/KK$6,0),NOT(KK9=0)),KK9/KK$6,0) -> 0 | KL10: =IF(AND(KL9/KL$6=ROUND(KL9/KL$6,0),NOT(KL9=0)),KL9/KL$6,0) -> 0 | KM10: =IF(AND(KM9/KM$6=ROUND(KM9/KM$6,0),NOT(KM9=0)),KM9/KM$6,0) -> 0 | KN10: =IF(AND(KN9/KN$6=ROUND(KN9/KN$6,0),NOT(KN9=0)),KN9/KN$6,0) -> 0 | KO10: =IF(AND(KO9/KO$6=ROUND(KO9/KO$6,0),NOT(KO9=0)),KO9/KO$6,0) -> 0 | KP10: =IF(AND(KP9/KP$6=ROUND(KP9/KP$6,0),NOT(KP9=0)),KP9/KP$6,0) -> 0 | KQ10: =IF(AND(KQ9/KQ$6=ROUND(KQ9/KQ$6,0),NOT(KQ9=0)),KQ9/KQ$6,0) -> 0 | KR10: =IF(AND(KR9/KR$6=ROUND(KR9/KR$6,0),NOT(KR9=0)),KR9/KR$6,0) -> 0 | KS10: =IF(AND(KS9/KS$6=ROUND(KS9/KS$6,0),NOT(KS9=0)),KS9/KS$6,0) -> 0 | KT10: =IF(AND(KT9/KT$6=ROUND(KT9/KT$6,0),NOT(KT9=0)),KT9/KT$6,0) -> 0 | KU10: =IF(AND(KU9/KU$6=ROUND(KU9/KU$6,0),NOT(KU9=0)),KU9/KU$6,0) -> 0 | KV10: =IF(AND(KV9/KV$6=ROUND(KV9/KV$6,0),NOT(KV9=0)),KV9/KV$6,0) -> 0 | KW10: =IF(AND(KW9/KW$6=ROUND(KW9/KW$6,0),NOT(KW9=0)),KW9/KW$6,0) -> 0 | KX10: =IF(AND(KX9/KX$6=ROUND(KX9/KX$6,0),NOT(KX9=0)),KX9/KX$6,0) -> 0 | KY10: =IF(AND(KY9/KY$6=ROUND(KY9/KY$6,0),NOT(KY9=0)),KY9/KY$6,0) -> 0 | KZ10: =IF(AND(KZ9/KZ$6=ROUND(KZ9/KZ$6,0),NOT(KZ9=0)),KZ9/KZ$6,0) -> 0 | LA10: =IF(AND(LA9/LA$6=ROUND(LA9/LA$6,0),NOT(LA9=0)),LA9/LA$6,0) -> 0 | LB10: =IF(AND(LB9/LB$6=ROUND(LB9/LB$6,0),NOT(LB9=0)),LB9/LB$6,0) -> 0 | LC10: =IF(AND(LC9/LC$6=ROUND(LC9/LC$6,0),NOT(LC9=0)),LC9/LC$6,0) -> 0 | LD10: =IF(AND(LD9/LD$6=ROUND(LD9/LD$6,0),NOT(LD9=0)),LD9/LD$6,0) -> 0 | LE10: =IF(AND(LE9/LE$6=ROUND(LE9/LE$6,0),NOT(LE9=0)),LE9/LE$6,0) -> 0 | LF10: =IF(AND(LF9/LF$6=ROUND(LF9/LF$6,0),NOT(LF9=0)),LF9/LF$6,0) -> 0 | LG10: =IF(AND(LG9/LG$6=ROUND(LG9/LG$6,0),NOT(LG9=0)),LG9/LG$6,0) -> 0 | LH10: =IF(AND(LH9/LH$6=ROUND(LH9/LH$6,0),NOT(LH9=0)),LH9/LH$6,0) -> 0 | LI10: =IF(AND(LI9/LI$6=ROUND(LI9/LI$6,0),NOT(LI9=0)),LI9/LI$6,0) -> 0 | LJ10: =IF(AND(LJ9/LJ$6=ROUND(LJ9/LJ$6,0),NOT(LJ9=0)),LJ9/LJ$6,0) -> 0 | LK10: =IF(AND(LK9/LK$6=ROUND(LK9/LK$6,0),NOT(LK9=0)),LK9/LK$6,0) -> 0 | LL10: =IF(AND(LL9/LL$6=ROUND(LL9/LL$6,0),NOT(LL9=0)),LL9/LL$6,0) -> 0 | LM10: =IF(AND(LM9/LM$6=ROUND(LM9/LM$6,0),NOT(LM9=0)),LM9/LM$6,0) -> 0 | LN10: =IF(AND(LN9/LN$6=ROUND(LN9/LN$6,0),NOT(LN9=0)),LN9/LN$6,0) -> 0 | LO10: =IF(AND(LO9/LO$6=ROUND(LO9/LO$6,0),NOT(LO9=0)),LO9/LO$6,0) -> 0 | LP10: =IF(AND(LP9/LP$6=ROUND(LP9/LP$6,0),NOT(LP9=0)),LP9/LP$6,0) -> 0 | LQ10: =IF(AND(LQ9/LQ$6=ROUND(LQ9/LQ$6,0),NOT(LQ9=0)),LQ9/LQ$6,0) -> 0 | LR10: =IF(AND(LR9/LR$6=ROUND(LR9/LR$6,0),NOT(LR9=0)),LR9/LR$6,0) -> 0 | LS10: =IF(AND(LS9/LS$6=ROUND(LS9/LS$6,0),NOT(LS9=0)),LS9/LS$6,0) -> 0 | LT10: =IF(AND(LT9/LT$6=ROUND(LT9/LT$6,0),NOT(LT9=0)),LT9/LT$6,0) -> 0 | LU10: =IF(AND(LU9/LU$6=ROUND(LU9/LU$6,0),NOT(LU9=0)),LU9/LU$6,0) -> 0 | LV10: =IF(AND(LV9/LV$6=ROUND(LV9/LV$6,0),NOT(LV9=0)),LV9/LV$6,0) -> 0 | LW10: =IF(AND(LW9/LW$6=ROUND(LW9/LW$6,0),NOT(LW9=0)),LW9/LW$6,0) -> 0 | LX10: =IF(AND(LX9/LX$6=ROUND(LX9/LX$6,0),NOT(LX9=0)),LX9/LX$6,0) -> 0 | LY10: =IF(AND(LY9/LY$6=ROUND(LY9/LY$6,0),NOT(LY9=0)),LY9/LY$6,0) -> 0 | LZ10: =IF(AND(LZ9/LZ$6=ROUND(LZ9/LZ$6,0),NOT(LZ9=0)),LZ9/LZ$6,0) -> 0 | MA10: =IF(AND(MA9/MA$6=ROUND(MA9/MA$6,0),NOT(MA9=0)),MA9/MA$6,0) -> 0 | MB10: =IF(AND(MB9/MB$6=ROUND(MB9/MB$6,0),NOT(MB9=0)),MB9/MB$6,0) -> 0 | MC10: =IF(AND(MC9/MC$6=ROUND(MC9/MC$6,0),NOT(MC9=0)),MC9/MC$6,0) -> 0 | MD10: =IF(AND(MD9/MD$6=ROUND(MD9/MD$6,0),NOT(MD9=0)),MD9/MD$6,0) -> 0 | ME10: =IF(AND(ME9/ME$6=ROUND(ME9/ME$6,0),NOT(ME9=0)),ME9/ME$6,0) -> 0 | MF10: =IF(AND(MF9/MF$6=ROUND(MF9/MF$6,0),NOT(MF9=0)),MF9/MF$6,0) -> 0 | MG10: =IF(AND(MG9/MG$6=ROUND(MG9/MG$6,0),NOT(MG9=0)),MG9/MG$6,0) -> 0 | MH10: =IF(AND(MH9/MH$6=ROUND(MH9/MH$6,0),NOT(MH9=0)),MH9/MH$6,0) -> 0 | MI10: =IF(AND(MI9/MI$6=ROUND(MI9/MI$6,0),NOT(MI9=0)),MI9/MI$6,0) -> 0 | MJ10: =IF(AND(MJ9/MJ$6=ROUND(MJ9/MJ$6,0),NOT(MJ9=0)),MJ9/MJ$6,0) -> 0 | MK10: =IF(AND(MK9/MK$6=ROUND(MK9/MK$6,0),NOT(MK9=0)),MK9/MK$6,0) -> 0 | ML10: =IF(AND(ML9/ML$6=ROUND(ML9/ML$6,0),NOT(ML9=0)),ML9/ML$6,0) -> 0 | MM10: =IF(AND(MM9/MM$6=ROUND(MM9/MM$6,0),NOT(MM9=0)),MM9/MM$6,0) -> 0 | MN10: =IF(AND(MN9/MN$6=ROUND(MN9/MN$6,0),NOT(MN9=0)),MN9/MN$6,0) -> 0 | MO10: =IF(AND(MO9/MO$6=ROUND(MO9/MO$6,0),NOT(MO9=0)),MO9/MO$6,0) -> 0 | MP10: =IF(AND(MP9/MP$6=ROUND(MP9/MP$6,0),NOT(MP9=0)),MP9/MP$6,0) -> 0 | MQ10: =IF(AND(MQ9/MQ$6=ROUND(MQ9/MQ$6,0),NOT(MQ9=0)),MQ9/MQ$6,0) -> 0 | MR10: =IF(AND(MR9/MR$6=ROUND(MR9/MR$6,0),NOT(MR9=0)),MR9/MR$6,0) -> 0 | MS10: =IF(AND(MS9/MS$6=ROUND(MS9/MS$6,0),NOT(MS9=0)),MS9/MS$6,0) -> 0 | MT10: =IF(AND(MT9/MT$6=ROUND(MT9/MT$6,0),NOT(MT9=0)),MT9/MT$6,0) -> 0 | MU10: =IF(AND(MU9/MU$6=ROUND(MU9/MU$6,0),NOT(MU9=0)),MU9/MU$6,0) -> 0 | MV10: =IF(AND(MV9/MV$6=ROUND(MV9/MV$6,0),NOT(MV9=0)),MV9/MV$6,0) -> 0 | MW10: =IF(AND(MW9/MW$6=ROUND(MW9/MW$6,0),NOT(MW9=0)),MW9/MW$6,0) -> 0 | MX10: =IF(AND(MX9/MX$6=ROUND(MX9/MX$6,0),NOT(MX9=0)),MX9/MX$6,0) -> 0 | MY10: =IF(AND(MY9/MY$6=ROUND(MY9/MY$6,0),NOT(MY9=0)),MY9/MY$6,0) -> 0 | MZ10: =IF(AND(MZ9/MZ$6=ROUND(MZ9/MZ$6,0),NOT(MZ9=0)),MZ9/MZ$6,0) -> 0 | NA10: =IF(AND(NA9/NA$6=ROUND(NA9/NA$6,0),NOT(NA9=0)),NA9/NA$6,0) -> 0 | NB10: =IF(AND(NB9/NB$6=ROUND(NB9/NB$6,0),NOT(NB9=0)),NB9/NB$6,0) -> 0 | NC10: =IF(AND(NC9/NC$6=ROUND(NC9/NC$6,0),NOT(NC9=0)),NC9/NC$6,0) -> 0 | ND10: =IF(AND(ND9/ND$6=ROUND(ND9/ND$6,0),NOT(ND9=0)),ND9/ND$6,0) -> 0 | NE10: =IF(AND(NE9/NE$6=ROUND(NE9/NE$6,0),NOT(NE9=0)),NE9/NE$6,0) -> 0 | NF10: =IF(AND(NF9/NF$6=ROUND(NF9/NF$6,0),NOT(NF9=0)),NF9/NF$6,0) -> 0 | NG10: =IF(AND(NG9/NG$6=ROUND(NG9/NG$6,0),NOT(NG9=0)),NG9/NG$6,0) -> 0 | NH10: =IF(AND(NH9/NH$6=ROUND(NH9/NH$6,0),NOT(NH9=0)),NH9/NH$6,0) -> 0 | NI10: =IF(AND(NI9/NI$6=ROUND(NI9/NI$6,0),NOT(NI9=0)),NI9/NI$6,0) -> 0 | NJ10: =IF(AND(NJ9/NJ$6=ROUND(NJ9/NJ$6,0),NOT(NJ9=0)),NJ9/NJ$6,0) -> 0 | NK10: =IF(AND(NK9/NK$6=ROUND(NK9/NK$6,0),NOT(NK9=0)),NK9/NK$6,0) -> 0 | NL10: =IF(AND(NL9/NL$6=ROUND(NL9/NL$6,0),NOT(NL9=0)),NL9/NL$6,0) -> 0 | NM10: =IF(AND(NM9/NM$6=ROUND(NM9/NM$6,0),NOT(NM9=0)),NM9/NM$6,0) -> 0 | NN10: =IF(AND(NN9/NN$6=ROUND(NN9/NN$6,0),NOT(NN9=0)),NN9/NN$6,0) -> 0 | NO10: =IF(AND(NO9/NO$6=ROUND(NO9/NO$6,0),NOT(NO9=0)),NO9/NO$6,0) -> 0 | NP10: =IF(AND(NP9/NP$6=ROUND(NP9/NP$6,0),NOT(NP9=0)),NP9/NP$6,0) -> 0 | NQ10: =IF(AND(NQ9/NQ$6=ROUND(NQ9/NQ$6,0),NOT(NQ9=0)),NQ9/NQ$6,0) -> 0 | NR10: =IF(AND(NR9/NR$6=ROUND(NR9/NR$6,0),NOT(NR9=0)),NR9/NR$6,0) -> 0 | NS10: =IF(AND(NS9/NS$6=ROUND(NS9/NS$6,0),NOT(NS9=0)),NS9/NS$6,0) -> 0 | NT10: =IF(AND(NT9/NT$6=ROUND(NT9/NT$6,0),NOT(NT9=0)),NT9/NT$6,0) -> 0 | NU10: =IF(AND(NU9/NU$6=ROUND(NU9/NU$6,0),NOT(NU9=0)),NU9/NU$6,0) -> 0 | NV10: =IF(AND(NV9/NV$6=ROUND(NV9/NV$6,0),NOT(NV9=0)),NV9/NV$6,0) -> 0 | NW10: =IF(AND(NW9/NW$6=ROUND(NW9/NW$6,0),NOT(NW9=0)),NW9/NW$6,0) -> 0 | NX10: =IF(AND(NX9/NX$6=ROUND(NX9/NX$6,0),NOT(NX9=0)),NX9/NX$6,0) -> 0 | NY10: =IF(AND(NY9/NY$6=ROUND(NY9/NY$6,0),NOT(NY9=0)),NY9/NY$6,0) -> 0 | NZ10: =IF(AND(NZ9/NZ$6=ROUND(NZ9/NZ$6,0),NOT(NZ9=0)),NZ9/NZ$6,0) -> 0 | OA10: =IF(AND(OA9/OA$6=ROUND(OA9/OA$6,0),NOT(OA9=0)),OA9/OA$6,0) -> 0 | OB10: =IF(AND(OB9/OB$6=ROUND(OB9/OB$6,0),NOT(OB9=0)),OB9/OB$6,0) -> 0 | OC10: =IF(AND(OC9/OC$6=ROUND(OC9/OC$6,0),NOT(OC9=0)),OC9/OC$6,0) -> 0 | OD10: =IF(AND(OD9/OD$6=ROUND(OD9/OD$6,0),NOT(OD9=0)),OD9/OD$6,0) -> 0 | OE10: =IF(AND(OE9/OE$6=ROUND(OE9/OE$6,0),NOT(OE9=0)),OE9/OE$6,0) -> 0 | OF10: =IF(AND(OF9/OF$6=ROUND(OF9/OF$6,0),NOT(OF9=0)),OF9/OF$6,0) -> 0 | OG10: =IF(AND(OG9/OG$6=ROUND(OG9/OG$6,0),NOT(OG9=0)),OG9/OG$6,0) -> 0 | OH10: =IF(AND(OH9/OH$6=ROUND(OH9/OH$6,0),NOT(OH9=0)),OH9/OH$6,0) -> 0 | OI10: =IF(AND(OI9/OI$6=ROUND(OI9/OI$6,0),NOT(OI9=0)),OI9/OI$6,0) -> 0 | OJ10: =IF(AND(OJ9/OJ$6=ROUND(OJ9/OJ$6,0),NOT(OJ9=0)),OJ9/OJ$6,0) -> 0 | OK10: =IF(AND(OK9/OK$6=ROUND(OK9/OK$6,0),NOT(OK9=0)),OK9/OK$6,0) -> 0 | OL10: =IF(AND(OL9/OL$6=ROUND(OL9/OL$6,0),NOT(OL9=0)),OL9/OL$6,0) -> 0 | OM10: =IF(AND(OM9/OM$6=ROUND(OM9/OM$6,0),NOT(OM9=0)),OM9/OM$6,0) -> 0 | ON10: =IF(AND(ON9/ON$6=ROUND(ON9/ON$6,0),NOT(ON9=0)),ON9/ON$6,0) -> 0 | OO10: =IF(AND(OO9/OO$6=ROUND(OO9/OO$6,0),NOT(OO9=0)),OO9/OO$6,0) -> 0 | OP10: =IF(AND(OP9/OP$6=ROUND(OP9/OP$6,0),NOT(OP9=0)),OP9/OP$6,0) -> 0 | OQ10: =IF(AND(OQ9/OQ$6=ROUND(OQ9/OQ$6,0),NOT(OQ9=0)),OQ9/OQ$6,0) -> 0 | OR10: =IF(AND(OR9/OR$6=ROUND(OR9/OR$6,0),NOT(OR9=0)),OR9/OR$6,0) -> 0 | OS10: =IF(AND(OS9/OS$6=ROUND(OS9/OS$6,0),NOT(OS9=0)),OS9/OS$6,0) -> 0 | OT10: =IF(AND(OT9/OT$6=ROUND(OT9/OT$6,0),NOT(OT9=0)),OT9/OT$6,0) -> 0 | OU10: =IF(AND(OU9/OU$6=ROUND(OU9/OU$6,0),NOT(OU9=0)),OU9/OU$6,0) -> 0 | OV10: =IF(AND(OV9/OV$6=ROUND(OV9/OV$6,0),NOT(OV9=0)),OV9/OV$6,0) -> 0 | OW10: =IF(AND(OW9/OW$6=ROUND(OW9/OW$6,0),NOT(OW9=0)),OW9/OW$6,0) -> 0 | OX10: =IF(AND(OX9/OX$6=ROUND(OX9/OX$6,0),NOT(OX9=0)),OX9/OX$6,0) -> 0 | OY10: =IF(AND(OY9/OY$6=ROUND(OY9/OY$6,0),NOT(OY9=0)),OY9/OY$6,0) -> 0 | OZ10: =IF(AND(OZ9/OZ$6=ROUND(OZ9/OZ$6,0),NOT(OZ9=0)),OZ9/OZ$6,0) -> 0 | PA10: =IF(AND(PA9/PA$6=ROUND(PA9/PA$6,0),NOT(PA9=0)),PA9/PA$6,0) -> 0 | PB10: =IF(AND(PB9/PB$6=ROUND(PB9/PB$6,0),NOT(PB9=0)),PB9/PB$6,0) -> 0 | PC10: =IF(AND(PC9/PC$6=ROUND(PC9/PC$6,0),NOT(PC9=0)),PC9/PC$6,0) -> 0 | PD10: =IF(AND(PD9/PD$6=ROUND(PD9/PD$6,0),NOT(PD9=0)),PD9/PD$6,0) -> 0 | PE10: =IF(AND(PE9/PE$6=ROUND(PE9/PE$6,0),NOT(PE9=0)),PE9/PE$6,0) -> 0 | PF10: =IF(AND(PF9/PF$6=ROUND(PF9/PF$6,0),NOT(PF9=0)),PF9/PF$6,0) -> 0 | PG10: =IF(AND(PG9/PG$6=ROUND(PG9/PG$6,0),NOT(PG9=0)),PG9/PG$6,0) -> 0 | PH10: =IF(AND(PH9/PH$6=ROUND(PH9/PH$6,0),NOT(PH9=0)),PH9/PH$6,0) -> 0 | PI10: =IF(AND(PI9/PI$6=ROUND(PI9/PI$6,0),NOT(PI9=0)),PI9/PI$6,0) -> 0 | PJ10: =IF(AND(PJ9/PJ$6=ROUND(PJ9/PJ$6,0),NOT(PJ9=0)),PJ9/PJ$6,0) -> 0 | PK10: =IF(AND(PK9/PK$6=ROUND(PK9/PK$6,0),NOT(PK9=0)),PK9/PK$6,0) -> 0 | PL10: =IF(AND(PL9/PL$6=ROUND(PL9/PL$6,0),NOT(PL9=0)),PL9/PL$6,0) -> 0 | PM10: =IF(AND(PM9/PM$6=ROUND(PM9/PM$6,0),NOT(PM9=0)),PM9/PM$6,0) -> 0 | PN10: =IF(AND(PN9/PN$6=ROUND(PN9/PN$6,0),NOT(PN9=0)),PN9/PN$6,0) -> 0 | PO10: =IF(AND(PO9/PO$6=ROUND(PO9/PO$6,0),NOT(PO9=0)),PO9/PO$6,0) -> 0 | PP10: =IF(AND(PP9/PP$6=ROUND(PP9/PP$6,0),NOT(PP9=0)),PP9/PP$6,0) -> 0 | PQ10: =IF(AND(PQ9/PQ$6=ROUND(PQ9/PQ$6,0),NOT(PQ9=0)),PQ9/PQ$6,0) -> 0 | PR10: =IF(AND(PR9/PR$6=ROUND(PR9/PR$6,0),NOT(PR9=0)),PR9/PR$6,0) -> 0 | PS10: =IF(AND(PS9/PS$6=ROUND(PS9/PS$6,0),NOT(PS9=0)),PS9/PS$6,0) -> 0 | PT10: =IF(AND(PT9/PT$6=ROUND(PT9/PT$6,0),NOT(PT9=0)),PT9/PT$6,0) -> 0 | PU10: =IF(AND(PU9/PU$6=ROUND(PU9/PU$6,0),NOT(PU9=0)),PU9/PU$6,0) -> 0 | PV10: =IF(AND(PV9/PV$6=ROUND(PV9/PV$6,0),NOT(PV9=0)),PV9/PV$6,0) -> 0 | PW10: =IF(AND(PW9/PW$6=ROUND(PW9/PW$6,0),NOT(PW9=0)),PW9/PW$6,0) -> 0 | PX10: =IF(AND(PX9/PX$6=ROUND(PX9/PX$6,0),NOT(PX9=0)),PX9/PX$6,0) -> 0 | PY10: =IF(AND(PY9/PY$6=ROUND(PY9/PY$6,0),NOT(PY9=0)),PY9/PY$6,0) -> 0 | PZ10: =IF(AND(PZ9/PZ$6=ROUND(PZ9/PZ$6,0),NOT(PZ9=0)),PZ9/PZ$6,0) -> 0 | QA10: =IF(AND(QA9/QA$6=ROUND(QA9/QA$6,0),NOT(QA9=0)),QA9/QA$6,0) -> 0 | QB10: =IF(AND(QB9/QB$6=ROUND(QB9/QB$6,0),NOT(QB9=0)),QB9/QB$6,0) -> 0 | QC10: =IF(AND(QC9/QC$6=ROUND(QC9/QC$6,0),NOT(QC9=0)),QC9/QC$6,0) -> 0 | QD10: =IF(AND(QD9/QD$6=ROUND(QD9/QD$6,0),NOT(QD9=0)),QD9/QD$6,0) -> 0 | QE10: =IF(AND(QE9/QE$6=ROUND(QE9/QE$6,0),NOT(QE9=0)),QE9/QE$6,0) -> 0 | QF10: =IF(AND(QF9/QF$6=ROUND(QF9/QF$6,0),NOT(QF9=0)),QF9/QF$6,0) -> 0 | QG10: =IF(AND(QG9/QG$6=ROUND(QG9/QG$6,0),NOT(QG9=0)),QG9/QG$6,0) -> 0 | QH10: =IF(AND(QH9/QH$6=ROUND(QH9/QH$6,0),NOT(QH9=0)),QH9/QH$6,0) -> 0 | QI10: =IF(AND(QI9/QI$6=ROUND(QI9/QI$6,0),NOT(QI9=0)),QI9/QI$6,0) -> 0 | QJ10: =IF(AND(QJ9/QJ$6=ROUND(QJ9/QJ$6,0),NOT(QJ9=0)),QJ9/QJ$6,0) -> 0 | QK10: =IF(AND(QK9/QK$6=ROUND(QK9/QK$6,0),NOT(QK9=0)),QK9/QK$6,0) -> 0 | QL10: =IF(AND(QL9/QL$6=ROUND(QL9/QL$6,0),NOT(QL9=0)),QL9/QL$6,0) -> 0 | QM10: =IF(AND(QM9/QM$6=ROUND(QM9/QM$6,0),NOT(QM9=0)),QM9/QM$6,0) -> 0 | QN10: =IF(AND(QN9/QN$6=ROUND(QN9/QN$6,0),NOT(QN9=0)),QN9/QN$6,0) -> 0 | QO10: =IF(AND(QO9/QO$6=ROUND(QO9/QO$6,0),NOT(QO9=0)),QO9/QO$6,0) -> 0 | QP10: =IF(AND(QP9/QP$6=ROUND(QP9/QP$6,0),NOT(QP9=0)),QP9/QP$6,0) -> 0 | QQ10: =IF(AND(QQ9/QQ$6=ROUND(QQ9/QQ$6,0),NOT(QQ9=0)),QQ9/QQ$6,0) -> 0 | QR10: =IF(AND(QR9/QR$6=ROUND(QR9/QR$6,0),NOT(QR9=0)),QR9/QR$6,0) -> 0 | QS10: =IF(AND(QS9/QS$6=ROUND(QS9/QS$6,0),NOT(QS9=0)),QS9/QS$6,0) -> 0 | QT10: =IF(AND(QT9/QT$6=ROUND(QT9/QT$6,0),NOT(QT9=0)),QT9/QT$6,0) -> 0 | QU10: =IF(AND(QU9/QU$6=ROUND(QU9/QU$6,0),NOT(QU9=0)),QU9/QU$6,0) -> 0 | QV10: =IF(AND(QV9/QV$6=ROUND(QV9/QV$6,0),NOT(QV9=0)),QV9/QV$6,0) -> 0 | QW10: =IF(AND(QW9/QW$6=ROUND(QW9/QW$6,0),NOT(QW9=0)),QW9/QW$6,0) -> 0 | QX10: =IF(AND(QX9/QX$6=ROUND(QX9/QX$6,0),NOT(QX9=0)),QX9/QX$6,0) -> 0 | QY10: =IF(AND(QY9/QY$6=ROUND(QY9/QY$6,0),NOT(QY9=0)),QY9/QY$6,0) -> 0 | QZ10: =IF(AND(QZ9/QZ$6=ROUND(QZ9/QZ$6,0),NOT(QZ9=0)),QZ9/QZ$6,0) -> 0 | RA10: =IF(AND(RA9/RA$6=ROUND(RA9/RA$6,0),NOT(RA9=0)),RA9/RA$6,0) -> 0 | RB10: =IF(AND(RB9/RB$6=ROUND(RB9/RB$6,0),NOT(RB9=0)),RB9/RB$6,0) -> 0 | RC10: =IF(AND(RC9/RC$6=ROUND(RC9/RC$6,0),NOT(RC9=0)),RC9/RC$6,0) -> 0 | RD10: =IF(AND(RD9/RD$6=ROUND(RD9/RD$6,0),NOT(RD9=0)),RD9/RD$6,0) -> 0 | RE10: =IF(AND(RE9/RE$6=ROUND(RE9/RE$6,0),NOT(RE9=0)),RE9/RE$6,0) -> 0 | RF10: =IF(AND(RF9/RF$6=ROUND(RF9/RF$6,0),NOT(RF9=0)),RF9/RF$6,0) -> 0 | RG10: =IF(AND(RG9/RG$6=ROUND(RG9/RG$6,0),NOT(RG9=0)),RG9/RG$6,0) -> 0 | RH10: =IF(AND(RH9/RH$6=ROUND(RH9/RH$6,0),NOT(RH9=0)),RH9/RH$6,0) -> 0 | RI10: =IF(AND(RI9/RI$6=ROUND(RI9/RI$6,0),NOT(RI9=0)),RI9/RI$6,0) -> 0 | RJ10: =IF(AND(RJ9/RJ$6=ROUND(RJ9/RJ$6,0),NOT(RJ9=0)),RJ9/RJ$6,0) -> 0 | RK10: =IF(AND(RK9/RK$6=ROUND(RK9/RK$6,0),NOT(RK9=0)),RK9/RK$6,0) -> 0 | RL10: =IF(AND(RL9/RL$6=ROUND(RL9/RL$6,0),NOT(RL9=0)),RL9/RL$6,0) -> 0 | RM10: =IF(AND(RM9/RM$6=ROUND(RM9/RM$6,0),NOT(RM9=0)),RM9/RM$6,0) -> 0 | RN10: =IF(AND(RN9/RN$6=ROUND(RN9/RN$6,0),NOT(RN9=0)),RN9/RN$6,0) -> 0 | RO10: =IF(AND(RO9/RO$6=ROUND(RO9/RO$6,0),NOT(RO9=0)),RO9/RO$6,0) -> 0 | RP10: =IF(AND(RP9/RP$6=ROUND(RP9/RP$6,0),NOT(RP9=0)),RP9/RP$6,0) -> 0 | RQ10: =IF(AND(RQ9/RQ$6=ROUND(RQ9/RQ$6,0),NOT(RQ9=0)),RQ9/RQ$6,0) -> 0 | RR10: =IF(AND(RR9/RR$6=ROUND(RR9/RR$6,0),NOT(RR9=0)),RR9/RR$6,0) -> 0 | RS10: =IF(AND(RS9/RS$6=ROUND(RS9/RS$6,0),NOT(RS9=0)),RS9/RS$6,0) -> 0 | RT10: =IF(AND(RT9/RT$6=ROUND(RT9/RT$6,0),NOT(RT9=0)),RT9/RT$6,0) -> 0 | RU10: =IF(AND(RU9/RU$6=ROUND(RU9/RU$6,0),NOT(RU9=0)),RU9/RU$6,0) -> 0 | RV10: =IF(AND(RV9/RV$6=ROUND(RV9/RV$6,0),NOT(RV9=0)),RV9/RV$6,0) -> 0 | RW10: =IF(AND(RW9/RW$6=ROUND(RW9/RW$6,0),NOT(RW9=0)),RW9/RW$6,0) -> 0 | RX10: =IF(AND(RX9/RX$6=ROUND(RX9/RX$6,0),NOT(RX9=0)),RX9/RX$6,0) -> 0 | RY10: =IF(AND(RY9/RY$6=ROUND(RY9/RY$6,0),NOT(RY9=0)),RY9/RY$6,0) -> 0 | RZ10: =IF(AND(RZ9/RZ$6=ROUND(RZ9/RZ$6,0),NOT(RZ9=0)),RZ9/RZ$6,0) -> 0 | SA10: =IF(AND(SA9/SA$6=ROUND(SA9/SA$6,0),NOT(SA9=0)),SA9/SA$6,0) -> 0 | SB10: =IF(AND(SB9/SB$6=ROUND(SB9/SB$6,0),NOT(SB9=0)),SB9/SB$6,0) -> 0 | SC10: =IF(AND(SC9/SC$6=ROUND(SC9/SC$6,0),NOT(SC9=0)),SC9/SC$6,0) -> 0 | SD10: =IF(AND(SD9/SD$6=ROUND(SD9/SD$6,0),NOT(SD9=0)),SD9/SD$6,0) -> 0 | SE10: =IF(AND(SE9/SE$6=ROUND(SE9/SE$6,0),NOT(SE9=0)),SE9/SE$6,0) -> 0 | SF10: =IF(AND(SF9/SF$6=ROUND(SF9/SF$6,0),NOT(SF9=0)),SF9/SF$6,0) -> 0 | SG10: =IF(AND(SG9/SG$6=ROUND(SG9/SG$6,0),NOT(SG9=0)),SG9/SG$6,0) -> 0 | SH10: =IF(AND(SH9/SH$6=ROUND(SH9/SH$6,0),NOT(SH9=0)),SH9/SH$6,0) -> 0 | SI10: =IF(AND(SI9/SI$6=ROUND(SI9/SI$6,0),NOT(SI9=0)),SI9/SI$6,0) -> 0 | SJ10: =IF(AND(SJ9/SJ$6=ROUND(SJ9/SJ$6,0),NOT(SJ9=0)),SJ9/SJ$6,0) -> 0 | SK10: =IF(AND(SK9/SK$6=ROUND(SK9/SK$6,0),NOT(SK9=0)),SK9/SK$6,0) -> 0 | SL10: =IF(AND(SL9/SL$6=ROUND(SL9/SL$6,0),NOT(SL9=0)),SL9/SL$6,0) -> 0 | SM10: =IF(AND(SM9/SM$6=ROUND(SM9/SM$6,0),NOT(SM9=0)),SM9/SM$6,0) -> 0 | SN10: =IF(AND(SN9/SN$6=ROUND(SN9/SN$6,0),NOT(SN9=0)),SN9/SN$6,0) -> 0 | SO10: =IF(AND(SO9/SO$6=ROUND(SO9/SO$6,0),NOT(SO9=0)),SO9/SO$6,0) -> 0 | SP10: =IF(AND(SP9/SP$6=ROUND(SP9/SP$6,0),NOT(SP9=0)),SP9/SP$6,0) -> 0 | SQ10: =IF(AND(SQ9/SQ$6=ROUND(SQ9/SQ$6,0),NOT(SQ9=0)),SQ9/SQ$6,0) -> 0 | SR10: =IF(AND(SR9/SR$6=ROUND(SR9/SR$6,0),NOT(SR9=0)),SR9/SR$6,0) -> 0 | SS10: =IF(AND(SS9/SS$6=ROUND(SS9/SS$6,0),NOT(SS9=0)),SS9/SS$6,0) -> 0 | ST10: =IF(AND(ST9/ST$6=ROUND(ST9/ST$6,0),NOT(ST9=0)),ST9/ST$6,0) -> 0 | SU10: =IF(AND(SU9/SU$6=ROUND(SU9/SU$6,0),NOT(SU9=0)),SU9/SU$6,0) -> 0 | SV10: =IF(AND(SV9/SV$6=ROUND(SV9/SV$6,0),NOT(SV9=0)),SV9/SV$6,0) -> 0 | SW10: =IF(AND(SW9/SW$6=ROUND(SW9/SW$6,0),NOT(SW9=0)),SW9/SW$6,0) -> 0 | SX10: =IF(AND(SX9/SX$6=ROUND(SX9/SX$6,0),NOT(SX9=0)),SX9/SX$6,0) -> 0 | SY10: =IF(AND(SY9/SY$6=ROUND(SY9/SY$6,0),NOT(SY9=0)),SY9/SY$6,0) -> 0 | SZ10: =IF(AND(SZ9/SZ$6=ROUND(SZ9/SZ$6,0),NOT(SZ9=0)),SZ9/SZ$6,0) -> 0 | TA10: =IF(AND(TA9/TA$6=ROUND(TA9/TA$6,0),NOT(TA9=0)),TA9/TA$6,0) -> 0 | TB10: =IF(AND(TB9/TB$6=ROUND(TB9/TB$6,0),NOT(TB9=0)),TB9/TB$6,0) -> 0 | TC10: =IF(AND(TC9/TC$6=ROUND(TC9/TC$6,0),NOT(TC9=0)),TC9/TC$6,0) -> 0 | TD10: =IF(AND(TD9/TD$6=ROUND(TD9/TD$6,0),NOT(TD9=0)),TD9/TD$6,0) -> 0 | TE10: =IF(AND(TE9/TE$6=ROUND(TE9/TE$6,0),NOT(TE9=0)),TE9/TE$6,0) -> 0 | TF10: =IF(AND(TF9/TF$6=ROUND(TF9/TF$6,0),NOT(TF9=0)),TF9/TF$6,0) -> 0 | TG10: =IF(AND(TG9/TG$6=ROUND(TG9/TG$6,0),NOT(TG9=0)),TG9/TG$6,0) -> 0 | TH10: =IF(AND(TH9/TH$6=ROUND(TH9/TH$6,0),NOT(TH9=0)),TH9/TH$6,0) -> 0 | TI10: =IF(AND(TI9/TI$6=ROUND(TI9/TI$6,0),NOT(TI9=0)),TI9/TI$6,0) -> 0 | TJ10: =IF(AND(TJ9/TJ$6=ROUND(TJ9/TJ$6,0),NOT(TJ9=0)),TJ9/TJ$6,0) -> 0 | TK10: =IF(AND(TK9/TK$6=ROUND(TK9/TK$6,0),NOT(TK9=0)),TK9/TK$6,0) -> 0 | TL10: =IF(AND(TL9/TL$6=ROUND(TL9/TL$6,0),NOT(TL9=0)),TL9/TL$6,0) -> 0 | TM10: =IF(AND(TM9/TM$6=ROUND(TM9/TM$6,0),NOT(TM9=0)),TM9/TM$6,0) -> 0 | TN10: =IF(AND(TN9/TN$6=ROUND(TN9/TN$6,0),NOT(TN9=0)),TN9/TN$6,0) -> 0 | TO10: =IF(AND(TO9/TO$6=ROUND(TO9/TO$6,0),NOT(TO9=0)),TO9/TO$6,0) -> 0 | TP10: =IF(AND(TP9/TP$6=ROUND(TP9/TP$6,0),NOT(TP9=0)),TP9/TP$6,0) -> 0 | TQ10: =IF(AND(TQ9/TQ$6=ROUND(TQ9/TQ$6,0),NOT(TQ9=0)),TQ9/TQ$6,0) -> 0 | TR10: =IF(AND(TR9/TR$6=ROUND(TR9/TR$6,0),NOT(TR9=0)),TR9/TR$6,0) -> 0 | TS10: =IF(AND(TS9/TS$6=ROUND(TS9/TS$6,0),NOT(TS9=0)),TS9/TS$6,0) -> 0 | TT10: =IF(AND(TT9/TT$6=ROUND(TT9/TT$6,0),NOT(TT9=0)),TT9/TT$6,0) -> 0 | TU10: =IF(AND(TU9/TU$6=ROUND(TU9/TU$6,0),NOT(TU9=0)),TU9/TU$6,0) -> 0 | TV10: =IF(AND(TV9/TV$6=ROUND(TV9/TV$6,0),NOT(TV9=0)),TV9/TV$6,0) -> 0 | TW10: =IF(AND(TW9/TW$6=ROUND(TW9/TW$6,0),NOT(TW9=0)),TW9/TW$6,0) -> 0 | TX10: =IF(AND(TX9/TX$6=ROUND(TX9/TX$6,0),NOT(TX9=0)),TX9/TX$6,0) -> 0 | TY10: =IF(AND(TY9/TY$6=ROUND(TY9/TY$6,0),NOT(TY9=0)),TY9/TY$6,0) -> 0 | TZ10: =IF(AND(TZ9/TZ$6=ROUND(TZ9/TZ$6,0),NOT(TZ9=0)),TZ9/TZ$6,0) -> 0 | UA10: =IF(AND(UA9/UA$6=ROUND(UA9/UA$6,0),NOT(UA9=0)),UA9/UA$6,0) -> 0 | UB10: =IF(AND(UB9/UB$6=ROUND(UB9/UB$6,0),NOT(UB9=0)),UB9/UB$6,0) -> 0 | UC10: =IF(AND(UC9/UC$6=ROUND(UC9/UC$6,0),NOT(UC9=0)),UC9/UC$6,0) -> 0 | UD10: =IF(AND(UD9/UD$6=ROUND(UD9/UD$6,0),NOT(UD9=0)),UD9/UD$6,0) -> 0 | UE10: =IF(AND(UE9/UE$6=ROUND(UE9/UE$6,0),NOT(UE9=0)),UE9/UE$6,0) -> 0 | UF10: =IF(AND(UF9/UF$6=ROUND(UF9/UF$6,0),NOT(UF9=0)),UF9/UF$6,0) -> 0 | UG10: =IF(AND(UG9/UG$6=ROUND(UG9/UG$6,0),NOT(UG9=0)),UG9/UG$6,0) -> 0 | UH10: =IF(AND(UH9/UH$6=ROUND(UH9/UH$6,0),NOT(UH9=0)),UH9/UH$6,0) -> 0 | UI10: =IF(AND(UI9/UI$6=ROUND(UI9/UI$6,0),NOT(UI9=0)),UI9/UI$6,0) -> 0 | UJ10: =IF(AND(UJ9/UJ$6=ROUND(UJ9/UJ$6,0),NOT(UJ9=0)),UJ9/UJ$6,0) -> 0 | UK10: =IF(AND(UK9/UK$6=ROUND(UK9/UK$6,0),NOT(UK9=0)),UK9/UK$6,0) -> 0 | UL10: =IF(AND(UL9/UL$6=ROUND(UL9/UL$6,0),NOT(UL9=0)),UL9/UL$6,0) -> 0 | UM10: =IF(AND(UM9/UM$6=ROUND(UM9/UM$6,0),NOT(UM9=0)),UM9/UM$6,0) -> 0 | UN10: =IF(AND(UN9/UN$6=ROUND(UN9/UN$6,0),NOT(UN9=0)),UN9/UN$6,0) -> 0 | UO10: =IF(AND(UO9/UO$6=ROUND(UO9/UO$6,0),NOT(UO9=0)),UO9/UO$6,0) -> 0 | UP10: =IF(AND(UP9/UP$6=ROUND(UP9/UP$6,0),NOT(UP9=0)),UP9/UP$6,0) -> 0 | UQ10: =IF(AND(UQ9/UQ$6=ROUND(UQ9/UQ$6,0),NOT(UQ9=0)),UQ9/UQ$6,0) -> 0 | UR10: =IF(AND(UR9/UR$6=ROUND(UR9/UR$6,0),NOT(UR9=0)),UR9/UR$6,0) -> 0 | US10: =IF(AND(US9/US$6=ROUND(US9/US$6,0),NOT(US9=0)),US9/US$6,0) -> 0 | UT10: =IF(AND(UT9/UT$6=ROUND(UT9/UT$6,0),NOT(UT9=0)),UT9/UT$6,0) -> 0 | UU10: =IF(AND(UU9/UU$6=ROUND(UU9/UU$6,0),NOT(UU9=0)),UU9/UU$6,0) -> 0 | UV10: =IF(AND(UV9/UV$6=ROUND(UV9/UV$6,0),NOT(UV9=0)),UV9/UV$6,0) -> 0 | UW10: =IF(AND(UW9/UW$6=ROUND(UW9/UW$6,0),NOT(UW9=0)),UW9/UW$6,0) -> 0 | UX10: =IF(AND(UX9/UX$6=ROUND(UX9/UX$6,0),NOT(UX9=0)),UX9/UX$6,0) -> 0 | UY10: =IF(AND(UY9/UY$6=ROUND(UY9/UY$6,0),NOT(UY9=0)),UY9/UY$6,0) -> 0 | UZ10: =IF(AND(UZ9/UZ$6=ROUND(UZ9/UZ$6,0),NOT(UZ9=0)),UZ9/UZ$6,0) -> 0 | VA10: =IF(AND(VA9/VA$6=ROUND(VA9/VA$6,0),NOT(VA9=0)),VA9/VA$6,0) -> 0 | VB10: =IF(AND(VB9/VB$6=ROUND(VB9/VB$6,0),NOT(VB9=0)),VB9/VB$6,0) -> 0 | VC10: =IF(AND(VC9/VC$6=ROUND(VC9/VC$6,0),NOT(VC9=0)),VC9/VC$6,0) -> 0 | VD10: =IF(AND(VD9/VD$6=ROUND(VD9/VD$6,0),NOT(VD9=0)),VD9/VD$6,0) -> 0 | VE10: =IF(AND(VE9/VE$6=ROUND(VE9/VE$6,0),NOT(VE9=0)),VE9/VE$6,0) -> 0 | VF10: =IF(AND(VF9/VF$6=ROUND(VF9/VF$6,0),NOT(VF9=0)),VF9/VF$6,0) -> 0 | VG10: =IF(AND(VG9/VG$6=ROUND(VG9/VG$6,0),NOT(VG9=0)),VG9/VG$6,0) -> 0 | VH10: =IF(AND(VH9/VH$6=ROUND(VH9/VH$6,0),NOT(VH9=0)),VH9/VH$6,0) -> 0 | VI10: =IF(AND(VI9/VI$6=ROUND(VI9/VI$6,0),NOT(VI9=0)),VI9/VI$6,0) -> 0 | VJ10: =IF(AND(VJ9/VJ$6=ROUND(VJ9/VJ$6,0),NOT(VJ9=0)),VJ9/VJ$6,0) -> 0 | VK10: =IF(AND(VK9/VK$6=ROUND(VK9/VK$6,0),NOT(VK9=0)),VK9/VK$6,0) -> 0 | VL10: =IF(AND(VL9/VL$6=ROUND(VL9/VL$6,0),NOT(VL9=0)),VL9/VL$6,0) -> 0 | VM10: =IF(AND(VM9/VM$6=ROUND(VM9/VM$6,0),NOT(VM9=0)),VM9/VM$6,0) -> 0 | VN10: =IF(AND(VN9/VN$6=ROUND(VN9/VN$6,0),NOT(VN9=0)),VN9/VN$6,0) -> 0 | VO10: =IF(AND(VO9/VO$6=ROUND(VO9/VO$6,0),NOT(VO9=0)),VO9/VO$6,0) -> 0 | VP10: =IF(AND(VP9/VP$6=ROUND(VP9/VP$6,0),NOT(VP9=0)),VP9/VP$6,0) -> 0 | VQ10: =IF(AND(VQ9/VQ$6=ROUND(VQ9/VQ$6,0),NOT(VQ9=0)),VQ9/VQ$6,0) -> 0 | VR10: =IF(AND(VR9/VR$6=ROUND(VR9/VR$6,0),NOT(VR9=0)),VR9/VR$6,0) -> 0 | VS10: =IF(AND(VS9/VS$6=ROUND(VS9/VS$6,0),NOT(VS9=0)),VS9/VS$6,0) -> 0 | VT10: =IF(AND(VT9/VT$6=ROUND(VT9/VT$6,0),NOT(VT9=0)),VT9/VT$6,0) -> 0 | VU10: =IF(AND(VU9/VU$6=ROUND(VU9/VU$6,0),NOT(VU9=0)),VU9/VU$6,0) -> 0 | VV10: =IF(AND(VV9/VV$6=ROUND(VV9/VV$6,0),NOT(VV9=0)),VV9/VV$6,0) -> 0 | VW10: =IF(AND(VW9/VW$6=ROUND(VW9/VW$6,0),NOT(VW9=0)),VW9/VW$6,0) -> 0 | VX10: =IF(AND(VX9/VX$6=ROUND(VX9/VX$6,0),NOT(VX9=0)),VX9/VX$6,0) -> 0 | VY10: =IF(AND(VY9/VY$6=ROUND(VY9/VY$6,0),NOT(VY9=0)),VY9/VY$6,0) -> 0 | VZ10: =IF(AND(VZ9/VZ$6=ROUND(VZ9/VZ$6,0),NOT(VZ9=0)),VZ9/VZ$6,0) -> 0 | WA10: =IF(AND(WA9/WA$6=ROUND(WA9/WA$6,0),NOT(WA9=0)),WA9/WA$6,0) -> 0 | WB10: =IF(AND(WB9/WB$6=ROUND(WB9/WB$6,0),NOT(WB9=0)),WB9/WB$6,0) -> 0 | WC10: =IF(AND(WC9/WC$6=ROUND(WC9/WC$6,0),NOT(WC9=0)),WC9/WC$6,0) -> 0 | WD10: =IF(AND(WD9/WD$6=ROUND(WD9/WD$6,0),NOT(WD9=0)),WD9/WD$6,0) -> 0 | WE10: =IF(AND(WE9/WE$6=ROUND(WE9/WE$6,0),NOT(WE9=0)),WE9/WE$6,0) -> 0 | WF10: =IF(AND(WF9/WF$6=ROUND(WF9/WF$6,0),NOT(WF9=0)),WF9/WF$6,0) -> 0 | WG10: =IF(AND(WG9/WG$6=ROUND(WG9/WG$6,0),NOT(WG9=0)),WG9/WG$6,0) -> 0 | WH10: =IF(AND(WH9/WH$6=ROUND(WH9/WH$6,0),NOT(WH9=0)),WH9/WH$6,0) -> 0 | WI10: =IF(AND(WI9/WI$6=ROUND(WI9/WI$6,0),NOT(WI9=0)),WI9/WI$6,0) -> 0 | WJ10: =IF(AND(WJ9/WJ$6=ROUND(WJ9/WJ$6,0),NOT(WJ9=0)),WJ9/WJ$6,0) -> 0 | WK10: =IF(AND(WK9/WK$6=ROUND(WK9/WK$6,0),NOT(WK9=0)),WK9/WK$6,0) -> 0 | WL10: =IF(AND(WL9/WL$6=ROUND(WL9/WL$6,0),NOT(WL9=0)),WL9/WL$6,0) -> 0 | WM10: =IF(AND(WM9/WM$6=ROUND(WM9/WM$6,0),NOT(WM9=0)),WM9/WM$6,0) -> 0 | WN10: =IF(AND(WN9/WN$6=ROUND(WN9/WN$6,0),NOT(WN9=0)),WN9/WN$6,0) -> 0 | WO10: =IF(AND(WO9/WO$6=ROUND(WO9/WO$6,0),NOT(WO9=0)),WO9/WO$6,0) -> 0 | WP10: =IF(AND(WP9/WP$6=ROUND(WP9/WP$6,0),NOT(WP9=0)),WP9/WP$6,0) -> 0 | WQ10: =IF(AND(WQ9/WQ$6=ROUND(WQ9/WQ$6,0),NOT(WQ9=0)),WQ9/WQ$6,0) -> 0 | WR10: =IF(AND(WR9/WR$6=ROUND(WR9/WR$6,0),NOT(WR9=0)),WR9/WR$6,0) -> 0 | WS10: =IF(AND(WS9/WS$6=ROUND(WS9/WS$6,0),NOT(WS9=0)),WS9/WS$6,0) -> 0 | WT10: =IF(AND(WT9/WT$6=ROUND(WT9/WT$6,0),NOT(WT9=0)),WT9/WT$6,0) -> 0 | WU10: =IF(AND(WU9/WU$6=ROUND(WU9/WU$6,0),NOT(WU9=0)),WU9/WU$6,0) -> 0 | WV10: =IF(AND(WV9/WV$6=ROUND(WV9/WV$6,0),NOT(WV9=0)),WV9/WV$6,0) -> 0 | WW10: =IF(AND(WW9/WW$6=ROUND(WW9/WW$6,0),NOT(WW9=0)),WW9/WW$6,0) -> 0 | WX10: =IF(AND(WX9/WX$6=ROUND(WX9/WX$6,0),NOT(WX9=0)),WX9/WX$6,0) -> 0 | WY10: =IF(AND(WY9/WY$6=ROUND(WY9/WY$6,0),NOT(WY9=0)),WY9/WY$6,0) -> 0 | WZ10: =IF(AND(WZ9/WZ$6=ROUND(WZ9/WZ$6,0),NOT(WZ9=0)),WZ9/WZ$6,0) -> 0 | XA10: =IF(AND(XA9/XA$6=ROUND(XA9/XA$6,0),NOT(XA9=0)),XA9/XA$6,0) -> 0 | XB10: =IF(AND(XB9/XB$6=ROUND(XB9/XB$6,0),NOT(XB9=0)),XB9/XB$6,0) -> 0 | XC10: =IF(AND(XC9/XC$6=ROUND(XC9/XC$6,0),NOT(XC9=0)),XC9/XC$6,0) -> 0 | XD10: =IF(AND(XD9/XD$6=ROUND(XD9/XD$6,0),NOT(XD9=0)),XD9/XD$6,0) -> 0 | XE10: =IF(AND(XE9/XE$6=ROUND(XE9/XE$6,0),NOT(XE9=0)),XE9/XE$6,0) -> 0 | XF10: =IF(AND(XF9/XF$6=ROUND(XF9/XF$6,0),NOT(XF9=0)),XF9/XF$6,0) -> 0 | XG10: =IF(AND(XG9/XG$6=ROUND(XG9/XG$6,0),NOT(XG9=0)),XG9/XG$6,0) -> 0 | XH10: =IF(AND(XH9/XH$6=ROUND(XH9/XH$6,0),NOT(XH9=0)),XH9/XH$6,0) -> 0 | XI10: =IF(AND(XI9/XI$6=ROUND(XI9/XI$6,0),NOT(XI9=0)),XI9/XI$6,0) -> 0 | XJ10: =IF(AND(XJ9/XJ$6=ROUND(XJ9/XJ$6,0),NOT(XJ9=0)),XJ9/XJ$6,0) -> 0 | XK10: =IF(AND(XK9/XK$6=ROUND(XK9/XK$6,0),NOT(XK9=0)),XK9/XK$6,0) -> 0 | XL10: =IF(AND(XL9/XL$6=ROUND(XL9/XL$6,0),NOT(XL9=0)),XL9/XL$6,0) -> 0 | XM10: =IF(AND(XM9/XM$6=ROUND(XM9/XM$6,0),NOT(XM9=0)),XM9/XM$6,0) -> 0 | XN10: =IF(AND(XN9/XN$6=ROUND(XN9/XN$6,0),NOT(XN9=0)),XN9/XN$6,0) -> 0 | XO10: =IF(AND(XO9/XO$6=ROUND(XO9/XO$6,0),NOT(XO9=0)),XO9/XO$6,0) -> 0 | XP10: =IF(AND(XP9/XP$6=ROUND(XP9/XP$6,0),NOT(XP9=0)),XP9/XP$6,0) -> 0 | XQ10: =IF(AND(XQ9/XQ$6=ROUND(XQ9/XQ$6,0),NOT(XQ9=0)),XQ9/XQ$6,0) -> 0 | XR10: =IF(AND(XR9/XR$6=ROUND(XR9/XR$6,0),NOT(XR9=0)),XR9/XR$6,0) -> 0 | XS10: =IF(AND(XS9/XS$6=ROUND(XS9/XS$6,0),NOT(XS9=0)),XS9/XS$6,0) -> 0 | XT10: =IF(AND(XT9/XT$6=ROUND(XT9/XT$6,0),NOT(XT9=0)),XT9/XT$6,0) -> 0 | XU10: =IF(AND(XU9/XU$6=ROUND(XU9/XU$6,0),NOT(XU9=0)),XU9/XU$6,0) -> 0 | XV10: =IF(AND(XV9/XV$6=ROUND(XV9/XV$6,0),NOT(XV9=0)),XV9/XV$6,0) -> 0 | XW10: =IF(AND(XW9/XW$6=ROUND(XW9/XW$6,0),NOT(XW9=0)),XW9/XW$6,0) -> 0 | XX10: =IF(AND(XX9/XX$6=ROUND(XX9/XX$6,0),NOT(XX9=0)),XX9/XX$6,0) -> 0 | XY10: =IF(AND(XY9/XY$6=ROUND(XY9/XY$6,0),NOT(XY9=0)),XY9/XY$6,0) -> 0 | XZ10: =IF(AND(XZ9/XZ$6=ROUND(XZ9/XZ$6,0),NOT(XZ9=0)),XZ9/XZ$6,0) -> 0 | YA10: =IF(AND(YA9/YA$6=ROUND(YA9/YA$6,0),NOT(YA9=0)),YA9/YA$6,0) -> 0 | YB10: =IF(AND(YB9/YB$6=ROUND(YB9/YB$6,0),NOT(YB9=0)),YB9/YB$6,0) -> 0 | YC10: =IF(AND(YC9/YC$6=ROUND(YC9/YC$6,0),NOT(YC9=0)),YC9/YC$6,0) -> 0 | YD10: =IF(AND(YD9/YD$6=ROUND(YD9/YD$6,0),NOT(YD9=0)),YD9/YD$6,0) -> 0 | YE10: =IF(AND(YE9/YE$6=ROUND(YE9/YE$6,0),NOT(YE9=0)),YE9/YE$6,0) -> 0 | YF10: =IF(AND(YF9/YF$6=ROUND(YF9/YF$6,0),NOT(YF9=0)),YF9/YF$6,0) -> 0 | YG10: =IF(AND(YG9/YG$6=ROUND(YG9/YG$6,0),NOT(YG9=0)),YG9/YG$6,0) -> 0 | YH10: =IF(AND(YH9/YH$6=ROUND(YH9/YH$6,0),NOT(YH9=0)),YH9/YH$6,0) -> 0 | YI10: =IF(AND(YI9/YI$6=ROUND(YI9/YI$6,0),NOT(YI9=0)),YI9/YI$6,0) -> 0 | YJ10: =IF(AND(YJ9/YJ$6=ROUND(YJ9/YJ$6,0),NOT(YJ9=0)),YJ9/YJ$6,0) -> 0 | YK10: =IF(AND(YK9/YK$6=ROUND(YK9/YK$6,0),NOT(YK9=0)),YK9/YK$6,0) -> 0 | YL10: =IF(AND(YL9/YL$6=ROUND(YL9/YL$6,0),NOT(YL9=0)),YL9/YL$6,0) -> 0 | YM10: =IF(AND(YM9/YM$6=ROUND(YM9/YM$6,0),NOT(YM9=0)),YM9/YM$6,0) -> 0 | YN10: =IF(AND(YN9/YN$6=ROUND(YN9/YN$6,0),NOT(YN9=0)),YN9/YN$6,0) -> 0 | YO10: =IF(AND(YO9/YO$6=ROUND(YO9/YO$6,0),NOT(YO9=0)),YO9/YO$6,0) -> 0 | YP10: =IF(AND(YP9/YP$6=ROUND(YP9/YP$6,0),NOT(YP9=0)),YP9/YP$6,0) -> 0 | YQ10: =IF(AND(YQ9/YQ$6=ROUND(YQ9/YQ$6,0),NOT(YQ9=0)),YQ9/YQ$6,0) -> 0 | YR10: =IF(AND(YR9/YR$6=ROUND(YR9/YR$6,0),NOT(YR9=0)),YR9/YR$6,0) -> 0 | YS10: =IF(AND(YS9/YS$6=ROUND(YS9/YS$6,0),NOT(YS9=0)),YS9/YS$6,0) -> 0 | YT10: =IF(AND(YT9/YT$6=ROUND(YT9/YT$6,0),NOT(YT9=0)),YT9/YT$6,0) -> 0 | YU10: =IF(AND(YU9/YU$6=ROUND(YU9/YU$6,0),NOT(YU9=0)),YU9/YU$6,0) -> 0 | YV10: =IF(AND(YV9/YV$6=ROUND(YV9/YV$6,0),NOT(YV9=0)),YV9/YV$6,0) -> 0 | YW10: =IF(AND(YW9/YW$6=ROUND(YW9/YW$6,0),NOT(YW9=0)),YW9/YW$6,0) -> 0 | YX10: =IF(AND(YX9/YX$6=ROUND(YX9/YX$6,0),NOT(YX9=0)),YX9/YX$6,0) -> 0 | YY10: =IF(AND(YY9/YY$6=ROUND(YY9/YY$6,0),NOT(YY9=0)),YY9/YY$6,0) -> 0 | YZ10: =IF(AND(YZ9/YZ$6=ROUND(YZ9/YZ$6,0),NOT(YZ9=0)),YZ9/YZ$6,0) -> 0 | ZA10: =IF(AND(ZA9/ZA$6=ROUND(ZA9/ZA$6,0),NOT(ZA9=0)),ZA9/ZA$6,0) -> 0 | ZB10: =IF(AND(ZB9/ZB$6=ROUND(ZB9/ZB$6,0),NOT(ZB9=0)),ZB9/ZB$6,0) -> 0 | ZC10: =IF(AND(ZC9/ZC$6=ROUND(ZC9/ZC$6,0),NOT(ZC9=0)),ZC9/ZC$6,0) -> 0 | ZD10: =IF(AND(ZD9/ZD$6=ROUND(ZD9/ZD$6,0),NOT(ZD9=0)),ZD9/ZD$6,0) -> 0 | ZE10: =IF(AND(ZE9/ZE$6=ROUND(ZE9/ZE$6,0),NOT(ZE9=0)),ZE9/ZE$6,0) -> 0 | ZF10: =IF(AND(ZF9/ZF$6=ROUND(ZF9/ZF$6,0),NOT(ZF9=0)),ZF9/ZF$6,0) -> 0 | ZG10: =IF(AND(ZG9/ZG$6=ROUND(ZG9/ZG$6,0),NOT(ZG9=0)),ZG9/ZG$6,0) -> 0 | ZH10: =IF(AND(ZH9/ZH$6=ROUND(ZH9/ZH$6,0),NOT(ZH9=0)),ZH9/ZH$6,0) -> 0 | ZI10: =IF(AND(ZI9/ZI$6=ROUND(ZI9/ZI$6,0),NOT(ZI9=0)),ZI9/ZI$6,0) -> 0 | ZJ10: =IF(AND(ZJ9/ZJ$6=ROUND(ZJ9/ZJ$6,0),NOT(ZJ9=0)),ZJ9/ZJ$6,0) -> 0 | ZK10: =IF(AND(ZK9/ZK$6=ROUND(ZK9/ZK$6,0),NOT(ZK9=0)),ZK9/ZK$6,0) -> 0 | ZL10: =IF(AND(ZL9/ZL$6=ROUND(ZL9/ZL$6,0),NOT(ZL9=0)),ZL9/ZL$6,0) -> 0 | ZM10: =IF(AND(ZM9/ZM$6=ROUND(ZM9/ZM$6,0),NOT(ZM9=0)),ZM9/ZM$6,0) -> 0 | ZN10: =IF(AND(ZN9/ZN$6=ROUND(ZN9/ZN$6,0),NOT(ZN9=0)),ZN9/ZN$6,0) -> 0 | ZO10: =IF(AND(ZO9/ZO$6=ROUND(ZO9/ZO$6,0),NOT(ZO9=0)),ZO9/ZO$6,0) -> 0 | ZP10: =IF(AND(ZP9/ZP$6=ROUND(ZP9/ZP$6,0),NOT(ZP9=0)),ZP9/ZP$6,0) -> 0 | ZQ10: =IF(AND(ZQ9/ZQ$6=ROUND(ZQ9/ZQ$6,0),NOT(ZQ9=0)),ZQ9/ZQ$6,0) -> 0 | ZR10: =IF(AND(ZR9/ZR$6=ROUND(ZR9/ZR$6,0),NOT(ZR9=0)),ZR9/ZR$6,0) -> 0 | ZS10: =IF(AND(ZS9/ZS$6=ROUND(ZS9/ZS$6,0),NOT(ZS9=0)),ZS9/ZS$6,0) -> 0 | ZT10: =IF(AND(ZT9/ZT$6=ROUND(ZT9/ZT$6,0),NOT(ZT9=0)),ZT9/ZT$6,0) -> 0 | ZU10: =IF(AND(ZU9/ZU$6=ROUND(ZU9/ZU$6,0),NOT(ZU9=0)),ZU9/ZU$6,0) -> 0 | ZV10: =IF(AND(ZV9/ZV$6=ROUND(ZV9/ZV$6,0),NOT(ZV9=0)),ZV9/ZV$6,0) -> 0 | ZW10: =IF(AND(ZW9/ZW$6=ROUND(ZW9/ZW$6,0),NOT(ZW9=0)),ZW9/ZW$6,0) -> 0 | ZX10: =IF(AND(ZX9/ZX$6=ROUND(ZX9/ZX$6,0),NOT(ZX9=0)),ZX9/ZX$6,0) -> 0 | ZY10: =IF(AND(ZY9/ZY$6=ROUND(ZY9/ZY$6,0),NOT(ZY9=0)),ZY9/ZY$6,0) -> 0 | ZZ10: =IF(AND(ZZ9/ZZ$6=ROUND(ZZ9/ZZ$6,0),NOT(ZZ9=0)),ZZ9/ZZ$6,0) -> 0 | AAA10: =IF(AND(AAA9/AAA$6=ROUND(AAA9/AAA$6,0),NOT(AAA9=0)),AAA9/AAA$6,0) -> 0 | AAB10: =IF(AND(AAB9/AAB$6=ROUND(AAB9/AAB$6,0),NOT(AAB9=0)),AAB9/AAB$6,0) -> 0 | AAC10: =IF(AND(AAC9/AAC$6=ROUND(AAC9/AAC$6,0),NOT(AAC9=0)),AAC9/AAC$6,0) -> 0 | AAD10: =IF(AND(AAD9/AAD$6=ROUND(AAD9/AAD$6,0),NOT(AAD9=0)),AAD9/AAD$6,0) -> 0 | AAE10: =IF(AND(AAE9/AAE$6=ROUND(AAE9/AAE$6,0),NOT(AAE9=0)),AAE9/AAE$6,0) -> 0 | AAF10: =IF(AND(AAF9/AAF$6=ROUND(AAF9/AAF$6,0),NOT(AAF9=0)),AAF9/AAF$6,0) -> 0 | AAG10: =IF(AND(AAG9/AAG$6=ROUND(AAG9/AAG$6,0),NOT(AAG9=0)),AAG9/AAG$6,0) -> 0 | AAH10: =IF(AND(AAH9/AAH$6=ROUND(AAH9/AAH$6,0),NOT(AAH9=0)),AAH9/AAH$6,0) -> 0 | AAI10: =IF(AND(AAI9/AAI$6=ROUND(AAI9/AAI$6,0),NOT(AAI9=0)),AAI9/AAI$6,0) -> 0 | AAJ10: =IF(AND(AAJ9/AAJ$6=ROUND(AAJ9/AAJ$6,0),NOT(AAJ9=0)),AAJ9/AAJ$6,0) -> 0 | AAK10: =IF(AND(AAK9/AAK$6=ROUND(AAK9/AAK$6,0),NOT(AAK9=0)),AAK9/AAK$6,0) -> 0 | AAL10: =IF(AND(AAL9/AAL$6=ROUND(AAL9/AAL$6,0),NOT(AAL9=0)),AAL9/AAL$6,0) -> 0 | AAM10: =IF(AND(AAM9/AAM$6=ROUND(AAM9/AAM$6,0),NOT(AAM9=0)),AAM9/AAM$6,0) -> 0 | AAN10: =IF(AND(AAN9/AAN$6=ROUND(AAN9/AAN$6,0),NOT(AAN9=0)),AAN9/AAN$6,0) -> 0 | AAO10: =IF(AND(AAO9/AAO$6=ROUND(AAO9/AAO$6,0),NOT(AAO9=0)),AAO9/AAO$6,0) -> 0 | AAP10: =IF(AND(AAP9/AAP$6=ROUND(AAP9/AAP$6,0),NOT(AAP9=0)),AAP9/AAP$6,0) -> 0 | AAQ10: =IF(AND(AAQ9/AAQ$6=ROUND(AAQ9/AAQ$6,0),NOT(AAQ9=0)),AAQ9/AAQ$6,0) -> 0 | AAR10: =IF(AND(AAR9/AAR$6=ROUND(AAR9/AAR$6,0),NOT(AAR9=0)),AAR9/AAR$6,0) -> 0 | AAS10: =IF(AND(AAS9/AAS$6=ROUND(AAS9/AAS$6,0),NOT(AAS9=0)),AAS9/AAS$6,0) -> 0 | AAT10: =IF(AND(AAT9/AAT$6=ROUND(AAT9/AAT$6,0),NOT(AAT9=0)),AAT9/AAT$6,0) -> 0 | AAU10: =IF(AND(AAU9/AAU$6=ROUND(AAU9/AAU$6,0),NOT(AAU9=0)),AAU9/AAU$6,0) -> 0 | AAV10: =IF(AND(AAV9/AAV$6=ROUND(AAV9/AAV$6,0),NOT(AAV9=0)),AAV9/AAV$6,0) -> 0 | AAW10: =IF(AND(AAW9/AAW$6=ROUND(AAW9/AAW$6,0),NOT(AAW9=0)),AAW9/AAW$6,0) -> 0 | AAX10: =IF(AND(AAX9/AAX$6=ROUND(AAX9/AAX$6,0),NOT(AAX9=0)),AAX9/AAX$6,0) -> 0 | AAY10: =IF(AND(AAY9/AAY$6=ROUND(AAY9/AAY$6,0),NOT(AAY9=0)),AAY9/AAY$6,0) -> 0 | AAZ10: =IF(AND(AAZ9/AAZ$6=ROUND(AAZ9/AAZ$6,0),NOT(AAZ9=0)),AAZ9/AAZ$6,0) -> 0 | ABA10: =IF(AND(ABA9/ABA$6=ROUND(ABA9/ABA$6,0),NOT(ABA9=0)),ABA9/ABA$6,0) -> 0 | ABB10: =IF(AND(ABB9/ABB$6=ROUND(ABB9/ABB$6,0),NOT(ABB9=0)),ABB9/ABB$6,0) -> 0 | ABC10: =IF(AND(ABC9/ABC$6=ROUND(ABC9/ABC$6,0),NOT(ABC9=0)),ABC9/ABC$6,0) -> 0 | ABD10: =IF(AND(ABD9/ABD$6=ROUND(ABD9/ABD$6,0),NOT(ABD9=0)),ABD9/ABD$6,0) -> 0 | ABE10: =IF(AND(ABE9/ABE$6=ROUND(ABE9/ABE$6,0),NOT(ABE9=0)),ABE9/ABE$6,0) -> 0 | ABF10: =IF(AND(ABF9/ABF$6=ROUND(ABF9/ABF$6,0),NOT(ABF9=0)),ABF9/ABF$6,0) -> 0 | ABG10: =IF(AND(ABG9/ABG$6=ROUND(ABG9/ABG$6,0),NOT(ABG9=0)),ABG9/ABG$6,0) -> 0 | ABH10: =IF(AND(ABH9/ABH$6=ROUND(ABH9/ABH$6,0),NOT(ABH9=0)),ABH9/ABH$6,0) -> 0 | ABI10: =IF(AND(ABI9/ABI$6=ROUND(ABI9/ABI$6,0),NOT(ABI9=0)),ABI9/ABI$6,0) -> 0 | ABJ10: =IF(AND(ABJ9/ABJ$6=ROUND(ABJ9/ABJ$6,0),NOT(ABJ9=0)),ABJ9/ABJ$6,0) -> 0 | ABK10: =IF(AND(ABK9/ABK$6=ROUND(ABK9/ABK$6,0),NOT(ABK9=0)),ABK9/ABK$6,0) -> 0 | ABL10: =IF(AND(ABL9/ABL$6=ROUND(ABL9/ABL$6,0),NOT(ABL9=0)),ABL9/ABL$6,0) -> 0 | ABM10: =IF(AND(ABM9/ABM$6=ROUND(ABM9/ABM$6,0),NOT(ABM9=0)),ABM9/ABM$6,0) -> 0 | ABN10: =IF(AND(ABN9/ABN$6=ROUND(ABN9/ABN$6,0),NOT(ABN9=0)),ABN9/ABN$6,0) -> 0 | ABO10: =IF(AND(ABO9/ABO$6=ROUND(ABO9/ABO$6,0),NOT(ABO9=0)),ABO9/ABO$6,0) -> 0 | ABP10: =IF(AND(ABP9/ABP$6=ROUND(ABP9/ABP$6,0),NOT(ABP9=0)),ABP9/ABP$6,0) -> 0 | ABQ10: =IF(AND(ABQ9/ABQ$6=ROUND(ABQ9/ABQ$6,0),NOT(ABQ9=0)),ABQ9/ABQ$6,0) -> 0 | ABR10: =IF(AND(ABR9/ABR$6=ROUND(ABR9/ABR$6,0),NOT(ABR9=0)),ABR9/ABR$6,0) -> 0 | ABS10: =IF(AND(ABS9/ABS$6=ROUND(ABS9/ABS$6,0),NOT(ABS9=0)),ABS9/ABS$6,0) -> 0 | ABT10: =IF(AND(ABT9/ABT$6=ROUND(ABT9/ABT$6,0),NOT(ABT9=0)),ABT9/ABT$6,0) -> 0 | ABU10: =IF(AND(ABU9/ABU$6=ROUND(ABU9/ABU$6,0),NOT(ABU9=0)),ABU9/ABU$6,0) -> 0 | ABV10: =IF(AND(ABV9/ABV$6=ROUND(ABV9/ABV$6,0),NOT(ABV9=0)),ABV9/ABV$6,0) -> 0 | ABW10: =IF(AND(ABW9/ABW$6=ROUND(ABW9/ABW$6,0),NOT(ABW9=0)),ABW9/ABW$6,0) -> 0 | ABX10: =IF(AND(ABX9/ABX$6=ROUND(ABX9/ABX$6,0),NOT(ABX9=0)),ABX9/ABX$6,0) -> 0 | ABY10: =IF(AND(ABY9/ABY$6=ROUND(ABY9/ABY$6,0),NOT(ABY9=0)),ABY9/ABY$6,0) -> 0 | ABZ10: =IF(AND(ABZ9/ABZ$6=ROUND(ABZ9/ABZ$6,0),NOT(ABZ9=0)),ABZ9/ABZ$6,0) -> 0 | ACA10: =IF(AND(ACA9/ACA$6=ROUND(ACA9/ACA$6,0),NOT(ACA9=0)),ACA9/ACA$6,0) -> 0 | ACB10: =IF(AND(ACB9/ACB$6=ROUND(ACB9/ACB$6,0),NOT(ACB9=0)),ACB9/ACB$6,0) -> 0 | ACC10: =IF(AND(ACC9/ACC$6=ROUND(ACC9/ACC$6,0),NOT(ACC9=0)),ACC9/ACC$6,0) -> 0 | ACD10: =IF(AND(ACD9/ACD$6=ROUND(ACD9/ACD$6,0),NOT(ACD9=0)),ACD9/ACD$6,0) -> 0 | ACE10: =IF(AND(ACE9/ACE$6=ROUND(ACE9/ACE$6,0),NOT(ACE9=0)),ACE9/ACE$6,0) -> 0 | ACF10: =IF(AND(ACF9/ACF$6=ROUND(ACF9/ACF$6,0),NOT(ACF9=0)),ACF9/ACF$6,0) -> 0 | ACG10: =IF(AND(ACG9/ACG$6=ROUND(ACG9/ACG$6,0),NOT(ACG9=0)),ACG9/ACG$6,0) -> 0 | ACH10: =IF(AND(ACH9/ACH$6=ROUND(ACH9/ACH$6,0),NOT(ACH9=0)),ACH9/ACH$6,0) -> 0 | ACI10: =IF(AND(ACI9/ACI$6=ROUND(ACI9/ACI$6,0),NOT(ACI9=0)),ACI9/ACI$6,0) -> 0 | ACJ10: =IF(AND(ACJ9/ACJ$6=ROUND(ACJ9/ACJ$6,0),NOT(ACJ9=0)),ACJ9/ACJ$6,0) -> 0 | ACK10: =IF(AND(ACK9/ACK$6=ROUND(ACK9/ACK$6,0),NOT(ACK9=0)),ACK9/ACK$6,0) -> 0 | ACL10: =IF(AND(ACL9/ACL$6=ROUND(ACL9/ACL$6,0),NOT(ACL9=0)),ACL9/ACL$6,0) -> 0 | ACM10: =IF(AND(ACM9/ACM$6=ROUND(ACM9/ACM$6,0),NOT(ACM9=0)),ACM9/ACM$6,0) -> 0 | ACN10: =IF(AND(ACN9/ACN$6=ROUND(ACN9/ACN$6,0),NOT(ACN9=0)),ACN9/ACN$6,0) -> 0 | ACO10: =IF(AND(ACO9/ACO$6=ROUND(ACO9/ACO$6,0),NOT(ACO9=0)),ACO9/ACO$6,0) -> 0 | ACP10: =IF(AND(ACP9/ACP$6=ROUND(ACP9/ACP$6,0),NOT(ACP9=0)),ACP9/ACP$6,0) -> 0 | ACQ10: =IF(AND(ACQ9/ACQ$6=ROUND(ACQ9/ACQ$6,0),NOT(ACQ9=0)),ACQ9/ACQ$6,0) -> 0 | ACR10: =IF(AND(ACR9/ACR$6=ROUND(ACR9/ACR$6,0),NOT(ACR9=0)),ACR9/ACR$6,0) -> 0 | ACS10: =IF(AND(ACS9/ACS$6=ROUND(ACS9/ACS$6,0),NOT(ACS9=0)),ACS9/ACS$6,0) -> 0 | ACT10: =IF(AND(ACT9/ACT$6=ROUND(ACT9/ACT$6,0),NOT(ACT9=0)),ACT9/ACT$6,0) -> 0 | ACU10: =IF(AND(ACU9/ACU$6=ROUND(ACU9/ACU$6,0),NOT(ACU9=0)),ACU9/ACU$6,0) -> 0 | ACV10: =IF(AND(ACV9/ACV$6=ROUND(ACV9/ACV$6,0),NOT(ACV9=0)),ACV9/ACV$6,0) -> 0 | ACW10: =IF(AND(ACW9/ACW$6=ROUND(ACW9/ACW$6,0),NOT(ACW9=0)),ACW9/ACW$6,0) -> 0 | ACX10: =IF(AND(ACX9/ACX$6=ROUND(ACX9/ACX$6,0),NOT(ACX9=0)),ACX9/ACX$6,0) -> 0 | ACY10: =IF(AND(ACY9/ACY$6=ROUND(ACY9/ACY$6,0),NOT(ACY9=0)),ACY9/ACY$6,0) -> 0 | ACZ10: =IF(AND(ACZ9/ACZ$6=ROUND(ACZ9/ACZ$6,0),NOT(ACZ9=0)),ACZ9/ACZ$6,0) -> 0 | ADA10: =IF(AND(ADA9/ADA$6=ROUND(ADA9/ADA$6,0),NOT(ADA9=0)),ADA9/ADA$6,0) -> 0 | ADB10: =IF(AND(ADB9/ADB$6=ROUND(ADB9/ADB$6,0),NOT(ADB9=0)),ADB9/ADB$6,0) -> 0 | ADC10: =IF(AND(ADC9/ADC$6=ROUND(ADC9/ADC$6,0),NOT(ADC9=0)),ADC9/ADC$6,0) -> 0 | ADD10: =IF(AND(ADD9/ADD$6=ROUND(ADD9/ADD$6,0),NOT(ADD9=0)),ADD9/ADD$6,0) -> 0 | ADE10: =IF(AND(ADE9/ADE$6=ROUND(ADE9/ADE$6,0),NOT(ADE9=0)),ADE9/ADE$6,0) -> 0 | ADF10: =IF(AND(ADF9/ADF$6=ROUND(ADF9/ADF$6,0),NOT(ADF9=0)),ADF9/ADF$6,0) -> 0 | ADG10: =IF(AND(ADG9/ADG$6=ROUND(ADG9/ADG$6,0),NOT(ADG9=0)),ADG9/ADG$6,0) -> 0 | ADH10: =IF(AND(ADH9/ADH$6=ROUND(ADH9/ADH$6,0),NOT(ADH9=0)),ADH9/ADH$6,0) -> 0 | ADI10: =IF(AND(ADI9/ADI$6=ROUND(ADI9/ADI$6,0),NOT(ADI9=0)),ADI9/ADI$6,0) -> 0 | ADJ10: =IF(AND(ADJ9/ADJ$6=ROUND(ADJ9/ADJ$6,0),NOT(ADJ9=0)),ADJ9/ADJ$6,0) -> 0 | ADK10: =IF(AND(ADK9/ADK$6=ROUND(ADK9/ADK$6,0),NOT(ADK9=0)),ADK9/ADK$6,0) -> 0 | ADL10: =IF(AND(ADL9/ADL$6=ROUND(ADL9/ADL$6,0),NOT(ADL9=0)),ADL9/ADL$6,0) -> 0 | ADM10: =IF(AND(ADM9/ADM$6=ROUND(ADM9/ADM$6,0),NOT(ADM9=0)),ADM9/ADM$6,0) -> 0 | ADN10: =IF(AND(ADN9/ADN$6=ROUND(ADN9/ADN$6,0),NOT(ADN9=0)),ADN9/ADN$6,0) -> 0 | ADO10: =IF(AND(ADO9/ADO$6=ROUND(ADO9/ADO$6,0),NOT(ADO9=0)),ADO9/ADO$6,0) -> 0 | ADP10: =IF(AND(ADP9/ADP$6=ROUND(ADP9/ADP$6,0),NOT(ADP9=0)),ADP9/ADP$6,0) -> 0 | ADQ10: =IF(AND(ADQ9/ADQ$6=ROUND(ADQ9/ADQ$6,0),NOT(ADQ9=0)),ADQ9/ADQ$6,0) -> 0 | ADR10: =IF(AND(ADR9/ADR$6=ROUND(ADR9/ADR$6,0),NOT(ADR9=0)),ADR9/ADR$6,0) -> 0 | ADS10: =IF(AND(ADS9/ADS$6=ROUND(ADS9/ADS$6,0),NOT(ADS9=0)),ADS9/ADS$6,0) -> 0 | ADT10: =IF(AND(ADT9/ADT$6=ROUND(ADT9/ADT$6,0),NOT(ADT9=0)),ADT9/ADT$6,0) -> 0 | ADU10: =IF(AND(ADU9/ADU$6=ROUND(ADU9/ADU$6,0),NOT(ADU9=0)),ADU9/ADU$6,0) -> 0 | ADV10: =IF(AND(ADV9/ADV$6=ROUND(ADV9/ADV$6,0),NOT(ADV9=0)),ADV9/ADV$6,0) -> 0 | ADW10: =IF(AND(ADW9/ADW$6=ROUND(ADW9/ADW$6,0),NOT(ADW9=0)),ADW9/ADW$6,0) -> 0 | ADX10: =IF(AND(ADX9/ADX$6=ROUND(ADX9/ADX$6,0),NOT(ADX9=0)),ADX9/ADX$6,0) -> 0 | ADY10: =IF(AND(ADY9/ADY$6=ROUND(ADY9/ADY$6,0),NOT(ADY9=0)),ADY9/ADY$6,0) -> 0 | ADZ10: =IF(AND(ADZ9/ADZ$6=ROUND(ADZ9/ADZ$6,0),NOT(ADZ9=0)),ADZ9/ADZ$6,0) -> 0 | AEA10: =IF(AND(AEA9/AEA$6=ROUND(AEA9/AEA$6,0),NOT(AEA9=0)),AEA9/AEA$6,0) -> 0 | AEB10: =IF(AND(AEB9/AEB$6=ROUND(AEB9/AEB$6,0),NOT(AEB9=0)),AEB9/AEB$6,0) -> 0 | AEC10: =IF(AND(AEC9/AEC$6=ROUND(AEC9/AEC$6,0),NOT(AEC9=0)),AEC9/AEC$6,0) -> 0 | AED10: =IF(AND(AED9/AED$6=ROUND(AED9/AED$6,0),NOT(AED9=0)),AED9/AED$6,0) -> 0 | AEE10: =IF(AND(AEE9/AEE$6=ROUND(AEE9/AEE$6,0),NOT(AEE9=0)),AEE9/AEE$6,0) -> 0 | AEF10: =IF(AND(AEF9/AEF$6=ROUND(AEF9/AEF$6,0),NOT(AEF9=0)),AEF9/AEF$6,0) -> 0 | AEG10: =IF(AND(AEG9/AEG$6=ROUND(AEG9/AEG$6,0),NOT(AEG9=0)),AEG9/AEG$6,0) -> 0 | AEH10: =IF(AND(AEH9/AEH$6=ROUND(AEH9/AEH$6,0),NOT(AEH9=0)),AEH9/AEH$6,0) -> 0 | AEI10: =IF(AND(AEI9/AEI$6=ROUND(AEI9/AEI$6,0),NOT(AEI9=0)),AEI9/AEI$6,0) -> 0 | AEJ10: =IF(AND(AEJ9/AEJ$6=ROUND(AEJ9/AEJ$6,0),NOT(AEJ9=0)),AEJ9/AEJ$6,0) -> 0 | AEK10: =IF(AND(AEK9/AEK$6=ROUND(AEK9/AEK$6,0),NOT(AEK9=0)),AEK9/AEK$6,0) -> 0 | AEL10: =IF(AND(AEL9/AEL$6=ROUND(AEL9/AEL$6,0),NOT(AEL9=0)),AEL9/AEL$6,0) -> 0 | AEM10: =IF(AND(AEM9/AEM$6=ROUND(AEM9/AEM$6,0),NOT(AEM9=0)),AEM9/AEM$6,0) -> 0 | AEN10: =IF(AND(AEN9/AEN$6=ROUND(AEN9/AEN$6,0),NOT(AEN9=0)),AEN9/AEN$6,0) -> 0 | AEO10: =IF(AND(AEO9/AEO$6=ROUND(AEO9/AEO$6,0),NOT(AEO9=0)),AEO9/AEO$6,0) -> 0 | AEP10: =IF(AND(AEP9/AEP$6=ROUND(AEP9/AEP$6,0),NOT(AEP9=0)),AEP9/AEP$6,0) -> 0 | AEQ10: =IF(AND(AEQ9/AEQ$6=ROUND(AEQ9/AEQ$6,0),NOT(AEQ9=0)),AEQ9/AEQ$6,0) -> 0 | AER10: =IF(AND(AER9/AER$6=ROUND(AER9/AER$6,0),NOT(AER9=0)),AER9/AER$6,0) -> 0 | AES10: =IF(AND(AES9/AES$6=ROUND(AES9/AES$6,0),NOT(AES9=0)),AES9/AES$6,0) -> 0 | AET10: =IF(AND(AET9/AET$6=ROUND(AET9/AET$6,0),NOT(AET9=0)),AET9/AET$6,0) -> 0 | AEU10: =IF(AND(AEU9/AEU$6=ROUND(AEU9/AEU$6,0),NOT(AEU9=0)),AEU9/AEU$6,0) -> 0 | AEV10: =IF(AND(AEV9/AEV$6=ROUND(AEV9/AEV$6,0),NOT(AEV9=0)),AEV9/AEV$6,0) -> 0 | AEW10: =IF(AND(AEW9/AEW$6=ROUND(AEW9/AEW$6,0),NOT(AEW9=0)),AEW9/AEW$6,0) -> 0 | AEX10: =IF(AND(AEX9/AEX$6=ROUND(AEX9/AEX$6,0),NOT(AEX9=0)),AEX9/AEX$6,0) -> 0 | AEY10: =IF(AND(AEY9/AEY$6=ROUND(AEY9/AEY$6,0),NOT(AEY9=0)),AEY9/AEY$6,0) -> 0 | AEZ10: =IF(AND(AEZ9/AEZ$6=ROUND(AEZ9/AEZ$6,0),NOT(AEZ9=0)),AEZ9/AEZ$6,0) -> 0 | AFA10: =IF(AND(AFA9/AFA$6=ROUND(AFA9/AFA$6,0),NOT(AFA9=0)),AFA9/AFA$6,0) -> 0 | AFB10: =IF(AND(AFB9/AFB$6=ROUND(AFB9/AFB$6,0),NOT(AFB9=0)),AFB9/AFB$6,0) -> 0 | AFC10: =IF(AND(AFC9/AFC$6=ROUND(AFC9/AFC$6,0),NOT(AFC9=0)),AFC9/AFC$6,0) -> 0 | AFD10: =IF(AND(AFD9/AFD$6=ROUND(AFD9/AFD$6,0),NOT(AFD9=0)),AFD9/AFD$6,0) -> 0 | AFE10: =IF(AND(AFE9/AFE$6=ROUND(AFE9/AFE$6,0),NOT(AFE9=0)),AFE9/AFE$6,0) -> 0 | AFF10: =IF(AND(AFF9/AFF$6=ROUND(AFF9/AFF$6,0),NOT(AFF9=0)),AFF9/AFF$6,0) -> 0 | AFG10: =IF(AND(AFG9/AFG$6=ROUND(AFG9/AFG$6,0),NOT(AFG9=0)),AFG9/AFG$6,0) -> 0 | AFH10: =IF(AND(AFH9/AFH$6=ROUND(AFH9/AFH$6,0),NOT(AFH9=0)),AFH9/AFH$6,0) -> 0 | AFI10: =IF(AND(AFI9/AFI$6=ROUND(AFI9/AFI$6,0),NOT(AFI9=0)),AFI9/AFI$6,0) -> 0 | AFJ10: =IF(AND(AFJ9/AFJ$6=ROUND(AFJ9/AFJ$6,0),NOT(AFJ9=0)),AFJ9/AFJ$6,0) -> 0 | AFK10: =IF(AND(AFK9/AFK$6=ROUND(AFK9/AFK$6,0),NOT(AFK9=0)),AFK9/AFK$6,0) -> 0 | AFL10: =IF(AND(AFL9/AFL$6=ROUND(AFL9/AFL$6,0),NOT(AFL9=0)),AFL9/AFL$6,0) -> 0 | AFM10: =IF(AND(AFM9/AFM$6=ROUND(AFM9/AFM$6,0),NOT(AFM9=0)),AFM9/AFM$6,0) -> 0 | AFN10: =IF(AND(AFN9/AFN$6=ROUND(AFN9/AFN$6,0),NOT(AFN9=0)),AFN9/AFN$6,0) -> 0 | AFO10: =IF(AND(AFO9/AFO$6=ROUND(AFO9/AFO$6,0),NOT(AFO9=0)),AFO9/AFO$6,0) -> 0 | AFP10: =IF(AND(AFP9/AFP$6=ROUND(AFP9/AFP$6,0),NOT(AFP9=0)),AFP9/AFP$6,0) -> 0 | AFQ10: =IF(AND(AFQ9/AFQ$6=ROUND(AFQ9/AFQ$6,0),NOT(AFQ9=0)),AFQ9/AFQ$6,0) -> 0 | AFR10: =IF(AND(AFR9/AFR$6=ROUND(AFR9/AFR$6,0),NOT(AFR9=0)),AFR9/AFR$6,0) -> 0 | AFS10: =IF(AND(AFS9/AFS$6=ROUND(AFS9/AFS$6,0),NOT(AFS9=0)),AFS9/AFS$6,0) -> 0 | AFT10: =IF(AND(AFT9/AFT$6=ROUND(AFT9/AFT$6,0),NOT(AFT9=0)),AFT9/AFT$6,0) -> 0 | AFU10: =IF(AND(AFU9/AFU$6=ROUND(AFU9/AFU$6,0),NOT(AFU9=0)),AFU9/AFU$6,0) -> 0 | AFV10: =IF(AND(AFV9/AFV$6=ROUND(AFV9/AFV$6,0),NOT(AFV9=0)),AFV9/AFV$6,0) -> 0 | AFW10: =IF(AND(AFW9/AFW$6=ROUND(AFW9/AFW$6,0),NOT(AFW9=0)),AFW9/AFW$6,0) -> 0 | AFX10: =IF(AND(AFX9/AFX$6=ROUND(AFX9/AFX$6,0),NOT(AFX9=0)),AFX9/AFX$6,0) -> 0 | AFY10: =IF(AND(AFY9/AFY$6=ROUND(AFY9/AFY$6,0),NOT(AFY9=0)),AFY9/AFY$6,0) -> 0 | AFZ10: =IF(AND(AFZ9/AFZ$6=ROUND(AFZ9/AFZ$6,0),NOT(AFZ9=0)),AFZ9/AFZ$6,0) -> 0 | AGA10: =IF(AND(AGA9/AGA$6=ROUND(AGA9/AGA$6,0),NOT(AGA9=0)),AGA9/AGA$6,0) -> 0 | AGB10: =IF(AND(AGB9/AGB$6=ROUND(AGB9/AGB$6,0),NOT(AGB9=0)),AGB9/AGB$6,0) -> 0 | AGC10: =IF(AND(AGC9/AGC$6=ROUND(AGC9/AGC$6,0),NOT(AGC9=0)),AGC9/AGC$6,0) -> 0 | AGD10: =IF(AND(AGD9/AGD$6=ROUND(AGD9/AGD$6,0),NOT(AGD9=0)),AGD9/AGD$6,0) -> 0 | AGE10: =IF(AND(AGE9/AGE$6=ROUND(AGE9/AGE$6,0),NOT(AGE9=0)),AGE9/AGE$6,0) -> 0 | AGF10: =IF(AND(AGF9/AGF$6=ROUND(AGF9/AGF$6,0),NOT(AGF9=0)),AGF9/AGF$6,0) -> 0 | AGG10: =IF(AND(AGG9/AGG$6=ROUND(AGG9/AGG$6,0),NOT(AGG9=0)),AGG9/AGG$6,0) -> 0 | AGH10: =IF(AND(AGH9/AGH$6=ROUND(AGH9/AGH$6,0),NOT(AGH9=0)),AGH9/AGH$6,0) -> 0 | AGI10: =IF(AND(AGI9/AGI$6=ROUND(AGI9/AGI$6,0),NOT(AGI9=0)),AGI9/AGI$6,0) -> 0 | AGJ10: =IF(AND(AGJ9/AGJ$6=ROUND(AGJ9/AGJ$6,0),NOT(AGJ9=0)),AGJ9/AGJ$6,0) -> 0 | AGK10: =IF(AND(AGK9/AGK$6=ROUND(AGK9/AGK$6,0),NOT(AGK9=0)),AGK9/AGK$6,0) -> 0 | AGL10: =IF(AND(AGL9/AGL$6=ROUND(AGL9/AGL$6,0),NOT(AGL9=0)),AGL9/AGL$6,0) -> 0 | AGM10: =IF(AND(AGM9/AGM$6=ROUND(AGM9/AGM$6,0),NOT(AGM9=0)),AGM9/AGM$6,0) -> 0 | AGN10: =IF(AND(AGN9/AGN$6=ROUND(AGN9/AGN$6,0),NOT(AGN9=0)),AGN9/AGN$6,0) -> 0 | AGO10: =IF(AND(AGO9/AGO$6=ROUND(AGO9/AGO$6,0),NOT(AGO9=0)),AGO9/AGO$6,0) -> 0 | AGP10: =IF(AND(AGP9/AGP$6=ROUND(AGP9/AGP$6,0),NOT(AGP9=0)),AGP9/AGP$6,0) -> 0 | AGQ10: =IF(AND(AGQ9/AGQ$6=ROUND(AGQ9/AGQ$6,0),NOT(AGQ9=0)),AGQ9/AGQ$6,0) -> 0 | AGR10: =IF(AND(AGR9/AGR$6=ROUND(AGR9/AGR$6,0),NOT(AGR9=0)),AGR9/AGR$6,0) -> 0 | AGS10: =IF(AND(AGS9/AGS$6=ROUND(AGS9/AGS$6,0),NOT(AGS9=0)),AGS9/AGS$6,0) -> 0 | AGT10: =IF(AND(AGT9/AGT$6=ROUND(AGT9/AGT$6,0),NOT(AGT9=0)),AGT9/AGT$6,0) -> 0 | AGU10: =IF(AND(AGU9/AGU$6=ROUND(AGU9/AGU$6,0),NOT(AGU9=0)),AGU9/AGU$6,0) -> 0 | AGV10: =IF(AND(AGV9/AGV$6=ROUND(AGV9/AGV$6,0),NOT(AGV9=0)),AGV9/AGV$6,0) -> 0 | AGW10: =IF(AND(AGW9/AGW$6=ROUND(AGW9/AGW$6,0),NOT(AGW9=0)),AGW9/AGW$6,0) -> 0 | AGX10: =IF(AND(AGX9/AGX$6=ROUND(AGX9/AGX$6,0),NOT(AGX9=0)),AGX9/AGX$6,0) -> 0 | AGY10: =IF(AND(AGY9/AGY$6=ROUND(AGY9/AGY$6,0),NOT(AGY9=0)),AGY9/AGY$6,0) -> 0 | AGZ10: =IF(AND(AGZ9/AGZ$6=ROUND(AGZ9/AGZ$6,0),NOT(AGZ9=0)),AGZ9/AGZ$6,0) -> 0 | AHA10: =IF(AND(AHA9/AHA$6=ROUND(AHA9/AHA$6,0),NOT(AHA9=0)),AHA9/AHA$6,0) -> 0 | AHB10: =IF(AND(AHB9/AHB$6=ROUND(AHB9/AHB$6,0),NOT(AHB9=0)),AHB9/AHB$6,0) -> 0 | AHC10: =IF(AND(AHC9/AHC$6=ROUND(AHC9/AHC$6,0),NOT(AHC9=0)),AHC9/AHC$6,0) -> 0 | AHD10: =IF(AND(AHD9/AHD$6=ROUND(AHD9/AHD$6,0),NOT(AHD9=0)),AHD9/AHD$6,0) -> 0 | AHE10: =IF(AND(AHE9/AHE$6=ROUND(AHE9/AHE$6,0),NOT(AHE9=0)),AHE9/AHE$6,0) -> 0 | AHF10: =IF(AND(AHF9/AHF$6=ROUND(AHF9/AHF$6,0),NOT(AHF9=0)),AHF9/AHF$6,0) -> 0 | AHG10: =IF(AND(AHG9/AHG$6=ROUND(AHG9/AHG$6,0),NOT(AHG9=0)),AHG9/AHG$6,0) -> 0 | AHH10: =IF(AND(AHH9/AHH$6=ROUND(AHH9/AHH$6,0),NOT(AHH9=0)),AHH9/AHH$6,0) -> 0 | AHI10: =IF(AND(AHI9/AHI$6=ROUND(AHI9/AHI$6,0),NOT(AHI9=0)),AHI9/AHI$6,0) -> 0 | AHJ10: =IF(AND(AHJ9/AHJ$6=ROUND(AHJ9/AHJ$6,0),NOT(AHJ9=0)),AHJ9/AHJ$6,0) -> 0 | AHK10: =IF(AND(AHK9/AHK$6=ROUND(AHK9/AHK$6,0),NOT(AHK9=0)),AHK9/AHK$6,0) -> 0 | AHL10: =IF(AND(AHL9/AHL$6=ROUND(AHL9/AHL$6,0),NOT(AHL9=0)),AHL9/AHL$6,0) -> 0 | AHM10: =IF(AND(AHM9/AHM$6=ROUND(AHM9/AHM$6,0),NOT(AHM9=0)),AHM9/AHM$6,0) -> 0 | AHN10: =IF(AND(AHN9/AHN$6=ROUND(AHN9/AHN$6,0),NOT(AHN9=0)),AHN9/AHN$6,0) -> 0 | AHO10: =IF(AND(AHO9/AHO$6=ROUND(AHO9/AHO$6,0),NOT(AHO9=0)),AHO9/AHO$6,0) -> 0 | AHP10: =IF(AND(AHP9/AHP$6=ROUND(AHP9/AHP$6,0),NOT(AHP9=0)),AHP9/AHP$6,0) -> 0 | AHQ10: =IF(AND(AHQ9/AHQ$6=ROUND(AHQ9/AHQ$6,0),NOT(AHQ9=0)),AHQ9/AHQ$6,0) -> 0 | AHR10: =IF(AND(AHR9/AHR$6=ROUND(AHR9/AHR$6,0),NOT(AHR9=0)),AHR9/AHR$6,0) -> 0 | AHS10: =IF(AND(AHS9/AHS$6=ROUND(AHS9/AHS$6,0),NOT(AHS9=0)),AHS9/AHS$6,0) -> 0 | AHT10: =IF(AND(AHT9/AHT$6=ROUND(AHT9/AHT$6,0),NOT(AHT9=0)),AHT9/AHT$6,0) -> 0 | AHU10: =IF(AND(AHU9/AHU$6=ROUND(AHU9/AHU$6,0),NOT(AHU9=0)),AHU9/AHU$6,0) -> 0 | AHV10: =IF(AND(AHV9/AHV$6=ROUND(AHV9/AHV$6,0),NOT(AHV9=0)),AHV9/AHV$6,0) -> 0 | AHW10: =IF(AND(AHW9/AHW$6=ROUND(AHW9/AHW$6,0),NOT(AHW9=0)),AHW9/AHW$6,0) -> 0 | AHX10: =IF(AND(AHX9/AHX$6=ROUND(AHX9/AHX$6,0),NOT(AHX9=0)),AHX9/AHX$6,0) -> 0 | AHY10: =IF(AND(AHY9/AHY$6=ROUND(AHY9/AHY$6,0),NOT(AHY9=0)),AHY9/AHY$6,0) -> 0 | AHZ10: =IF(AND(AHZ9/AHZ$6=ROUND(AHZ9/AHZ$6,0),NOT(AHZ9=0)),AHZ9/AHZ$6,0) -> 0 | AIA10: =IF(AND(AIA9/AIA$6=ROUND(AIA9/AIA$6,0),NOT(AIA9=0)),AIA9/AIA$6,0) -> 0 | AIB10: =IF(AND(AIB9/AIB$6=ROUND(AIB9/AIB$6,0),NOT(AIB9=0)),AIB9/AIB$6,0) -> 0 | AIC10: =IF(AND(AIC9/AIC$6=ROUND(AIC9/AIC$6,0),NOT(AIC9=0)),AIC9/AIC$6,0) -> 0 | AID10: =IF(AND(AID9/AID$6=ROUND(AID9/AID$6,0),NOT(AID9=0)),AID9/AID$6,0) -> 0 | AIE10: =IF(AND(AIE9/AIE$6=ROUND(AIE9/AIE$6,0),NOT(AIE9=0)),AIE9/AIE$6,0) -> 0 | AIF10: =IF(AND(AIF9/AIF$6=ROUND(AIF9/AIF$6,0),NOT(AIF9=0)),AIF9/AIF$6,0) -> 0 | AIG10: =IF(AND(AIG9/AIG$6=ROUND(AIG9/AIG$6,0),NOT(AIG9=0)),AIG9/AIG$6,0) -> 0 | AIH10: =IF(AND(AIH9/AIH$6=ROUND(AIH9/AIH$6,0),NOT(AIH9=0)),AIH9/AIH$6,0) -> 0 | AII10: =IF(AND(AII9/AII$6=ROUND(AII9/AII$6,0),NOT(AII9=0)),AII9/AII$6,0) -> 0 | AIJ10: =IF(AND(AIJ9/AIJ$6=ROUND(AIJ9/AIJ$6,0),NOT(AIJ9=0)),AIJ9/AIJ$6,0) -> 0 | AIK10: =IF(AND(AIK9/AIK$6=ROUND(AIK9/AIK$6,0),NOT(AIK9=0)),AIK9/AIK$6,0) -> 0 | AIL10: =IF(AND(AIL9/AIL$6=ROUND(AIL9/AIL$6,0),NOT(AIL9=0)),AIL9/AIL$6,0) -> 0 | AIM10: =IF(AND(AIM9/AIM$6=ROUND(AIM9/AIM$6,0),NOT(AIM9=0)),AIM9/AIM$6,0) -> 0 | AIN10: =IF(AND(AIN9/AIN$6=ROUND(AIN9/AIN$6,0),NOT(AIN9=0)),AIN9/AIN$6,0) -> 0 | AIO10: =IF(AND(AIO9/AIO$6=ROUND(AIO9/AIO$6,0),NOT(AIO9=0)),AIO9/AIO$6,0) -> 0 | AIP10: =IF(AND(AIP9/AIP$6=ROUND(AIP9/AIP$6,0),NOT(AIP9=0)),AIP9/AIP$6,0) -> 0 | AIQ10: =IF(AND(AIQ9/AIQ$6=ROUND(AIQ9/AIQ$6,0),NOT(AIQ9=0)),AIQ9/AIQ$6,0) -> 0 | AIR10: =IF(AND(AIR9/AIR$6=ROUND(AIR9/AIR$6,0),NOT(AIR9=0)),AIR9/AIR$6,0) -> 0 | AIS10: =IF(AND(AIS9/AIS$6=ROUND(AIS9/AIS$6,0),NOT(AIS9=0)),AIS9/AIS$6,0) -> 0 | AIT10: =IF(AND(AIT9/AIT$6=ROUND(AIT9/AIT$6,0),NOT(AIT9=0)),AIT9/AIT$6,0) -> 0 | AIU10: =IF(AND(AIU9/AIU$6=ROUND(AIU9/AIU$6,0),NOT(AIU9=0)),AIU9/AIU$6,0) -> 0 | AIV10: =IF(AND(AIV9/AIV$6=ROUND(AIV9/AIV$6,0),NOT(AIV9=0)),AIV9/AIV$6,0) -> 0 | AIW10: =IF(AND(AIW9/AIW$6=ROUND(AIW9/AIW$6,0),NOT(AIW9=0)),AIW9/AIW$6,0) -> 0 | AIX10: =IF(AND(AIX9/AIX$6=ROUND(AIX9/AIX$6,0),NOT(AIX9=0)),AIX9/AIX$6,0) -> 0 | AIY10: =IF(AND(AIY9/AIY$6=ROUND(AIY9/AIY$6,0),NOT(AIY9=0)),AIY9/AIY$6,0) -> 0 | AIZ10: =IF(AND(AIZ9/AIZ$6=ROUND(AIZ9/AIZ$6,0),NOT(AIZ9=0)),AIZ9/AIZ$6,0) -> 0 | AJA10: =IF(AND(AJA9/AJA$6=ROUND(AJA9/AJA$6,0),NOT(AJA9=0)),AJA9/AJA$6,0) -> 0 | AJB10: =IF(AND(AJB9/AJB$6=ROUND(AJB9/AJB$6,0),NOT(AJB9=0)),AJB9/AJB$6,0) -> 0 | AJC10: =IF(AND(AJC9/AJC$6=ROUND(AJC9/AJC$6,0),NOT(AJC9=0)),AJC9/AJC$6,0) -> 0 | AJD10: =IF(AND(AJD9/AJD$6=ROUND(AJD9/AJD$6,0),NOT(AJD9=0)),AJD9/AJD$6,0) -> 0 | AJE10: =IF(AND(AJE9/AJE$6=ROUND(AJE9/AJE$6,0),NOT(AJE9=0)),AJE9/AJE$6,0) -> 0 | AJF10: =IF(AND(AJF9/AJF$6=ROUND(AJF9/AJF$6,0),NOT(AJF9=0)),AJF9/AJF$6,0) -> 0 | AJG10: =IF(AND(AJG9/AJG$6=ROUND(AJG9/AJG$6,0),NOT(AJG9=0)),AJG9/AJG$6,0) -> 0 | AJH10: =IF(AND(AJH9/AJH$6=ROUND(AJH9/AJH$6,0),NOT(AJH9=0)),AJH9/AJH$6,0) -> 0 | AJI10: =IF(AND(AJI9/AJI$6=ROUND(AJI9/AJI$6,0),NOT(AJI9=0)),AJI9/AJI$6,0) -> 0 | AJJ10: =IF(AND(AJJ9/AJJ$6=ROUND(AJJ9/AJJ$6,0),NOT(AJJ9=0)),AJJ9/AJJ$6,0) -> 0 | AJK10: =IF(AND(AJK9/AJK$6=ROUND(AJK9/AJK$6,0),NOT(AJK9=0)),AJK9/AJK$6,0) -> 0 | AJL10: =IF(AND(AJL9/AJL$6=ROUND(AJL9/AJL$6,0),NOT(AJL9=0)),AJL9/AJL$6,0) -> 0 | AJM10: =IF(AND(AJM9/AJM$6=ROUND(AJM9/AJM$6,0),NOT(AJM9=0)),AJM9/AJM$6,0) -> 0 | AJN10: =IF(AND(AJN9/AJN$6=ROUND(AJN9/AJN$6,0),NOT(AJN9=0)),AJN9/AJN$6,0) -> 0 | AJO10: =IF(AND(AJO9/AJO$6=ROUND(AJO9/AJO$6,0),NOT(AJO9=0)),AJO9/AJO$6,0) -> 0 | AJP10: =IF(AND(AJP9/AJP$6=ROUND(AJP9/AJP$6,0),NOT(AJP9=0)),AJP9/AJP$6,0) -> 0 | AJQ10: =IF(AND(AJQ9/AJQ$6=ROUND(AJQ9/AJQ$6,0),NOT(AJQ9=0)),AJQ9/AJQ$6,0) -> 0 | AJR10: =IF(AND(AJR9/AJR$6=ROUND(AJR9/AJR$6,0),NOT(AJR9=0)),AJR9/AJR$6,0) -> 0 | AJS10: =IF(AND(AJS9/AJS$6=ROUND(AJS9/AJS$6,0),NOT(AJS9=0)),AJS9/AJS$6,0) -> 0 | AJT10: =IF(AND(AJT9/AJT$6=ROUND(AJT9/AJT$6,0),NOT(AJT9=0)),AJT9/AJT$6,0) -> 0 | AJU10: =IF(AND(AJU9/AJU$6=ROUND(AJU9/AJU$6,0),NOT(AJU9=0)),AJU9/AJU$6,0) -> 0 | AJV10: =IF(AND(AJV9/AJV$6=ROUND(AJV9/AJV$6,0),NOT(AJV9=0)),AJV9/AJV$6,0) -> 0 | AJW10: =IF(AND(AJW9/AJW$6=ROUND(AJW9/AJW$6,0),NOT(AJW9=0)),AJW9/AJW$6,0) -> 0 | AJX10: =IF(AND(AJX9/AJX$6=ROUND(AJX9/AJX$6,0),NOT(AJX9=0)),AJX9/AJX$6,0) -> 0 | AJY10: =IF(AND(AJY9/AJY$6=ROUND(AJY9/AJY$6,0),NOT(AJY9=0)),AJY9/AJY$6,0) -> 0 | AJZ10: =IF(AND(AJZ9/AJZ$6=ROUND(AJZ9/AJZ$6,0),NOT(AJZ9=0)),AJZ9/AJZ$6,0) -> 0 | AKA10: =IF(AND(AKA9/AKA$6=ROUND(AKA9/AKA$6,0),NOT(AKA9=0)),AKA9/AKA$6,0) -> 0 | AKB10: =IF(AND(AKB9/AKB$6=ROUND(AKB9/AKB$6,0),NOT(AKB9=0)),AKB9/AKB$6,0) -> 0 | AKC10: =IF(AND(AKC9/AKC$6=ROUND(AKC9/AKC$6,0),NOT(AKC9=0)),AKC9/AKC$6,0) -> 0 | AKD10: =IF(AND(AKD9/AKD$6=ROUND(AKD9/AKD$6,0),NOT(AKD9=0)),AKD9/AKD$6,0) -> 0 | AKE10: =IF(AND(AKE9/AKE$6=ROUND(AKE9/AKE$6,0),NOT(AKE9=0)),AKE9/AKE$6,0) -> 0 | AKF10: =IF(AND(AKF9/AKF$6=ROUND(AKF9/AKF$6,0),NOT(AKF9=0)),AKF9/AKF$6,0) -> 0 | AKG10: =IF(AND(AKG9/AKG$6=ROUND(AKG9/AKG$6,0),NOT(AKG9=0)),AKG9/AKG$6,0) -> 0 | AKH10: =IF(AND(AKH9/AKH$6=ROUND(AKH9/AKH$6,0),NOT(AKH9=0)),AKH9/AKH$6,0) -> 0 | AKI10: =IF(AND(AKI9/AKI$6=ROUND(AKI9/AKI$6,0),NOT(AKI9=0)),AKI9/AKI$6,0) -> 0 | AKJ10: =IF(AND(AKJ9/AKJ$6=ROUND(AKJ9/AKJ$6,0),NOT(AKJ9=0)),AKJ9/AKJ$6,0) -> 0 | AKK10: =IF(AND(AKK9/AKK$6=ROUND(AKK9/AKK$6,0),NOT(AKK9=0)),AKK9/AKK$6,0) -> 0 | AKL10: =IF(AND(AKL9/AKL$6=ROUND(AKL9/AKL$6,0),NOT(AKL9=0)),AKL9/AKL$6,0) -> 0 | AKM10: =IF(AND(AKM9/AKM$6=ROUND(AKM9/AKM$6,0),NOT(AKM9=0)),AKM9/AKM$6,0) -> 0 | AKN10: =IF(AND(AKN9/AKN$6=ROUND(AKN9/AKN$6,0),NOT(AKN9=0)),AKN9/AKN$6,0) -> 0 | AKO10: =IF(AND(AKO9/AKO$6=ROUND(AKO9/AKO$6,0),NOT(AKO9=0)),AKO9/AKO$6,0) -> 0 | AKP10: =IF(AND(AKP9/AKP$6=ROUND(AKP9/AKP$6,0),NOT(AKP9=0)),AKP9/AKP$6,0) -> 0 | AKQ10: =IF(AND(AKQ9/AKQ$6=ROUND(AKQ9/AKQ$6,0),NOT(AKQ9=0)),AKQ9/AKQ$6,0) -> 0 | AKR10: =IF(AND(AKR9/AKR$6=ROUND(AKR9/AKR$6,0),NOT(AKR9=0)),AKR9/AKR$6,0) -> 0 | AKS10: =IF(AND(AKS9/AKS$6=ROUND(AKS9/AKS$6,0),NOT(AKS9=0)),AKS9/AKS$6,0) -> 0 | AKT10: =IF(AND(AKT9/AKT$6=ROUND(AKT9/AKT$6,0),NOT(AKT9=0)),AKT9/AKT$6,0) -> 0 | AKU10: =IF(AND(AKU9/AKU$6=ROUND(AKU9/AKU$6,0),NOT(AKU9=0)),AKU9/AKU$6,0) -> 0 | AKV10: =IF(AND(AKV9/AKV$6=ROUND(AKV9/AKV$6,0),NOT(AKV9=0)),AKV9/AKV$6,0) -> 0 | AKW10: =IF(AND(AKW9/AKW$6=ROUND(AKW9/AKW$6,0),NOT(AKW9=0)),AKW9/AKW$6,0) -> 0 | AKX10: =IF(AND(AKX9/AKX$6=ROUND(AKX9/AKX$6,0),NOT(AKX9=0)),AKX9/AKX$6,0) -> 0 | AKY10: =IF(AND(AKY9/AKY$6=ROUND(AKY9/AKY$6,0),NOT(AKY9=0)),AKY9/AKY$6,0) -> 0 | AKZ10: =IF(AND(AKZ9/AKZ$6=ROUND(AKZ9/AKZ$6,0),NOT(AKZ9=0)),AKZ9/AKZ$6,0) -> 0 | ALA10: =IF(AND(ALA9/ALA$6=ROUND(ALA9/ALA$6,0),NOT(ALA9=0)),ALA9/ALA$6,0) -> 0 | ALB10: =IF(AND(ALB9/ALB$6=ROUND(ALB9/ALB$6,0),NOT(ALB9=0)),ALB9/ALB$6,0) -> 0 | ALC10: =IF(AND(ALC9/ALC$6=ROUND(ALC9/ALC$6,0),NOT(ALC9=0)),ALC9/ALC$6,0) -> 0 | ALD10: =IF(AND(ALD9/ALD$6=ROUND(ALD9/ALD$6,0),NOT(ALD9=0)),ALD9/ALD$6,0) -> 0 | ALE10: =IF(AND(ALE9/ALE$6=ROUND(ALE9/ALE$6,0),NOT(ALE9=0)),ALE9/ALE$6,0) -> 0 | ALF10: =IF(AND(ALF9/ALF$6=ROUND(ALF9/ALF$6,0),NOT(ALF9=0)),ALF9/ALF$6,0) -> 0 | ALG10: =IF(AND(ALG9/ALG$6=ROUND(ALG9/ALG$6,0),NOT(ALG9=0)),ALG9/ALG$6,0) -> 0 | ALH10: =IF(AND(ALH9/ALH$6=ROUND(ALH9/ALH$6,0),NOT(ALH9=0)),ALH9/ALH$6,0) -> 0 | ALI10: =IF(AND(ALI9/ALI$6=ROUND(ALI9/ALI$6,0),NOT(ALI9=0)),ALI9/ALI$6,0) -> 0 | ALJ10: =IF(AND(ALJ9/ALJ$6=ROUND(ALJ9/ALJ$6,0),NOT(ALJ9=0)),ALJ9/ALJ$6,0) -> 0 | ALK10: =IF(AND(ALK9/ALK$6=ROUND(ALK9/ALK$6,0),NOT(ALK9=0)),ALK9/ALK$6,0) -> 0 | ALL10: =IF(AND(ALL9/ALL$6=ROUND(ALL9/ALL$6,0),NOT(ALL9=0)),ALL9/ALL$6,0) -> 0 | ALM10: =IF(AND(ALM9/ALM$6=ROUND(ALM9/ALM$6,0),NOT(ALM9=0)),ALM9/ALM$6,0) -> 0 | ALN10: =IF(AND(ALN9/ALN$6=ROUND(ALN9/ALN$6,0),NOT(ALN9=0)),ALN9/ALN$6,0) -> 0 | ALO10: =IF(AND(ALO9/ALO$6=ROUND(ALO9/ALO$6,0),NOT(ALO9=0)),ALO9/ALO$6,0) -> 0 | ALP10: =IF(AND(ALP9/ALP$6=ROUND(ALP9/ALP$6,0),NOT(ALP9=0)),ALP9/ALP$6,0) -> 0 | ALQ10: =IF(AND(ALQ9/ALQ$6=ROUND(ALQ9/ALQ$6,0),NOT(ALQ9=0)),ALQ9/ALQ$6,0) -> 0
A11: LCM: | B11: =B6*B5/B10 -> 8460 | F11: 0 | G11: 0 | H11: 0 | I11: 0 | J11: 0 | K11: 0 | L11: 0 | M11: 0 | N11: 0 | O11: 0 | P11: 0 | Q11: 0 | R11: 0 | S11: 0 | T11: 0 | U11: 0 | V11: 0 | W11: 0 | X11: 0 | Y11: 0 | Z11: 0 | AA11: 0 | AB11: 0 | AC11: 0 | AD11: 0 | AE11: 0 | AF11: 0 | AG11: 0 | AH11: 0 | AI11: 0 | AJ11: 0 | AK11: 0 | AL11: 0 | AM11: 0 | AN11: 0 | AO11: 0 | AP11: 0 | AQ11: 0 | AR11: 0 | AS11: 0 | AT11: 0 | AU11: 0 | AV11: 0 | AW11: 0 | AX11: 0 | AY11: 0 | AZ11: 0 | BA11: 0 | BB11: 0 | BC11: 0 | BD11: 0 | BE11: 0 | BF11: 0 | BG11: 0 | BH11: 0 | BI11: 0 | BJ11: 0 | BK11: 0 | BL11: 0 | BM11: 0 | BN11: 0 | BO11: 0 | BP11: 0 | BQ11: 0 | BR11: 0 | BS11: 0 | BT11: 0 | BU11: 0 | BV11: 0 | BW11: 0 | BX11: 0 | BY11: 0 | BZ11: 0 | CA11: 0 | CB11: 0 | CC11: 0 | CD11: 0 | CE11: 0 | CF11: 0 | CG11: 0 | CH11: 0 | CI11: 0 | CJ11: 0 | CK11: 0 | CL11: 0 | CM11: 0 | CN11: 0 | CO11: 0 | CP11: 0 | CQ11: 0 | CR11: 0 | CS11: 0 | CT11: 0 | CU11: 0 | CV11: 0 | CW11: 0 | CX11: 0 | CY11: 0 | CZ11: 0 | DA11: 0 | DB11: 0 | DC11: 0 | DD11: 0 | DE11: 0 | DF11: 0 | DG11: 0 | DH11: 0 | DI11: 0 | DJ11: 0 | DK11: 0 | DL11: 0 | DM11: 0 | DN11: 0 | DO11: 0 | DP11: 0 | DQ11: 0 | DR11: 0 | DS11: 0 | DT11: 0 | DU11: 0 | DV11: 0 | DW11: 0 | DX11: 0 | DY11: 0 | DZ11: 0 | EA11: 0 | EB11: 0 | EC11: 0 | ED11: 0 | EE11: 0 | EF11: 0 | EG11: 0 | EH11: 0 | EI11: 0 | EJ11: 0 | EK11: 0 | EL11: 0 | EM11: 0 | EN11: 0 | EO11: 0 | EP11: 0 | EQ11: 0 | ER11: 0 | ES11: 0 | ET11: 0 | EU11: 0 | EV11: 0 | EW11: 0 | EX11: 0 | EY11: 0 | EZ11: 0 | FA11: 0 | FB11: 0 | FC11: 0 | FD11: 0 | FE11: 0 | FF11: 0 | FG11: 0 | FH11: 0 | FI11: 0 | FJ11: 0 | FK11: 0 | FL11: 0 | FM11: 0 | FN11: 0 | FO11: 0 | FP11: 0 | FQ11: 0 | FR11: 0 | FS11: 0 | FT11: 0 | FU11: 0 | FV11: 0 | FW11: 0 | FX11: 0 | FY11: 0 | FZ11: 0 | GA11: 0 | GB11: 0 | GC11: 0 | GD11: 0 | GE11: 0 | GF11: 0 | GG11: 0 | GH11: 0 | GI11: 0 | GJ11: 0 | GK11: 0 | GL11: 0 | GM11: 0 | GN11: 0 | GO11: 0 | GP11: 0 | GQ11: 0 | GR11: 0 | GS11: 0 | GT11: 0 | GU11: 0 | GV11: 0 | GW11: 0 | GX11: 0 | GY11: 0 | GZ11: 0 | HA11: 0 | HB11: 0 | HC11: 0 | HD11: 0 | HE11: 0 | HF11: 0 | HG11: 0 | HH11: 0 | HI11: 0 | HJ11: 0 | HK11: 0 | HL11: 0 | HM11: 0 | HN11: 0 | HO11: 0 | HP11: 0 | HQ11: 0 | HR11: 0 | HS11: 0 | HT11: 0 | HU11: 0 | HV11: 0 | HW11: 0 | HX11: 0 | HY11: 0 | HZ11: 0 | IA11: 0 | IB11: 0 | IC11: 0 | ID11: 0 | IE11: 0 | IF11: 0 | IG11: 0 | IH11: 0 | II11: 0 | IJ11: 0 | IK11: 0 | IL11: 0 | IM11: 0 | IN11: 0 | IO11: 0 | IP11: 0 | IQ11: 0 | IR11: 0 | IS11: 0 | IT11: 0 | IU11: 0 | IV11: 0 | IW11: 0 | IX11: 0 | IY11: 0 | IZ11: 0 | JA11: 0 | JB11: 0 | JC11: 0 | JD11: 0 | JE11: 0 | JF11: 0 | JG11: 0 | JH11: 0 | JI11: 0 | JJ11: 0 | JK11: 0 | JL11: 0 | JM11: 0 | JN11: 0 | JO11: 0 | JP11: 0 | JQ11: 0 | JR11: 0 | JS11: 0 | JT11: 0 | JU11: 0 | JV11: 0 | JW11: 0 | JX11: 0 | JY11: 0 | JZ11: 0 | KA11: 0 | KB11: 0 | KC11: 0 | KD11: 0 | KE11: 0 | KF11: 0 | KG11: 0 | KH11: 0 | KI11: 0 | KJ11: 0 | KK11: 0 | KL11: 0 | KM11: 0 | KN11: 0 | KO11: 0 | KP11: 0 | KQ11: 0 | KR11: 0 | KS11: 0 | KT11: 0 | KU11: 0 | KV11: 0 | KW11: 0 | KX11: 0 | KY11: 0 | KZ11: 0 | LA11: 0 | LB11: 0 | LC11: 0 | LD11: 0 | LE11: 0 | LF11: 0 | LG11: 0 | LH11: 0 | LI11: 0 | LJ11: 0 | LK11: 0 | LL11: 0 | LM11: 0 | LN11: 0 | LO11: 0 | LP11: 0 | LQ11: 0 | LR11: 0 | LS11: 0 | LT11: 0 | LU11: 0 | LV11: 0 | LW11: 0 | LX11: 0 | LY11: 0 | LZ11: 0 | MA11: 0 | MB11: 0 | MC11: 0 | MD11: 0 | ME11: 0 | MF11: 0 | MG11: 0 | MH11: 0 | MI11: 0 | MJ11: 0 | MK11: 0 | ML11: 0 | MM11: 0 | MN11: 0 | MO11: 0 | MP11: 0 | MQ11: 0 | MR11: 0 | MS11: 0 | MT11: 0 | MU11: 0 | MV11: 0 | MW11: 0 | MX11: 0 | MY11: 0 | MZ11: 0 | NA11: 0 | NB11: 0 | NC11: 0 | ND11: 0 | NE11: 0 | NF11: 0 | NG11: 0 | NH11: 0 | NI11: 0 | NJ11: 0 | NK11: 0 | NL11: 0 | NM11: 0 | NN11: 0 | NO11: 0 | NP11: 0 | NQ11: 0 | NR11: 0 | NS11: 0 | NT11: 0 | NU11: 0 | NV11: 0 | NW11: 0 | NX11: 0 | NY11: 0 | NZ11: 0 | OA11: 0 | OB11: 0 | OC11: 0 | OD11: 0 | OE11: 0 | OF11: 0 | OG11: 0 | OH11: 0 | OI11: 0 | OJ11: 0 | OK11: 0 | OL11: 0 | OM11: 0 | ON11: 0 | OO11: 0 | OP11: 0 | OQ11: 0 | OR11: 0 | OS11: 0 | OT11: 0 | OU11: 0 | OV11: 0 | OW11: 0 | OX11: 0 | OY11: 0 | OZ11: 0 | PA11: 0 | PB11: 0 | PC11: 0 | PD11: 0 | PE11: 0 | PF11: 0 | PG11: 0 | PH11: 0 | PI11: 0 | PJ11: 0 | PK11: 0 | PL11: 0 | PM11: 0 | PN11: 0 | PO11: 0 | PP11: 0 | PQ11: 0 | PR11: 0 | PS11: 0 | PT11: 0 | PU11: 0 | PV11: 0 | PW11: 0 | PX11: 0 | PY11: 0 | PZ11: 0 | QA11: 0 | QB11: 0 | QC11: 0 | QD11: 0 | QE11: 0 | QF11: 0 | QG11: 0 | QH11: 0 | QI11: 0 | QJ11: 0 | QK11: 0 | QL11: 0 | QM11: 0 | QN11: 0 | QO11: 0 | QP11: 0 | QQ11: 0 | QR11: 0 | QS11: 0 | QT11: 0 | QU11: 0 | QV11: 0 | QW11: 0 | QX11: 0 | QY11: 0 | QZ11: 0 | RA11: 0 | RB11: 0 | RC11: 0 | RD11: 0 | RE11: 0 | RF11: 0 | RG11: 0 | RH11: 0 | RI11: 0 | RJ11: 0 | RK11: 0 | RL11: 0 | RM11: 0 | RN11: 0 | RO11: 0 | RP11: 0 | RQ11: 0 | RR11: 0 | RS11: 0 | RT11: 0 | RU11: 0 | RV11: 0 | RW11: 0 | RX11: 0 | RY11: 0 | RZ11: 0 | SA11: 0 | SB11: 0 | SC11: 0 | SD11: 0 | SE11: 0 | SF11: 0 | SG11: 0 | SH11: 0 | SI11: 0 | SJ11: 0 | SK11: 0 | SL11: 0 | SM11: 0 | SN11: 0 | SO11: 0 | SP11: 0 | SQ11: 0 | SR11: 0 | SS11: 0 | ST11: 0 | SU11: 0 | SV11: 0 | SW11: 0 | SX11: 0 | SY11: 0 | SZ11: 0 | TA11: 0 | TB11: 0 | TC11: 0 | TD11: 0 | TE11: 0 | TF11: 0 | TG11: 0 | TH11: 0 | TI11: 0 | TJ11: 0 | TK11: 0 | TL11: 0 | TM11: 0 | TN11: 0 | TO11: 0 | TP11: 0 | TQ11: 0 | TR11: 0 | TS11: 0 | TT11: 0 | TU11: 0 | TV11: 0 | TW11: 0 | TX11: 0 | TY11: 0 | TZ11: 0 | UA11: 0 | UB11: 0 | UC11: 0 | UD11: 0 | UE11: 0 | UF11: 0 | UG11: 0 | UH11: 0 | UI11: 0 | UJ11: 0 | UK11: 0 | UL11: 0 | UM11: 0 | UN11: 0 | UO11: 0 | UP11: 0 | UQ11: 0 | UR11: 0 | US11: 0 | UT11: 0 | UU11: 0 | UV11: 0 | UW11: 0 | UX11: 0 | UY11: 0 | UZ11: 0 | VA11: 0 | VB11: 0 | VC11: 0 | VD11: 0 | VE11: 0 | VF11: 0 | VG11: 0 | VH11: 0 | VI11: 0 | VJ11: 0 | VK11: 0 | VL11: 0 | VM11: 0 | VN11: 0 | VO11: 0 | VP11: 0 | VQ11: 0 | VR11: 0 | VS11: 0 | VT11: 0 | VU11: 0 | VV11: 0 | VW11: 0 | VX11: 0 | VY11: 0 | VZ11: 0 | WA11: 0 | WB11: 0 | WC11: 0 | WD11: 0 | WE11: 0 | WF11: 0 | WG11: 0 | WH11: 0 | WI11: 0 | WJ11: 0 | WK11: 0 | WL11: 0 | WM11: 0 | WN11: 0 | WO11: 0 | WP11: 0 | WQ11: 0 | WR11: 0 | WS11: 0 | WT11: 0 | WU11: 0 | WV11: 0 | WW11: 0 | WX11: 0 | WY11: 0 | WZ11: 0 | XA11: 0 | XB11: 0 | XC11: 0 | XD11: 0 | XE11: 0 | XF11: 0 | XG11: 0 | XH11: 0 | XI11: 0 | XJ11: 0 | XK11: 0 | XL11: 0 | XM11: 0 | XN11: 0 | XO11: 0 | XP11: 0 | XQ11: 0 | XR11: 0 | XS11: 0 | XT11: 0 | XU11: 0 | XV11: 0 | XW11: 0 | XX11: 0 | XY11: 0 | XZ11: 0 | YA11: 0 | YB11: 0 | YC11: 0 | YD11: 0 | YE11: 0 | YF11: 0 | YG11: 0 | YH11: 0 | YI11: 0 | YJ11: 0 | YK11: 0 | YL11: 0 | YM11: 0 | YN11: 0 | YO11: 0 | YP11: 0 | YQ11: 0 | YR11: 0 | YS11: 0 | YT11: 0 | YU11: 0 | YV11: 0 | YW11: 0 | YX11: 0 | YY11: 0 | YZ11: 0 | ZA11: 0 | ZB11: 0 | ZC11: 0 | ZD11: 0 | ZE11: 0 | ZF11: 0 | ZG11: 0 | ZH11: 0 | ZI11: 0 | ZJ11: 0 | ZK11: 0 | ZL11: 0 | ZM11: 0 | ZN11: 0 | ZO11: 0 | ZP11: 0 | ZQ11: 0 | ZR11: 0 | ZS11: 0 | ZT11: 0 | ZU11: 0 | ZV11: 0 | ZW11: 0 | ZX11: 0 | ZY11: 0 | ZZ11: 0 | AAA11: 0 | AAB11: 0 | AAC11: 0 | AAD11: 0 | AAE11: 0 | AAF11: 0 | AAG11: 0 | AAH11: 0 | AAI11: 0 | AAJ11: 0 | AAK11: 0 | AAL11: 0 | AAM11: 0 | AAN11: 0 | AAO11: 0 | AAP11: 0 | AAQ11: 0 | AAR11: 0 | AAS11: 0 | AAT11: 0 | AAU11: 0 | AAV11: 0 | AAW11: 0 | AAX11: 0 | AAY11: 0 | AAZ11: 0 | ABA11: 0 | ABB11: 0 | ABC11: 0 | ABD11: 0 | ABE11: 0 | ABF11: 0 | ABG11: 0 | ABH11: 0 | ABI11: 0 | ABJ11: 0 | ABK11: 0 | ABL11: 0 | ABM11: 0 | ABN11: 0 | ABO11: 0 | ABP11: 0 | ABQ11: 0 | ABR11: 0 | ABS11: 0 | ABT11: 0 | ABU11: 0 | ABV11: 0 | ABW11: 0 | ABX11: 0 | ABY11: 0 | ABZ11: 0 | ACA11: 0 | ACB11: 0 | ACC11: 0 | ACD11: 0 | ACE11: 0 | ACF11: 0 | ACG11: 0 | ACH11: 0 | ACI11: 0 | ACJ11: 0 | ACK11: 0 | ACL11: 0 | ACM11: 0 | ACN11: 0 | ACO11: 0 | ACP11: 0 | ACQ11: 0 | ACR11: 0 | ACS11: 0 | ACT11: 0 | ACU11: 0 | ACV11: 0 | ACW11: 0 | ACX11: 0 | ACY11: 0 | ACZ11: 0 | ADA11: 0 | ADB11: 0 | ADC11: 0 | ADD11: 0 | ADE11: 0 | ADF11: 0 | ADG11: 0 | ADH11: 0 | ADI11: 0 | ADJ11: 0 | ADK11: 0 | ADL11: 0 | ADM11: 0 | ADN11: 0 | ADO11: 0 | ADP11: 0 | ADQ11: 0 | ADR11: 0 | ADS11: 0 | ADT11: 0 | ADU11: 0 | ADV11: 0 | ADW11: 0 | ADX11: 0 | ADY11: 0 | ADZ11: 0 | AEA11: 0 | AEB11: 0 | AEC11: 0 | AED11: 0 | AEE11: 0 | AEF11: 0 | AEG11: 0 | AEH11: 0 | AEI11: 0 | AEJ11: 0 | AEK11: 0 | AEL11: 0 | AEM11: 0 | AEN11: 0 | AEO11: 0 | AEP11: 0 | AEQ11: 0 | AER11: 0 | AES11: 0 | AET11: 0 | AEU11: 0 | AEV11: 0 | AEW11: 0 | AEX11: 0 | AEY11: 0 | AEZ11: 0 | AFA11: 0 | AFB11: 0 | AFC11: 0 | AFD11: 0 | AFE11: 0 | AFF11: 0 | AFG11: 0 | AFH11: 0 | AFI11: 0 | AFJ11: 0 | AFK11: 0 | AFL11: 0 | AFM11: 0 | AFN11: 0 | AFO11: 0 | AFP11: 0 | AFQ11: 0 | AFR11: 0 | AFS11: 0 | AFT11: 0 | AFU11: 0 | AFV11: 0 | AFW11: 0 | AFX11: 0 | AFY11: 0 | AFZ11: 0 | AGA11: 0 | AGB11: 0 | AGC11: 0 | AGD11: 0 | AGE11: 0 | AGF11: 0 | AGG11: 0 | AGH11: 0 | AGI11: 0 | AGJ11: 0 | AGK11: 0 | AGL11: 0 | AGM11: 0 | AGN11: 0 | AGO11: 0 | AGP11: 0 | AGQ11: 0 | AGR11: 0 | AGS11: 0 | AGT11: 0 | AGU11: 0 | AGV11: 0 | AGW11: 0 | AGX11: 0 | AGY11: 0 | AGZ11: 0 | AHA11: 0 | AHB11: 0 | AHC11: 0 | AHD11: 0 | AHE11: 0 | AHF11: 0 | AHG11: 0 | AHH11: 0 | AHI11: 0 | AHJ11: 0 | AHK11: 0 | AHL11: 0 | AHM11: 0 | AHN11: 0 | AHO11: 0 | AHP11: 0 | AHQ11: 0 | AHR11: 0 | AHS11: 0 | AHT11: 0 | AHU11: 0 | AHV11: 0 | AHW11: 0 | AHX11: 0 | AHY11: 0 | AHZ11: 0 | AIA11: 0 | AIB11: 0 | AIC11: 0 | AID11: 0 | AIE11: 0 | AIF11: 0 | AIG11: 0 | AIH11: 0 | AII11: 0 | AIJ11: 0 | AIK11: 0 | AIL11: 0 | AIM11: 0 | AIN11: 0 | AIO11: 0 | AIP11: 0 | AIQ11: 0 | AIR11: 0 | AIS11: 0 | AIT11: 0 | AIU11: 0 | AIV11: 0 | AIW11: 0 | AIX11: 0 | AIY11: 0 | AIZ11: 0 | AJA11: 0 | AJB11: 0 | AJC11: 0 | AJD11: 0 | AJE11: 0 | AJF11: 0 | AJG11: 0 | AJH11: 0 | AJI11: 0 | AJJ11: 0 | AJK11: 0 | AJL11: 0 | AJM11: 0 | AJN11: 0 | AJO11: 0 | AJP11: 0 | AJQ11: 0 | AJR11: 0 | AJS11: 0 | AJT11: 0 | AJU11: 0 | AJV11: 0 | AJW11: 0 | AJX11: 0 | AJY11: 0 | AJZ11: 0 | AKA11: 0 | AKB11: 0 | AKC11: 0 | AKD11: 0 | AKE11: 0 | AKF11: 0 | AKG11: 0 | AKH11: 0 | AKI11: 0 | AKJ11: 0 | AKK11: 0 | AKL11: 0 | AKM11: 0 | AKN11: 0 | AKO11: 0 | AKP11: 0 | AKQ11: 0 | AKR11: 0 | AKS11: 0 | AKT11: 0 | AKU11: 0 | AKV11: 0 | AKW11: 0 | AKX11: 0 | AKY11: 0 | AKZ11: 0 | ALA11: 0 | ALB11: 0 | ALC11: 0 | ALD11: 0 | ALE11: 0 | ALF11: 0 | ALG11: 0 | ALH11: 0 | ALI11: 0 | ALJ11: 0 | ALK11: 0 | ALL11: 0 | ALM11: 0 | ALN11: 0 | ALO11: 0 | ALP11: 0 | ALQ11: 0
A12: Coprime? | B12: =IF(B10=1,1,0) -> 0 | F12: 0 | G12: 0 | H12: 0 | I12: 0 | J12: 0 | K12: 0 | L12: 0 | M12: 0 | N12: 0 | O12: 0 | P12: 0 | Q12: 0 | R12: 0 | S12: 0 | T12: 0 | U12: 0 | V12: 0 | W12: 0 | X12: 0 | Y12: 0 | Z12: 0 | AA12: 0 | AB12: 0 | AC12: 0 | AD12: 0 | AE12: 0 | AF12: 0 | AG12: 0 | AH12: 0 | AI12: 0 | AJ12: 0 | AK12: 0 | AL12: 0 | AM12: 0 | AN12: 0 | AO12: 0 | AP12: 0 | AQ12: 0 | AR12: 0 | AS12: 0 | AT12: 0 | AU12: 0 | AV12: 0 | AW12: 0 | AX12: 0 | AY12: 0 | AZ12: 0 | BA12: 0 | BB12: 0 | BC12: 0 | BD12: 0 | BE12: 0 | BF12: 0 | BG12: 0 | BH12: 0 | BI12: 0 | BJ12: 0 | BK12: 0 | BL12: 0 | BM12: 0 | BN12: 0 | BO12: 0 | BP12: 0 | BQ12: 0 | BR12: 0 | BS12: 0 | BT12: 0 | BU12: 0 | BV12: 0 | BW12: 0 | BX12: 0 | BY12: 0 | BZ12: 0 | CA12: 0 | CB12: 0 | CC12: 0 | CD12: 0 | CE12: 0 | CF12: 0 | CG12: 0 | CH12: 0 | CI12: 0 | CJ12: 0 | CK12: 0 | CL12: 0 | CM12: 0 | CN12: 0 | CO12: 0 | CP12: 0 | CQ12: 0 | CR12: 0 | CS12: 0 | CT12: 0 | CU12: 0 | CV12: 0 | CW12: 0 | CX12: 0 | CY12: 0 | CZ12: 0 | DA12: 0 | DB12: 0 | DC12: 0 | DD12: 0 | DE12: 0 | DF12: 0 | DG12: 0 | DH12: 0 | DI12: 0 | DJ12: 0 | DK12: 0 | DL12: 0 | DM12: 0 | DN12: 0 | DO12: 0 | DP12: 0 | DQ12: 0 | DR12: 0 | DS12: 0 | DT12: 0 | DU12: 0 | DV12: 0 | DW12: 0 | DX12: 0 | DY12: 0 | DZ12: 0 | EA12: 0 | EB12: 0 | EC12: 0 | ED12: 0 | EE12: 0 | EF12: 0 | EG12: 0 | EH12: 0 | EI12: 0 | EJ12: 0 | EK12: 0 | EL12: 0 | EM12: 0 | EN12: 0 | EO12: 0 | EP12: 0 | EQ12: 0 | ER12: 0 | ES12: 0 | ET12: 0 | EU12: 0 | EV12: 0 | EW12: 0 | EX12: 0 | EY12: 0 | EZ12: 0 | FA12: 0 | FB12: 0 | FC12: 0 | FD12: 0 | FE12: 0 | FF12: 0 | FG12: 0 | FH12: 0 | FI12: 0 | FJ12: 0 | FK12: 0 | FL12: 0 | FM12: 0 | FN12: 0 | FO12: 0 | FP12: 0 | FQ12: 0 | FR12: 0 | FS12: 0 | FT12: 0 | FU12: 0 | FV12: 0 | FW12: 0 | FX12: 0 | FY12: 0 | FZ12: 0 | GA12: 0 | GB12: 0 | GC12: 0 | GD12: 0 | GE12: 0 | GF12: 0 | GG12: 0 | GH12: 0 | GI12: 0 | GJ12: 0 | GK12: 0 | GL12: 0 | GM12: 0 | GN12: 0 | GO12: 0 | GP12: 0 | GQ12: 0 | GR12: 0 | GS12: 0 | GT12: 0 | GU12: 0 | GV12: 0 | GW12: 0 | GX12: 0 | GY12: 0 | GZ12: 0 | HA12: 0 | HB12: 0 | HC12: 0 | HD12: 0 | HE12: 0 | HF12: 0 | HG12: 0 | HH12: 0 | HI12: 0 | HJ12: 0 | HK12: 0 | HL12: 0 | HM12: 0 | HN12: 0 | HO12: 0 | HP12: 0 | HQ12: 0 | HR12: 0 | HS12: 0 | HT12: 0 | HU12: 0 | HV12: 0 | HW12: 0 | HX12: 0 | HY12: 0 | HZ12: 0 | IA12: 0 | IB12: 0 | IC12: 0 | ID12: 0 | IE12: 0 | IF12: 0 | IG12: 0 | IH12: 0 | II12: 0 | IJ12: 0 | IK12: 0 | IL12: 0 | IM12: 0 | IN12: 0 | IO12: 0 | IP12: 0 | IQ12: 0 | IR12: 0 | IS12: 0 | IT12: 0 | IU12: 0 | IV12: 0 | IW12: 0 | IX12: 0 | IY12: 0 | IZ12: 0 | JA12: 0 | JB12: 0 | JC12: 0 | JD12: 0 | JE12: 0 | JF12: 0 | JG12: 0 | JH12: 0 | JI12: 0 | JJ12: 0 | JK12: 0 | JL12: 0 | JM12: 0 | JN12: 0 | JO12: 0 | JP12: 0 | JQ12: 0 | JR12: 0 | JS12: 0 | JT12: 0 | JU12: 0 | JV12: 0 | JW12: 0 | JX12: 0 | JY12: 0 | JZ12: 0 | KA12: 0 | KB12: 0 | KC12: 0 | KD12: 0 | KE12: 0 | KF12: 0 | KG12: 0 | KH12: 0 | KI12: 0 | KJ12: 0 | KK12: 0 | KL12: 0 | KM12: 0 | KN12: 0 | KO12: 0 | KP12: 0 | KQ12: 0 | KR12: 0 | KS12: 0 | KT12: 0 | KU12: 0 | KV12: 0 | KW12: 0 | KX12: 0 | KY12: 0 | KZ12: 0 | LA12: 0 | LB12: 0 | LC12: 0 | LD12: 0 | LE12: 0 | LF12: 0 | LG12: 0 | LH12: 0 | LI12: 0 | LJ12: 0 | LK12: 0 | LL12: 0 | LM12: 0 | LN12: 0 | LO12: 0 | LP12: 0 | LQ12: 0 | LR12: 0 | LS12: 0 | LT12: 0 | LU12: 0 | LV12: 0 | LW12: 0 | LX12: 0 | LY12: 0 | LZ12: 0 | MA12: 0 | MB12: 0 | MC12: 0 | MD12: 0 | ME12: 0 | MF12: 0 | MG12: 0 | MH12: 0 | MI12: 0 | MJ12: 0 | MK12: 0 | ML12: 0 | MM12: 0 | MN12: 0 | MO12: 0 | MP12: 0 | MQ12: 0 | MR12: 0 | MS12: 0 | MT12: 0 | MU12: 0 | MV12: 0 | MW12: 0 | MX12: 0 | MY12: 0 | MZ12: 0 | NA12: 0 | NB12: 0 | NC12: 0 | ND12: 0 | NE12: 0 | NF12: 0 | NG12: 0 | NH12: 0 | NI12: 0 | NJ12: 0 | NK12: 0 | NL12: 0 | NM12: 0 | NN12: 0 | NO12: 0 | NP12: 0 | NQ12: 0 | NR12: 0 | NS12: 0 | NT12: 0 | NU12: 0 | NV12: 0 | NW12: 0 | NX12: 0 | NY12: 0 | NZ12: 0 | OA12: 0 | OB12: 0 | OC12: 0 | OD12: 0 | OE12: 0 | OF12: 0 | OG12: 0 | OH12: 0 | OI12: 0 | OJ12: 0 | OK12: 0 | OL12: 0 | OM12: 0 | ON12: 0 | OO12: 0 | OP12: 0 | OQ12: 0 | OR12: 0 | OS12: 0 | OT12: 0 | OU12: 0 | OV12: 0 | OW12: 0 | OX12: 0 | OY12: 0 | OZ12: 0 | PA12: 0 | PB12: 0 | PC12: 0 | PD12: 0 | PE12: 0 | PF12: 0 | PG12: 0 | PH12: 0 | PI12: 0 | PJ12: 0 | PK12: 0 | PL12: 0 | PM12: 0 | PN12: 0 | PO12: 0 | PP12: 0 | PQ12: 0 | PR12: 0 | PS12: 0 | PT12: 0 | PU12: 0 | PV12: 0 | PW12: 0 | PX12: 0 | PY12: 0 | PZ12: 0 | QA12: 0 | QB12: 0 | QC12: 0 | QD12: 0 | QE12: 0 | QF12: 0 | QG12: 0 | QH12: 0 | QI12: 0 | QJ12: 0 | QK12: 0 | QL12: 0 | QM12: 0 | QN12: 0 | QO12: 0 | QP12: 0 | QQ12: 0 | QR12: 0 | QS12: 0 | QT12: 0 | QU12: 0 | QV12: 0 | QW12: 0 | QX12: 0 | QY12: 0 | QZ12: 0 | RA12: 0 | RB12: 0 | RC12: 0 | RD12: 0 | RE12: 0 | RF12: 0 | RG12: 0 | RH12: 0 | RI12: 0 | RJ12: 0 | RK12: 0 | RL12: 0 | RM12: 0 | RN12: 0 | RO12: 0 | RP12: 0 | RQ12: 0 | RR12: 0 | RS12: 0 | RT12: 0 | RU12: 0 | RV12: 0 | RW12: 0 | RX12: 0 | RY12: 0 | RZ12: 0 | SA12: 0 | SB12: 0 | SC12: 0 | SD12: 0 | SE12: 0 | SF12: 0 | SG12: 0 | SH12: 0 | SI12: 0 | SJ12: 0 | SK12: 0 | SL12: 0 | SM12: 0 | SN12: 0 | SO12: 0 | SP12: 0 | SQ12: 0 | SR12: 0 | SS12: 0 | ST12: 0 | SU12: 0 | SV12: 0 | SW12: 0 | SX12: 0 | SY12: 0 | SZ12: 0 | TA12: 0 | TB12: 0 | TC12: 0 | TD12: 0 | TE12: 0 | TF12: 0 | TG12: 0 | TH12: 0 | TI12: 0 | TJ12: 0 | TK12: 0 | TL12: 0 | TM12: 0 | TN12: 0 | TO12: 0 | TP12: 0 | TQ12: 0 | TR12: 0 | TS12: 0 | TT12: 0 | TU12: 0 | TV12: 0 | TW12: 0 | TX12: 0 | TY12: 0 | TZ12: 0 | UA12: 0 | UB12: 0 | UC12: 0 | UD12: 0 | UE12: 0 | UF12: 0 | UG12: 0 | UH12: 0 | UI12: 0 | UJ12: 0 | UK12: 0 | UL12: 0 | UM12: 0 | UN12: 0 | UO12: 0 | UP12: 0 | UQ12: 0 | UR12: 0 | US12: 0 | UT12: 0 | UU12: 0 | UV12: 0 | UW12: 0 | UX12: 0 | UY12: 0 | UZ12: 0 | VA12: 0 | VB12: 0 | VC12: 0 | VD12: 0 | VE12: 0 | VF12: 0 | VG12: 0 | VH12: 0 | VI12: 0 | VJ12: 0 | VK12: 0 | VL12: 0 | VM12: 0 | VN12: 0 | VO12: 0 | VP12: 0 | VQ12: 0 | VR12: 0 | VS12: 0 | VT12: 0 | VU12: 0 | VV12: 0 | VW12: 0 | VX12: 0 | VY12: 0 | VZ12: 0 | WA12: 0 | WB12: 0 | WC12: 0 | WD12: 0 | WE12: 0 | WF12: 0 | WG12: 0 | WH12: 0 | WI12: 0 | WJ12: 0 | WK12: 0 | WL12: 0 | WM12: 0 | WN12: 0 | WO12: 0 | WP12: 0 | WQ12: 0 | WR12: 0 | WS12: 0 | WT12: 0 | WU12: 0 | WV12: 0 | WW12: 0 | WX12: 0 | WY12: 0 | WZ12: 0 | XA12: 0 | XB12: 0 | XC12: 0 | XD12: 0 | XE12: 0 | XF12: 0 | XG12: 0 | XH12: 0 | XI12: 0 | XJ12: 0 | XK12: 0 | XL12: 0 | XM12: 0 | XN12: 0 | XO12: 0 | XP12: 0 | XQ12: 0 | XR12: 0 | XS12: 0 | XT12: 0 | XU12: 0 | XV12: 0 | XW12: 0 | XX12: 0 | XY12: 0 | XZ12: 0 | YA12: 0 | YB12: 0 | YC12: 0 | YD12: 0 | YE12: 0 | YF12: 0 | YG12: 0 | YH12: 0 | YI12: 0 | YJ12: 0 | YK12: 0 | YL12: 0 | YM12: 0 | YN12: 0 | YO12: 0 | YP12: 0 | YQ12: 0 | YR12: 0 | YS12: 0 | YT12: 0 | YU12: 0 | YV12: 0 | YW12: 0 | YX12: 0 | YY12: 0 | YZ12: 0 | ZA12: 0 | ZB12: 0 | ZC12: 0 | ZD12: 0 | ZE12: 0 | ZF12: 0 | ZG12: 0 | ZH12: 0 | ZI12: 0 | ZJ12: 0 | ZK12: 0 | ZL12: 0 | ZM12: 0 | ZN12: 0 | ZO12: 0 | ZP12: 0 | ZQ12: 0 | ZR12: 0 | ZS12: 0 | ZT12: 0 | ZU12: 0 | ZV12: 0 | ZW12: 0 | ZX12: 0 | ZY12: 0 | ZZ12: 0 | AAA12: 0 | AAB12: 0 | AAC12: 0 | AAD12: 0 | AAE12: 0 | AAF12: 0 | AAG12: 0 | AAH12: 0 | AAI12: 0 | AAJ12: 0 | AAK12: 0 | AAL12: 0 | AAM12: 0 | AAN12: 0 | AAO12: 0 | AAP12: 0 | AAQ12: 0 | AAR12: 0 | AAS12: 0 | AAT12: 0 | AAU12: 0 | AAV12: 0 | AAW12: 0 | AAX12: 0 | AAY12: 0 | AAZ12: 0 | ABA12: 0 | ABB12: 0 | ABC12: 0 | ABD12: 0 | ABE12: 0 | ABF12: 0 | ABG12: 0 | ABH12: 0 | ABI12: 0 | ABJ12: 0 | ABK12: 0 | ABL12: 0 | ABM12: 0 | ABN12: 0 | ABO12: 0 | ABP12: 0 | ABQ12: 0 | ABR12: 0 | ABS12: 0 | ABT12: 0 | ABU12: 0 | ABV12: 0 | ABW12: 0 | ABX12: 0 | ABY12: 0 | ABZ12: 0 | ACA12: 0 | ACB12: 0 | ACC12: 0 | ACD12: 0 | ACE12: 0 | ACF12: 0 | ACG12: 0 | ACH12: 0 | ACI12: 0 | ACJ12: 0 | ACK12: 0 | ACL12: 0 | ACM12: 0 | ACN12: 0 | ACO12: 0 | ACP12: 0 | ACQ12: 0 | ACR12: 0 | ACS12: 0 | ACT12: 0 | ACU12: 0 | ACV12: 0 | ACW12: 0 | ACX12: 0 | ACY12: 0 | ACZ12: 0 | ADA12: 0 | ADB12: 0 | ADC12: 0 | ADD12: 0 | ADE12: 0 | ADF12: 0 | ADG12: 0 | ADH12: 0 | ADI12: 0 | ADJ12: 0 | ADK12: 0 | ADL12: 0 | ADM12: 0 | ADN12: 0 | ADO12: 0 | ADP12: 0 | ADQ12: 0 | ADR12: 0 | ADS12: 0 | ADT12: 0 | ADU12: 0 | ADV12: 0 | ADW12: 0 | ADX12: 0 | ADY12: 0 | ADZ12: 0 | AEA12: 0 | AEB12: 0 | AEC12: 0 | AED12: 0 | AEE12: 0 | AEF12: 0 | AEG12: 0 | AEH12: 0 | AEI12: 0 | AEJ12: 0 | AEK12: 0 | AEL12: 0 | AEM12: 0 | AEN12: 0 | AEO12: 0 | AEP12: 0 | AEQ12: 0 | AER12: 0 | AES12: 0 | AET12: 0 | AEU12: 0 | AEV12: 0 | AEW12: 0 | AEX12: 0 | AEY12: 0 | AEZ12: 0 | AFA12: 0 | AFB12: 0 | AFC12: 0 | AFD12: 0 | AFE12: 0 | AFF12: 0 | AFG12: 0 | AFH12: 0 | AFI12: 0 | AFJ12: 0 | AFK12: 0 | AFL12: 0 | AFM12: 0 | AFN12: 0 | AFO12: 0 | AFP12: 0 | AFQ12: 0 | AFR12: 0 | AFS12: 0 | AFT12: 0 | AFU12: 0 | AFV12: 0 | AFW12: 0 | AFX12: 0 | AFY12: 0 | AFZ12: 0 | AGA12: 0 | AGB12: 0 | AGC12: 0 | AGD12: 0 | AGE12: 0 | AGF12: 0 | AGG12: 0 | AGH12: 0 | AGI12: 0 | AGJ12: 0 | AGK12: 0 | AGL12: 0 | AGM12: 0 | AGN12: 0 | AGO12: 0 | AGP12: 0 | AGQ12: 0 | AGR12: 0 | AGS12: 0 | AGT12: 0 | AGU12: 0 | AGV12: 0 | AGW12: 0 | AGX12: 0 | AGY12: 0 | AGZ12: 0 | AHA12: 0 | AHB12: 0 | AHC12: 0 | AHD12: 0 | AHE12: 0 | AHF12: 0 | AHG12: 0 | AHH12: 0 | AHI12: 0 | AHJ12: 0 | AHK12: 0 | AHL12: 0 | AHM12: 0 | AHN12: 0 | AHO12: 0 | AHP12: 0 | AHQ12: 0 | AHR12: 0 | AHS12: 0 | AHT12: 0 | AHU12: 0 | AHV12: 0 | AHW12: 0 | AHX12: 0 | AHY12: 0 | AHZ12: 0 | AIA12: 0 | AIB12: 0 | AIC12: 0 | AID12: 0 | AIE12: 0 | AIF12: 0 | AIG12: 0 | AIH12: 0 | AII12: 0 | AIJ12: 0 | AIK12: 0 | AIL12: 0 | AIM12: 0 | AIN12: 0 | AIO12: 0 | AIP12: 0 | AIQ12: 0 | AIR12: 0 | AIS12: 0 | AIT12: 0 | AIU12: 0 | AIV12: 0 | AIW12: 0 | AIX12: 0 | AIY12: 0 | AIZ12: 0 | AJA12: 0 | AJB12: 0 | AJC12: 0 | AJD12: 0 | AJE12: 0 | AJF12: 0 | AJG12: 0 | AJH12: 0 | AJI12: 0 | AJJ12: 0 | AJK12: 0 | AJL12: 0 | AJM12: 0 | AJN12: 0 | AJO12: 0 | AJP12: 0 | AJQ12: 0 | AJR12: 0 | AJS12: 0 | AJT12: 0 | AJU12: 0 | AJV12: 0 | AJW12: 0 | AJX12: 0 | AJY12: 0 | AJZ12: 0 | AKA12: 0 | AKB12: 0 | AKC12: 0 | AKD12: 0 | AKE12: 0 | AKF12: 0 | AKG12: 0 | AKH12: 0 | AKI12: 0 | AKJ12: 0 | AKK12: 0 | AKL12: 0 | AKM12: 0 | AKN12: 0 | AKO12: 0 | AKP12: 0 | AKQ12: 0 | AKR12: 0 | AKS12: 0 | AKT12: 0 | AKU12: 0 | AKV12: 0 | AKW12: 0 | AKX12: 0 | AKY12: 0 | AKZ12: 0 | ALA12: 0 | ALB12: 0 | ALC12: 0 | ALD12: 0 | ALE12: 0 | ALF12: 0 | ALG12: 0 | ALH12: 0 | ALI12: 0 | ALJ12: 0 | ALK12: 0 | ALL12: 0 | ALM12: 0 | ALN12: 0 | ALO12: 0 | ALP12: 0 | ALQ12: 0
F13: 0 | G13: 0 | H13: 0 | I13: 0 | J13: 0 | K13: 0 | L13: 0 | M13: 0 | N13: 0 | O13: 0 | P13: 0 | Q13: 0 | R13: 0 | S13: 0 | T13: 0 | U13: 0 | V13: 0 | W13: 0 | X13: 0 | Y13: 0 | Z13: 0 | AA13: 0 | AB13: 0 | AC13: 0 | AD13: 0 | AE13: 0 | AF13: 0 | AG13: 0 | AH13: 0 | AI13: 0 | AJ13: 0 | AK13: 0 | AL13: 0 | AM13: 0 | AN13: 0 | AO13: 0 | AP13: 0 | AQ13: 0 | AR13: 0 | AS13: 0 | AT13: 0 | AU13: 0 | AV13: 0 | AW13: 0 | AX13: 0 | AY13: 0 | AZ13: 0 | BA13: 0 | BB13: 0 | BC13: 0 | BD13: 0 | BE13: 0 | BF13: 0 | BG13: 0 | BH13: 0 | BI13: 0 | BJ13: 0 | BK13: 0 | BL13: 0 | BM13: 0 | BN13: 0 | BO13: 0 | BP13: 0 | BQ13: 0 | BR13: 0 | BS13: 0 | BT13: 0 | BU13: 0 | BV13: 0 | BW13: 0 | BX13: 0 | BY13: 0 | BZ13: 0 | CA13: 0 | CB13: 0 | CC13: 0 | CD13: 0 | CE13: 0 | CF13: 0 | CG13: 0 | CH13: 0 | CI13: 0 | CJ13: 0 | CK13: 0 | CL13: 0 | CM13: 0 | CN13: 0 | CO13: 0 | CP13: 0 | CQ13: 0 | CR13: 0 | CS13: 0 | CT13: 0 | CU13: 0 | CV13: 0 | CW13: 0 | CX13: 0 | CY13: 0 | CZ13: 0 | DA13: 0 | DB13: 0 | DC13: 0 | DD13: 0 | DE13: 0 | DF13: 0 | DG13: 0 | DH13: 0 | DI13: 0 | DJ13: 0 | DK13: 0 | DL13: 0 | DM13: 0 | DN13: 0 | DO13: 0 | DP13: 0 | DQ13: 0 | DR13: 0 | DS13: 0 | DT13: 0 | DU13: 0 | DV13: 0 | DW13: 0 | DX13: 0 | DY13: 0 | DZ13: 0 | EA13: 0 | EB13: 0 | EC13: 0 | ED13: 0 | EE13: 0 | EF13: 0 | EG13: 0 | EH13: 0 | EI13: 0 | EJ13: 0 | EK13: 0 | EL13: 0 | EM13: 0 | EN13: 0 | EO13: 0 | EP13: 0 | EQ13: 0 | ER13: 0 | ES13: 0 | ET13: 0 | EU13: 0 | EV13: 0 | EW13: 0 | EX13: 0 | EY13: 0 | EZ13: 0 | FA13: 0 | FB13: 0 | FC13: 0 | FD13: 0 | FE13: 0 | FF13: 0 | FG13: 0 | FH13: 0 | FI13: 0 | FJ13: 0 | FK13: 0 | FL13: 0 | FM13: 0 | FN13: 0 | FO13: 0 | FP13: 0 | FQ13: 0 | FR13: 0 | FS13: 0 | FT13: 0 | FU13: 0 | FV13: 0 | FW13: 0 | FX13: 0 | FY13: 0 | FZ13: 0 | GA13: 0 | GB13: 0 | GC13: 0 | GD13: 0 | GE13: 0 | GF13: 0 | GG13: 0 | GH13: 0 | GI13: 0 | GJ13: 0 | GK13: 0 | GL13: 0 | GM13: 0 | GN13: 0 | GO13: 0 | GP13: 0 | GQ13: 0 | GR13: 0 | GS13: 0 | GT13: 0 | GU13: 0 | GV13: 0 | GW13: 0 | GX13: 0 | GY13: 0 | GZ13: 0 | HA13: 0 | HB13: 0 | HC13: 0 | HD13: 0 | HE13: 0 | HF13: 0 | HG13: 0 | HH13: 0 | HI13: 0 | HJ13: 0 | HK13: 0 | HL13: 0 | HM13: 0 | HN13: 0 | HO13: 0 | HP13: 0 | HQ13: 0 | HR13: 0 | HS13: 0 | HT13: 0 | HU13: 0 | HV13: 0 | HW13: 0 | HX13: 0 | HY13: 0 | HZ13: 0 | IA13: 0 | IB13: 0 | IC13: 0 | ID13: 0 | IE13: 0 | IF13: 0 | IG13: 0 | IH13: 0 | II13: 0 | IJ13: 0 | IK13: 0 | IL13: 0 | IM13: 0 | IN13: 0 | IO13: 0 | IP13: 0 | IQ13: 0 | IR13: 0 | IS13: 0 | IT13: 0 | IU13: 0 | IV13: 0 | IW13: 0 | IX13: 0 | IY13: 0 | IZ13: 0 | JA13: 0 | JB13: 0 | JC13: 0 | JD13: 0 | JE13: 0 | JF13: 0 | JG13: 0 | JH13: 0 | JI13: 0 | JJ13: 0 | JK13: 0 | JL13: 0 | JM13: 0 | JN13: 0 | JO13: 0 | JP13: 0 | JQ13: 0 | JR13: 0 | JS13: 0 | JT13: 0 | JU13: 0 | JV13: 0 | JW13: 0 | JX13: 0 | JY13: 0 | JZ13: 0 | KA13: 0 | KB13: 0 | KC13: 0 | KD13: 0 | KE13: 0 | KF13: 0 | KG13: 0 | KH13: 0 | KI13: 0 | KJ13: 0 | KK13: 0 | KL13: 0 | KM13: 0 | KN13: 0 | KO13: 0 | KP13: 0 | KQ13: 0 | KR13: 0 | KS13: 0 | KT13: 0 | KU13: 0 | KV13: 0 | KW13: 0 | KX13: 0 | KY13: 0 | KZ13: 0 | LA13: 0 | LB13: 0 | LC13: 0 | LD13: 0 | LE13: 0 | LF13: 0 | LG13: 0 | LH13: 0 | LI13: 0 | LJ13: 0 | LK13: 0 | LL13: 0 | LM13: 0 | LN13: 0 | LO13: 0 | LP13: 0 | LQ13: 0 | LR13: 0 | LS13: 0 | LT13: 0 | LU13: 0 | LV13: 0 | LW13: 0 | LX13: 0 | LY13: 0 | LZ13: 0 | MA13: 0 | MB13: 0 | MC13: 0 | MD13: 0 | ME13: 0 | MF13: 0 | MG13: 0 | MH13: 0 | MI13: 0 | MJ13: 0 | MK13: 0 | ML13: 0 | MM13: 0 | MN13: 0 | MO13: 0 | MP13: 0 | MQ13: 0 | MR13: 0 | MS13: 0 | MT13: 0 | MU13: 0 | MV13: 0 | MW13: 0 | MX13: 0 | MY13: 0 | MZ13: 0 | NA13: 0 | NB13: 0 | NC13: 0 | ND13: 0 | NE13: 0 | NF13: 0 | NG13: 0 | NH13: 0 | NI13: 0 | NJ13: 0 | NK13: 0 | NL13: 0 | NM13: 0 | NN13: 0 | NO13: 0 | NP13: 0 | NQ13: 0 | NR13: 0 | NS13: 0 | NT13: 0 | NU13: 0 | NV13: 0 | NW13: 0 | NX13: 0 | NY13: 0 | NZ13: 0 | OA13: 0 | OB13: 0 | OC13: 0 | OD13: 0 | OE13: 0 | OF13: 0 | OG13: 0 | OH13: 0 | OI13: 0 | OJ13: 0 | OK13: 0 | OL13: 0 | OM13: 0 | ON13: 0 | OO13: 0 | OP13: 0 | OQ13: 0 | OR13: 0 | OS13: 0 | OT13: 0 | OU13: 0 | OV13: 0 | OW13: 0 | OX13: 0 | OY13: 0 | OZ13: 0 | PA13: 0 | PB13: 0 | PC13: 0 | PD13: 0 | PE13: 0 | PF13: 0 | PG13: 0 | PH13: 0 | PI13: 0 | PJ13: 0 | PK13: 0 | PL13: 0 | PM13: 0 | PN13: 0 | PO13: 0 | PP13: 0 | PQ13: 0 | PR13: 0 | PS13: 0 | PT13: 0 | PU13: 0 | PV13: 0 | PW13: 0 | PX13: 0 | PY13: 0 | PZ13: 0 | QA13: 0 | QB13: 0 | QC13: 0 | QD13: 0 | QE13: 0 | QF13: 0 | QG13: 0 | QH13: 0 | QI13: 0 | QJ13: 0 | QK13: 0 | QL13: 0 | QM13: 0 | QN13: 0 | QO13: 0 | QP13: 0 | QQ13: 0 | QR13: 0 | QS13: 0 | QT13: 0 | QU13: 0 | QV13: 0 | QW13: 0 | QX13: 0 | QY13: 0 | QZ13: 0 | RA13: 0 | RB13: 0 | RC13: 0 | RD13: 0 | RE13: 0 | RF13: 0 | RG13: 0 | RH13: 0 | RI13: 0 | RJ13: 0 | RK13: 0 | RL13: 0 | RM13: 0 | RN13: 0 | RO13: 0 | RP13: 0 | RQ13: 0 | RR13: 0 | RS13: 0 | RT13: 0 | RU13: 0 | RV13: 0 | RW13: 0 | RX13: 0 | RY13: 0 | RZ13: 0 | SA13: 0 | SB13: 0 | SC13: 0 | SD13: 0 | SE13: 0 | SF13: 0 | SG13: 0 | SH13: 0 | SI13: 0 | SJ13: 0 | SK13: 0 | SL13: 0 | SM13: 0 | SN13: 0 | SO13: 0 | SP13: 0 | SQ13: 0 | SR13: 0 | SS13: 0 | ST13: 0 | SU13: 0 | SV13: 0 | SW13: 0 | SX13: 0 | SY13: 0 | SZ13: 0 | TA13: 0 | TB13: 0 | TC13: 0 | TD13: 0 | TE13: 0 | TF13: 0 | TG13: 0 | TH13: 0 | TI13: 0 | TJ13: 0 | TK13: 0 | TL13: 0 | TM13: 0 | TN13: 0 | TO13: 0 | TP13: 0 | TQ13: 0 | TR13: 0 | TS13: 0 | TT13: 0 | TU13: 0 | TV13: 0 | TW13: 0 | TX13: 0 | TY13: 0 | TZ13: 0 | UA13: 0 | UB13: 0 | UC13: 0 | UD13: 0 | UE13: 0 | UF13: 0 | UG13: 0 | UH13: 0 | UI13: 0 | UJ13: 0 | UK13: 0 | UL13: 0 | UM13: 0 | UN13: 0 | UO13: 0 | UP13: 0 | UQ13: 0 | UR13: 0 | US13: 0 | UT13: 0 | UU13: 0 | UV13: 0 | UW13: 0 | UX13: 0 | UY13: 0 | UZ13: 0 | VA13: 0 | VB13: 0 | VC13: 0 | VD13: 0 | VE13: 0 | VF13: 0 | VG13: 0 | VH13: 0 | VI13: 0 | VJ13: 0 | VK13: 0 | VL13: 0 | VM13: 0 | VN13: 0 | VO13: 0 | VP13: 0 | VQ13: 0 | VR13: 0 | VS13: 0 | VT13: 0 | VU13: 0 | VV13: 0 | VW13: 0 | VX13: 0 | VY13: 0 | VZ13: 0 | WA13: 0 | WB13: 0 | WC13: 0 | WD13: 0 | WE13: 0 | WF13: 0 | WG13: 0 | WH13: 0 | WI13: 0 | WJ13: 0 | WK13: 0 | WL13: 0 | WM13: 0 | WN13: 0 | WO13: 0 | WP13: 0 | WQ13: 0 | WR13: 0 | WS13: 0 | WT13: 0 | WU13: 0 | WV13: 0 | WW13: 0 | WX13: 0 | WY13: 0 | WZ13: 0 | XA13: 0 | XB13: 0 | XC13: 0 | XD13: 0 | XE13: 0 | XF13: 0 | XG13: 0 | XH13: 0 | XI13: 0 | XJ13: 0 | XK13: 0 | XL13: 0 | XM13: 0 | XN13: 0 | XO13: 0 | XP13: 0 | XQ13: 0 | XR13: 0 | XS13: 0 | XT13: 0 | XU13: 0 | XV13: 0 | XW13: 0 | XX13: 0 | XY13: 0 | XZ13: 0 | YA13: 0 | YB13: 0 | YC13: 0 | YD13: 0 | YE13: 0 | YF13: 0 | YG13: 0 | YH13: 0 | YI13: 0 | YJ13: 0 | YK13: 0 | YL13: 0 | YM13: 0 | YN13: 0 | YO13: 0 | YP13: 0 | YQ13: 0 | YR13: 0 | YS13: 0 | YT13: 0 | YU13: 0 | YV13: 0 | YW13: 0 | YX13: 0 | YY13: 0 | YZ13: 0 | ZA13: 0 | ZB13: 0 | ZC13: 0 | ZD13: 0 | ZE13: 0 | ZF13: 0 | ZG13: 0 | ZH13: 0 | ZI13: 0 | ZJ13: 0 | ZK13: 0 | ZL13: 0 | ZM13: 0 | ZN13: 0 | ZO13: 0 | ZP13: 0 | ZQ13: 0 | ZR13: 0 | ZS13: 0 | ZT13: 0 | ZU13: 0 | ZV13: 0 | ZW13: 0 | ZX13: 0 | ZY13: 0 | ZZ13: 0 | AAA13: 0 | AAB13: 0 | AAC13: 0 | AAD13: 0 | AAE13: 0 | AAF13: 0 | AAG13: 0 | AAH13: 0 | AAI13: 0 | AAJ13: 0 | AAK13: 0 | AAL13: 0 | AAM13: 0 | AAN13: 0 | AAO13: 0 | AAP13: 0 | AAQ13: 0 | AAR13: 0 | AAS13: 0 | AAT13: 0 | AAU13: 0 | AAV13: 0 | AAW13: 0 | AAX13: 0 | AAY13: 0 | AAZ13: 0 | ABA13: 0 | ABB13: 0 | ABC13: 0 | ABD13: 0 | ABE13: 0 | ABF13: 0 | ABG13: 0 | ABH13: 0 | ABI13: 0 | ABJ13: 0 | ABK13: 0 | ABL13: 0 | ABM13: 0 | ABN13: 0 | ABO13: 0 | ABP13: 0 | ABQ13: 0 | ABR13: 0 | ABS13: 0 | ABT13: 0 | ABU13: 0 | ABV13: 0 | ABW13: 0 | ABX13: 0 | ABY13: 0 | ABZ13: 0 | ACA13: 0 | ACB13: 0 | ACC13: 0 | ACD13: 0 | ACE13: 0 | ACF13: 0 | ACG13: 0 | ACH13: 0 | ACI13: 0 | ACJ13: 0 | ACK13: 0 | ACL13: 0 | ACM13: 0 | ACN13: 0 | ACO13: 0 | ACP13: 0 | ACQ13: 0 | ACR13: 0 | ACS13: 0 | ACT13: 0 | ACU13: 0 | ACV13: 0 | ACW13: 0 | ACX13: 0 | ACY13: 0 | ACZ13: 0 | ADA13: 0 | ADB13: 0 | ADC13: 0 | ADD13: 0 | ADE13: 0 | ADF13: 0 | ADG13: 0 | ADH13: 0 | ADI13: 0 | ADJ13: 0 | ADK13: 0 | ADL13: 0 | ADM13: 0 | ADN13: 0 | ADO13: 0 | ADP13: 0 | ADQ13: 0 | ADR13: 0 | ADS13: 0 | ADT13: 0 | ADU13: 0 | ADV13: 0 | ADW13: 0 | ADX13: 0 | ADY13: 0 | ADZ13: 0 | AEA13: 0 | AEB13: 0 | AEC13: 0 | AED13: 0 | AEE13: 0 | AEF13: 0 | AEG13: 0 | AEH13: 0 | AEI13: 0 | AEJ13: 0 | AEK13: 0 | AEL13: 0 | AEM13: 0 | AEN13: 0 | AEO13: 0 | AEP13: 0 | AEQ13: 0 | AER13: 0 | AES13: 0 | AET13: 0 | AEU13: 0 | AEV13: 0 | AEW13: 0 | AEX13: 0 | AEY13: 0 | AEZ13: 0 | AFA13: 0 | AFB13: 0 | AFC13: 0 | AFD13: 0 | AFE13: 0 | AFF13: 0 | AFG13: 0 | AFH13: 0 | AFI13: 0 | AFJ13: 0 | AFK13: 0 | AFL13: 0 | AFM13: 0 | AFN13: 0 | AFO13: 0 | AFP13: 0 | AFQ13: 0 | AFR13: 0 | AFS13: 0 | AFT13: 0 | AFU13: 0 | AFV13: 0 | AFW13: 0 | AFX13: 0 | AFY13: 0 | AFZ13: 0 | AGA13: 0 | AGB13: 0 | AGC13: 0 | AGD13: 0 | AGE13: 0 | AGF13: 0 | AGG13: 0 | AGH13: 0 | AGI13: 0 | AGJ13: 0 | AGK13: 0 | AGL13: 0 | AGM13: 0 | AGN13: 0 | AGO13: 0 | AGP13: 0 | AGQ13: 0 | AGR13: 0 | AGS13: 0 | AGT13: 0 | AGU13: 0 | AGV13: 0 | AGW13: 0 | AGX13: 0 | AGY13: 0 | AGZ13: 0 | AHA13: 0 | AHB13: 0 | AHC13: 0 | AHD13: 0 | AHE13: 0 | AHF13: 0 | AHG13: 0 | AHH13: 0 | AHI13: 0 | AHJ13: 0 | AHK13: 0 | AHL13: 0 | AHM13: 0 | AHN13: 0 | AHO13: 0 | AHP13: 0 | AHQ13: 0 | AHR13: 0 | AHS13: 0 | AHT13: 0 | AHU13: 0 | AHV13: 0 | AHW13: 0 | AHX13: 0 | AHY13: 0 | AHZ13: 0 | AIA13: 0 | AIB13: 0 | AIC13: 0 | AID13: 0 | AIE13: 0 | AIF13: 0 | AIG13: 0 | AIH13: 0 | AII13: 0 | AIJ13: 0 | AIK13: 0 | AIL13: 0 | AIM13: 0 | AIN13: 0 | AIO13: 0 | AIP13: 0 | AIQ13: 0 | AIR13: 0 | AIS13: 0 | AIT13: 0 | AIU13: 0 | AIV13: 0 | AIW13: 0 | AIX13: 0 | AIY13: 0 | AIZ13: 0 | AJA13: 0 | AJB13: 0 | AJC13: 0 | AJD13: 0 | AJE13: 0 | AJF13: 0 | AJG13: 0 | AJH13: 0 | AJI13: 0 | AJJ13: 0 | AJK13: 0 | AJL13: 0 | AJM13: 0 | AJN13: 0 | AJO13: 0 | AJP13: 0 | AJQ13: 0 | AJR13: 0 | AJS13: 0 | AJT13: 0 | AJU13: 0 | AJV13: 0 | AJW13: 0 | AJX13: 0 | AJY13: 0 | AJZ13: 0 | AKA13: 0 | AKB13: 0 | AKC13: 0 | AKD13: 0 | AKE13: 0 | AKF13: 0 | AKG13: 0 | AKH13: 0 | AKI13: 0 | AKJ13: 0 | AKK13: 0 | AKL13: 0 | AKM13: 0 | AKN13: 0 | AKO13: 0 | AKP13: 0 | AKQ13: 0 | AKR13: 0 | AKS13: 0 | AKT13: 0 | AKU13: 0 | AKV13: 0 | AKW13: 0 | AKX13: 0 | AKY13: 0 | AKZ13: 0 | ALA13: 0 | ALB13: 0 | ALC13: 0 | ALD13: 0 | ALE13: 0 | ALF13: 0 | ALG13: 0 | ALH13: 0 | ALI13: 0 | ALJ13: 0 | ALK13: 0 | ALL13: 0 | ALM13: 0 | ALN13: 0 | ALO13: 0 | ALP13: 0 | ALQ13: 0
F14: 0 | G14: 0 | H14: 0 | I14: 0 | J14: 0 | K14: 0 | L14: 0 | M14: 0 | N14: 0 | O14: 0 | P14: 0 | Q14: 0 | R14: 0 | S14: 0 | T14: 0 | U14: 0 | V14: 0 | W14: 0 | X14: 0 | Y14: 0 | Z14: 0 | AA14: 0 | AB14: 0 | AC14: 0 | AD14: 0 | AE14: 0 | AF14: 0 | AG14: 0 | AH14: 0 | AI14: 0 | AJ14: 0 | AK14: 0 | AL14: 0 | AM14: 0 | AN14: 0 | AO14: 0 | AP14: 0 | AQ14: 0 | AR14: 0 | AS14: 0 | AT14: 0 | AU14: 0 | AV14: 0 | AW14: 0 | AX14: 0 | AY14: 0 | AZ14: 0 | BA14: 0 | BB14: 0 | BC14: 0 | BD14: 0 | BE14: 0 | BF14: 0 | BG14: 0 | BH14: 0 | BI14: 0 | BJ14: 0 | BK14: 0 | BL14: 0 | BM14: 0 | BN14: 0 | BO14: 0 | BP14: 0 | BQ14: 0 | BR14: 0 | BS14: 0 | BT14: 0 | BU14: 0 | BV14: 0 | BW14: 0 | BX14: 0 | BY14: 0 | BZ14: 0 | CA14: 0 | CB14: 0 | CC14: 0 | CD14: 0 | CE14: 0 | CF14: 0 | CG14: 0 | CH14: 0 | CI14: 0 | CJ14: 0 | CK14: 0 | CL14: 0 | CM14: 0 | CN14: 0 | CO14: 0 | CP14: 0 | CQ14: 0 | CR14: 0 | CS14: 0 | CT14: 0 | CU14: 0 | CV14: 0 | CW14: 0 | CX14: 0 | CY14: 0 | CZ14: 0 | DA14: 0 | DB14: 0 | DC14: 0 | DD14: 0 | DE14: 0 | DF14: 0 | DG14: 0 | DH14: 0 | DI14: 0 | DJ14: 0 | DK14: 0 | DL14: 0 | DM14: 0 | DN14: 0 | DO14: 0 | DP14: 0 | DQ14: 0 | DR14: 0 | DS14: 0 | DT14: 0 | DU14: 0 | DV14: 0 | DW14: 0 | DX14: 0 | DY14: 0 | DZ14: 0 | EA14: 0 | EB14: 0 | EC14: 0 | ED14: 0 | EE14: 0 | EF14: 0 | EG14: 0 | EH14: 0 | EI14: 0 | EJ14: 0 | EK14: 0 | EL14: 0 | EM14: 0 | EN14: 0 | EO14: 0 | EP14: 0 | EQ14: 0 | ER14: 0 | ES14: 0 | ET14: 0 | EU14: 0 | EV14: 0 | EW14: 0 | EX14: 0 | EY14: 0 | EZ14: 0 | FA14: 0 | FB14: 0 | FC14: 0 | FD14: 0 | FE14: 0 | FF14: 0 | FG14: 0 | FH14: 0 | FI14: 0 | FJ14: 0 | FK14: 0 | FL14: 0 | FM14: 0 | FN14: 0 | FO14: 0 | FP14: 0 | FQ14: 0 | FR14: 0 | FS14: 0 | FT14: 0 | FU14: 0 | FV14: 0 | FW14: 0 | FX14: 0 | FY14: 0 | FZ14: 0 | GA14: 0 | GB14: 0 | GC14: 0 | GD14: 0 | GE14: 0 | GF14: 0 | GG14: 0 | GH14: 0 | GI14: 0 | GJ14: 0 | GK14: 0 | GL14: 0 | GM14: 0 | GN14: 0 | GO14: 0 | GP14: 0 | GQ14: 0 | GR14: 0 | GS14: 0 | GT14: 0 | GU14: 0 | GV14: 0 | GW14: 0 | GX14: 0 | GY14: 0 | GZ14: 0 | HA14: 0 | HB14: 0 | HC14: 0 | HD14: 0 | HE14: 0 | HF14: 0 | HG14: 0 | HH14: 0 | HI14: 0 | HJ14: 0 | HK14: 0 | HL14: 0 | HM14: 0 | HN14: 0 | HO14: 0 | HP14: 0 | HQ14: 0 | HR14: 0 | HS14: 0 | HT14: 0 | HU14: 0 | HV14: 0 | HW14: 0 | HX14: 0 | HY14: 0 | HZ14: 0 | IA14: 0 | IB14: 0 | IC14: 0 | ID14: 0 | IE14: 0 | IF14: 0 | IG14: 0 | IH14: 0 | II14: 0 | IJ14: 0 | IK14: 0 | IL14: 0 | IM14: 0 | IN14: 0 | IO14: 0 | IP14: 0 | IQ14: 0 | IR14: 0 | IS14: 0 | IT14: 0 | IU14: 0 | IV14: 0 | IW14: 0 | IX14: 0 | IY14: 0 | IZ14: 0 | JA14: 0 | JB14: 0 | JC14: 0 | JD14: 0 | JE14: 0 | JF14: 0 | JG14: 0 | JH14: 0 | JI14: 0 | JJ14: 0 | JK14: 0 | JL14: 0 | JM14: 0 | JN14: 0 | JO14: 0 | JP14: 0 | JQ14: 0 | JR14: 0 | JS14: 0 | JT14: 0 | JU14: 0 | JV14: 0 | JW14: 0 | JX14: 0 | JY14: 0 | JZ14: 0 | KA14: 0 | KB14: 0 | KC14: 0 | KD14: 0 | KE14: 0 | KF14: 0 | KG14: 0 | KH14: 0 | KI14: 0 | KJ14: 0 | KK14: 0 | KL14: 0 | KM14: 0 | KN14: 0 | KO14: 0 | KP14: 0 | KQ14: 0 | KR14: 0 | KS14: 0 | KT14: 0 | KU14: 0 | KV14: 0 | KW14: 0 | KX14: 0 | KY14: 0 | KZ14: 0 | LA14: 0 | LB14: 0 | LC14: 0 | LD14: 0 | LE14: 0 | LF14: 0 | LG14: 0 | LH14: 0 | LI14: 0 | LJ14: 0 | LK14: 0 | LL14: 0 | LM14: 0 | LN14: 0 | LO14: 0 | LP14: 0 | LQ14: 0 | LR14: 0 | LS14: 0 | LT14: 0 | LU14: 0 | LV14: 0 | LW14: 0 | LX14: 0 | LY14: 0 | LZ14: 0 | MA14: 0 | MB14: 0 | MC14: 0 | MD14: 0 | ME14: 0 | MF14: 0 | MG14: 0 | MH14: 0 | MI14: 0 | MJ14: 0 | MK14: 0 | ML14: 0 | MM14: 0 | MN14: 0 | MO14: 0 | MP14: 0 | MQ14: 0 | MR14: 0 | MS14: 0 | MT14: 0 | MU14: 0 | MV14: 0 | MW14: 0 | MX14: 0 | MY14: 0 | MZ14: 0 | NA14: 0 | NB14: 0 | NC14: 0 | ND14: 0 | NE14: 0 | NF14: 0 | NG14: 0 | NH14: 0 | NI14: 0 | NJ14: 0 | NK14: 0 | NL14: 0 | NM14: 0 | NN14: 0 | NO14: 0 | NP14: 0 | NQ14: 0 | NR14: 0 | NS14: 0 | NT14: 0 | NU14: 0 | NV14: 0 | NW14: 0 | NX14: 0 | NY14: 0 | NZ14: 0 | OA14: 0 | OB14: 0 | OC14: 0 | OD14: 0 | OE14: 0 | OF14: 0 | OG14: 0 | OH14: 0 | OI14: 0 | OJ14: 0 | OK14: 0 | OL14: 0 | OM14: 0 | ON14: 0 | OO14: 0 | OP14: 0 | OQ14: 0 | OR14: 0 | OS14: 0 | OT14: 0 | OU14: 0 | OV14: 0 | OW14: 0 | OX14: 0 | OY14: 0 | OZ14: 0 | PA14: 0 | PB14: 0 | PC14: 0 | PD14: 0 | PE14: 0 | PF14: 0 | PG14: 0 | PH14: 0 | PI14: 0 | PJ14: 0 | PK14: 0 | PL14: 0 | PM14: 0 | PN14: 0 | PO14: 0 | PP14: 0 | PQ14: 0 | PR14: 0 | PS14: 0 | PT14: 0 | PU14: 0 | PV14: 0 | PW14: 0 | PX14: 0 | PY14: 0 | PZ14: 0 | QA14: 0 | QB14: 0 | QC14: 0 | QD14: 0 | QE14: 0 | QF14: 0 | QG14: 0 | QH14: 0 | QI14: 0 | QJ14: 0 | QK14: 0 | QL14: 0 | QM14: 0 | QN14: 0 | QO14: 0 | QP14: 0 | QQ14: 0 | QR14: 0 | QS14: 0 | QT14: 0 | QU14: 0 | QV14: 0 | QW14: 0 | QX14: 0 | QY14: 0 | QZ14: 0 | RA14: 0 | RB14: 0 | RC14: 0 | RD14: 0 | RE14: 0 | RF14: 0 | RG14: 0 | RH14: 0 | RI14: 0 | RJ14: 0 | RK14: 0 | RL14: 0 | RM14: 0 | RN14: 0 | RO14: 0 | RP14: 0 | RQ14: 0 | RR14: 0 | RS14: 0 | RT14: 0 | RU14: 0 | RV14: 0 | RW14: 0 | RX14: 0 | RY14: 0 | RZ14: 0 | SA14: 0 | SB14: 0 | SC14: 0 | SD14: 0 | SE14: 0 | SF14: 0 | SG14: 0 | SH14: 0 | SI14: 0 | SJ14: 0 | SK14: 0 | SL14: 0 | SM14: 0 | SN14: 0 | SO14: 0 | SP14: 0 | SQ14: 0 | SR14: 0 | SS14: 0 | ST14: 0 | SU14: 0 | SV14: 0 | SW14: 0 | SX14: 0 | SY14: 0 | SZ14: 0 | TA14: 0 | TB14: 0 | TC14: 0 | TD14: 0 | TE14: 0 | TF14: 0 | TG14: 0 | TH14: 0 | TI14: 0 | TJ14: 0 | TK14: 0 | TL14: 0 | TM14: 0 | TN14: 0 | TO14: 0 | TP14: 0 | TQ14: 0 | TR14: 0 | TS14: 0 | TT14: 0 | TU14: 0 | TV14: 0 | TW14: 0 | TX14: 0 | TY14: 0 | TZ14: 0 | UA14: 0 | UB14: 0 | UC14: 0 | UD14: 0 | UE14: 0 | UF14: 0 | UG14: 0 | UH14: 0 | UI14: 0 | UJ14: 0 | UK14: 0 | UL14: 0 | UM14: 0 | UN14: 0 | UO14: 0 | UP14: 0 | UQ14: 0 | UR14: 0 | US14: 0 | UT14: 0 | UU14: 0 | UV14: 0 | UW14: 0 | UX14: 0 | UY14: 0 | UZ14: 0 | VA14: 0 | VB14: 0 | VC14: 0 | VD14: 0 | VE14: 0 | VF14: 0 | VG14: 0 | VH14: 0 | VI14: 0 | VJ14: 0 | VK14: 0 | VL14: 0 | VM14: 0 | VN14: 0 | VO14: 0 | VP14: 0 | VQ14: 0 | VR14: 0 | VS14: 0 | VT14: 0 | VU14: 0 | VV14: 0 | VW14: 0 | VX14: 0 | VY14: 0 | VZ14: 0 | WA14: 0 | WB14: 0 | WC14: 0 | WD14: 0 | WE14: 0 | WF14: 0 | WG14: 0 | WH14: 0 | WI14: 0 | WJ14: 0 | WK14: 0 | WL14: 0 | WM14: 0 | WN14: 0 | WO14: 0 | WP14: 0 | WQ14: 0 | WR14: 0 | WS14: 0 | WT14: 0 | WU14: 0 | WV14: 0 | WW14: 0 | WX14: 0 | WY14: 0 | WZ14: 0 | XA14: 0 | XB14: 0 | XC14: 0 | XD14: 0 | XE14: 0 | XF14: 0 | XG14: 0 | XH14: 0 | XI14: 0 | XJ14: 0 | XK14: 0 | XL14: 0 | XM14: 0 | XN14: 0 | XO14: 0 | XP14: 0 | XQ14: 0 | XR14: 0 | XS14: 0 | XT14: 0 | XU14: 0 | XV14: 0 | XW14: 0 | XX14: 0 | XY14: 0 | XZ14: 0 | YA14: 0 | YB14: 0 | YC14: 0 | YD14: 0 | YE14: 0 | YF14: 0 | YG14: 0 | YH14: 0 | YI14: 0 | YJ14: 0 | YK14: 0 | YL14: 0 | YM14: 0 | YN14: 0 | YO14: 0 | YP14: 0 | YQ14: 0 | YR14: 0 | YS14: 0 | YT14: 0 | YU14: 0 | YV14: 0 | YW14: 0 | YX14: 0 | YY14: 0 | YZ14: 0 | ZA14: 0 | ZB14: 0 | ZC14: 0 | ZD14: 0 | ZE14: 0 | ZF14: 0 | ZG14: 0 | ZH14: 0 | ZI14: 0 | ZJ14: 0 | ZK14: 0 | ZL14: 0 | ZM14: 0 | ZN14: 0 | ZO14: 0 | ZP14: 0 | ZQ14: 0 | ZR14: 0 | ZS14: 0 | ZT14: 0 | ZU14: 0 | ZV14: 0 | ZW14: 0 | ZX14: 0 | ZY14: 0 | ZZ14: 0 | AAA14: 0 | AAB14: 0 | AAC14: 0 | AAD14: 0 | AAE14: 0 | AAF14: 0 | AAG14: 0 | AAH14: 0 | AAI14: 0 | AAJ14: 0 | AAK14: 0 | AAL14: 0 | AAM14: 0 | AAN14: 0 | AAO14: 0 | AAP14: 0 | AAQ14: 0 | AAR14: 0 | AAS14: 0 | AAT14: 0 | AAU14: 0 | AAV14: 0 | AAW14: 0 | AAX14: 0 | AAY14: 0 | AAZ14: 0 | ABA14: 0 | ABB14: 0 | ABC14: 0 | ABD14: 0 | ABE14: 0 | ABF14: 0 | ABG14: 0 | ABH14: 0 | ABI14: 0 | ABJ14: 0 | ABK14: 0 | ABL14: 0 | ABM14: 0 | ABN14: 0 | ABO14: 0 | ABP14: 0 | ABQ14: 0 | ABR14: 0 | ABS14: 0 | ABT14: 0 | ABU14: 0 | ABV14: 0 | ABW14: 0 | ABX14: 0 | ABY14: 0 | ABZ14: 0 | ACA14: 0 | ACB14: 0 | ACC14: 0 | ACD14: 0 | ACE14: 0 | ACF14: 0 | ACG14: 0 | ACH14: 0 | ACI14: 0 | ACJ14: 0 | ACK14: 0 | ACL14: 0 | ACM14: 0 | ACN14: 0 | ACO14: 0 | ACP14: 0 | ACQ14: 0 | ACR14: 0 | ACS14: 0 | ACT14: 0 | ACU14: 0 | ACV14: 0 | ACW14: 0 | ACX14: 0 | ACY14: 0 | ACZ14: 0 | ADA14: 0 | ADB14: 0 | ADC14: 0 | ADD14: 0 | ADE14: 0 | ADF14: 0 | ADG14: 0 | ADH14: 0 | ADI14: 0 | ADJ14: 0 | ADK14: 0 | ADL14: 0 | ADM14: 0 | ADN14: 0 | ADO14: 0 | ADP14: 0 | ADQ14: 0 | ADR14: 0 | ADS14: 0 | ADT14: 0 | ADU14: 0 | ADV14: 0 | ADW14: 0 | ADX14: 0 | ADY14: 0 | ADZ14: 0 | AEA14: 0 | AEB14: 0 | AEC14: 0 | AED14: 0 | AEE14: 0 | AEF14: 0 | AEG14: 0 | AEH14: 0 | AEI14: 0 | AEJ14: 0 | AEK14: 0 | AEL14: 0 | AEM14: 0 | AEN14: 0 | AEO14: 0 | AEP14: 0 | AEQ14: 0 | AER14: 0 | AES14: 0 | AET14: 0 | AEU14: 0 | AEV14: 0 | AEW14: 0 | AEX14: 0 | AEY14: 0 | AEZ14: 0 | AFA14: 0 | AFB14: 0 | AFC14: 0 | AFD14: 0 | AFE14: 0 | AFF14: 0 | AFG14: 0 | AFH14: 0 | AFI14: 0 | AFJ14: 0 | AFK14: 0 | AFL14: 0 | AFM14: 0 | AFN14: 0 | AFO14: 0 | AFP14: 0 | AFQ14: 0 | AFR14: 0 | AFS14: 0 | AFT14: 0 | AFU14: 0 | AFV14: 0 | AFW14: 0 | AFX14: 0 | AFY14: 0 | AFZ14: 0 | AGA14: 0 | AGB14: 0 | AGC14: 0 | AGD14: 0 | AGE14: 0 | AGF14: 0 | AGG14: 0 | AGH14: 0 | AGI14: 0 | AGJ14: 0 | AGK14: 0 | AGL14: 0 | AGM14: 0 | AGN14: 0 | AGO14: 0 | AGP14: 0 | AGQ14: 0 | AGR14: 0 | AGS14: 0 | AGT14: 0 | AGU14: 0 | AGV14: 0 | AGW14: 0 | AGX14: 0 | AGY14: 0 | AGZ14: 0 | AHA14: 0 | AHB14: 0 | AHC14: 0 | AHD14: 0 | AHE14: 0 | AHF14: 0 | AHG14: 0 | AHH14: 0 | AHI14: 0 | AHJ14: 0 | AHK14: 0 | AHL14: 0 | AHM14: 0 | AHN14: 0 | AHO14: 0 | AHP14: 0 | AHQ14: 0 | AHR14: 0 | AHS14: 0 | AHT14: 0 | AHU14: 0 | AHV14: 0 | AHW14: 0 | AHX14: 0 | AHY14: 0 | AHZ14: 0 | AIA14: 0 | AIB14: 0 | AIC14: 0 | AID14: 0 | AIE14: 0 | AIF14: 0 | AIG14: 0 | AIH14: 0 | AII14: 0 | AIJ14: 0 | AIK14: 0 | AIL14: 0 | AIM14: 0 | AIN14: 0 | AIO14: 0 | AIP14: 0 | AIQ14: 0 | AIR14: 0 | AIS14: 0 | AIT14: 0 | AIU14: 0 | AIV14: 0 | AIW14: 0 | AIX14: 0 | AIY14: 0 | AIZ14: 0 | AJA14: 0 | AJB14: 0 | AJC14: 0 | AJD14: 0 | AJE14: 0 | AJF14: 0 | AJG14: 0 | AJH14: 0 | AJI14: 0 | AJJ14: 0 | AJK14: 0 | AJL14: 0 | AJM14: 0 | AJN14: 0 | AJO14: 0 | AJP14: 0 | AJQ14: 0 | AJR14: 0 | AJS14: 0 | AJT14: 0 | AJU14: 0 | AJV14: 0 | AJW14: 0 | AJX14: 0 | AJY14: 0 | AJZ14: 0 | AKA14: 0 | AKB14: 0 | AKC14: 0 | AKD14: 0 | AKE14: 0 | AKF14: 0 | AKG14: 0 | AKH14: 0 | AKI14: 0 | AKJ14: 0 | AKK14: 0 | AKL14: 0 | AKM14: 0 | AKN14: 0 | AKO14: 0 | AKP14: 0 | AKQ14: 0 | AKR14: 0 | AKS14: 0 | AKT14: 0 | AKU14: 0 | AKV14: 0 | AKW14: 0 | AKX14: 0 | AKY14: 0 | AKZ14: 0 | ALA14: 0 | ALB14: 0 | ALC14: 0 | ALD14: 0 | ALE14: 0 | ALF14: 0 | ALG14: 0 | ALH14: 0 | ALI14: 0 | ALJ14: 0 | ALK14: 0 | ALL14: 0 | ALM14: 0 | ALN14: 0 | ALO14: 0 | ALP14: 0 | ALQ14: 0
